Workbook

Sheet Inddata
B2: Dimensioneringsværktøj for varmegenvindingsenheder
B4: Dette beregningsværktøj er udviklet som en del af Elforsk projektet "Optimering af væskekoblede batterier
B5: og dimensioneringsværktøj"
B7: Med dimensioneringsværktøjet kan der, ved indtastning af en række parametre for ventilationssystemet
B8: såsom luftmængder, totale trykstigninger samt indblæsnings- og udsugningstemperaturer, foretages
B9: beregninger af totaløkonomien (LCC) for forskellige alternative løsninger.
B11: Dimensioneringsværktøjet kan håndtere følgende varmegenvindingsenheder:
B13: - Krydsvarmevekslere
B14: - Roterende vekslere
B15: - Væskekoblede vekslere
B17: I værktøjet skal der indtastes data for:
B19: - Forsyningspriser
B20: - Økonomiske faktorer
B21: - Data for anlæg
B22: - Økonomi (levetid)
B24: Gule felter er indtastningsfelter. Forklaringer til de enkelte felter ses, når man stiller sig på feltet med curseren
B26: Grønne felter er beregningsfelter
B29: Forsyningspriser | H29: Økonomiske faktorer
B32: Varme | D32: 800 | F32: [kr./MWh] | H32: Rente i løbende priser | K32: 3 | M32: [%]
B34: El | D34: 1.2 | F34: [kr./kWh] | H34: Energi- og vandprisstigning | K34: 1 | M34: [%]
H36: Inflation | K36: 2 | M36: [%]
B40: Data for anlæg
B42: Indblæsning
B44: Luftmængde, ind | D44: 35000 | F44: [m3/h]
B46: Total trykstigning, ind | D46: 700 | F46: [Pa]
B48: Indblæsningstemperatur | D48: 20 | F48: [° C]
B51: Udsugning
B53: Luftmængde, ud | D53: 35000 | F53: [m3/h]
B55: Total trykstigning, ud | D55: 700 | F55: [Pa]
B57: Udsugningstemperatur | D57: 20 | F57: [° C]
B60: Veksler og driftstid
B62: Varmeveksler | AE62: Krydsveksler
AE63: Roterende veksler
B64: Start | D64: 0 | AE64: Væskekoblede vekslere
B66: Stop | D66: 24 | AE66: 2
B68: Antal dage | D68: 7 | AE68: Antal timer pr. år | AG68: =(D66-D64)*D68*52 -> 8736
B72: Økonomi
D74: Alternativ 1 | F74: Alternativ 2 | H74: Alternativ 3
B76: Virkningsgrad varmegenvinding [%] | D76: =Kryds_Rotor_Væske!C47 -> 70.22220203 | F76: =Kryds_Rotor_Væske!F47 -> 78.39813094 | H76: =Kryds_Rotor_Væske!I47 -> 80.41906717
B78: Varmeforbrug [MWh/år] | D78: =Varme_og_Køl_1!D33/1000 -> 380.9420292 | F78: =Varme_og_Køl_2!D33/1000 -> 276.348837 | H78: =Varme_og_Køl_3!D33/1000 -> 250.4953622
B80: Elforbrug [kWh/år] | D80: =((((Kryds_Rotor_Væske!C43/3600)*(Kryds_Rotor_Væske!C45+Kryds_Rotor_Væske!C45))/((Motor!E6+Motor!K6)/2)/1000)*AG68) -> 23676.72905 | F80: =((((Kryds_Rotor_Væske!F43/3600)*(Kryds_Rotor_Væske!F45+Kryds_Rotor_Væske!F45))/((Motor!E6+Motor!K6)/2)/1000)*AG68) -> 35515.09358 | H80: =((((Kryds_Rotor_Væske!I43/3600)*(Kryds_Rotor_Væske!I45+Kryds_Rotor_Væske!I45))/((Motor!E6+Motor!K6)/2)/1000)*AG68) -> 41434.27585
B82: Økonomi [kr./år] | D82: =($D$32*D78)+($D$34*D80) -> 333165.6982 | F82: =($D$32*F78)+($D$34*F80) -> 263697.1819 | H82: =($D$32*H78)+($D$34*H80) -> 250117.4208
B84: Investering [kr.] | D84: =Kryds_Rotor_Væske!C49 -> 91763.51756 | F84: =Kryds_Rotor_Væske!F49 -> 98569.02287 | H84: =Kryds_Rotor_Væske!I49 -> 101971.7755
B86: Levetid [År] | D86: 15 | F86: 15 | H86: 15
B88: LCC [kr.] | D88: =LCC!B36 -> 5089248.991 | F88: =LCC!C36 -> 4054026.751 | H88: =LCC!D36 -> 3649789.536

Sheet Kryds_Rotor_Væske (hidden)
B2: Krydsveksler
B4: Luftmængde | C4: =(Inddata!D44+Inddata!D53)/2 -> 35000 | D4: m3/h | F4: =(Inddata!D44+Inddata!D53)/2 -> 35000 | G4: m3/h | I4: =(Inddata!D44+Inddata!D53)/2 -> 35000 | J4: m3/h | M4: A | N4: =P4*C4^Q4 -> 75.62975266 | P4: 42.18954633 | Q4: 0.05578433735
B6: Tryktab | C6: 100 | D6: Pa | F6: 150 | G6: Pa | I6: 175 | J6: Pa | M6: B | N6: =P6*C4^Q6 -> 0.0186153858 | P6: 12.3866718 | Q6: -0.6212676751
B8: Virkningsgrad | C8: =$N$4*(1-EXP(-$N$6*C6)) -> 63.87437065 | D8: % | F8: =$N$4*(1-EXP(-$N$6*F6)) -> 70.99518977 | G8: % | I8: =$N$4*(1-EXP(-$N$6*I6)) -> 72.71974055 | J8: % | M8: C | N8: =(P8*C4^2)+(Q8*C4)+R8 -> 1133.272969 | P8: 1.852070496e-08 | Q8: 0.01454327838 | R8: 601.5703621
B10: Investering | C10: =$N$8*C6 -> 113327.2969 | D10: kr. | F10: =$N$8*F6 -> 169990.9453 | G10: kr. | I10: =$N$8*I6 -> 198322.7696 | J10: kr.
B15: Rotorveksler
B17: Luftmængde | C17: =(Inddata!D44+Inddata!D53)/2 -> 35000 | D17: m3/h | F17: =(Inddata!D44+Inddata!D53)/2 -> 35000 | G17: m3/h | I17: =(Inddata!D44+Inddata!D53)/2 -> 35000 | J17: m3/h | M17: A | N17: =(P17*C17)+Q17 -> 83.94855397 | P17: -5.490733903e-05 | Q17: 85.87031084
B19: Tryktab | C19: 100 | D19: Pa | F19: 150 | G19: Pa | I19: 175 | J19: Pa | M19: B | N19: =P19*C17^Q19 -> 0.01810886674 | P19: 0.1206480164 | Q19: -0.1812536487
B21: Virkningsgrad | C21: =$N$17*(1-EXP(-$N$19*C19)) -> 70.22220203 | D21: % | F21: =$N$17*(1-EXP(-$N$19*F19)) -> 78.39813094 | G21: % | I21: =$N$17*(1-EXP(-$N$19*I19)) -> 80.41906717 | J21: % | M21: C | N21: =(P21*C17^2)+(Q21*C17)+R21 -> 136.1101061 | P21: -1.844502286e-08 | Q21: 0.004207800538 | R21: 11.43224031
N22: =(P22*C17^2)+(Q22*C17)+R22 -> 78152.50695 | P22: -9.523146164e-06 | Q22: 1.863857272 | R22: 24583.35647
B23: Investering | C23: =$N$21*C19+N22 -> 91763.51756 | D23: kr. | F23: =$N$21*F19+N22 -> 98569.02287 | G23: kr. | I23: =$N$21*I19+N22 -> 101971.7755 | J23: kr.
B28: Væskekoblede vekslere
B30: Luftmængde | C30: =(Inddata!D44+Inddata!D53)/2 -> 35000 | D30: m3/h | F30: =(Inddata!D44+Inddata!D53)/2 -> 35000 | G30: m3/h | I30: =(Inddata!D44+Inddata!D53)/2 -> 35000 | J30: m3/h
B32: Tryktab | C32: 100 | D32: Pa | F32: 150 | G32: Pa | I32: 175 | J32: Pa
B34: Virkningsgrad | C34: =Væske_1!F37*100 -> 54.12337583 | D34: % | F34: =Væske_2!F37*100 -> 66.31758153 | G34: % | I34: =Væske_3!F37*100 -> 70.8633342 | J34: %
B36: Investering | C36: =Væske_1!F38 -> 91261.87778 | D36: kr. | F36: =Væske_2!F38 -> 141405.7667 | G36: kr. | I36: =Væske_3!F38 -> 166477.7111 | J36: kr.
B41: Resulterende
B43: Luftmængde | C43: =IF(Inddata!$AE$66=1,Kryds_Rotor_Væske!C4,IF(Inddata!$AE$66=2,C17,IF(Inddata!$AE$66=3,C30))) -> 35000 | D43: m3/h | F43: =IF(Inddata!$AE$66=1,Kryds_Rotor_Væske!F4,IF(Inddata!$AE$66=2,F17,IF(Inddata!$AE$66=3,F30))) -> 35000 | G43: m3/h | I43: =IF(Inddata!$AE$66=1,Kryds_Rotor_Væske!I4,IF(Inddata!$AE$66=2,I17,IF(Inddata!$AE$66=3,I30))) -> 35000 | J43: m3/h
B45: Tryktab | C45: =IF(Inddata!$AE$66=1,Kryds_Rotor_Væske!C6,IF(Inddata!$AE$66=2,C19,IF(Inddata!$AE$66=3,C32))) -> 100 | D45: Pa | F45: =IF(Inddata!$AE$66=1,Kryds_Rotor_Væske!F6,IF(Inddata!$AE$66=2,F19,IF(Inddata!$AE$66=3,F32))) -> 150 | G45: Pa | I45: =IF(Inddata!$AE$66=1,Kryds_Rotor_Væske!I6,IF(Inddata!$AE$66=2,I19,IF(Inddata!$AE$66=3,I32))) -> 175 | J45: Pa
B47: Virkningsgrad | C47: =IF(Inddata!$AE$66=1,Kryds_Rotor_Væske!C8,IF(Inddata!$AE$66=2,C21,IF(Inddata!$AE$66=3,C34))) -> 70.22220203 | D47: % | F47: =IF(Inddata!$AE$66=1,Kryds_Rotor_Væske!F8,IF(Inddata!$AE$66=2,F21,IF(Inddata!$AE$66=3,F34))) -> 78.39813094 | G47: % | I47: =IF(Inddata!$AE$66=1,Kryds_Rotor_Væske!I8,IF(Inddata!$AE$66=2,I21,IF(Inddata!$AE$66=3,I34))) -> 80.41906717 | J47: %
B49: Investering | C49: =IF(Inddata!$AE$66=1,Kryds_Rotor_Væske!C10,IF(Inddata!$AE$66=2,C23,IF(Inddata!$AE$66=3,C36))) -> 91763.51756 | D49: kr. | F49: =IF(Inddata!$AE$66=1,Kryds_Rotor_Væske!F10,IF(Inddata!$AE$66=2,F23,IF(Inddata!$AE$66=3,F36))) -> 98569.02287 | G49: kr. | I49: =IF(Inddata!$AE$66=1,Kryds_Rotor_Væske!I10,IF(Inddata!$AE$66=2,I23,IF(Inddata!$AE$66=3,I36))) -> 101971.7755 | J49: kr.

Sheet Væske_1 (hidden)
B2: Flow, m3/h | C2: 5000 | D2: 15000 | E2: 25000 | F2: 40000 | G2: 70000 | H2: 35000
B3: Flow, m3/sek | C3: =C2/3600 -> 1.388888889 | D3: =D2/3600 -> 4.166666667 | E3: =E2/3600 -> 6.944444444 | F3: =F2/3600 -> 11.11111111 | G3: =G2/3600 -> 19.44444444 | H3: =H2/3600 -> 9.722222222
B5: Fin pitch | C5: 1.6 | D5: 1.6 | E5: 1.6 | F5: 1.6 | G5: 1.6 | H5: 1.6
B6: Face vel | C6: 1 | D6: 1 | E6: 1 | F6: 1 | G6: 1 | H6: 1
B7: Eff | C7: 0.333351444 | D7: 0.333351444 | E7: 0.333351444 | F7: 0.333351444 | G7: 0.333351444 | H7: 0.33
B8: Varm ind | C8: 20 | D8: 20 | E8: 20 | F8: 20 | G8: 20 | H8: 20
B9: Varm ud | C9: =C8-(C13-C12) -> 13.33297112 | D9: =D8-(D13-D12) -> 13.33297112 | E9: =E8-(E13-E12) -> 13.33297112 | F9: =F8-(F13-F12) -> 13.33297112 | G9: =G8-(G13-G12) -> 13.33297112 | H9: =H8-(H13-H12) -> 13.4
B11: Airside
B12: Kold ind | C12: 0 | D12: 0 | E12: 0 | F12: 0 | G12: 0 | H12: 0
B13: Kold ud | C13: =C7*(C8-C12)+C12 -> 6.66702888 | D13: =D7*(D8-D12)+D12 -> 6.66702888 | E13: =E7*(E8-E12)+E12 -> 6.66702888 | F13: =F7*(F8-F12)+F12 -> 6.66702888 | G13: =G7*(G8-G12)+G12 -> 6.66702888 | H13: =H7*(H8-H12)+H12 -> 6.6
B15: Water
B16: Mellem varm | C16: =C17+(C13-C12) -> 13.33351444 | D16: =D17+(D13-D12) -> 13.33351444 | E16: =E17+(E13-E12) -> 13.33351444 | F16: =F17+(F13-F12) -> 13.33351444 | G16: =G17+(G13-G12) -> 13.33351444 | H16: =H17+(H13-H12) -> 13.3
B17: Mellem kold | C17: =0.5*(C9+C12) -> 6.66648556 | D17: =0.5*(D9+D12) -> 6.66648556 | E17: =0.5*(E9+E12) -> 6.66648556 | F17: =0.5*(F9+F12) -> 6.66648556 | G17: =0.5*(G9+G12) -> 6.66648556 | H17: =0.5*(H9+H12) -> 6.7
B19: Eff pr veks | C19: =2*C7/(1+C7) -> 0.5000203742 | D19: =2*D7/(1+D7) -> 0.5000203742 | E19: =2*E7/(1+E7) -> 0.5000203742 | F19: =2*F7/(1+F7) -> 0.5000203742 | G19: =2*G7/(1+G7) -> 0.5000203742 | H19: =2*H7/(1+H7) -> 0.4962406015
B20: Effektivitet | C20: =C7 -> 0.333351444 | D20: =D7 -> 0.333351444 | E20: =E7 -> 0.333351444 | F20: =F7 -> 0.333351444 | G20: =G7 -> 0.333351444 | H20: =H7 -> 0.33
B21: DP Pa | C21: 53 | D21: 50 | E21: 51 | F21: 49 | G21: 49 | H21: 49
B22: Vægt | C22: 65 | D22: 143 | E22: 204 | F22: 301 | G22: 472 | H22: 472
B23: Pris | C23: 3570 | D23: 9250 | E23: 13000 | F23: 21800 | G23: 38420 | H23: 38420
B24: Dybde | C24: 850 | D24: 850 | E24: 850 | F24: 850 | G24: 850 | H24: 850
B25: kgpris | C25: =C23/C22 -> 54.92307692 | D25: 64.68531469 | E25: 63.7254902 | F25: 72.42524917 | G25: 81.39830508 | H25: 81.39830508
B27: Beregnet
B28: Facevelocity | C28: 2
B29: Vægt konst | C29: 45
B30: Vægt hældn | C30: 0.0062
B31: kgpriskonst | C31: 55.6
B32: Hældning | C32: 0.00038
B33: Tryktab-eps33 | C33: 45
B34: Grundtryktab | C34: 0.2 | H34: 10 | I34: 15 | J34: 20 | K34: 25 | L34: 30 | M34: 40 | N34: 50 | O34: 60 | P34: 80 | Q34: 100 | R34: 120 | S34: 150 | T34: 190 | U34: 240
G35: B | H35: 970 | I35: 1120 | J35: 1420 | K35: 1420 | L35: 1570 | M35: 1720 | N35: 2020 | O35: 2170 | P35: 2170 | Q35: 2570 | R35: 2890 | S35: 2890 | T35: 3190 | U35: 3490
C36: Input | F36: Output | G36: H | H36: 520 | I36: 595 | J36: 670 | K36: 745 | L36: 820 | M36: 895 | N36: 1045 | O36: 1120 | P36: 1270 | Q36: 1420 | R36: 1570 | S36: 1720 | T36: 2170 | U36: 2470
B37: Tryktab | C37: =Kryds_Rotor_Væske!C32 -> 100 | E37: Effektivitet | F37: =IF(OR(C37<45, C37>200),"Tryktabet skal være større end 45 og mindre end 200 Pa",(C37^2*C56+D56*C37+E56)) -> 0.5412337583 | G37: A | H37: =H35*H36/1000000 -> 0.5044 | I37: 0.6664 | J37: 0.9514 | K37: 1.0579 | L37: 1.2874 | M37: 1.5394 | N37: 2.1109 | O37: 2.4304 | P37: 2.7559 | Q37: 3.6494 | R37: 4.5373 | S37: 4.9708 | T37: 6.9223 | U37: 8.6203
B38: Flow | C38: =Kryds_Rotor_Væske!C30 -> 35000 | E38: Pris for 2 stk | F38: =IF(AND(C37>45, C37<200),(C57*C37^2+D57*C37+E57)*2,"Tryktab uden for område") -> 91261.87778 | H38: =$C$38/3600/H37 -> 19.27482598 | I38: =$C$38/3600/I37 -> 14.589169 | J38: 10.21885876 | K38: 9.190114588 | L38: 7.551827111 | M38: 6.315591933 | N38: 4.60572373 | O38: 4.000256016 | P38: 3.527784833 | Q38: 2.664060454 | R38: 2.142732952 | S38: 1.955866706 | T38: 1.404478601 | U38: 1.127828756
B40: Kg pris | C40: =C38*C32+C31 -> 68.9
B41: Dybde ved ref | C41: 250
B42: Ref eff pr veks | C42: 0.5
B43: dp PR VEKS | C43: =C33 -> 45
B44: Eksponent | C44: 1 | I44: x
B45: L | C45: 1 | D45: =C45*2^0.25 -> 1.189207115 | E45: =D45*2^0.25 -> 1.414213562 | F45: =E45*2^0.25 -> 1.681792831 | G45: 2 | H45: 2.37841423 | I45: 2.828427125 | J45: 3.363585661 | K45: =J45*2^0.25 -> 4 | L45: 4.75682846 | M45: 5.656854249 | N45: 6.727171322 | O45: 8
B46: Vægt kg pr veks | C46: =$C$29+$C$30*C38 -> 262 | D46: =$C$46*D45^$C$44 -> 311.5722641 | E46: =$C$46*E45^$C$44 -> 370.5239533 | F46: =$C$46*F45^$C$44 -> 440.6297216 | G46: 524 | H46: 623.1445283 | I46: =$C$46*I45^$C$44 -> 741.0479067 | J46: =$C$46*J45^$C$44 -> 881.2594432 | K46: =$C$46*K45^$C$44 -> 1048 | L46: =$C$46*L45^$C$44 -> 1246.289057 | M46: =$C$46*M45^$C$44 -> 1482.095813 | N46: 1762.518886 | O46: 2096
B48: Efftivt pr veks | C48: =$C$42*C45/(1+$C$42*(C45-1)) -> 0.5 | D48: 0.5432136169 | E48: 0.5857864376 | F48: 0.6271151192 | G48: 0.6666666667 | H48: 0.7040031411 | I48: 0.738796125 | J48: 0.7708306705 | K48: 0.8 | L48: 0.8262932434 | M48: 0.8497788952 | N48: 0.870586537 | O48: 0.8888888889
B49: Efftivt pr batt | C49: =C48/(2-C48) -> 0.3333333333 | D49: =D48/(2-D48) -> 0.3728848808 | E49: =E48/(2-E48) -> 0.4142135624 | F49: 0.4567863831 | G49: =G48/(2-G48) -> 0.5 | H49: 0.5432136169 | I49: 0.5857864376 | J49: 0.6271151192 | K49: 0.6666666667 | L49: 0.7040031411 | M49: 0.738796125 | N49: 0.7708306705 | O49: 0.8
B50: Pris pr veks | C50: =C46*$C$40 -> 18051.8 | D50: 21467.329 | E50: 25529.10039 | F50: 30359.38782 | G50: 36103.6 | H50: 42934.658 | I50: 51058.20077 | J50: 60718.77564 | K50: 72207.2 | L50: 85869.31599 | M50: 102116.4015 | N50: 121437.5513 | O50: 144414.4
B51: DeltaP pr veks | C51: =$C$34*$C$33+C45*(1-$C$34)*$C$33 -> 45 | D51: =$C$34*$C$33+D45*(1-$C$34)*$C$33 -> 51.81145614 | E51: 59.91168825 | F51: 69.5445419 | G51: 81 | H51: 94.62291228 | I51: 110.8233765 | J51: 130.0890838 | K51: 153 | L51: 180.2458246 | M51: 212.646753 | N51: 251.1781676 | O51: 297
B52: TTC dp | C52: 49 | G52: 76 | K52: 165 | M52: 249
B54: Tryk | C54: =C51 -> 45 | D54: =D51 -> 51.81145614 | E54: 59.91168825 | F54: 69.5445419 | G54: 81 | H54: 94.62291228 | I54: 110.8233765 | J54: 130.0890838 | K54: 153 | L54: 180.2458246 | M54: 212.646753 | N54: 251.1781676 | O54: 297
B55: Tryk^2 | C55: =C54^2 -> 2025 | D55: =D54^2 -> 2684.426987 | E55: 3589.410388 | F55: 4836.443308 | G55: 6561 | H55: 8953.495528 | I55: 12281.82078 | J55: 16923.16972 | K55: 23409 | L55: 32488.55727 | M55: 45218.64155 | N55: 63090.47188 | O55: 88209
B56: Effektivitet | C56: =LINEST(C49:O49,C54:O55,TRUE,FALSE) -> -8.273867583e-06 | D56: 0.004507308034 | E56: 0.1732416307
B57: Pris | C57: =LINEST(C50:O50,C54:O55,TRUE,TRUE) -> -3.13611073e-16 | D57: 501.4388889 | E57: -4512.95
B58: Effekt effet poly | C58: =C51^2*$C$56+C51*$D$56+$E$56 -> 0.3593159104 | D58: =D51^2*$C$56+D51*$D$56+$E$56 -> 0.3845612298 | E58: 0.4135837583 | F58: 0.4466842117 | G58: 0.4840487363 | H58: 0.5256562071 | I58: 0.5711385672 | J58: 0.6195731379 | K58: =K51^2*$C$56+K51*$D$56+$E$56 -> 0.6691767937 | L58: 0.7168590631 | M58: 0.7575729964 | N58: 0.7833767935 | O58: 0.7820825313
B60: Pris

Sheet Væske_2 (hidden)
B2: Flow, m3/h | C2: 5000 | D2: 15000 | E2: 25000 | F2: 40000 | G2: 70000 | H2: 35000
B3: Flow, m3/sek | C3: =C2/3600 -> 1.388888889 | D3: =D2/3600 -> 4.166666667 | E3: =E2/3600 -> 6.944444444 | F3: =F2/3600 -> 11.11111111 | G3: =G2/3600 -> 19.44444444 | H3: =H2/3600 -> 9.722222222
B5: Fin pitch | C5: 1.6 | D5: 1.6 | E5: 1.6 | F5: 1.6 | G5: 1.6 | H5: 1.6
B6: Face vel | C6: 1 | D6: 1 | E6: 1 | F6: 1 | G6: 1 | H6: 1
B7: Eff | C7: 0.333351444 | D7: 0.333351444 | E7: 0.333351444 | F7: 0.333351444 | G7: 0.333351444 | H7: 0.33
B8: Varm ind | C8: 20 | D8: 20 | E8: 20 | F8: 20 | G8: 20 | H8: 20
B9: Varm ud | C9: =C8-(C13-C12) -> 13.33297112 | D9: =D8-(D13-D12) -> 13.33297112 | E9: =E8-(E13-E12) -> 13.33297112 | F9: =F8-(F13-F12) -> 13.33297112 | G9: =G8-(G13-G12) -> 13.33297112 | H9: =H8-(H13-H12) -> 13.4
B11: Airside
B12: Kold ind | C12: 0 | D12: 0 | E12: 0 | F12: 0 | G12: 0 | H12: 0
B13: Kold ud | C13: =C7*(C8-C12)+C12 -> 6.66702888 | D13: =D7*(D8-D12)+D12 -> 6.66702888 | E13: =E7*(E8-E12)+E12 -> 6.66702888 | F13: =F7*(F8-F12)+F12 -> 6.66702888 | G13: =G7*(G8-G12)+G12 -> 6.66702888 | H13: =H7*(H8-H12)+H12 -> 6.6
B15: Water
B16: Mellem varm | C16: =C17+(C13-C12) -> 13.33351444 | D16: =D17+(D13-D12) -> 13.33351444 | E16: =E17+(E13-E12) -> 13.33351444 | F16: =F17+(F13-F12) -> 13.33351444 | G16: =G17+(G13-G12) -> 13.33351444 | H16: =H17+(H13-H12) -> 13.3
B17: Mellem kold | C17: =0.5*(C9+C12) -> 6.66648556 | D17: =0.5*(D9+D12) -> 6.66648556 | E17: =0.5*(E9+E12) -> 6.66648556 | F17: =0.5*(F9+F12) -> 6.66648556 | G17: =0.5*(G9+G12) -> 6.66648556 | H17: =0.5*(H9+H12) -> 6.7
B19: Eff pr veks | C19: =2*C7/(1+C7) -> 0.5000203742 | D19: =2*D7/(1+D7) -> 0.5000203742 | E19: =2*E7/(1+E7) -> 0.5000203742 | F19: =2*F7/(1+F7) -> 0.5000203742 | G19: =2*G7/(1+G7) -> 0.5000203742 | H19: =2*H7/(1+H7) -> 0.4962406015
B20: Effektivitet | C20: =C7 -> 0.333351444 | D20: =D7 -> 0.333351444 | E20: =E7 -> 0.333351444 | F20: =F7 -> 0.333351444 | G20: =G7 -> 0.333351444 | H20: =H7 -> 0.33
B21: DP Pa | C21: 53 | D21: 50 | E21: 51 | F21: 49 | G21: 49 | H21: 49
B22: vægt | C22: 65 | D22: 143 | E22: 204 | F22: 301 | G22: 472 | H22: 472
B23: pris | C23: 3570 | D23: 9250 | E23: 13000 | F23: 21800 | G23: 38420 | H23: 38420
B24: dybde | C24: 850 | D24: 850 | E24: 850 | F24: 850 | G24: 850 | H24: 850
B25: kgpris | C25: =C23/C22 -> 54.92307692 | D25: 64.68531469 | E25: 63.7254902 | F25: 72.42524917 | G25: 81.39830508 | H25: 81.39830508
B27: Beregnet
B28: Facevelocity | C28: 2
B29: vægt konst | C29: 45
B30: vægt hældn | C30: 0.0062
B31: kgpriskonst | C31: 55.6
B32: hældning | C32: 0.00038
B33: Tryktab-eps33 | C33: 45
B34: Grundtryktab | C34: 0.2 | H34: 10 | I34: 15 | J34: 20 | K34: 25 | L34: 30 | M34: 40 | N34: 50 | O34: 60 | P34: 80 | Q34: 100 | R34: 120 | S34: 150 | T34: 190 | U34: 240
G35: B | H35: 970 | I35: 1120 | J35: 1420 | K35: 1420 | L35: 1570 | M35: 1720 | N35: 2020 | O35: 2170 | P35: 2170 | Q35: 2570 | R35: 2890 | S35: 2890 | T35: 3190 | U35: 3490
C36: Input | F36: Output | G36: H | H36: 520 | I36: 595 | J36: 670 | K36: 745 | L36: 820 | M36: 895 | N36: 1045 | O36: 1120 | P36: 1270 | Q36: 1420 | R36: 1570 | S36: 1720 | T36: 2170 | U36: 2470
B37: Tryktab | C37: =Kryds_Rotor_Væske!F32 -> 150 | E37: Effektivitet | F37: =IF(OR(C37<45, C37>200),"Tryktabet skal være større end 45 og mindre end 200 Pa",(C37^2*C56+D56*C37+E56)) -> 0.6631758153 | G37: A | H37: =H35*H36/1000000 -> 0.5044 | I37: 0.6664 | J37: 0.9514 | K37: 1.0579 | L37: 1.2874 | M37: 1.5394 | N37: 2.1109 | O37: 2.4304 | P37: 2.7559 | Q37: 3.6494 | R37: 4.5373 | S37: 4.9708 | T37: 6.9223 | U37: 8.6203
B38: Flow | C38: =Kryds_Rotor_Væske!F30 -> 35000 | E38: Pris for 2 stk | F38: =IF(AND(C37>45, C37<200),(C57*C37^2+D57*C37+E57)*2,"Tryktab uden for område") -> 141405.7667 | H38: =$C$38/3600/H37 -> 19.27482598 | I38: =$C$38/3600/I37 -> 14.589169 | J38: 10.21885876 | K38: 9.190114588 | L38: 7.551827111 | M38: 6.315591933 | N38: 4.60572373 | O38: 4.000256016 | P38: 3.527784833 | Q38: 2.664060454 | R38: 2.142732952 | S38: 1.955866706 | T38: 1.404478601 | U38: 1.127828756
B40: Kg pris | C40: =C38*C32+C31 -> 68.9
B41: Dybde ved ref | C41: 250
B42: Ref eff pr veks | C42: 0.5
B43: dp PR VEKS | C43: =C33 -> 45
B44: Eksponent | C44: 1 | I44: x
B45: L | C45: 1 | D45: =C45*2^0.25 -> 1.189207115 | E45: =D45*2^0.25 -> 1.414213562 | F45: =E45*2^0.25 -> 1.681792831 | G45: 2 | H45: 2.37841423 | I45: 2.828427125 | J45: 3.363585661 | K45: =J45*2^0.25 -> 4 | L45: 4.75682846 | M45: 5.656854249 | N45: 6.727171322 | O45: 8
B46: Vægt kg pr veks | C46: =$C$29+$C$30*C38 -> 262 | D46: =$C$46*D45^$C$44 -> 311.5722641 | E46: =$C$46*E45^$C$44 -> 370.5239533 | F46: =$C$46*F45^$C$44 -> 440.6297216 | G46: 524 | H46: 623.1445283 | I46: =$C$46*I45^$C$44 -> 741.0479067 | J46: =$C$46*J45^$C$44 -> 881.2594432 | K46: =$C$46*K45^$C$44 -> 1048 | L46: =$C$46*L45^$C$44 -> 1246.289057 | M46: =$C$46*M45^$C$44 -> 1482.095813 | N46: 1762.518886 | O46: 2096
B48: Efftivt pr veks | C48: =$C$42*C45/(1+$C$42*(C45-1)) -> 0.5 | D48: 0.5432136169 | E48: 0.5857864376 | F48: 0.6271151192 | G48: 0.6666666667 | H48: 0.7040031411 | I48: 0.738796125 | J48: 0.7708306705 | K48: 0.8 | L48: 0.8262932434 | M48: 0.8497788952 | N48: 0.870586537 | O48: 0.8888888889
B49: Efftivt pr batt | C49: =C48/(2-C48) -> 0.3333333333 | D49: =D48/(2-D48) -> 0.3728848808 | E49: =E48/(2-E48) -> 0.4142135624 | F49: 0.4567863831 | G49: =G48/(2-G48) -> 0.5 | H49: 0.5432136169 | I49: 0.5857864376 | J49: 0.6271151192 | K49: 0.6666666667 | L49: 0.7040031411 | M49: 0.738796125 | N49: 0.7708306705 | O49: 0.8
B50: Pris pr veks | C50: =C46*$C$40 -> 18051.8 | D50: 21467.329 | E50: 25529.10039 | F50: 30359.38782 | G50: 36103.6 | H50: 42934.658 | I50: 51058.20077 | J50: 60718.77564 | K50: 72207.2 | L50: 85869.31599 | M50: 102116.4015 | N50: 121437.5513 | O50: 144414.4
B51: DeltaP pr veks | C51: =$C$34*$C$33+C45*(1-$C$34)*$C$33 -> 45 | D51: =$C$34*$C$33+D45*(1-$C$34)*$C$33 -> 51.81145614 | E51: 59.91168825 | F51: 69.5445419 | G51: 81 | H51: 94.62291228 | I51: 110.8233765 | J51: 130.0890838 | K51: 153 | L51: 180.2458246 | M51: 212.646753 | N51: 251.1781676 | O51: 297
B52: TTC dp | C52: 49 | G52: 76 | K52: 165 | M52: 249
B54: Tryk | C54: =C51 -> 45 | D54: =D51 -> 51.81145614 | E54: 59.91168825 | F54: 69.5445419 | G54: 81 | H54: 94.62291228 | I54: 110.8233765 | J54: 130.0890838 | K54: 153 | L54: 180.2458246 | M54: 212.646753 | N54: 251.1781676 | O54: 297
B55: Tryk^2 | C55: =C54^2 -> 2025 | D55: =D54^2 -> 2684.426987 | E55: 3589.410388 | F55: 4836.443308 | G55: 6561 | H55: 8953.495528 | I55: 12281.82078 | J55: 16923.16972 | K55: 23409 | L55: 32488.55727 | M55: 45218.64155 | N55: 63090.47188 | O55: 88209
B56: Effektivitet | C56: =LINEST(C49:O49,C54:O55,TRUE,FALSE) -> -8.273867583e-06 | D56: 0.004507308034 | E56: 0.1732416307
B57: Pris | C57: =LINEST(C50:O50,C54:O55,TRUE,TRUE) -> -3.13611073e-16 | D57: 501.4388889 | E57: -4512.95
B58: Effekt effet poly | C58: =C51^2*$C$56+C51*$D$56+$E$56 -> 0.3593159104 | D58: =D51^2*$C$56+D51*$D$56+$E$56 -> 0.3845612298 | E58: 0.4135837583 | F58: 0.4466842117 | G58: 0.4840487363 | H58: 0.5256562071 | I58: 0.5711385672 | J58: 0.6195731379 | K58: =K51^2*$C$56+K51*$D$56+$E$56 -> 0.6691767937 | L58: 0.7168590631 | M58: 0.7575729964 | N58: 0.7833767935 | O58: 0.7820825313
B60: Pris

Sheet Væske_3 (hidden)
B2: Flow, m3/h | C2: 5000 | D2: 15000 | E2: 25000 | F2: 40000 | G2: 70000 | H2: 35000
B3: Flow, m3/sek | C3: =C2/3600 -> 1.388888889 | D3: =D2/3600 -> 4.166666667 | E3: =E2/3600 -> 6.944444444 | F3: =F2/3600 -> 11.11111111 | G3: =G2/3600 -> 19.44444444 | H3: =H2/3600 -> 9.722222222
B5: Fin pitch | C5: 1.6 | D5: 1.6 | E5: 1.6 | F5: 1.6 | G5: 1.6 | H5: 1.6
B6: Face vel | C6: 1 | D6: 1 | E6: 1 | F6: 1 | G6: 1 | H6: 1
B7: Eff | C7: 0.333351444 | D7: 0.333351444 | E7: 0.333351444 | F7: 0.333351444 | G7: 0.333351444 | H7: 0.33
B8: Varm ind | C8: 20 | D8: 20 | E8: 20 | F8: 20 | G8: 20 | H8: 20
B9: Varm ud | C9: =C8-(C13-C12) -> 13.33297112 | D9: =D8-(D13-D12) -> 13.33297112 | E9: =E8-(E13-E12) -> 13.33297112 | F9: =F8-(F13-F12) -> 13.33297112 | G9: =G8-(G13-G12) -> 13.33297112 | H9: =H8-(H13-H12) -> 13.4
B11: Airside
B12: Kold ind | C12: 0 | D12: 0 | E12: 0 | F12: 0 | G12: 0 | H12: 0
B13: Kold ud | C13: =C7*(C8-C12)+C12 -> 6.66702888 | D13: =D7*(D8-D12)+D12 -> 6.66702888 | E13: =E7*(E8-E12)+E12 -> 6.66702888 | F13: =F7*(F8-F12)+F12 -> 6.66702888 | G13: =G7*(G8-G12)+G12 -> 6.66702888 | H13: =H7*(H8-H12)+H12 -> 6.6
B15: Water
B16: Mellem varm | C16: =C17+(C13-C12) -> 13.33351444 | D16: =D17+(D13-D12) -> 13.33351444 | E16: =E17+(E13-E12) -> 13.33351444 | F16: =F17+(F13-F12) -> 13.33351444 | G16: =G17+(G13-G12) -> 13.33351444 | H16: =H17+(H13-H12) -> 13.3
B17: Mellem kold | C17: =0.5*(C9+C12) -> 6.66648556 | D17: =0.5*(D9+D12) -> 6.66648556 | E17: =0.5*(E9+E12) -> 6.66648556 | F17: =0.5*(F9+F12) -> 6.66648556 | G17: =0.5*(G9+G12) -> 6.66648556 | H17: =0.5*(H9+H12) -> 6.7
B19: Eff pr veks | C19: =2*C7/(1+C7) -> 0.5000203742 | D19: =2*D7/(1+D7) -> 0.5000203742 | E19: =2*E7/(1+E7) -> 0.5000203742 | F19: =2*F7/(1+F7) -> 0.5000203742 | G19: =2*G7/(1+G7) -> 0.5000203742 | H19: =2*H7/(1+H7) -> 0.4962406015
B20: Effektivitet | C20: =C7 -> 0.333351444 | D20: =D7 -> 0.333351444 | E20: =E7 -> 0.333351444 | F20: =F7 -> 0.333351444 | G20: =G7 -> 0.333351444 | H20: =H7 -> 0.33
B21: DP Pa | C21: 53 | D21: 50 | E21: 51 | F21: 49 | G21: 49 | H21: 49
B22: vægt | C22: 65 | D22: 143 | E22: 204 | F22: 301 | G22: 472 | H22: 472
B23: pris | C23: 3570 | D23: 9250 | E23: 13000 | F23: 21800 | G23: 38420 | H23: 38420
B24: dybde | C24: 850 | D24: 850 | E24: 850 | F24: 850 | G24: 850 | H24: 850
B25: kgpris | C25: =C23/C22 -> 54.92307692 | D25: 64.68531469 | E25: 63.7254902 | F25: 72.42524917 | G25: 81.39830508 | H25: 81.39830508
B27: Beregnet
B28: Facevelocity | C28: 2
B29: vægt konst | C29: 45
B30: vægt hældn | C30: 0.0062
B31: kgpriskonst | C31: 55.6
B32: hældning | C32: 0.00038
B33: Tryktab-eps33 | C33: 45
B34: Grundtryktab | C34: 0.2 | H34: 10 | I34: 15 | J34: 20 | K34: 25 | L34: 30 | M34: 40 | N34: 50 | O34: 60 | P34: 80 | Q34: 100 | R34: 120 | S34: 150 | T34: 190 | U34: 240
G35: B | H35: 970 | I35: 1120 | J35: 1420 | K35: 1420 | L35: 1570 | M35: 1720 | N35: 2020 | O35: 2170 | P35: 2170 | Q35: 2570 | R35: 2890 | S35: 2890 | T35: 3190 | U35: 3490
C36: Input | F36: Output | G36: H | H36: 520 | I36: 595 | J36: 670 | K36: 745 | L36: 820 | M36: 895 | N36: 1045 | O36: 1120 | P36: 1270 | Q36: 1420 | R36: 1570 | S36: 1720 | T36: 2170 | U36: 2470
B37: Tryktab | C37: =Kryds_Rotor_Væske!I32 -> 175 | E37: Effektivitet | F37: =IF(OR(C37<45, C37>200),"Tryktabet skal være større end 45 og mindre end 200 Pa",(C37^2*C56+D56*C37+E56)) -> 0.708633342 | G37: A | H37: =H35*H36/1000000 -> 0.5044 | I37: 0.6664 | J37: 0.9514 | K37: 1.0579 | L37: 1.2874 | M37: 1.5394 | N37: 2.1109 | O37: 2.4304 | P37: 2.7559 | Q37: 3.6494 | R37: 4.5373 | S37: 4.9708 | T37: 6.9223 | U37: 8.6203
B38: Flow | C38: =Kryds_Rotor_Væske!I30 -> 35000 | E38: Pris for 2 stk | F38: =IF(AND(C37>45, C37<200),(C57*C37^2+D57*C37+E57)*2,"Tryktab uden for område") -> 166477.7111 | H38: =$C$38/3600/H37 -> 19.27482598 | I38: =$C$38/3600/I37 -> 14.589169 | J38: 10.21885876 | K38: 9.190114588 | L38: 7.551827111 | M38: 6.315591933 | N38: 4.60572373 | O38: 4.000256016 | P38: 3.527784833 | Q38: 2.664060454 | R38: 2.142732952 | S38: 1.955866706 | T38: 1.404478601 | U38: 1.127828756
B40: Kg pris | C40: =C38*C32+C31 -> 68.9
B41: Dybde ved ref | C41: 250
B42: Ref eff pr veks | C42: 0.5
B43: dp PR VEKS | C43: =C33 -> 45
B44: Eksponent | C44: 1 | I44: x
B45: L | C45: 1 | D45: =C45*2^0.25 -> 1.189207115 | E45: =D45*2^0.25 -> 1.414213562 | F45: =E45*2^0.25 -> 1.681792831 | G45: 2 | H45: 2.37841423 | I45: 2.828427125 | J45: 3.363585661 | K45: =J45*2^0.25 -> 4 | L45: 4.75682846 | M45: 5.656854249 | N45: 6.727171322 | O45: 8
B46: Vægt kg pr veks | C46: =$C$29+$C$30*C38 -> 262 | D46: =$C$46*D45^$C$44 -> 311.5722641 | E46: =$C$46*E45^$C$44 -> 370.5239533 | F46: =$C$46*F45^$C$44 -> 440.6297216 | G46: 524 | H46: 623.1445283 | I46: =$C$46*I45^$C$44 -> 741.0479067 | J46: =$C$46*J45^$C$44 -> 881.2594432 | K46: =$C$46*K45^$C$44 -> 1048 | L46: =$C$46*L45^$C$44 -> 1246.289057 | M46: =$C$46*M45^$C$44 -> 1482.095813 | N46: 1762.518886 | O46: 2096
B48: Efftivt pr veks | C48: =$C$42*C45/(1+$C$42*(C45-1)) -> 0.5 | D48: 0.5432136169 | E48: 0.5857864376 | F48: 0.6271151192 | G48: 0.6666666667 | H48: 0.7040031411 | I48: 0.738796125 | J48: 0.7708306705 | K48: 0.8 | L48: 0.8262932434 | M48: 0.8497788952 | N48: 0.870586537 | O48: 0.8888888889
B49: Efftivt pr batt | C49: =C48/(2-C48) -> 0.3333333333 | D49: =D48/(2-D48) -> 0.3728848808 | E49: =E48/(2-E48) -> 0.4142135624 | F49: 0.4567863831 | G49: =G48/(2-G48) -> 0.5 | H49: 0.5432136169 | I49: 0.5857864376 | J49: 0.6271151192 | K49: 0.6666666667 | L49: 0.7040031411 | M49: 0.738796125 | N49: 0.7708306705 | O49: 0.8
B50: Pris pr veks | C50: =C46*$C$40 -> 18051.8 | D50: 21467.329 | E50: 25529.10039 | F50: 30359.38782 | G50: 36103.6 | H50: 42934.658 | I50: 51058.20077 | J50: 60718.77564 | K50: 72207.2 | L50: 85869.31599 | M50: 102116.4015 | N50: 121437.5513 | O50: 144414.4
B51: DeltaP pr veks | C51: =$C$34*$C$33+C45*(1-$C$34)*$C$33 -> 45 | D51: =$C$34*$C$33+D45*(1-$C$34)*$C$33 -> 51.81145614 | E51: 59.91168825 | F51: 69.5445419 | G51: 81 | H51: 94.62291228 | I51: 110.8233765 | J51: 130.0890838 | K51: 153 | L51: 180.2458246 | M51: 212.646753 | N51: 251.1781676 | O51: 297
B52: TTC dp | C52: 49 | G52: 76 | K52: 165 | M52: 249
B54: Tryk | C54: =C51 -> 45 | D54: =D51 -> 51.81145614 | E54: 59.91168825 | F54: 69.5445419 | G54: 81 | H54: 94.62291228 | I54: 110.8233765 | J54: 130.0890838 | K54: 153 | L54: 180.2458246 | M54: 212.646753 | N54: 251.1781676 | O54: 297
B55: Tryk^2 | C55: =C54^2 -> 2025 | D55: =D54^2 -> 2684.426987 | E55: 3589.410388 | F55: 4836.443308 | G55: 6561 | H55: 8953.495528 | I55: 12281.82078 | J55: 16923.16972 | K55: 23409 | L55: 32488.55727 | M55: 45218.64155 | N55: 63090.47188 | O55: 88209
B56: Effektivitet | C56: =LINEST(C49:O49,C54:O55,TRUE,FALSE) -> -8.273867583e-06 | D56: 0.004507308034 | E56: 0.1732416307
B57: Pris | C57: =LINEST(C50:O50,C54:O55,TRUE,TRUE) -> -3.13611073e-16 | D57: 501.4388889 | E57: -4512.95
B58: Effekt effet poly | C58: =C51^2*$C$56+C51*$D$56+$E$56 -> 0.3593159104 | D58: =D51^2*$C$56+D51*$D$56+$E$56 -> 0.3845612298 | E58: 0.4135837583 | F58: 0.4466842117 | G58: 0.4840487363 | H58: 0.5256562071 | I58: 0.5711385672 | J58: 0.6195731379 | K58: =K51^2*$C$56+K51*$D$56+$E$56 -> 0.6691767937 | L58: 0.7168590631 | M58: 0.7575729964 | N58: 0.7833767935 | O58: 0.7820825313
B60: Pris

Sheet LCC (hidden)
B2: LCC
B3: 1 | C3: 2 | D3: 3 | E3: 4
B4: =Inddata!D84 -> 91763.51756 | C4: =Inddata!F84 -> 98569.02287 | D4: =Inddata!H84 -> 101971.7755 | E4: =Inddata!J84 -> 0
A5: 1 | B5: =IF(Inddata!$D$86>=LCC!A5,(Inddata!$D$82)*(1+Inddata!$K$34/100+Inddata!$K$36/100)^A5/(1+Inddata!$K$32/100)^A5,0) -> 333165.6982 | C5: =IF(Inddata!$F$86>=LCC!A5,(Inddata!$F$82)*(1+Inddata!$K$34/100+Inddata!$K$36/100)^A5/(1+Inddata!$K$32/100)^A5,0) -> 263697.1819 | D5: =IF(Inddata!$H$86>=LCC!A5,(Inddata!$H$82)*(1+Inddata!$K$34/100+Inddata!$K$36/100)^A5/(1+Inddata!$K$32/100)^A5,0) -> 250117.4208 | E5: =IF(Inddata!$J$86>=LCC!A5,(Inddata!$J$82)*(1+Inddata!$K$34/100+Inddata!$K$36/100)^A5/(1+Inddata!$K$32/100)^A5,0) -> 0
A6: 2 | B6: =IF(Inddata!$D$86>=LCC!A6,(Inddata!$D$82)*(1+Inddata!$K$34/100+Inddata!$K$36/100)^A6/(1+Inddata!$K$32/100)^A6,0) -> 333165.6982 | C6: =IF(Inddata!$F$86>=LCC!A6,(Inddata!$F$82)*(1+Inddata!$K$34/100+Inddata!$K$36/100)^A6/(1+Inddata!$K$32/100)^A6,0) -> 263697.1819 | D6: =IF(Inddata!$H$86>=LCC!A6,(Inddata!$H$82)*(1+Inddata!$K$34/100+Inddata!$K$36/100)^A6/(1+Inddata!$K$32/100)^A6,0) -> 250117.4208 | E6: =IF(Inddata!$J$86>=LCC!A6,(Inddata!$J$82)*(1+Inddata!$K$34/100+Inddata!$K$36/100)^A6/(1+Inddata!$K$32/100)^A6,0) -> 0
A7: 3 | B7: =IF(Inddata!$D$86>=LCC!A7,(Inddata!$D$82)*(1+Inddata!$K$34/100+Inddata!$K$36/100)^A7/(1+Inddata!$K$32/100)^A7,0) -> 333165.6982 | C7: =IF(Inddata!$F$86>=LCC!A7,(Inddata!$F$82)*(1+Inddata!$K$34/100+Inddata!$K$36/100)^A7/(1+Inddata!$K$32/100)^A7,0) -> 263697.1819 | D7: =IF(Inddata!$H$86>=LCC!A7,(Inddata!$H$82)*(1+Inddata!$K$34/100+Inddata!$K$36/100)^A7/(1+Inddata!$K$32/100)^A7,0) -> 250117.4208 | E7: =IF(Inddata!$J$86>=LCC!A7,(Inddata!$J$82)*(1+Inddata!$K$34/100+Inddata!$K$36/100)^A7/(1+Inddata!$K$32/100)^A7,0) -> 0
A8: 4 | B8: =IF(Inddata!$D$86>=LCC!A8,(Inddata!$D$82)*(1+Inddata!$K$34/100+Inddata!$K$36/100)^A8/(1+Inddata!$K$32/100)^A8,0) -> 333165.6982 | C8: =IF(Inddata!$F$86>=LCC!A8,(Inddata!$F$82)*(1+Inddata!$K$34/100+Inddata!$K$36/100)^A8/(1+Inddata!$K$32/100)^A8,0) -> 263697.1819 | D8: =IF(Inddata!$H$86>=LCC!A8,(Inddata!$H$82)*(1+Inddata!$K$34/100+Inddata!$K$36/100)^A8/(1+Inddata!$K$32/100)^A8,0) -> 250117.4208 | E8: =IF(Inddata!$J$86>=LCC!A8,(Inddata!$J$82)*(1+Inddata!$K$34/100+Inddata!$K$36/100)^A8/(1+Inddata!$K$32/100)^A8,0) -> 0
A9: 5 | B9: =IF(Inddata!$D$86>=LCC!A9,(Inddata!$D$82)*(1+Inddata!$K$34/100+Inddata!$K$36/100)^A9/(1+Inddata!$K$32/100)^A9,0) -> 333165.6982 | C9: =IF(Inddata!$F$86>=LCC!A9,(Inddata!$F$82)*(1+Inddata!$K$34/100+Inddata!$K$36/100)^A9/(1+Inddata!$K$32/100)^A9,0) -> 263697.1819 | D9: =IF(Inddata!$H$86>=LCC!A9,(Inddata!$H$82)*(1+Inddata!$K$34/100+Inddata!$K$36/100)^A9/(1+Inddata!$K$32/100)^A9,0) -> 250117.4208 | E9: =IF(Inddata!$J$86>=LCC!A9,(Inddata!$J$82)*(1+Inddata!$K$34/100+Inddata!$K$36/100)^A9/(1+Inddata!$K$32/100)^A9,0) -> 0
A10: 6 | B10: =IF(Inddata!$D$86>=LCC!A10,(Inddata!$D$82)*(1+Inddata!$K$34/100+Inddata!$K$36/100)^A10/(1+Inddata!$K$32/100)^A10,0) -> 333165.6982 | C10: =IF(Inddata!$F$86>=LCC!A10,(Inddata!$F$82)*(1+Inddata!$K$34/100+Inddata!$K$36/100)^A10/(1+Inddata!$K$32/100)^A10,0) -> 263697.1819 | D10: =IF(Inddata!$H$86>=LCC!A10,(Inddata!$H$82)*(1+Inddata!$K$34/100+Inddata!$K$36/100)^A10/(1+Inddata!$K$32/100)^A10,0) -> 250117.4208 | E10: =IF(Inddata!$J$86>=LCC!A10,(Inddata!$J$82)*(1+Inddata!$K$34/100+Inddata!$K$36/100)^A10/(1+Inddata!$K$32/100)^A10,0) -> 0
A11: 7 | B11: =IF(Inddata!$D$86>=LCC!A11,(Inddata!$D$82)*(1+Inddata!$K$34/100+Inddata!$K$36/100)^A11/(1+Inddata!$K$32/100)^A11,0) -> 333165.6982 | C11: =IF(Inddata!$F$86>=LCC!A11,(Inddata!$F$82)*(1+Inddata!$K$34/100+Inddata!$K$36/100)^A11/(1+Inddata!$K$32/100)^A11,0) -> 263697.1819 | D11: =IF(Inddata!$H$86>=LCC!A11,(Inddata!$H$82)*(1+Inddata!$K$34/100+Inddata!$K$36/100)^A11/(1+Inddata!$K$32/100)^A11,0) -> 250117.4208 | E11: =IF(Inddata!$J$86>=LCC!A11,(Inddata!$J$82)*(1+Inddata!$K$34/100+Inddata!$K$36/100)^A11/(1+Inddata!$K$32/100)^A11,0) -> 0
A12: 8 | B12: =IF(Inddata!$D$86>=LCC!A12,(Inddata!$D$82)*(1+Inddata!$K$34/100+Inddata!$K$36/100)^A12/(1+Inddata!$K$32/100)^A12,0) -> 333165.6982 | C12: =IF(Inddata!$F$86>=LCC!A12,(Inddata!$F$82)*(1+Inddata!$K$34/100+Inddata!$K$36/100)^A12/(1+Inddata!$K$32/100)^A12,0) -> 263697.1819 | D12: =IF(Inddata!$H$86>=LCC!A12,(Inddata!$H$82)*(1+Inddata!$K$34/100+Inddata!$K$36/100)^A12/(1+Inddata!$K$32/100)^A12,0) -> 250117.4208 | E12: =IF(Inddata!$J$86>=LCC!A12,(Inddata!$J$82)*(1+Inddata!$K$34/100+Inddata!$K$36/100)^A12/(1+Inddata!$K$32/100)^A12,0) -> 0
A13: 9 | B13: =IF(Inddata!$D$86>=LCC!A13,(Inddata!$D$82)*(1+Inddata!$K$34/100+Inddata!$K$36/100)^A13/(1+Inddata!$K$32/100)^A13,0) -> 333165.6982 | C13: =IF(Inddata!$F$86>=LCC!A13,(Inddata!$F$82)*(1+Inddata!$K$34/100+Inddata!$K$36/100)^A13/(1+Inddata!$K$32/100)^A13,0) -> 263697.1819 | D13: =IF(Inddata!$H$86>=LCC!A13,(Inddata!$H$82)*(1+Inddata!$K$34/100+Inddata!$K$36/100)^A13/(1+Inddata!$K$32/100)^A13,0) -> 250117.4208 | E13: =IF(Inddata!$J$86>=LCC!A13,(Inddata!$J$82)*(1+Inddata!$K$34/100+Inddata!$K$36/100)^A13/(1+Inddata!$K$32/100)^A13,0) -> 0
A14: 10 | B14: =IF(Inddata!$D$86>=LCC!A14,(Inddata!$D$82)*(1+Inddata!$K$34/100+Inddata!$K$36/100)^A14/(1+Inddata!$K$32/100)^A14,0) -> 333165.6982 | C14: =IF(Inddata!$F$86>=LCC!A14,(Inddata!$F$82)*(1+Inddata!$K$34/100+Inddata!$K$36/100)^A14/(1+Inddata!$K$32/100)^A14,0) -> 263697.1819 | D14: =IF(Inddata!$H$86>=LCC!A14,(Inddata!$H$82)*(1+Inddata!$K$34/100+Inddata!$K$36/100)^A14/(1+Inddata!$K$32/100)^A14,0) -> 250117.4208 | E14: =IF(Inddata!$J$86>=LCC!A14,(Inddata!$J$82)*(1+Inddata!$K$34/100+Inddata!$K$36/100)^A14/(1+Inddata!$K$32/100)^A14,0) -> 0
A15: 11 | B15: =IF(Inddata!$D$86>=LCC!A15,(Inddata!$D$82)*(1+Inddata!$K$34/100+Inddata!$K$36/100)^A15/(1+Inddata!$K$32/100)^A15,0) -> 333165.6982 | C15: =IF(Inddata!$F$86>=LCC!A15,(Inddata!$F$82)*(1+Inddata!$K$34/100+Inddata!$K$36/100)^A15/(1+Inddata!$K$32/100)^A15,0) -> 263697.1819 | D15: =IF(Inddata!$H$86>=LCC!A15,(Inddata!$H$82)*(1+Inddata!$K$34/100+Inddata!$K$36/100)^A15/(1+Inddata!$K$32/100)^A15,0) -> 250117.4208 | E15: =IF(Inddata!$J$86>=LCC!A15,(Inddata!$J$82)*(1+Inddata!$K$34/100+Inddata!$K$36/100)^A15/(1+Inddata!$K$32/100)^A15,0) -> 0
A16: 12 | B16: =IF(Inddata!$D$86>=LCC!A16,(Inddata!$D$82)*(1+Inddata!$K$34/100+Inddata!$K$36/100)^A16/(1+Inddata!$K$32/100)^A16,0) -> 333165.6982 | C16: =IF(Inddata!$F$86>=LCC!A16,(Inddata!$F$82)*(1+Inddata!$K$34/100+Inddata!$K$36/100)^A16/(1+Inddata!$K$32/100)^A16,0) -> 263697.1819 | D16: =IF(Inddata!$H$86>=LCC!A16,(Inddata!$H$82)*(1+Inddata!$K$34/100+Inddata!$K$36/100)^A16/(1+Inddata!$K$32/100)^A16,0) -> 250117.4208 | E16: =IF(Inddata!$J$86>=LCC!A16,(Inddata!$J$82)*(1+Inddata!$K$34/100+Inddata!$K$36/100)^A16/(1+Inddata!$K$32/100)^A16,0) -> 0
A17: 13 | B17: =IF(Inddata!$D$86>=LCC!A17,(Inddata!$D$82)*(1+Inddata!$K$34/100+Inddata!$K$36/100)^A17/(1+Inddata!$K$32/100)^A17,0) -> 333165.6982 | C17: =IF(Inddata!$F$86>=LCC!A17,(Inddata!$F$82)*(1+Inddata!$K$34/100+Inddata!$K$36/100)^A17/(1+Inddata!$K$32/100)^A17,0) -> 263697.1819 | D17: =IF(Inddata!$H$86>=LCC!A17,(Inddata!$H$82)*(1+Inddata!$K$34/100+Inddata!$K$36/100)^A17/(1+Inddata!$K$32/100)^A17,0) -> 250117.4208 | E17: =IF(Inddata!$J$86>=LCC!A17,(Inddata!$J$82)*(1+Inddata!$K$34/100+Inddata!$K$36/100)^A17/(1+Inddata!$K$32/100)^A17,0) -> 0
A18: 14 | B18: =IF(Inddata!$D$86>=LCC!A18,(Inddata!$D$82)*(1+Inddata!$K$34/100+Inddata!$K$36/100)^A18/(1+Inddata!$K$32/100)^A18,0) -> 333165.6982 | C18: =IF(Inddata!$F$86>=LCC!A18,(Inddata!$F$82)*(1+Inddata!$K$34/100+Inddata!$K$36/100)^A18/(1+Inddata!$K$32/100)^A18,0) -> 263697.1819 | D18: =IF(Inddata!$H$86>=LCC!A18,(Inddata!$H$82)*(1+Inddata!$K$34/100+Inddata!$K$36/100)^A18/(1+Inddata!$K$32/100)^A18,0) -> 250117.4208 | E18: =IF(Inddata!$J$86>=LCC!A18,(Inddata!$J$82)*(1+Inddata!$K$34/100+Inddata!$K$36/100)^A18/(1+Inddata!$K$32/100)^A18,0) -> 0
A19: 15 | B19: =IF(Inddata!$D$86>=LCC!A19,(Inddata!$D$82)*(1+Inddata!$K$34/100+Inddata!$K$36/100)^A19/(1+Inddata!$K$32/100)^A19,0) -> 333165.6982 | C19: =IF(Inddata!$F$86>=LCC!A19,(Inddata!$F$82)*(1+Inddata!$K$34/100+Inddata!$K$36/100)^A19/(1+Inddata!$K$32/100)^A19,0) -> 263697.1819 | D19: =IF(Inddata!$H$86>=LCC!A19,(Inddata!$H$82)*(1+Inddata!$K$34/100+Inddata!$K$36/100)^A19/(1+Inddata!$K$32/100)^A19,0) -> 250117.4208 | E19: =IF(Inddata!$J$86>=LCC!A19,(Inddata!$J$82)*(1+Inddata!$K$34/100+Inddata!$K$36/100)^A19/(1+Inddata!$K$32/100)^A19,0) -> 0
A20: 16 | B20: =IF(Inddata!$D$86>=LCC!A20,(Inddata!$D$82)*(1+Inddata!$K$34/100+Inddata!$K$36/100)^A20/(1+Inddata!$K$32/100)^A20,0) -> 0 | C20: =IF(Inddata!$F$86>=LCC!A20,(Inddata!$F$82)*(1+Inddata!$K$34/100+Inddata!$K$36/100)^A20/(1+Inddata!$K$32/100)^A20,0) -> 0 | D20: =IF(Inddata!$H$86>=LCC!A20,(Inddata!$H$82)*(1+Inddata!$K$34/100+Inddata!$K$36/100)^A20/(1+Inddata!$K$32/100)^A20,0) -> 0 | E20: =IF(Inddata!$J$86>=LCC!A20,(Inddata!$J$82)*(1+Inddata!$K$34/100+Inddata!$K$36/100)^A20/(1+Inddata!$K$32/100)^A20,0) -> 0
A21: 17 | B21: =IF(Inddata!$D$86>=LCC!A21,(Inddata!$D$82)*(1+Inddata!$K$34/100+Inddata!$K$36/100)^A21/(1+Inddata!$K$32/100)^A21,0) -> 0 | C21: =IF(Inddata!$F$86>=LCC!A21,(Inddata!$F$82)*(1+Inddata!$K$34/100+Inddata!$K$36/100)^A21/(1+Inddata!$K$32/100)^A21,0) -> 0 | D21: =IF(Inddata!$H$86>=LCC!A21,(Inddata!$H$82)*(1+Inddata!$K$34/100+Inddata!$K$36/100)^A21/(1+Inddata!$K$32/100)^A21,0) -> 0 | E21: =IF(Inddata!$J$86>=LCC!A21,(Inddata!$J$82)*(1+Inddata!$K$34/100+Inddata!$K$36/100)^A21/(1+Inddata!$K$32/100)^A21,0) -> 0
A22: 18 | B22: =IF(Inddata!$D$86>=LCC!A22,(Inddata!$D$82)*(1+Inddata!$K$34/100+Inddata!$K$36/100)^A22/(1+Inddata!$K$32/100)^A22,0) -> 0 | C22: =IF(Inddata!$F$86>=LCC!A22,(Inddata!$F$82)*(1+Inddata!$K$34/100+Inddata!$K$36/100)^A22/(1+Inddata!$K$32/100)^A22,0) -> 0 | D22: =IF(Inddata!$H$86>=LCC!A22,(Inddata!$H$82)*(1+Inddata!$K$34/100+Inddata!$K$36/100)^A22/(1+Inddata!$K$32/100)^A22,0) -> 0 | E22: =IF(Inddata!$J$86>=LCC!A22,(Inddata!$J$82)*(1+Inddata!$K$34/100+Inddata!$K$36/100)^A22/(1+Inddata!$K$32/100)^A22,0) -> 0
A23: 19 | B23: =IF(Inddata!$D$86>=LCC!A23,(Inddata!$D$82)*(1+Inddata!$K$34/100+Inddata!$K$36/100)^A23/(1+Inddata!$K$32/100)^A23,0) -> 0 | C23: =IF(Inddata!$F$86>=LCC!A23,(Inddata!$F$82)*(1+Inddata!$K$34/100+Inddata!$K$36/100)^A23/(1+Inddata!$K$32/100)^A23,0) -> 0 | D23: =IF(Inddata!$H$86>=LCC!A23,(Inddata!$H$82)*(1+Inddata!$K$34/100+Inddata!$K$36/100)^A23/(1+Inddata!$K$32/100)^A23,0) -> 0 | E23: =IF(Inddata!$J$86>=LCC!A23,(Inddata!$J$82)*(1+Inddata!$K$34/100+Inddata!$K$36/100)^A23/(1+Inddata!$K$32/100)^A23,0) -> 0
A24: 20 | B24: =IF(Inddata!$D$86>=LCC!A24,(Inddata!$D$82)*(1+Inddata!$K$34/100+Inddata!$K$36/100)^A24/(1+Inddata!$K$32/100)^A24,0) -> 0 | C24: =IF(Inddata!$F$86>=LCC!A24,(Inddata!$F$82)*(1+Inddata!$K$34/100+Inddata!$K$36/100)^A24/(1+Inddata!$K$32/100)^A24,0) -> 0 | D24: =IF(Inddata!$H$86>=LCC!A24,(Inddata!$H$82)*(1+Inddata!$K$34/100+Inddata!$K$36/100)^A24/(1+Inddata!$K$32/100)^A24,0) -> 0 | E24: =IF(Inddata!$J$86>=LCC!A24,(Inddata!$J$82)*(1+Inddata!$K$34/100+Inddata!$K$36/100)^A24/(1+Inddata!$K$32/100)^A24,0) -> 0
A25: 21 | B25: =IF(Inddata!$D$86>=LCC!A25,(Inddata!$D$82)*(1+Inddata!$K$34/100+Inddata!$K$36/100)^A25/(1+Inddata!$K$32/100)^A25,0) -> 0 | C25: =IF(Inddata!$F$86>=LCC!A25,(Inddata!$F$82)*(1+Inddata!$K$34/100+Inddata!$K$36/100)^A25/(1+Inddata!$K$32/100)^A25,0) -> 0 | D25: =IF(Inddata!$H$86>=LCC!A25,(Inddata!$H$82)*(1+Inddata!$K$34/100+Inddata!$K$36/100)^A25/(1+Inddata!$K$32/100)^A25,0) -> 0 | E25: =IF(Inddata!$J$86>=LCC!A25,(Inddata!$J$82)*(1+Inddata!$K$34/100+Inddata!$K$36/100)^A25/(1+Inddata!$K$32/100)^A25,0) -> 0
A26: 22 | B26: =IF(Inddata!$D$86>=LCC!A26,(Inddata!$D$82)*(1+Inddata!$K$34/100+Inddata!$K$36/100)^A26/(1+Inddata!$K$32/100)^A26,0) -> 0 | C26: =IF(Inddata!$F$86>=LCC!A26,(Inddata!$F$82)*(1+Inddata!$K$34/100+Inddata!$K$36/100)^A26/(1+Inddata!$K$32/100)^A26,0) -> 0 | D26: =IF(Inddata!$H$86>=LCC!A26,(Inddata!$H$82)*(1+Inddata!$K$34/100+Inddata!$K$36/100)^A26/(1+Inddata!$K$32/100)^A26,0) -> 0 | E26: =IF(Inddata!$J$86>=LCC!A26,(Inddata!$J$82)*(1+Inddata!$K$34/100+Inddata!$K$36/100)^A26/(1+Inddata!$K$32/100)^A26,0) -> 0
A27: 23 | B27: =IF(Inddata!$D$86>=LCC!A27,(Inddata!$D$82)*(1+Inddata!$K$34/100+Inddata!$K$36/100)^A27/(1+Inddata!$K$32/100)^A27,0) -> 0 | C27: =IF(Inddata!$F$86>=LCC!A27,(Inddata!$F$82)*(1+Inddata!$K$34/100+Inddata!$K$36/100)^A27/(1+Inddata!$K$32/100)^A27,0) -> 0 | D27: =IF(Inddata!$H$86>=LCC!A27,(Inddata!$H$82)*(1+Inddata!$K$34/100+Inddata!$K$36/100)^A27/(1+Inddata!$K$32/100)^A27,0) -> 0 | E27: =IF(Inddata!$J$86>=LCC!A27,(Inddata!$J$82)*(1+Inddata!$K$34/100+Inddata!$K$36/100)^A27/(1+Inddata!$K$32/100)^A27,0) -> 0
A28: 24 | B28: =IF(Inddata!$D$86>=LCC!A28,(Inddata!$D$82)*(1+Inddata!$K$34/100+Inddata!$K$36/100)^A28/(1+Inddata!$K$32/100)^A28,0) -> 0 | C28: =IF(Inddata!$F$86>=LCC!A28,(Inddata!$F$82)*(1+Inddata!$K$34/100+Inddata!$K$36/100)^A28/(1+Inddata!$K$32/100)^A28,0) -> 0 | D28: =IF(Inddata!$H$86>=LCC!A28,(Inddata!$H$82)*(1+Inddata!$K$34/100+Inddata!$K$36/100)^A28/(1+Inddata!$K$32/100)^A28,0) -> 0 | E28: =IF(Inddata!$J$86>=LCC!A28,(Inddata!$J$82)*(1+Inddata!$K$34/100+Inddata!$K$36/100)^A28/(1+Inddata!$K$32/100)^A28,0) -> 0
A29: 25 | B29: =IF(Inddata!$D$86>=LCC!A29,(Inddata!$D$82)*(1+Inddata!$K$34/100+Inddata!$K$36/100)^A29/(1+Inddata!$K$32/100)^A29,0) -> 0 | C29: =IF(Inddata!$F$86>=LCC!A29,(Inddata!$F$82)*(1+Inddata!$K$34/100+Inddata!$K$36/100)^A29/(1+Inddata!$K$32/100)^A29,0) -> 0 | D29: =IF(Inddata!$H$86>=LCC!A29,(Inddata!$H$82)*(1+Inddata!$K$34/100+Inddata!$K$36/100)^A29/(1+Inddata!$K$32/100)^A29,0) -> 0 | E29: =IF(Inddata!$J$86>=LCC!A29,(Inddata!$J$82)*(1+Inddata!$K$34/100+Inddata!$K$36/100)^A29/(1+Inddata!$K$32/100)^A29,0) -> 0
A30: 26 | B30: =IF(Inddata!$D$86>=LCC!A30,(Inddata!$D$82)*(1+Inddata!$K$34/100+Inddata!$K$36/100)^A30/(1+Inddata!$K$32/100)^A30,0) -> 0 | C30: =IF(Inddata!$F$86>=LCC!A30,(Inddata!$F$82)*(1+Inddata!$K$34/100+Inddata!$K$36/100)^A30/(1+Inddata!$K$32/100)^A30,0) -> 0 | D30: =IF(Inddata!$H$86>=LCC!A30,(Inddata!$H$82)*(1+Inddata!$K$34/100+Inddata!$K$36/100)^A30/(1+Inddata!$K$32/100)^A30,0) -> 0 | E30: =IF(Inddata!$J$86>=LCC!A30,(Inddata!$J$82)*(1+Inddata!$K$34/100+Inddata!$K$36/100)^A30/(1+Inddata!$K$32/100)^A30,0) -> 0
A31: 27 | B31: =IF(Inddata!$D$86>=LCC!A31,(Inddata!$D$82)*(1+Inddata!$K$34/100+Inddata!$K$36/100)^A31/(1+Inddata!$K$32/100)^A31,0) -> 0 | C31: =IF(Inddata!$F$86>=LCC!A31,(Inddata!$F$82)*(1+Inddata!$K$34/100+Inddata!$K$36/100)^A31/(1+Inddata!$K$32/100)^A31,0) -> 0 | D31: =IF(Inddata!$H$86>=LCC!A31,(Inddata!$H$82)*(1+Inddata!$K$34/100+Inddata!$K$36/100)^A31/(1+Inddata!$K$32/100)^A31,0) -> 0 | E31: =IF(Inddata!$J$86>=LCC!A31,(Inddata!$J$82)*(1+Inddata!$K$34/100+Inddata!$K$36/100)^A31/(1+Inddata!$K$32/100)^A31,0) -> 0
A32: 28 | B32: =IF(Inddata!$D$86>=LCC!A32,(Inddata!$D$82)*(1+Inddata!$K$34/100+Inddata!$K$36/100)^A32/(1+Inddata!$K$32/100)^A32,0) -> 0 | C32: =IF(Inddata!$F$86>=LCC!A32,(Inddata!$F$82)*(1+Inddata!$K$34/100+Inddata!$K$36/100)^A32/(1+Inddata!$K$32/100)^A32,0) -> 0 | D32: =IF(Inddata!$H$86>=LCC!A32,(Inddata!$H$82)*(1+Inddata!$K$34/100+Inddata!$K$36/100)^A32/(1+Inddata!$K$32/100)^A32,0) -> 0 | E32: =IF(Inddata!$J$86>=LCC!A32,(Inddata!$J$82)*(1+Inddata!$K$34/100+Inddata!$K$36/100)^A32/(1+Inddata!$K$32/100)^A32,0) -> 0
A33: 29 | B33: =IF(Inddata!$D$86>=LCC!A33,(Inddata!$D$82)*(1+Inddata!$K$34/100+Inddata!$K$36/100)^A33/(1+Inddata!$K$32/100)^A33,0) -> 0 | C33: =IF(Inddata!$F$86>=LCC!A33,(Inddata!$F$82)*(1+Inddata!$K$34/100+Inddata!$K$36/100)^A33/(1+Inddata!$K$32/100)^A33,0) -> 0 | D33: =IF(Inddata!$H$86>=LCC!A33,(Inddata!$H$82)*(1+Inddata!$K$34/100+Inddata!$K$36/100)^A33/(1+Inddata!$K$32/100)^A33,0) -> 0 | E33: =IF(Inddata!$J$86>=LCC!A33,(Inddata!$J$82)*(1+Inddata!$K$34/100+Inddata!$K$36/100)^A33/(1+Inddata!$K$32/100)^A33,0) -> 0
A34: 30 | B34: =IF(Inddata!$D$86>=LCC!A34,(Inddata!$D$82)*(1+Inddata!$K$34/100+Inddata!$K$36/100)^A34/(1+Inddata!$K$32/100)^A34,0) -> 0 | C34: =IF(Inddata!$F$86>=LCC!A34,(Inddata!$F$82)*(1+Inddata!$K$34/100+Inddata!$K$36/100)^A34/(1+Inddata!$K$32/100)^A34,0) -> 0 | D34: =IF(Inddata!$H$86>=LCC!A34,(Inddata!$H$82)*(1+Inddata!$K$34/100+Inddata!$K$36/100)^A34/(1+Inddata!$K$32/100)^A34,0) -> 0 | E34: =IF(Inddata!$J$86>=LCC!A34,(Inddata!$J$82)*(1+Inddata!$K$34/100+Inddata!$K$36/100)^A34/(1+Inddata!$K$32/100)^A34,0) -> 0
B36: =SUM(B5:B34)+B4 -> 5089248.991 | C36: =SUM(C5:C34)+C4 -> 4054026.751 | D36: =SUM(D5:D34)-D4 -> 3649789.536 | E36: 0

Sheet El (hidden)
B2: El
B4: Før | H4: Efter (med spareventilator og sparemotor)
B7: Målt volumenstrøm | C7: ind | D7: 18036 | E7: m3/h | H7: Målt volumenstrøm | I7: ind | J7: =D7 -> 18036 | K7: m3/h
B9: Målt volumenstrøm | C9: ud | D9: 18036 | E9: m3/h | H9: Målt volumenstrøm | I9: ud | J9: =D9 -> 18036 | K9: m3/h
B13: Statisk tryk sugeside | C13: ind | D13: -510 | E13: Pa | H13: Statisk tryk sugeside | I13: ind | J13: =D13 -> -510 | K13: Pa
B15: Statisk tryk trykside | C15: ind | D15: 160 | E15: Pa | H15: Statisk tryk trykside | I15: ind | J15: =D15 -> 160 | K15: Pa
B17: Indløbsareal | C17: ind | E17: m2 | H17: Indløbsareal | I17: ind | K17: m2
B19: Udløbsareal | C19: ind | D19: 0.48 | E19: m2 | H19: Udløbsareal | I19: ind | J19: =D19 -> 0.48 | K19: m2
B21: Dynamisk tryk sugeside | C21: ind | D21: =IF(D17="",0,0.6*((D7/3600)/D17)^2) -> 0 | H21: Dynamisk tryk sugeside | I21: ind | J21: =IF(J17="",0,0.6*((J7/3600)/J17)^2) -> 0
B23: Dynamisk tryk trykside | C23: ind | D23: =IF(D19="","",0.6*((D7/3600)/D19)^2) -> 65.36484375 | E23: Pa | H23: Dynamisk tryk trykside | I23: ind | J23: =IF(J19="","",0.6*((J7/3600)/J19)^2) -> 65.36484375 | K23: Pa
B27: Statisk tryk sugeside | C27: ud | D27: -510 | E27: Pa | H27: Statisk tryk sugeside | I27: ud | J27: =D27 -> -510 | K27: Pa
B29: Statisk tryk trykside | C29: ud | D29: 160 | E29: Pa | H29: Statisk tryk trykside | I29: ud | J29: =D29 -> 160 | K29: Pa
B31: Indløbsareal | C31: ud | E31: m2 | H31: Indløbsareal | I31: ud | K31: m2
B33: Udløbsareal | C33: ud | D33: 0.48 | E33: m2 | H33: Udløbsareal | I33: ud | J33: =D33 -> 0.48 | K33: m2
B35: Dynamisk tryk sugeside | C35: ud | D35: =IF(D31="",0,0.6*((D9/3600)/D31)^2) -> 0 | E35: Pa | H35: Dynamisk tryk sugeside | I35: ud | J35: =IF(J31="",0,0.6*((J9/3600)/J31)^2) -> 0 | K35: Pa
B37: Dynamisk tryk trykside | C37: ud | D37: =IF(D33="","",0.6*((D9/3600)/D33)^2) -> 65.36484375 | E37: Pa | H37: Dynamisk tryk trykside | I37: ud | J37: =IF(J33="","",0.6*((J9/3600)/J33)^2) -> 65.36484375 | K37: Pa
B41: Pmotor | C41: ind | D41: 7.99 | E41: kW | H41: Pmotor | I41: ind | J41: =Motor!C6 -> 9.328621108 | K41: kW
B43: Pmotor | C43: ud | D43: 7.99 | E43: kW | H43: Pmotor | I43: ud | J43: =Motor!I6 -> 9.328621108 | K43: kW
B47: htotal | C47: ind | D47: =((D7/3600)*((D15+D23)-(D13+D21))/(D41*1000)*100) -> 46.10986067 | E47: % | H47: htotal | I47: ind | J47: =((J7/3600)*((J15+J23)-(J13+J21))/(J41*1000)*100) -> 39.49327371 | K47: %
B49: htotal | C49: ud | D49: =((D9/3600)*((D29+D37)-(D27+D35))/(D43*1000)*100) -> 46.10986067 | E49: % | H49: htotal | I49: ud | J49: =IF(J35="",((J9/3600)*((J29+J37)-J27))/(J43*1000)*100,((J9/3600)*((J29+J37)-(J27+J35))/(J43*1000)*100)) -> 39.49327371 | K49: %
B53: Start | D53: 0 | H53: Start | J53: 0
B55: Stop | D55: 24 | H55: Stop | J55: 24
B57: Antal dage | D57: 7 | H57: Antal dage | J57: 7
B61: Elforbrug | D61: =(D41*(D55-D53)*D57*52)+(D43*(D55-D53)*D57*52) -> 139601.28 | E61: kWh | H61: Elforbrug | J61: =(J41*(J55-J53)*J57*52)+(J43*(J55-J53)*J57*52) -> 162989.668 | K61: kWh

Sheet Varme_og_Køl_1 (hidden)
B2: Varme
B4: Før | H4: Efter
B7: Målt volumenstrøm | C7: ind | D7: =Kryds_Rotor_Væske!C43 -> 35000 | E7: m3/h | H7: Volumenstrøm | I7: ind | J7: 1000 | K7: m3/h
B9: Målt volumenstrøm | C9: ud | D9: =Kryds_Rotor_Væske!C43 -> 35000 | E9: m3/h | H9: Volumenstrøm | I9: ud | J9: 1000 | K9: m3/h
B13: Målt temperatur | C13: ind | D13: =Inddata!D48 -> 20 | E13: ° C | H13: Temperatur | I13: ind | J13: 20 | K13: ° C
B15: Målt temperatur | C15: ud | D15: =Inddata!D57 -> 20 | E15: ° C | H15: Temperatur | I15: ud | J15: 20 | K15: ° C
B19: Varmeveksler | H19: Varmeveksler | J19: =Veksler!P10 -> Krydsveksler
B21: Målt temperaturvirkningsgrad | D21: =Kryds_Rotor_Væske!C47 -> 70.22220203 | E21: % | H21: Temperaturvirkningsgrad | J21: =Veksler!E8*100 -> 69.31592035 | K21: %
B25: Start | D25: =Inddata!D64 -> 0 | H25: Start | J25: 0
B27: Stop | D27: =Inddata!D66 -> 24 | H27: Stop | J27: 24
B29: Antal dage | D29: =Inddata!D68 -> 7 | H29: Antal dage | J29: 7
B33: Varmeforbrug | D33: =Varme_1!I4 -> 380942.0292 | E33: kWh | H33: Varmeforbrug | J33: =Varme_1!I13 -> 11215.31224 | K33: kWh
B38: Køling
B40: Før | H40: Efter
B43: Målt volumenstrøm | C43: ind | D43: 1000 | E43: m3/h | H43: Volumenstrøm | I43: ind | J43: 1000 | K43: m3/h
B45: Målt volumenstrøm | C45: ud | D45: 1000 | E45: m3/h | H45: Volumenstrøm | I45: ud | J45: 1000 | K45: m3/h
B49: Temperatur køl | C49: ind | D49: 16 | E49: ° C | H49: Temperatur køl | I49: ind | J49: 16 | K49: ° C
B51: Temperatur overflade | C51: ind | D51: 6 | E51: ° C | H51: Temperatur overflade | I51: ind | J51: 6 | K51: ° C
B55: Start | D55: 0 | H55: Start | J55: 0
B57: Stop | D57: 24 | H57: Stop | J57: 24
B59: Antal dage | D59: 7 | H59: Antal dage | J59: 7
B63: Køleforbrug | D63: =Køl!AP43 -> 2130.216682 | E63: kWh | H63: Køleforbrug | J63: =Køl!AP50 -> 2130.216682 | K63: kWh

Sheet Varme_og_Køl_2 (hidden)
B2: Varme
B4: Før | H4: Efter
B7: Målt volumenstrøm | C7: ind | D7: =Kryds_Rotor_Væske!F43 -> 35000 | E7: m3/h | H7: Volumenstrøm | I7: ind | J7: 1000 | K7: m3/h
B9: Målt volumenstrøm | C9: ud | D9: =Kryds_Rotor_Væske!F43 -> 35000 | E9: m3/h | H9: Volumenstrøm | I9: ud | J9: 1000 | K9: m3/h
B13: Målt temperatur | C13: ind | D13: =Inddata!D48 -> 20 | E13: ° C | H13: Temperatur | I13: ind | J13: 20 | K13: ° C
B15: Målt temperatur | C15: ud | D15: =Inddata!D57 -> 20 | E15: ° C | H15: Temperatur | I15: ud | J15: 20 | K15: ° C
B19: Varmeveksler | H19: Varmeveksler | J19: =Veksler!P10 -> Krydsveksler
B21: Målt temperaturvirkningsgrad | D21: =Kryds_Rotor_Væske!F47 -> 78.39813094 | E21: % | H21: Temperaturvirkningsgrad | J21: =Veksler!E8*100 -> 69.31592035 | K21: %
B25: Start | D25: =Inddata!D64 -> 0 | H25: Start | J25: 0
B27: Stop | D27: =Inddata!D66 -> 24 | H27: Stop | J27: 24
B29: Antal dage | D29: =Inddata!D68 -> 7 | H29: Antal dage | J29: 7
B33: Varmeforbrug | D33: =Varme_2!I4 -> 276348.837 | E33: kWh | H33: Varmeforbrug | J33: =Varme_1!I13 -> 11215.31224 | K33: kWh
B38: Køling
B40: Før | H40: Efter
B43: Målt volumenstrøm | C43: ind | D43: 1000 | E43: m3/h | H43: Volumenstrøm | I43: ind | J43: 1000 | K43: m3/h
B45: Målt volumenstrøm | C45: ud | D45: 1000 | E45: m3/h | H45: Volumenstrøm | I45: ud | J45: 1000 | K45: m3/h
B49: Temperatur køl | C49: ind | D49: 16 | E49: ° C | H49: Temperatur køl | I49: ind | J49: 16 | K49: ° C
B51: Temperatur overflade | C51: ind | D51: 6 | E51: ° C | H51: Temperatur overflade | I51: ind | J51: 6 | K51: ° C
B55: Start | D55: 0 | H55: Start | J55: 0
B57: Stop | D57: 24 | H57: Stop | J57: 24
B59: Antal dage | D59: 7 | H59: Antal dage | J59: 7
B63: Køleforbrug | D63: =Køl!AP43 -> 2130.216682 | E63: kWh | H63: Køleforbrug | J63: =Køl!AP50 -> 2130.216682 | K63: kWh

Sheet Varme_og_Køl_3 (hidden)
B2: Varme
B4: Før | H4: Efter
B7: Målt volumenstrøm | C7: ind | D7: =Kryds_Rotor_Væske!I43 -> 35000 | E7: m3/h | H7: Volumenstrøm | I7: ind | J7: 1000 | K7: m3/h
B9: Målt volumenstrøm | C9: ud | D9: =Kryds_Rotor_Væske!I43 -> 35000 | E9: m3/h | H9: Volumenstrøm | I9: ud | J9: 1000 | K9: m3/h
B13: Målt temperatur | C13: ind | D13: =Inddata!D48 -> 20 | E13: ° C | H13: Temperatur | I13: ind | J13: 20 | K13: ° C
B15: Målt temperatur | C15: ud | D15: =Inddata!D57 -> 20 | E15: ° C | H15: Temperatur | I15: ud | J15: 20 | K15: ° C
B19: Varmeveksler | H19: Varmeveksler | J19: =Veksler!P10 -> Krydsveksler
B21: Målt temperaturvirkningsgrad | D21: =Kryds_Rotor_Væske!I47 -> 80.41906717 | E21: % | H21: Temperaturvirkningsgrad | J21: =Veksler!E8*100 -> 69.31592035 | K21: %
B25: Start | D25: =Inddata!D64 -> 0 | H25: Start | J25: 0
B27: Stop | D27: =Inddata!D66 -> 24 | H27: Stop | J27: 24
B29: Antal dage | D29: =Inddata!D68 -> 7 | H29: Antal dage | J29: 7
B33: Varmeforbrug | D33: =Varme_3!I4 -> 250495.3622 | E33: kWh | H33: Varmeforbrug | J33: =Varme_1!I13 -> 11215.31224 | K33: kWh
B38: Køling
B40: Før | H40: Efter
B43: Målt volumenstrøm | C43: ind | D43: 1000 | E43: m3/h | H43: Volumenstrøm | I43: ind | J43: 1000 | K43: m3/h
B45: Målt volumenstrøm | C45: ud | D45: 1000 | E45: m3/h | H45: Volumenstrøm | I45: ud | J45: 1000 | K45: m3/h
B49: Temperatur køl | C49: ind | D49: 16 | E49: ° C | H49: Temperatur køl | I49: ind | J49: 16 | K49: ° C
B51: Temperatur overflade | C51: ind | D51: 6 | E51: ° C | H51: Temperatur overflade | I51: ind | J51: 6 | K51: ° C
B55: Start | D55: 0 | H55: Start | J55: 0
B57: Stop | D57: 24 | H57: Stop | J57: 24
B59: Antal dage | D59: 7 | H59: Antal dage | J59: 7
B63: Køleforbrug | D63: =Køl!AP43 -> 2130.216682 | E63: kWh | H63: Køleforbrug | J63: =Køl!AP50 -> 2130.216682 | K63: kWh

Sheet Varme_1 (hidden)
B2: Før
B4: Indblæs | C4: =Varme_og_Køl_1!D13 -> 20 | D4: ° C | E4: Luft ind | F4: =Varme_og_Køl_1!D7 -> 35000 | G4: m3/h | H4: Varmeforbrug | I4: =AC55*(((1.21*1.005)/3.6)/1000)*F4*(N8/7) -> 380942.0292 | J4: kWh | M4: Start | N4: =Varme_og_Køl_1!D25 -> 0
B6: Udsug | C6: =Varme_og_Køl_1!D15 -> 20 | D6: ° C | E6: Luft ud | F6: =Varme_og_Køl_1!D9 -> 35000 | G6: m3/h | H6: Køleforbrug | I6: =Køl!AP43 -> 2130.216682 | J6: kWh | M6: Stop | N6: =Varme_og_Køl_1!D27 -> 24
B8: Virk | C8: =Varme_og_Køl_1!D21 -> 70.22220203 | D8: % | M8: Antal dage | N8: =Varme_og_Køl_1!D29 -> 7
B11: Efter
B13: Indblæs | C13: =Varme_og_Køl_1!J13 -> 20 | D13: ° C | E13: Luft ind | F13: =Varme_og_Køl_1!J7 -> 1000 | G13: m3/h | H13: Varmeforbrug | I13: =AC101*(((1.21*1.005)/3.6)/1000)*F13*(N17/7) -> 11215.31224 | J13: kWh | M13: Start | N13: =Varme_og_Køl_1!J25 -> 0
B15: Udsug | C15: =Varme_og_Køl_1!J15 -> 20 | D15: ° C | E15: Luft ud | F15: =Varme_og_Køl_1!J9 -> 1000 | G15: m3/h | H15: Køleforbrug | I15: =Køl!AP52 -> 0 | J15: kWh | M15: Stop | N15: =Varme_og_Køl_1!J27 -> 24
B17: Virk | C17: =Varme_og_Køl_1!J21 -> 69.31592035 | D17: % | M17: Antal dage | N17: =Varme_og_Køl_1!J29 -> 7
G20: Før | L20: Efter | Q20: Opvarmning | R20: før
B22: Maaned | C22: Dag | D22: Time | E22: Lufttemp | G22: Temp | H22: Temp. Stigning | I22: Gradtimeforbrug | J22: Sum | L22: Temp | M22: Temp. Stigning | N22: Gradtimeforbrug | O22: Sum | Q22: X | R22: X^2 | S22: X^3 | T22: X^4 | U22: X^5 | V22: X^6 | W22: Gradtimer | Y22: Beregnet
B23: {1..12} | C23: {1..31} | D23: {1..24} | E23: [grd. C] | G23: efter VGV | H23: varmeflade | I23: med VGV | J23: timebasis | L23: efter VGV | M23: varmeflade | N23: med VGV | O23: timebasis | Q23: 1 | R23: =Q23^2 -> 1 | S23: =Q23^3 -> 1 | T23: =Q23^4 -> 1 | U23: =Q23^5 -> 1 | V23: =Q23^6 -> 1 | W23: =$J$388 -> 1528.821927 | Y23: =($Q$51*Q23^6)+($R$51*Q23^5)+($S$51*Q23^4)+($T$51*Q23^3)+($U$51*Q23^2)+($V$51*Q23)+$W$51 -> 1527.970695
B24: 1 | C24: 1 | D24: 1 | E24: 2.799999952 | G24: =E24+($C$6-E24)*$C$8/100 -> 14.87821874 | H24: =IF($C$4-G24>0,$C$4-G24,0) -> 5.121781265 | I24: =H24 -> 5.121781265 | L24: =E24+($C$15-E24)*$C$17/100 -> 14.72233829 | M24: =IF($C$13-L24>0,$C$13-L24,0) -> 5.277661715 | N24: =M24 -> 5.277661715 | Q24: 2 | R24: =Q24^2 -> 4 | S24: =Q24^3 -> 8 | T24: =Q24^4 -> 16 | U24: =Q24^5 -> 32 | V24: =Q24^6 -> 64 | W24: =$J$753 -> 1549.249494 | Y24: =($Q$51*Q24^6)+($R$51*Q24^5)+($S$51*Q24^4)+($T$51*Q24^3)+($U$51*Q24^2)+($V$51*Q24)+$W$51 -> 1546.899163
B25: 1 | C25: 2 | D25: 1 | E25: 4.599999905 | G25: =E25+($C$6-E25)*$C$8/100 -> 15.41421908 | H25: =IF($C$4-G25>0,$C$4-G25,0) -> 4.585780915 | I25: =H25 -> 4.585780915 | L25: =E25+($C$15-E25)*$C$17/100 -> 15.2746517 | M25: =IF($C$13-L25>0,$C$13-L25,0) -> 4.725348295 | N25: =M25 -> 4.725348295 | Q25: 3 | R25: 9 | S25: 27 | T25: 81 | U25: 243 | V25: 729 | W25: =$J$1118 -> 1563.155725 | Y25: 1568.573494
B26: 1 | C26: 3 | D26: 1 | E26: 1.600000024 | G26: 14.52088518 | H26: 5.479114819 | I26: 5.479114819 | L26: 14.35412935 | M26: 5.645870648 | N26: 5.645870648 | Q26: 4 | R26: 16 | S26: 64 | T26: 256 | U26: 1024 | V26: 4096 | W26: =$J$1483 -> 1573.7864 | Y26: 1577.208657
B27: 1 | C27: 4 | D27: 1 | E27: 1.700000048 | G27: 14.55066299 | H27: 5.449337014 | I27: 5.449337014 | L27: 14.38481344 | M27: 5.615186561 | N27: 5.615186561 | Q27: 5 | R27: 25 | S27: 125 | T27: 625 | U27: 3125 | V27: 15625 | W27: =$J$1848 -> 1562.738836 | Y27: 1564.910486
B28: 1 | C28: 5 | D28: 1 | E28: -0.400000006 | G28: 13.92532921 | H28: 6.074670787 | I28: 6.074670787 | L28: 13.74044775 | M28: 6.25955225 | N28: 6.25955225 | Q28: 6 | R28: 36 | S28: 216 | T28: 1296 | U28: 7776 | V28: 46656 | W28: =$J$2213 -> 1539.929041 | Y28: 1529.842393
B29: 1 | C29: 6 | D29: 1 | E29: -8.199999809 | G29: 11.60266103 | H29: 8.39733897 | I29: 8.39733897 | L29: 11.3470896 | M29: 8.652910403 | N29: 8.652910403 | Q29: 7 | R29: 49 | S29: 343 | T29: 2401 | U29: 16807 | V29: 117649 | W29: =$J$2578 -> 1481.326337 | Y29: 1474.576598
B30: 1 | C30: 7 | D30: 1 | E30: -13.10000038 | G30: 10.14354876 | H30: 9.85645124 | I30: 9.85645124 | L30: 9.843569519 | M30: 10.15643048 | N30: 10.15643048 | Q30: 8 | R30: 64 | S30: 512 | T30: 4096 | U30: 32768 | V30: 262144 | W30: =$J$2943 -> 1406.613844 | Y30: 1404.629853
B31: 1 | C31: 8 | D31: 1 | E31: -19.60000038 | G31: 8.207991892 | H31: 11.79200811 | I31: 11.79200811 | L31: 7.849104342 | M31: 12.15089566 | N31: 12.15089566 | Q31: 9 | R31: 81 | S31: 729 | T31: 6561 | U31: 59049 | V31: 531441 | W31: =$J$3308 -> 1321.776896 | Y31: 1327.183691
B32: 1 | C32: 9 | D32: 1 | E32: 0.8000000119 | G32: 14.28266279 | H32: 5.717337206 | I32: 5.717337206 | L32: 14.10865671 | M32: 5.891343289 | N32: 5.891343289 | Q32: 10 | R32: 100 | S32: 1000 | T32: 10000 | U32: 100000 | V32: 1000000 | W32: =$J$3673 -> 1240.543064 | Y32: 1249.989169
B33: 1 | C33: 10 | D33: 1 | E33: 2.400000095 | G33: 14.75910759 | H33: 5.240892414 | I33: 5.240892414 | L33: 14.59960201 | M33: 5.400397989 | N33: 5.400397989 | Q33: 11 | R33: 121 | S33: 1331 | T33: 14641 | U33: 161051 | V33: 1771561 | W33: =$J$4038 -> 1173.959911 | Y33: 1180.456134
B34: 1 | C34: 11 | D34: 1 | E34: 1.600000024 | G34: 14.52088518 | H34: 5.479114819 | I34: 5.479114819 | L34: 14.35412935 | M34: 5.645870648 | N34: 5.645870648 | Q34: 12 | R34: 144 | S34: 1728 | T34: 20736 | U34: 248832 | V34: 2985984 | W34: =$J$4403 -> 1123.903429 | Y34: 1124.926991
B35: 1 | C35: 12 | D35: 1 | E35: 1.200000048 | G35: 14.401774 | H35: 5.598226004 | I35: 5.598226004 | L35: 14.23139304 | M35: 5.768606959 | N35: 5.768606959 | Q35: 13 | R35: 169 | S35: 2197 | T35: 28561 | U35: 371293 | V35: 4826809 | W35: =$J$4768 -> 1095.227411 | Y35: 1088.134979
B36: 1 | C36: 13 | D36: 1 | E36: -0.400000006 | G36: 13.92532921 | H36: 6.074670787 | I36: 6.074670787 | L36: 13.74044775 | M36: 6.25955225 | N36: 6.25955225 | Q36: 14 | R36: 196 | S36: 2744 | T36: 38416 | U36: 537824 | V36: 7529536 | W36: =$J$5134 -> 1080.695844 | Y36: 1072.846961
B37: 1 | C37: 14 | D37: 1 | E37: -5 | G37: 12.55555051 | H37: 7.444449492 | I37: 7.444449492 | L37: 12.32898009 | M37: 7.671019913 | N37: 7.671019913 | Q37: 15 | R37: 225 | S37: 3375 | T37: 50625 | U37: 759375 | V37: 11390625 | W37: =$J$5498 -> 1082.631402 | Y37: 1079.69072
B38: 1 | C38: 15 | D38: 1 | E38: 2.700000048 | G38: 14.84844097 | H38: 5.151559034 | I38: 5.151559034 | L38: 14.69165424 | M38: 5.308345765 | N38: 5.308345765 | Q38: 16 | R38: 256 | S38: 4096 | T38: 65536 | U38: 1048576 | V38: 16777216 | W38: =$J$5863 -> 1105.709193 | Y38: 1107.166766
B39: 1 | C39: 16 | D39: 1 | E39: 0.200000003 | G39: 14.103996 | H39: 5.896003997 | I39: 5.896003997 | L39: 13.92455223 | M39: 6.07544777 | N39: 6.07544777 | Q39: 17 | R39: 289 | S39: 4913 | T39: 83521 | U39: 1419857 | V39: 24137569 | W39: =$J$6228 -> 1149.393223 | Y39: 1151.844649
B40: 1 | C40: 17 | D40: 1 | E40: -1.299999952 | G40: 13.65732905 | H40: 6.342670953 | I40: 6.342670953 | L40: 13.46429105 | M40: 6.535708951 | N40: 6.535708951 | Q40: 18 | R40: 324 | S40: 5832 | T40: 104976 | U40: 1889568 | V40: 34012224 | W40: =$J$6593 -> 1207.668377 | Y40: 1208.743786
B41: 1 | C41: 18 | D41: 1 | E41: -3.700000048 | G41: 12.94266187 | H41: 7.057338133 | I41: 7.057338133 | L41: 12.72787311 | M41: 7.272126892 | N41: 7.272126892 | Q41: 19 | R41: 361 | S41: 6859 | T41: 130321 | U41: 2476099 | V41: 47045881 | W41: =$J$6959 -> 1269.516861 | Y41: 1271.898795
B42: 1 | C42: 19 | D42: 1 | E42: -5.800000191 | G42: 12.31732807 | H42: 7.682671932 | I42: 7.682671932 | L42: 12.08350739 | M42: 7.916492608 | N42: 7.916492608 | Q42: 20 | R42: 400 | S42: 8000 | T42: 160000 | U42: 3200000 | V42: 64000000 | W42: =$J$7323 -> 1331.752457 | Y42: 1335.109337
B43: 1 | C43: 20 | D43: 1 | E43: -2.099999905 | G43: 13.41910668 | H43: 6.580893322 | I43: 6.580893322 | L43: 13.21881843 | M43: 6.781181574 | N43: 6.781181574 | Q43: 21 | R43: 441 | S43: 9261 | T43: 194481 | U43: 4084101 | V43: 85766121 | W43: =$J$7688 -> 1394.226278 | Y43: 1392.874466
B44: 1 | C44: 21 | D44: 1 | E44: -9.699999809 | G44: 11.15599406 | H44: 8.844005939 | I44: 8.844005939 | L44: 10.8868284 | M44: 9.113171597 | N44: 9.113171597 | Q44: 22 | R44: 484 | S44: 10648 | T44: 234256 | U44: 5153632 | V44: 113379904 | W44: =$J$8053 -> 1443.984978 | Y44: 1441.511497
B45: 1 | C45: 22 | D45: 1 | E45: -5.099999905 | G45: 12.52577274 | H45: 7.474227262 | I45: 7.474227262 | L45: 12.29829604 | M45: 7.701703963 | N45: 7.701703963 | Q45: 23 | R45: 529 | S45: 12167 | T45: 279841 | U45: 6436343 | V45: 148035889 | W45: =$J$8418 -> 1483.32145 | Y45: 1480.459369
B46: 1 | C46: 23 | D46: 1 | E46: 1.600000024 | G46: 14.52088518 | H46: 5.479114819 | I46: 5.479114819 | L46: 14.35412935 | M46: 5.645870648 | N46: 5.645870648 | Q46: 24 | R46: 576 | S46: 13824 | T46: 331776 | U46: 7962624 | V46: 191102976 | W46: =$J$8783 -> 1511.282803 | Y46: 1513.76653
B47: 1 | C47: 24 | D47: 1 | E47: 3 | G47: 14.93777435 | H47: 5.062225654 | I47: 5.062225654 | L47: 14.78370646 | M47: 5.216293541 | N47: 5.216293541
B48: 1 | C48: 25 | D48: 1 | E48: 2.700000048 | G48: 14.84844097 | H48: 5.151559034 | I48: 5.151559034 | L48: 14.69165424 | M48: 5.308345765 | N48: 5.308345765 | W48: =SUM(W23:W46) -> 32221.21518 | Y48: =SUM(Y23:Y46) -> 32221.21518
B49: 1 | C49: 26 | D49: 1 | E49: 0.6000000238 | G49: 14.2231072 | H49: 5.776892799 | I49: 5.776892799 | L49: 14.04728856 | M49: 5.952711445 | N49: 5.952711445
B50: 1 | C50: 27 | D50: 1 | E50: -3.799999952 | G50: 12.9128841 | H50: 7.087115902 | I50: 7.087115902 | L50: 12.69718906 | M50: 7.302810942 | N50: 7.302810942
B51: 1 | C51: 28 | D51: 1 | E51: 3 | G51: 14.93777435 | H51: 5.062225654 | I51: 5.062225654 | L51: 14.78370646 | M51: 5.216293541 | N51: 5.216293541 | Q51: =LINEST(W23:W46,Q23:V46,TRUE,TRUE) -> 0.0002562628228 | R51: -0.02065890425 | S51: 0.6027928793 | T51: -7.405630802 | U51: 32.51906109 | V51: -35.20691149 | W51: 1537.481786 | Y51: =IF($N$4=0,0,IF($N$4=1,$Y$23,IF($N$4=2,SUM($Y$23:$Y$24),IF($N$4=3,SUM($Y$23:$Y$25),IF($N$4=4,SUM($Y$23:$Y$26),IF($N$4=5,SUM($Y$23:$Y$27),IF($N$4=6,SUM($Y$23:$Y$28)))))))) -> 0 | Z51: =IF($N$4=7,SUM($Y$23:$Y$29),IF($N$4=8,SUM($Y$23:$Y$30),IF($N$4=9,SUM($Y$23:$Y$31),IF($N$4=10,SUM($Y$23:$Y$32),IF($N$4=11,SUM($Y$23:$Y$33),IF($N$4=12,SUM($Y$23:$Y$34),IF($N$4=13,SUM($Y$23:$Y$35)))))))) -> FALSE | AA51: =IF($N$4=14,SUM($Y$23:$Y$36),IF($N$4=15,SUM($Y$23:$Y$37),IF($N$4=16,SUM($Y$23:$Y$38),IF($N$4=17,SUM($Y$23:$Y$39),IF($N$4=18,SUM($Y$23:$Y$40),IF($N$4=19,SUM($Y$23:$Y$41),IF($N$4=20,SUM($Y$23:$Y$42)))))))) -> FALSE | AB51: =IF($N$4=21,SUM($Y$23:$Y$43),IF($N$4=22,SUM($Y$23:$Y$44),IF($N$4=23,SUM($Y$23:$Y$45),IF($N$4=24,SUM($Y$23:$Y$46))))) -> FALSE | AC51: =SUM(Y51:AB51) -> 0
B52: 1 | C52: 29 | D52: 1 | E52: 3.099999905 | G52: 14.96755212 | H52: 5.032447885 | I52: 5.032447885 | L52: 14.81439051 | M52: 5.18560949 | N52: 5.18560949 | Q52: 2.162331009e-05 | R52: 0.001626640146 | S52: 0.04717822734 | T52: 0.6614036188 | U52: 4.585066258 | V52: 14.2178246 | W52: 14.3968921
B53: 1 | C53: 30 | D53: 1 | E53: 4.800000191 | G53: 15.47377477 | H53: 4.526225234 | I53: 4.526225234 | L53: 15.33601995 | M53: 4.663980048 | N53: 4.663980048 | Q53: 0.9992907606 | R53: 5.604983117 | Y53: =IF($N$6=0,0,IF($N$6=1,$Y$23,IF($N$6=2,SUM($Y$23:$Y$24),IF($N$6=3,SUM($Y$23:$Y$25),IF($N$6=4,SUM($Y$23:$Y$26),IF($N$6=5,SUM($Y$23:$Y$27),IF($N$6=6,SUM($Y$23:$Y$28)))))))) -> FALSE | Z53: =IF($N$6=7,SUM($Y$23:$Y$29),IF($N$6=8,SUM($Y$23:$Y$30),IF($N$6=9,SUM($Y$23:$Y$31),IF($N$6=10,SUM($Y$23:$Y$32),IF($N$6=11,SUM($Y$23:$Y$33),IF($N$6=12,SUM($Y$23:$Y$34),IF($N$6=13,SUM($Y$23:$Y$35)))))))) -> FALSE | AA53: =IF($N$6=14,SUM($Y$23:$Y$36),IF($N$6=15,SUM($Y$23:$Y$37),IF($N$6=16,SUM($Y$23:$Y$38),IF($N$6=17,SUM($Y$23:$Y$39),IF($N$6=18,SUM($Y$23:$Y$40),IF($N$6=19,SUM($Y$23:$Y$41),IF($N$6=20,SUM($Y$23:$Y$42)))))))) -> FALSE | AB53: =IF($N$6=21,SUM($Y$23:$Y$43),IF($N$6=22,SUM($Y$23:$Y$44),IF($N$6=23,SUM($Y$23:$Y$45),IF($N$6=24,SUM($Y$23:$Y$46))))) -> 32221.21518 | AC53: =SUM(Y53:AB53) -> 32221.21518
B54: 1 | C54: 31 | D54: 1 | E54: 6.699999809 | G54: 16.03955281 | H54: 3.960447187 | I54: 3.960447187 | L54: 15.91901735 | M54: 4.080982652 | N54: 4.080982652 | Q54: 3992.056333 | R54: 17
B55: 2 | C55: 1 | D55: 1 | E55: -3.700000048 | G55: 12.94266187 | H55: 7.057338133 | I55: 7.057338133 | L55: 12.72787311 | M55: 7.272126892 | N55: 7.272126892 | Q55: 752482.7164 | R55: 534.0692077 | AC55: =AC53-AC51 -> 32221.21518
B56: 2 | C56: 2 | D56: 1 | E56: -2.400000095 | G56: 13.32977323 | H56: 6.670226773 | I56: 6.670226773 | L56: 13.12676613 | M56: 6.873233871 | N56: 6.873233871
B57: 2 | C57: 3 | D57: 1 | E57: -3 | G57: 13.15110647 | H57: 6.848893532 | I57: 6.848893532 | L57: 12.94266168 | M57: 7.05733832 | N57: 7.05733832
B58: 2 | C58: 4 | D58: 1 | E58: -4.599999905 | G58: 12.67466173 | H58: 7.325338272 | I58: 7.325338272 | L58: 12.45171644 | M58: 7.548283565 | N58: 7.548283565 | Q58: =Q51/7 -> 3.660897469e-05 | R58: =R51/6 -> -0.003443150708 | S58: =S51/5 -> 0.1205585759 | T58: =T51/4 -> -1.851407701 | U58: =U51/3 -> 10.83968703 | V58: =V51/2 -> -17.60345574 | W58: =W51 -> 1537.481786
B59: 2 | C59: 5 | D59: 1 | E59: -3 | G59: 13.15110647 | H59: 6.848893532 | I59: 6.848893532 | L59: 12.94266168 | M59: 7.05733832 | N59: 7.05733832
B60: 2 | C60: 6 | D60: 1 | E60: -10.39999962 | G60: 10.94754953 | H60: 9.052450469 | I60: 9.052450469 | L60: 10.6720399 | M60: 9.327960097 | N60: 9.327960097
B61: 2 | C61: 7 | D61: 1 | E61: 0.1000000015 | G61: 14.0742182 | H61: 5.925781795 | I61: 5.925781795 | L61: 13.89386815 | M61: 6.10613185 | N61: 6.10613185 | Q61: =((Q58*N6^7)+(R58*N6^6)+(S58*N6^5)+(T58*N6^4)+(U58*N6^3)+(V58*N6^2)+(W58*N6))-((Q58*N4^7)+(R58*N4^6)+(S58*N4^5)+(T58*N4^4)+(U58*N4^3)+(V58*N4^2)+(W58*N4)) -> 32227.44337 | S61: Integrering
B62: 2 | C62: 8 | D62: 1 | E62: -3.200000048 | G62: 13.09155086 | H62: 6.908449143 | I62: 6.908449143 | L62: 12.88129351 | M62: 7.118706494 | N62: 7.118706494
B63: 2 | C63: 9 | D63: 1 | E63: -1.899999976 | G63: 13.47866225 | H63: 6.521337748 | I63: 6.521337748 | L63: 13.28018656 | M63: 6.719813436 | N63: 6.719813436
B64: 2 | C64: 10 | D64: 1 | E64: 0 | G64: 14.04444041 | H64: 5.955559593 | I64: 5.955559593 | L64: 13.86318407 | M64: 6.13681593 | N64: 6.13681593
B65: 2 | C65: 11 | D65: 1 | E65: 1.799999952 | G65: 14.58044076 | H65: 5.419559244 | I65: 5.419559244 | L65: 14.41549749 | M65: 5.584502511 | N65: 5.584502511
B66: 2 | C66: 12 | D66: 1 | E66: 0.6999999881 | G66: 14.25288499 | H66: 5.747115011 | I66: 5.747115011 | L66: 14.07797262 | M66: 5.922027376 | N66: 5.922027376 | Q66: Opvarmning | R66: efter
B67: 2 | C67: 13 | D67: 1 | E67: 0.8000000119 | G67: 14.28266279 | H67: 5.717337206 | I67: 5.717337206 | L67: 14.10865671 | M67: 5.891343289 | N67: 5.891343289
B68: 2 | C68: 14 | D68: 1 | E68: -1.299999952 | G68: 13.65732905 | H68: 6.342670953 | I68: 6.342670953 | L68: 13.46429105 | M68: 6.535708951 | N68: 6.535708951 | Q68: X | R68: X^2 | S68: X^3 | T68: X^4 | U68: X^5 | V68: X^6 | W68: Gradtimer | Y68: Beregnet
B69: 2 | C69: 15 | D69: 1 | E69: -5.400000095 | G69: 12.43643929 | H69: 7.563560712 | I69: 7.563560712 | L69: 12.20624374 | M69: 7.79375626 | N69: 7.79375626 | Q69: 1 | R69: =Q69^2 -> 1 | S69: =Q69^3 -> 1 | T69: =Q69^4 -> 1 | U69: =Q69^5 -> 1 | V69: =Q69^6 -> 1 | W69: =$O$388 -> 1575.351335 | Y69: =($Q$97*Q69^6)+($R$97*Q69^5)+($S$97*Q69^4)+($T$97*Q69^3)+($U$97*Q69^2)+($V$97*Q69)+$W$97 -> 1574.474196
B70: 2 | C70: 16 | D70: 1 | E70: -8.899999619 | G70: 11.3942165 | H70: 8.605783499 | I70: 8.605783499 | L70: 11.1323011 | M70: 8.867698902 | N70: 8.867698902 | Q70: 2 | R70: =Q70^2 -> 4 | S70: =Q70^3 -> 8 | T70: =Q70^4 -> 16 | U70: =Q70^5 -> 32 | V70: =Q70^6 -> 64 | W70: =$O$753 -> 1596.400612 | Y70: =($Q$97*Q70^6)+($R$97*Q70^5)+($S$97*Q70^4)+($T$97*Q70^3)+($U$97*Q70^2)+($V$97*Q70)+$W$97 -> 1593.978748
B71: 2 | C71: 17 | D71: 1 | E71: -11.10000038 | G71: 10.73910472 | H71: 9.260895281 | I71: 9.260895281 | L71: 10.45725111 | M71: 9.542748888 | N71: 9.542748888 | Q71: 3 | R71: 9 | S71: 27 | T71: 81 | U71: 243 | V71: 729 | W71: =$O$1118 -> 1610.730076 | Y71: 1616.312734
B72: 2 | C72: 18 | D72: 1 | E72: -1.200000048 | G72: 13.68710682 | H72: 6.312893183 | I72: 6.312893183 | L72: 13.4949751 | M72: 6.505024901 | N72: 6.505024901 | Q72: 4 | R72: 16 | S72: 64 | T72: 256 | U72: 1024 | V72: 4096 | W72: =$O$1483 -> 1621.684294 | Y72: 1625.210706
B73: 2 | C73: 19 | D73: 1 | E73: -2.200000048 | G73: 13.38932884 | H73: 6.610671163 | I73: 6.610671163 | L73: 13.1881343 | M73: 6.811865697 | N73: 6.811865697 | Q73: 5 | R73: 25 | S73: 125 | T73: 625 | U73: 3125 | V73: 15625 | W73: =$O$1848 -> 1610.300499 | Y73: 1612.538242
B74: 2 | C74: 20 | D74: 1 | E74: -5.099999905 | G74: 12.52577274 | H74: 7.474227262 | I74: 7.474227262 | L74: 12.29829604 | M74: 7.701703963 | N74: 7.701703963 | Q74: 6 | R74: 36 | S74: 216 | T74: 1296 | U74: 7776 | V74: 46656 | W74: =$O$2213 -> 1586.796492 | Y74: 1576.402859
B75: 2 | C75: 21 | D75: 1 | E75: -3.299999952 | G75: 13.06177309 | H75: 6.938226912 | I75: 6.938226912 | L75: 12.85060946 | M75: 7.149390544 | N75: 7.149390544 | Q75: 7 | R75: 49 | S75: 343 | T75: 2401 | U75: 16807 | V75: 117649 | W75: =$O$2578 -> 1526.410226 | Y75: 1519.455059
B76: 2 | C76: 22 | D76: 1 | E76: -0.8999999762 | G76: 13.77644023 | H76: 6.223559768 | I76: 6.223559768 | L76: 13.58702736 | M76: 6.41297264 | N76: 6.41297264 | Q76: 8 | R76: 64 | S76: 512 | T76: 4096 | U76: 32768 | V76: 262144 | W76: =$O$2943 -> 1449.423872 | Y76: 1447.379499
B77: 2 | C77: 23 | D77: 1 | E77: 0 | G77: 14.04444041 | H77: 5.955559593 | I77: 5.955559593 | L77: 13.86318407 | M77: 6.13681593 | N77: 6.13681593 | Q77: 9 | R77: 81 | S77: 729 | T77: 6561 | U77: 59049 | V77: 531441 | W77: =$O$3308 -> 1362.004927 | Y77: 1367.576277
B78: 2 | C78: 24 | D78: 1 | E78: 1 | G78: 14.34221839 | H78: 5.657781614 | I78: 5.657781614 | L78: 14.17002487 | M78: 5.829975134 | N78: 5.829975134 | Q78: 10 | R78: 100 | S78: 1000 | T78: 10000 | U78: 100000 | V78: 1000000 | W78: =$O$3673 -> 1278.298759 | Y78: 1288.032354
B79: 2 | C79: 25 | D79: 1 | E79: 1.200000048 | G79: 14.401774 | H79: 5.598226004 | I79: 5.598226004 | L79: 14.23139304 | M79: 5.768606959 | N79: 5.768606959 | Q79: 11 | R79: 121 | S79: 1331 | T79: 14641 | U79: 161051 | V79: 1771561 | W79: =$O$4038 -> 1209.68916 | Y79: 1216.383095
B80: 2 | C80: 26 | D80: 1 | E80: 4.400000095 | G80: 15.35466355 | H80: 4.645336455 | I80: 4.645336455 | L80: 15.2132836 | M80: 4.786716396 | N80: 4.786716396 | Q80: 12 | R80: 144 | S80: 1728 | T80: 20736 | U80: 248832 | V80: 2985984 | W80: =$O$4403 -> 1158.109218 | Y80: 1159.163933
B81: 2 | C81: 27 | D81: 1 | E81: 3.200000048 | G81: 14.99732996 | H81: 5.002670044 | I81: 5.002670044 | L81: 14.84507463 | M81: 5.154925366 | N81: 5.154925366 | Q81: 13 | R81: 169 | S81: 2197 | T81: 28561 | U81: 371293 | V81: 4826809 | W81: =$O$4768 -> 1128.560451 | Y81: 1121.252163
B82: 2 | C82: 28 | D82: 1 | E82: 3.799999952 | G82: 15.17599672 | H82: 4.824003285 | I82: 4.824003285 | L82: 15.02917908 | M82: 4.970820918 | N82: 4.970820918 | Q82: 14 | R82: 196 | S82: 2744 | T82: 38416 | U82: 537824 | V82: 7529536 | W82: =$O$5134 -> 1113.586618 | Y82: 1105.498857
B83: 3 | C83: 1 | D83: 1 | E83: 3.400000095 | G83: 15.05688557 | H83: 4.943114434 | I83: 4.943114434 | L83: 14.90644281 | M83: 5.093557193 | N83: 5.093557193 | Q83: 15 | R83: 225 | S83: 3375 | T83: 50625 | U83: 759375 | V83: 11390625 | W83: =$O$5498 -> 1115.581085 | Y83: 1112.550905
B84: 3 | C84: 2 | D84: 1 | E84: -1.100000024 | G84: 13.71688462 | H84: 6.283115378 | I84: 6.283115378 | L84: 13.52565919 | M84: 6.474340814 | N84: 6.474340814 | Q84: 16 | R84: 256 | S84: 4096 | T84: 65536 | U84: 1048576 | V84: 16777216 | W84: =$O$5863 -> 1139.361245 | Y84: 1140.863178
B85: 3 | C85: 3 | D85: 1 | E85: 2 | G85: 14.63999637 | H85: 5.360003634 | I85: 5.360003634 | L85: 14.47686566 | M85: 5.523134337 | N85: 5.523134337 | Q85: 17 | R85: 289 | S85: 4913 | T85: 83521 | U85: 1419857 | V85: 24137569 | W85: =$O$6228 -> 1184.374789 | Y85: 1186.900824
B86: 3 | C86: 4 | D86: 1 | E86: 0.6999999881 | G86: 14.25288499 | H86: 5.747115011 | I86: 5.747115011 | L86: 14.07797262 | M86: 5.922027376 | N86: 5.922027376 | Q86: 18 | R86: 324 | S86: 5832 | T86: 104976 | U86: 1889568 | V86: 34012224 | W86: =$O$6593 -> 1244.423537 | Y86: 1245.531676
B87: 3 | C87: 5 | D87: 1 | E87: 3 | G87: 14.93777435 | H87: 5.062225654 | I87: 5.062225654 | L87: 14.78370646 | M87: 5.216293541 | N87: 5.216293541 | Q87: 19 | R87: 361 | S87: 6859 | T87: 130321 | U87: 2476099 | V87: 47045881 | W87: =$O$6959 -> 1308.154368 | Y87: 1310.608796
B88: 3 | C88: 6 | D88: 1 | E88: -0.1000000015 | G88: 14.01466261 | H88: 5.985337392 | I88: 5.985337392 | L88: 13.83249999 | M88: 6.16750001 | N88: 6.16750001 | Q88: 20 | R88: 400 | S88: 8000 | T88: 160000 | U88: 3200000 | V88: 64000000 | W88: =$O$7323 -> 1372.284093 | Y88: 1375.743139
B89: 3 | C89: 7 | D89: 1 | E89: 4.900000095 | G89: =E89+($C$6-E89)*$C$8/100 -> 15.50355254 | H89: =IF($C$4-G89>0,$C$4-G89,0) -> 4.496447465 | I89: =H89 -> 4.496447465 | L89: =E89+($C$15-E89)*$C$17/100 -> 15.366704 | M89: =IF($C$13-L89>0,$C$13-L89,0) -> 4.633295998 | N89: =M89 -> 4.633295998 | Q89: 21 | R89: 441 | S89: 9261 | T89: 194481 | U89: 4084101 | V89: 85766121 | W89: =$O$7688 -> 1436.659293 | Y89: 1435.266339
B90: 3 | C90: 8 | D90: 1 | E90: 2.099999905 | G90: 14.66977414 | H90: 5.330225864 | I90: 5.330225864 | L90: 14.50754971 | M90: 5.492450287 | N90: 5.492450287 | Q90: 22 | R90: 484 | S90: 10648 | T90: 234256 | U90: 5153632 | V90: 113379904 | W90: =$O$8053 -> 1487.932389 | Y90: 1485.383628
B91: 3 | C91: 9 | D91: 1 | E91: -3.299999952 | G91: 13.06177309 | H91: 6.938226912 | I91: 6.938226912 | L91: 12.85060946 | M91: 7.149390544 | N91: 7.149390544 | Q91: 23 | R91: 529 | S91: 12167 | T91: 279841 | U91: 6436343 | V91: 148035889 | W91: =$O$8418 -> 1528.46606 | Y91: 1525.516871
B92: 3 | C92: 10 | D92: 1 | E92: -1.799999952 | G92: 13.50844006 | H92: 6.491559943 | I92: 6.491559943 | L92: 13.31087065 | M92: 6.689129349 | N92: 6.689129349 | Q92: 24 | R92: 576 | S92: 13824 | T92: 331776 | U92: 7962624 | V92: 191102976 | W92: =$O$8783 -> 1557.278411 | Y92: 1559.83773
B93: 3 | C93: 11 | D93: 1 | E93: -1 | G93: 13.74666243 | H93: 6.253337573 | I93: 6.253337573 | L93: 13.55634327 | M93: 6.443656727 | N93: 6.443656727
B94: 3 | C94: 12 | D94: 1 | E94: -0.3000000119 | G94: 13.95510701 | H94: 6.044892991 | I94: 6.044892991 | L94: 13.77113183 | M94: 6.228868173 | N94: 6.228868173 | W94: =SUM(W69:W92) -> 33201.86181 | Y94: =SUM(Y69:Y92) -> 33201.86181
B95: 3 | C95: 13 | D95: 1 | E95: -0.3000000119 | G95: 13.95510701 | H95: 6.044892991 | I95: 6.044892991 | L95: 13.77113183 | M95: 6.228868173 | N95: 6.228868173
B96: 3 | C96: 14 | D96: 1 | E96: 0.1000000015 | G96: 14.0742182 | H96: 5.925781795 | I96: 5.925781795 | L96: 13.89386815 | M96: 6.10613185 | N96: 6.10613185
B97: 3 | C97: 15 | D97: 1 | E97: 0.6000000238 | G97: 14.2231072 | H97: 5.776892799 | I97: 5.776892799 | L97: 14.04728856 | M97: 5.952711445 | N97: 5.952711445 | Q97: =LINEST(W69:W92,Q69:V92,TRUE,TRUE) -> 0.0002640621336 | R97: -0.02128765411 | S97: 0.6211387673 | T97: -7.631019784 | U97: 33.5087726 | V97: -36.27842722 | W97: 1584.274755 | Y97: =IF($N$13=0,0,IF($N$13=1,$Y$69,IF($N$13=2,SUM($Y$69:$Y$70),IF($N$13=3,SUM($Y$69:$Y$71),IF($N$13=4,SUM($Y$69:$Y$72),IF($N$13=5,SUM($Y$69:$Y$73),IF($N$13=6,SUM($Y$69:$Y$74)))))))) -> 0 | Z97: =IF($N$13=7,SUM($Y$69:$Y$75),IF($N$13=8,SUM($Y$69:$Y$76),IF($N$13=9,SUM($Y$69:$Y$77),IF($N$13=10,SUM($Y$69:$Y$78),IF($N$13=11,SUM($Y$69:$Y$79),IF($N$13=12,SUM($Y$69:$Y$80),IF($N$13=13,SUM($Y$69:$Y$81)))))))) -> FALSE | AA97: =IF($N$13=14,SUM($Y$69:$Y$82),IF($N$13=15,SUM($Y$69:$Y$83),IF($N$13=16,SUM($Y$69:$Y$84),IF($N$13=17,SUM($Y$69:$Y$85),IF($N$13=18,SUM($Y$69:$Y$86),IF($N$13=19,SUM($Y$69:$Y$87),IF($N$13=20,SUM($Y$69:$Y$88)))))))) -> FALSE | AB97: =IF($N$13=21,SUM($Y$69:$Y$89),IF($N$13=22,SUM($Y$69:$Y$90),IF($N$13=23,SUM($Y$69:$Y$91),IF($N$13=24,SUM($Y$69:$Y$92))))) -> FALSE | AC97: =SUM(Y97:AB97) -> 0
B98: 3 | C98: 16 | D98: 1 | E98: 1.100000024 | G98: 14.37199619 | H98: 5.628003809 | I98: 5.628003809 | L98: 14.20070895 | M98: 5.799291047 | N98: 5.799291047 | Q98: 2.228141146e-05 | R98: 0.001676146633 | S98: 0.04861408782 | T98: 0.6815333136 | U98: 4.724611888 | V98: 14.65054142 | W98: 14.8350588
B99: 3 | C99: 17 | D99: 1 | E99: -1 | G99: 13.74666243 | H99: 6.253337573 | I99: 6.253337573 | L99: 13.55634327 | M99: 6.443656727 | N99: 6.443656727 | Q99: 0.9992907606 | R99: 5.775569725 | Y99: =IF($N$15=0,0,IF($N$15=1,$Y$69,IF($N$15=2,SUM($Y$69:$Y$70),IF($N$15=3,SUM($Y$69:$Y$71),IF($N$15=4,SUM($Y$69:$Y$72),IF($N$15=5,SUM($Y$69:$Y$73),IF($N$15=6,SUM($Y$69:$Y$74)))))))) -> FALSE | Z99: =IF($N$15=7,SUM($Y$69:$Y$75),IF($N$15=8,SUM($Y$69:$Y$76),IF($N$15=9,SUM($Y$69:$Y$77),IF($N$15=10,SUM($Y$69:$Y$78),IF($N$15=11,SUM($Y$69:$Y$79),IF($N$15=12,SUM($Y$69:$Y$80),IF($N$15=13,SUM($Y$69:$Y$81)))))))) -> FALSE | AA99: =IF($N$15=14,SUM($Y$69:$Y$82),IF($N$15=15,SUM($Y$69:$Y$83),IF($N$15=16,SUM($Y$69:$Y$84),IF($N$15=17,SUM($Y$69:$Y$85),IF($N$15=18,SUM($Y$69:$Y$86),IF($N$15=19,SUM($Y$69:$Y$87),IF($N$15=20,SUM($Y$69:$Y$88)))))))) -> FALSE | AB99: =IF($N$15=21,SUM($Y$69:$Y$89),IF($N$15=22,SUM($Y$69:$Y$90),IF($N$15=23,SUM($Y$69:$Y$91),IF($N$15=24,SUM($Y$69:$Y$92))))) -> 33201.86181 | AC99: =SUM(Y99:AB99) -> 33201.86181
B100: 3 | C100: 18 | D100: 1 | E100: -8.199999809 | G100: 11.60266103 | H100: 8.39733897 | I100: 8.39733897 | L100: 11.3470896 | M100: 8.652910403 | N100: 8.652910403 | Q100: 3992.056333 | R100: 17
B101: 3 | C101: 19 | D101: 1 | E101: -7.699999809 | G101: 11.75155002 | H101: 8.24844998 | I101: 8.24844998 | L101: 11.50051 | M101: 8.499490004 | N101: 8.499490004 | Q101: 798983.0644 | R101: 567.072496 | AC101: =AC99-AC97 -> 33201.86181
B102: 3 | C102: 20 | D102: 1 | E102: -4.800000191 | G102: 12.61510605 | H102: 7.384893953 | I102: 7.384893953 | L102: 12.39034819 | M102: 7.609651812 | N102: 7.609651812
B103: 3 | C103: 21 | D103: 1 | E103: -6.400000095 | G103: 12.13866131 | H103: 7.861338692 | I103: 7.861338692 | L103: 11.89940294 | M103: 8.100597057 | N103: 8.100597057
B104: 3 | C104: 22 | D104: 1 | E104: -2.099999905 | G104: 13.41910668 | H104: 6.580893322 | I104: 6.580893322 | L104: 13.21881843 | M104: 6.781181574 | N104: 6.781181574
B105: 3 | C105: 23 | D105: 1 | E105: -5.300000191 | G105: 12.46621706 | H105: 7.533782943 | I105: 7.533782943 | L105: 12.23692779 | M105: 7.76307221 | N105: 7.76307221
B106: 3 | C106: 24 | D106: 1 | E106: -1.700000048 | G106: 13.53821783 | H106: 6.461782173 | I106: 6.461782173 | L106: 13.3415547 | M106: 6.658445299 | N106: 6.658445299
B107: 3 | C107: 25 | D107: 1 | E107: 1 | G107: 14.34221839 | H107: 5.657781614 | I107: 5.657781614 | L107: 14.17002487 | M107: 5.829975134 | N107: 5.829975134
B108: 3 | C108: 26 | D108: 1 | E108: 2.200000048 | G108: 14.69955198 | H108: 5.300448024 | I108: 5.300448024 | L108: 14.53823384 | M108: 5.461766163 | N108: 5.461766163
B109: 3 | C109: 27 | D109: 1 | E109: 2.400000095 | G109: 14.75910759 | H109: 5.240892414 | I109: 5.240892414 | L109: 14.59960201 | M109: 5.400397989 | N109: 5.400397989
B110: 3 | C110: 28 | D110: 1 | E110: 4 | G110: 15.23555233 | H110: 4.764447675 | I110: 4.764447675 | L110: 15.09054726 | M110: 4.909452744 | N110: 4.909452744
B111: 3 | C111: 29 | D111: 1 | E111: 4.800000191 | G111: 15.47377477 | H111: 4.526225234 | I111: 4.526225234 | L111: 15.33601995 | M111: 4.663980048 | N111: 4.663980048
B112: 3 | C112: 30 | D112: 1 | E112: 5.400000095 | G112: 15.65244153 | H112: 4.347558475 | I112: 4.347558475 | L112: 15.5201244 | M112: 4.4798756 | N112: 4.4798756
B113: 3 | C113: 31 | D113: 1 | E113: 1 | G113: 14.34221839 | H113: 5.657781614 | I113: 5.657781614 | L113: 14.17002487 | M113: 5.829975134 | N113: 5.829975134
B114: 4 | C114: 1 | D114: 1 | E114: -1.899999976 | G114: 13.47866225 | H114: 6.521337748 | I114: 6.521337748 | L114: 13.28018656 | M114: 6.719813436 | N114: 6.719813436
B115: 4 | C115: 2 | D115: 1 | E115: 0.1000000015 | G115: 14.0742182 | H115: 5.925781795 | I115: 5.925781795 | L115: 13.89386815 | M115: 6.10613185 | N115: 6.10613185
B116: 4 | C116: 3 | D116: 1 | E116: 1.399999976 | G116: 14.46132957 | H116: 5.538670429 | I116: 5.538670429 | L116: 14.29276118 | M116: 5.707238822 | N116: 5.707238822
B117: 4 | C117: 4 | D117: 1 | E117: 1.399999976 | G117: 14.46132957 | H117: 5.538670429 | I117: 5.538670429 | L117: 14.29276118 | M117: 5.707238822 | N117: 5.707238822
B118: 4 | C118: 5 | D118: 1 | E118: 2.700000048 | G118: 14.84844097 | H118: 5.151559034 | I118: 5.151559034 | L118: 14.69165424 | M118: 5.308345765 | N118: 5.308345765
B119: 4 | C119: 6 | D119: 1 | E119: -0.3000000119 | G119: 13.95510701 | H119: 6.044892991 | I119: 6.044892991 | L119: 13.77113183 | M119: 6.228868173 | N119: 6.228868173
B120: 4 | C120: 7 | D120: 1 | E120: 2.599999905 | G120: 14.81866313 | H120: 5.181336875 | I120: 5.181336875 | L120: 14.66097011 | M120: 5.339029888 | N120: 5.339029888
B121: 4 | C121: 8 | D121: 1 | E121: 2.099999905 | G121: 14.66977414 | H121: 5.330225864 | I121: 5.330225864 | L121: 14.50754971 | M121: 5.492450287 | N121: 5.492450287
B122: 4 | C122: 9 | D122: 1 | E122: 1.299999952 | G122: 14.43155177 | H122: 5.568448234 | I122: 5.568448234 | L122: 14.26207709 | M122: 5.737922909 | N122: 5.737922909
B123: 4 | C123: 10 | D123: 1 | E123: 0.5 | G123: 14.1933294 | H123: 5.806670604 | I123: 5.806670604 | L123: 14.01660447 | M123: 5.983395532 | N123: 5.983395532
B124: 4 | C124: 11 | D124: 1 | E124: 2.099999905 | G124: 14.66977414 | H124: 5.330225864 | I124: 5.330225864 | L124: 14.50754971 | M124: 5.492450287 | N124: 5.492450287
B125: 4 | C125: 12 | D125: 1 | E125: 3 | G125: 14.93777435 | H125: 5.062225654 | I125: 5.062225654 | L125: 14.78370646 | M125: 5.216293541 | N125: 5.216293541
B126: 4 | C126: 13 | D126: 1 | E126: 4.400000095 | G126: 15.35466355 | H126: 4.645336455 | I126: 4.645336455 | L126: 15.2132836 | M126: 4.786716396 | N126: 4.786716396
B127: 4 | C127: 14 | D127: 1 | E127: -0.1000000015 | G127: 14.01466261 | H127: 5.985337392 | I127: 5.985337392 | L127: 13.83249999 | M127: 6.16750001 | N127: 6.16750001
B128: 4 | C128: 15 | D128: 1 | E128: 6.599999905 | G128: 16.00977504 | H128: 3.990224956 | I128: 3.990224956 | L128: 15.8883333 | M128: 4.111666702 | N128: 4.111666702
B129: 4 | C129: 16 | D129: 1 | E129: 4.400000095 | G129: 15.35466355 | H129: 4.645336455 | I129: 4.645336455 | L129: 15.2132836 | M129: 4.786716396 | N129: 4.786716396
B130: 4 | C130: 17 | D130: 1 | E130: 4.300000191 | G130: 15.32488578 | H130: 4.675114224 | I130: 4.675114224 | L130: 15.18259955 | M130: 4.817400446 | N130: 4.817400446
B131: 4 | C131: 18 | D131: 1 | E131: 3.700000048 | G131: 15.14621895 | H131: 4.853781054 | I131: 4.853781054 | L131: 14.99849503 | M131: 5.001504968 | N131: 5.001504968
B132: 4 | C132: 19 | D132: 1 | E132: -1 | G132: 13.74666243 | H132: 6.253337573 | I132: 6.253337573 | L132: 13.55634327 | M132: 6.443656727 | N132: 6.443656727
B133: 4 | C133: 20 | D133: 1 | E133: 6.400000095 | G133: 15.9502195 | H133: 4.049780495 | I133: 4.049780495 | L133: 15.8269652 | M133: 4.173034803 | N133: 4.173034803
B134: 4 | C134: 21 | D134: 1 | E134: 5.199999809 | G134: 15.59288584 | H134: 4.407114156 | I134: 4.407114156 | L134: 15.45875615 | M134: 4.541243847 | N134: 4.541243847
B135: 4 | C135: 22 | D135: 1 | E135: 2.599999905 | G135: 14.81866313 | H135: 5.181336875 | I135: 5.181336875 | L135: 14.66097011 | M135: 5.339029888 | N135: 5.339029888
B136: 4 | C136: 23 | D136: 1 | E136: 6 | G136: 15.83110828 | H136: 4.168891715 | I136: 4.168891715 | L136: 15.70422885 | M136: 4.295771151 | N136: 4.295771151
B137: 4 | C137: 24 | D137: 1 | E137: 5 | G137: 15.5333303 | H137: 4.466669695 | I137: 4.466669695 | L137: 15.39738805 | M137: 4.602611948 | N137: 4.602611948
B138: 4 | C138: 25 | D138: 1 | E138: 6 | G138: 15.83110828 | H138: 4.168891715 | I138: 4.168891715 | L138: 15.70422885 | M138: 4.295771151 | N138: 4.295771151
B139: 4 | C139: 26 | D139: 1 | E139: 6.400000095 | G139: 15.9502195 | H139: 4.049780495 | I139: 4.049780495 | L139: 15.8269652 | M139: 4.173034803 | N139: 4.173034803
B140: 4 | C140: 27 | D140: 1 | E140: 2.099999905 | G140: 14.66977414 | H140: 5.330225864 | I140: 5.330225864 | L140: 14.50754971 | M140: 5.492450287 | N140: 5.492450287
B141: 4 | C141: 28 | D141: 1 | E141: 7.699999809 | G141: 16.33733079 | H141: 3.662669207 | I141: 3.662669207 | L141: 16.22585814 | M141: 3.774141856 | N141: 3.774141856
B142: 4 | C142: 29 | D142: 1 | E142: 5.699999809 | G142: 15.74177483 | H142: 4.258225166 | I142: 4.258225166 | L142: 15.61217655 | M142: 4.387823449 | N142: 4.387823449
B143: 4 | C143: 30 | D143: 1 | E143: 7.699999809 | G143: 16.33733079 | H143: 3.662669207 | I143: 3.662669207 | L143: 16.22585814 | M143: 3.774141856 | N143: 3.774141856
B144: 5 | C144: 1 | D144: 1 | E144: 1.799999952 | G144: 14.58044076 | H144: 5.419559244 | I144: 5.419559244 | L144: 14.41549749 | M144: 5.584502511 | N144: 5.584502511
B145: 5 | C145: 2 | D145: 1 | E145: 4.699999809 | G145: 15.44399685 | H145: 4.556003146 | I145: 4.556003146 | L145: 15.30533575 | M145: 4.694664245 | N145: 4.694664245
B146: 5 | C146: 3 | D146: 1 | E146: 7.400000095 | G146: 16.24799748 | H146: 3.752002516 | I146: 3.752002516 | L146: 16.13380599 | M146: 3.866194007 | N146: 3.866194007
B147: 5 | C147: 4 | D147: 1 | E147: 9.600000381 | G147: 16.90310912 | H147: 3.096890875 | I147: 3.096890875 | L147: 16.80885583 | M147: 3.191144167 | N147: 3.191144167
B148: 5 | C148: 5 | D148: 1 | E148: 9.800000191 | G148: 16.96266466 | H148: 3.037335336 | I148: 3.037335336 | L148: 16.87022393 | M148: 3.129776066 | N148: 3.129776066
B149: 5 | C149: 6 | D149: 1 | E149: 9 | G149: 16.72444222 | H149: 3.275557776 | I149: 3.275557776 | L149: 16.62475124 | M149: 3.375248762 | N149: 3.375248762
B150: 5 | C150: 7 | D150: 1 | E150: 10.89999962 | G150: 17.29022027 | H150: 2.709779728 | I150: 2.709779728 | L150: 17.20774864 | M150: 2.792251365 | N150: 2.792251365
B151: 5 | C151: 8 | D151: 1 | E151: 9.399999619 | G151: 16.8435533 | H151: 3.156446698 | I151: 3.156446698 | L151: 16.74748744 | M151: 3.25251256 | N151: 3.25251256
B152: 5 | C152: 9 | D152: 1 | E152: 5.900000095 | G152: 15.80133051 | H152: 4.198669485 | I152: 4.198669485 | L152: 15.6735448 | M152: 4.326455202 | N152: 4.326455202
B153: 5 | C153: 10 | D153: 1 | E153: 3.599999905 | G153: =E153+($C$6-E153)*$C$8/100 -> 15.11644111 | H153: =IF($C$4-G153>0,$C$4-G153,0) -> 4.883558895 | I153: =H153 -> 4.883558895 | L153: =E153+($C$15-E153)*$C$17/100 -> 14.96781091 | M153: =IF($C$13-L153>0,$C$13-L153,0) -> 5.032189092 | N153: =M153 -> 5.032189092
B154: 5 | C154: 11 | D154: 1 | E154: 12 | G154: 17.61777616 | H154: 2.382223837 | I154: 2.382223837 | L154: 17.54527363 | M154: 2.454726372 | N154: 2.454726372
B155: 5 | C155: 12 | D155: 1 | E155: 8 | G155: 16.42666424 | H155: 3.573335756 | I155: 3.573335756 | L155: 16.31791044 | M155: 3.682089558 | N155: 3.682089558
B156: 5 | C156: 13 | D156: 1 | E156: 10.69999981 | G156: 17.23066473 | H156: 2.769335268 | I156: 2.769335268 | L156: 17.14638053 | M156: 2.853619466 | N156: 2.853619466
B157: 5 | C157: 14 | D157: 1 | E157: 5 | G157: 15.5333303 | H157: 4.466669695 | I157: 4.466669695 | L157: 15.39738805 | M157: 4.602611948 | N157: 4.602611948
B158: 5 | C158: 15 | D158: 1 | E158: 6.300000191 | G158: 15.92044174 | H158: 4.079558265 | I158: 4.079558265 | L158: 15.79628115 | M158: 4.203718853 | N158: 4.203718853
B159: 5 | C159: 16 | D159: 1 | E159: 4.599999905 | G159: 15.41421908 | H159: 4.585780915 | I159: 4.585780915 | L159: 15.2746517 | M159: 4.725348295 | N159: 4.725348295
B160: 5 | C160: 17 | D160: 1 | E160: 5.800000191 | G160: 15.77155275 | H160: 4.228447254 | I160: 4.228447254 | L160: 15.64286075 | M160: 4.357139252 | N160: 4.357139252
B161: 5 | C161: 18 | D161: 1 | E161: 5.400000095 | G161: 15.65244153 | H161: 4.347558475 | I161: 4.347558475 | L161: 15.5201244 | M161: 4.4798756 | N161: 4.4798756
B162: 5 | C162: 19 | D162: 1 | E162: 10.5 | G162: 17.17110919 | H162: 2.828890807 | I162: 2.828890807 | L162: 17.08501243 | M162: 2.914987567 | N162: 2.914987567
B163: 5 | C163: 20 | D163: 1 | E163: 5.699999809 | G163: 15.74177483 | H163: 4.258225166 | I163: 4.258225166 | L163: 15.61217655 | M163: 4.387823449 | N163: 4.387823449
B164: 5 | C164: 21 | D164: 1 | E164: 9.399999619 | G164: 16.8435533 | H164: 3.156446698 | I164: 3.156446698 | L164: 16.74748744 | M164: 3.25251256 | N164: 3.25251256
B165: 5 | C165: 22 | D165: 1 | E165: 10.30000019 | G165: 17.11155365 | H165: 2.888446346 | I165: 2.888446346 | L165: 17.02364433 | M165: 2.976355668 | N165: 2.976355668
B166: 5 | C166: 23 | D166: 1 | E166: 4 | G166: 15.23555233 | H166: 4.764447675 | I166: 4.764447675 | L166: 15.09054726 | M166: 4.909452744 | N166: 4.909452744
B167: 5 | C167: 24 | D167: 1 | E167: 8.899999619 | G167: 16.69466431 | H167: 3.305335688 | I167: 3.305335688 | L167: 16.59406704 | M167: 3.405932958 | N167: 3.405932958
B168: 5 | C168: 25 | D168: 1 | E168: 7.699999809 | G168: 16.33733079 | H168: 3.662669207 | I168: 3.662669207 | L168: 16.22585814 | M168: 3.774141856 | N168: 3.774141856
B169: 5 | C169: 26 | D169: 1 | E169: 11.39999962 | G169: 17.43910926 | H169: 2.560890738 | I169: 2.560890738 | L169: 17.36116903 | M169: 2.638830967 | N169: 2.638830967
B170: 5 | C170: 27 | D170: 1 | E170: 8.699999809 | G170: 16.63510877 | H170: 3.364891227 | I170: 3.364891227 | L170: 16.53269894 | M170: 3.467301059 | N170: 3.467301059
B171: 5 | C171: 28 | D171: 1 | E171: 12.30000019 | G171: 17.70710961 | H171: 2.292890387 | I171: 2.292890387 | L171: 17.63732593 | M171: 2.362674075 | N171: 2.362674075
B172: 5 | C172: 29 | D172: 1 | E172: 3 | G172: 14.93777435 | H172: 5.062225654 | I172: 5.062225654 | L172: 14.78370646 | M172: 5.216293541 | N172: 5.216293541
B173: 5 | C173: 30 | D173: 1 | E173: 4 | G173: 15.23555233 | H173: 4.764447675 | I173: 4.764447675 | L173: 15.09054726 | M173: 4.909452744 | N173: 4.909452744
B174: 5 | C174: 31 | D174: 1 | E174: 3.700000048 | G174: 15.14621895 | H174: 4.853781054 | I174: 4.853781054 | L174: 14.99849503 | M174: 5.001504968 | N174: 5.001504968
B175: 6 | C175: 1 | D175: 1 | E175: 6.599999905 | G175: 16.00977504 | H175: 3.990224956 | I175: 3.990224956 | L175: 15.8883333 | M175: 4.111666702 | N175: 4.111666702
B176: 6 | C176: 2 | D176: 1 | E176: 8.199999809 | G176: 16.48621978 | H176: 3.513780217 | I176: 3.513780217 | L176: 16.37927854 | M176: 3.620721457 | N176: 3.620721457
B177: 6 | C177: 3 | D177: 1 | E177: 11 | G177: 17.31999818 | H177: 2.680001817 | I177: 2.680001817 | L177: 17.23843283 | M177: 2.761567169 | N177: 2.761567169
B178: 6 | C178: 4 | D178: 1 | E178: 12.10000038 | G178: 17.64755407 | H178: 2.352445926 | I178: 2.352445926 | L178: 17.57595782 | M178: 2.424042176 | N178: 2.424042176
B179: 6 | C179: 5 | D179: 1 | E179: 12 | G179: 17.61777616 | H179: 2.382223837 | I179: 2.382223837 | L179: 17.54527363 | M179: 2.454726372 | N179: 2.454726372
B180: 6 | C180: 6 | D180: 1 | E180: 16.20000076 | G180: 18.8684439 | H180: 1.131556096 | I180: 1.131556096 | L180: 18.83400521 | M180: 1.165994794 | N180: 1.165994794
B181: 6 | C181: 7 | D181: 1 | E181: 14.89999962 | G181: 18.48133219 | H181: 1.518667809 | I181: 1.518667809 | L181: 18.43511182 | M181: 1.564888179 | N181: 1.564888179
B182: 6 | C182: 8 | D182: 1 | E182: 13.69999981 | G182: 18.12399867 | H182: 1.876001329 | I182: 1.876001329 | L182: 18.06690292 | M182: 1.933097076 | N182: 1.933097076
B183: 6 | C183: 9 | D183: 1 | E183: 16.79999924 | G183: 19.04711024 | H183: 0.9528897613 | I183: 0.9528897613 | L183: 19.01810922 | M183: 0.981890782 | N183: 0.981890782
B184: 6 | C184: 10 | D184: 1 | E184: 16.5 | G184: 18.95777707 | H184: 1.042222929 | I184: 1.042222929 | L184: 18.92605721 | M184: 1.073942788 | N184: 1.073942788
B185: 6 | C185: 11 | D185: 1 | E185: 16.5 | G185: 18.95777707 | H185: 1.042222929 | I185: 1.042222929 | L185: 18.92605721 | M185: 1.073942788 | N185: 1.073942788
B186: 6 | C186: 12 | D186: 1 | E186: 14.80000019 | G186: 18.45155456 | H186: 1.548445438 | I186: 1.548445438 | L186: 18.40442792 | M186: 1.595572084 | N186: 1.595572084
B187: 6 | C187: 13 | D187: 1 | E187: 9.600000381 | G187: 16.90310912 | H187: 3.096890875 | I187: 3.096890875 | L187: 16.80885583 | M187: 3.191144167 | N187: 3.191144167
B188: 6 | C188: 14 | D188: 1 | E188: 12.60000038 | G188: 17.79644306 | H188: 2.203556936 | I188: 2.203556936 | L188: 17.72937822 | M188: 2.270621778 | N188: 2.270621778
B189: 6 | C189: 15 | D189: 1 | E189: 16.39999962 | G189: 18.92799916 | H189: 1.07200084 | I189: 1.07200084 | L189: 18.89537302 | M189: 1.104626984 | N189: 1.104626984
B190: 6 | C190: 16 | D190: 1 | E190: 13.5 | G190: 18.06444313 | H190: 1.935556868 | I190: 1.935556868 | L190: 18.00553482 | M190: 1.994465177 | N190: 1.994465177
B191: 6 | C191: 17 | D191: 1 | E191: 11 | G191: 17.31999818 | H191: 2.680001817 | I191: 2.680001817 | L191: 17.23843283 | M191: 2.761567169 | N191: 2.761567169
B192: 6 | C192: 18 | D192: 1 | E192: 13.39999962 | G192: 18.03466522 | H192: 1.965334779 | I192: 1.965334779 | L192: 17.97485063 | M192: 2.025149374 | N192: 2.025149374
B193: 6 | C193: 19 | D193: 1 | E193: 13.80000019 | G193: 18.15377658 | H193: 1.846223417 | I193: 1.846223417 | L193: 18.09758712 | M193: 1.90241288 | N193: 1.90241288
B194: 6 | C194: 20 | D194: 1 | E194: 14 | G194: 18.21333212 | H194: 1.786667878 | I194: 1.786667878 | L194: 18.15895522 | M194: 1.841044779 | N194: 1.841044779
B195: 6 | C195: 21 | D195: 1 | E195: 10 | G195: 17.0222202 | H195: 2.977779797 | I195: 2.977779797 | L195: 16.93159203 | M195: 3.068407965 | N195: 3.068407965
B196: 6 | C196: 22 | D196: 1 | E196: 10.89999962 | G196: 17.29022027 | H196: 2.709779728 | I196: 2.709779728 | L196: 17.20774864 | M196: 2.792251365 | N196: 2.792251365
B197: 6 | C197: 23 | D197: 1 | E197: 11 | G197: 17.31999818 | H197: 2.680001817 | I197: 2.680001817 | L197: 17.23843283 | M197: 2.761567169 | N197: 2.761567169
B198: 6 | C198: 24 | D198: 1 | E198: 8.199999809 | G198: 16.48621978 | H198: 3.513780217 | I198: 3.513780217 | L198: 16.37927854 | M198: 3.620721457 | N198: 3.620721457
B199: 6 | C199: 25 | D199: 1 | E199: 12 | G199: 17.61777616 | H199: 2.382223837 | I199: 2.382223837 | L199: 17.54527363 | M199: 2.454726372 | N199: 2.454726372
B200: 6 | C200: 26 | D200: 1 | E200: 9.899999619 | G200: 16.99244229 | H200: 3.007557708 | I200: 3.007557708 | L200: 16.90090784 | M200: 3.099092162 | N200: 3.099092162
B201: 6 | C201: 27 | D201: 1 | E201: 9.699999809 | G201: 16.93288675 | H201: 3.067113248 | I201: 3.067113248 | L201: 16.83953974 | M201: 3.160460263 | N201: 3.160460263
B202: 6 | C202: 28 | D202: 1 | E202: 8.100000381 | G202: 16.45644216 | H202: 3.543557845 | I202: 3.543557845 | L202: 16.34859464 | M202: 3.651405361 | N202: 3.651405361
B203: 6 | C203: 29 | D203: 1 | E203: 10 | G203: 17.0222202 | H203: 2.977779797 | I203: 2.977779797 | L203: 16.93159203 | M203: 3.068407965 | N203: 3.068407965
B204: 6 | C204: 30 | D204: 1 | E204: 11 | G204: 17.31999818 | H204: 2.680001817 | I204: 2.680001817 | L204: 17.23843283 | M204: 2.761567169 | N204: 2.761567169
B205: 7 | C205: 1 | D205: 1 | E205: 10.30000019 | G205: 17.11155365 | H205: 2.888446346 | I205: 2.888446346 | L205: 17.02364433 | M205: 2.976355668 | N205: 2.976355668
B206: 7 | C206: 2 | D206: 1 | E206: 11.30000019 | G206: 17.40933163 | H206: 2.590668367 | I206: 2.590668367 | L206: 17.33048513 | M206: 2.669514871 | N206: 2.669514871
B207: 7 | C207: 3 | D207: 1 | E207: 12 | G207: 17.61777616 | H207: 2.382223837 | I207: 2.382223837 | L207: 17.54527363 | M207: 2.454726372 | N207: 2.454726372
B208: 7 | C208: 4 | D208: 1 | E208: 14 | G208: 18.21333212 | H208: 1.786667878 | I208: 1.786667878 | L208: 18.15895522 | M208: 1.841044779 | N208: 1.841044779
B209: 7 | C209: 5 | D209: 1 | E209: 14.60000038 | G209: 18.39199902 | H209: 1.608000977 | I209: 1.608000977 | L209: 18.34305982 | M209: 1.656940185 | N209: 1.656940185
B210: 7 | C210: 6 | D210: 1 | E210: 16 | G210: 18.80888808 | H210: 1.191111919 | I210: 1.191111919 | L210: 18.77263681 | M210: 1.227363186 | N210: 1.227363186
B211: 7 | C211: 7 | D211: 1 | E211: 14.5 | G211: 18.36222111 | H211: 1.637778888 | I211: 1.637778888 | L211: 18.31237562 | M211: 1.687624381 | N211: 1.687624381
B212: 7 | C212: 8 | D212: 1 | E212: 15.60000038 | G212: 18.689777 | H212: 1.310222997 | I212: 1.310222997 | L212: 18.64990061 | M212: 1.350099388 | N212: 1.350099388
... 4288 more rows

Sheet Varme_2 (hidden)
B2: Før
B4: Indblæs | C4: =Varme_og_Køl_2!D13 -> 20 | D4: ° C | E4: Luft ind | F4: =Varme_og_Køl_2!D7 -> 35000 | G4: m3/h | H4: Varmeforbrug | I4: =AC55*(((1.21*1.005)/3.6)/1000)*F4*(N8/7) -> 276348.837 | J4: kWh | M4: Start | N4: =Varme_og_Køl_2!D25 -> 0
B6: Udsug | C6: =Varme_og_Køl_2!D15 -> 20 | D6: ° C | E6: Luft ud | F6: =Varme_og_Køl_2!D9 -> 35000 | G6: m3/h | H6: Køleforbrug | I6: =Køl!AP43 -> 2130.216682 | J6: kWh | M6: Stop | N6: =Varme_og_Køl_2!D27 -> 24
B8: Virk | C8: =Varme_og_Køl_2!D21 -> 78.39813094 | D8: % | M8: Antal dage | N8: =Varme_og_Køl_2!D29 -> 7
B11: Efter
B13: Indblæs | C13: =Varme_og_Køl_1!J13 -> 20 | D13: ° C | E13: Luft ind | F13: =Varme_og_Køl_1!J7 -> 1000 | G13: m3/h | H13: Varmeforbrug | I13: =AC101*(((1.21*1.005)/3.6)/1000)*F13*(N17/7) -> 11215.31224 | J13: kWh | M13: Start | N13: =Varme_og_Køl_1!J25 -> 0
B15: Udsug | C15: =Varme_og_Køl_1!J15 -> 20 | D15: ° C | E15: Luft ud | F15: =Varme_og_Køl_1!J9 -> 1000 | G15: m3/h | H15: Køleforbrug | I15: =Køl!AP52 -> 0 | J15: kWh | M15: Stop | N15: =Varme_og_Køl_1!J27 -> 24
B17: Virk | C17: =Varme_og_Køl_1!J21 -> 69.31592035 | D17: % | M17: Antal dage | N17: =Varme_og_Køl_1!J29 -> 7
G20: Før | L20: Efter | Q20: Opvarmning | R20: før
B22: Maaned | C22: Dag | D22: Time | E22: Lufttemp | G22: Temp | H22: Temp. Stigning | I22: Gradtimeforbrug | J22: Sum | L22: Temp | M22: Temp. Stigning | N22: Gradtimeforbrug | O22: Sum | Q22: X | R22: X^2 | S22: X^3 | T22: X^4 | U22: X^5 | V22: X^6 | W22: Gradtimer | Y22: Beregnet
B23: {1..12} | C23: {1..31} | D23: {1..24} | E23: [grd. C] | G23: efter VGV | H23: varmeflade | I23: med VGV | J23: timebasis | L23: efter VGV | M23: varmeflade | N23: med VGV | O23: timebasis | Q23: 1 | R23: =Q23^2 -> 1 | S23: =Q23^3 -> 1 | T23: =Q23^4 -> 1 | U23: =Q23^5 -> 1 | V23: =Q23^6 -> 1 | W23: =$J$388 -> 1109.061561 | Y23: =($Q$51*Q23^6)+($R$51*Q23^5)+($S$51*Q23^4)+($T$51*Q23^3)+($U$51*Q23^2)+($V$51*Q23)+$W$51 -> 1108.444047
B24: 1 | C24: 1 | D24: 1 | E24: 2.799999952 | G24: =E24+($C$6-E24)*$C$8/100 -> 16.28447851 | H24: =IF($C$4-G24>0,$C$4-G24,0) -> 3.715521489 | I24: =H24 -> 3.715521489 | L24: =E24+($C$15-E24)*$C$17/100 -> 14.72233829 | M24: =IF($C$13-L24>0,$C$13-L24,0) -> 5.277661715 | N24: =M24 -> 5.277661715 | Q24: 2 | R24: =Q24^2 -> 4 | S24: =Q24^3 -> 8 | T24: =Q24^4 -> 16 | U24: =Q24^5 -> 32 | V24: =Q24^6 -> 64 | W24: =$J$753 -> 1123.880442 | Y24: =($Q$51*Q24^6)+($R$51*Q24^5)+($S$51*Q24^4)+($T$51*Q24^3)+($U$51*Q24^2)+($V$51*Q24)+$W$51 -> 1122.175428
B25: 1 | C25: 2 | D25: 1 | E25: 4.599999905 | G25: =E25+($C$6-E25)*$C$8/100 -> 16.67331214 | H25: =IF($C$4-G25>0,$C$4-G25,0) -> 3.326687856 | I25: =H25 -> 3.326687856 | L25: =E25+($C$15-E25)*$C$17/100 -> 15.2746517 | M25: =IF($C$13-L25>0,$C$13-L25,0) -> 4.725348295 | N25: =M25 -> 4.725348295 | Q25: 3 | R25: 9 | S25: 27 | T25: 81 | U25: 243 | V25: 729 | W25: =$J$1118 -> 1133.968514 | Y25: 1137.898755
B26: 1 | C26: 3 | D26: 1 | E26: 1.600000024 | G26: 16.0252561 | H26: 3.974743903 | I26: 3.974743903 | L26: 14.35412935 | M26: 5.645870648 | N26: 5.645870648 | Q26: 4 | R26: 16 | S26: 64 | T26: 256 | U26: 1024 | V26: 4096 | W26: =$J$1483 -> 1141.680382 | Y26: 1144.163008
B27: 1 | C27: 4 | D27: 1 | E27: 1.700000048 | G27: 16.04685797 | H27: 3.953142028 | I27: 3.953142028 | L27: 14.38481344 | M27: 5.615186561 | N27: 5.615186561 | Q27: 5 | R27: 25 | S27: 125 | T27: 625 | U27: 3125 | V27: 15625 | W27: =$J$1848 -> 1133.666088 | Y27: 1135.241479
B28: 1 | C28: 5 | D28: 1 | E28: -0.400000006 | G28: 15.59321871 | H28: 4.40678129 | I28: 4.40678129 | L28: 13.74044775 | M28: 6.25955225 | N28: 6.25955225 | Q28: 6 | R28: 36 | S28: 216 | T28: 1296 | U28: 7776 | V28: 46656 | W28: =$J$2213 -> 1117.119055 | Y28: 1109.801843
B29: 1 | C29: 6 | D29: 1 | E29: -8.199999809 | G29: 13.90827297 | H29: 6.091727035 | I29: 6.091727035 | L29: 11.3470896 | M29: 8.652910403 | N29: 8.652910403 | Q29: 7 | R29: 49 | S29: 343 | T29: 2401 | U29: 16807 | V29: 117649 | W29: =$J$2578 -> 1074.606578 | Y29: 1069.710078
B30: 1 | C30: 7 | D30: 1 | E30: -13.10000038 | G30: 12.84978126 | H30: 7.150218742 | I30: 7.150218742 | L30: 9.843569519 | M30: 10.15643048 | N30: 10.15643048 | Q30: 8 | R30: 64 | S30: 512 | T30: 4096 | U30: 32768 | V30: 262144 | W30: =$J$2943 -> 1020.40749 | Y30: 1018.968233
B31: 1 | C31: 8 | D31: 1 | E31: -19.60000038 | G31: 11.44565977 | H31: 8.554340232 | I31: 8.554340232 | L31: 7.849104342 | M31: 12.15089566 | N31: 12.15089566 | Q31: 9 | R31: 81 | S31: 729 | T31: 6561 | U31: 59049 | V31: 531441 | W31: =$J$3308 -> 958.8637638 | Y31: 962.7860443
B32: 1 | C32: 9 | D32: 1 | E32: 0.8000000119 | G32: 15.85244114 | H32: 4.147558858 | I32: 4.147558858 | L32: 14.10865671 | M32: 5.891343289 | N32: 5.891343289 | Q32: 10 | R32: 100 | S32: 1000 | T32: 10000 | U32: 100000 | V32: 1000000 | W32: =$J$3673 -> 899.9338657 | Y32: 906.7864046
B33: 1 | C33: 10 | D33: 1 | E33: 2.400000095 | G33: 16.19807107 | H33: 3.801928935 | I33: 3.801928935 | L33: 14.59960201 | M33: 5.400397989 | N33: 5.400397989 | Q33: 11 | R33: 121 | S33: 1331 | T33: 14641 | U33: 161051 | V33: 1771561 | W33: =$J$4038 -> 851.6320887 | Y33: 856.3446792
B34: 1 | C34: 11 | D34: 1 | E34: 1.600000024 | G34: 16.0252561 | H34: 3.974743903 | I34: 3.974743903 | L34: 14.35412935 | M34: 5.645870648 | N34: 5.645870648 | Q34: 12 | R34: 144 | S34: 1728 | T34: 20736 | U34: 248832 | V34: 2985984 | W34: =$J$4403 -> 815.3193443 | Y34: 816.0618726
B35: 1 | C35: 12 | D35: 1 | E35: 1.200000048 | G35: 15.93884863 | H35: 4.061151374 | I35: 4.061151374 | L35: 14.23139304 | M35: 5.768606959 | N35: 5.768606959 | Q35: 13 | R35: 169 | S35: 2197 | T35: 28561 | U35: 371293 | V35: 4826809 | W35: =$J$4768 -> 794.5167452 | Y35: 789.3716443
B36: 1 | C36: 13 | D36: 1 | E36: -0.400000006 | G36: 15.59321871 | H36: 4.40678129 | I36: 4.40678129 | L36: 13.74044775 | M36: 6.25955225 | N36: 6.25955225 | Q36: 14 | R36: 196 | S36: 2744 | T36: 38416 | U36: 537824 | V36: 7529536 | W36: =$J$5134 -> 783.975032 | Y36: 778.2811748
B37: 1 | C37: 14 | D37: 1 | E37: -5 | G37: 14.59953273 | H37: 5.400467266 | I37: 5.400467266 | L37: 12.32898009 | M37: 7.671019913 | N37: 7.671019913 | Q37: 15 | R37: 225 | S37: 3375 | T37: 50625 | U37: 759375 | V37: 11390625 | W37: =$J$5498 -> 785.3791542 | Y37: 783.24588
B38: 1 | C38: 15 | D38: 1 | E38: 2.700000048 | G38: 16.26287666 | H38: 3.737123338 | I38: 3.737123338 | L38: 14.69165424 | M38: 5.308345765 | N38: 5.308345765 | Q38: 16 | R38: 256 | S38: 4096 | T38: 65536 | U38: 1048576 | V38: 16777216 | W38: =$J$5863 -> 802.1206015 | Y38: 803.1779763
B39: 1 | C39: 16 | D39: 1 | E39: 0.200000003 | G39: 15.72282993 | H39: 4.277170074 | I39: 4.277170074 | L39: 13.92455223 | M39: 6.07544777 | N39: 6.07544777 | Q39: 17 | R39: 289 | S39: 4913 | T39: 83521 | U39: 1419857 | V39: 24137569 | W39: =$J$6228 -> 833.8105432 | Y39: 835.5888945
B40: 1 | C40: 17 | D40: 1 | E40: -1.299999952 | G40: 15.3988019 | H40: 4.6011981 | I40: 4.6011981 | L40: 13.46429105 | M40: 6.535708951 | N40: 6.535708951 | Q40: 18 | R40: 324 | S40: 5832 | T40: 104976 | U40: 1889568 | V40: 34012224 | W40: =$J$6593 -> 876.0854034 | Y40: 876.8655436
B41: 1 | C41: 18 | D41: 1 | E41: -3.700000048 | G41: 14.88035702 | H41: 5.119642979 | I41: 5.119642979 | L41: 12.72787311 | M41: 7.272126892 | N41: 7.272126892 | Q41: 19 | R41: 361 | S41: 6859 | T41: 130321 | U41: 2476099 | V41: 47045881 | W41: =$J$6959 -> 920.9524838 | Y41: 922.6804236
B42: 1 | C42: 19 | D42: 1 | E42: -5.800000191 | G42: 14.42671774 | H42: 5.57328226 | I42: 5.57328226 | L42: 12.08350739 | M42: 7.916492608 | N42: 7.916492608 | Q42: 20 | R42: 400 | S42: 8000 | T42: 160000 | U42: 3200000 | V42: 64000000 | W42: =$J$7323 -> 966.1003894 | Y42: 968.5355886
B43: 1 | C43: 20 | D43: 1 | E43: -2.099999905 | G43: 15.22598696 | H43: 4.774013043 | I43: 4.774013043 | L43: 13.21881843 | M43: 6.781181574 | N43: 6.781181574 | Q43: 21 | R43: 441 | S43: 9261 | T43: 194481 | U43: 4084101 | V43: 85766121 | W43: =$J$7688 -> 1011.421111 | Y43: 1010.440459
B44: 1 | C44: 21 | D44: 1 | E44: -9.699999809 | G44: 13.58424493 | H44: 6.415755071 | I44: 6.415755071 | L44: 10.8868284 | M44: 9.113171597 | N44: 9.113171597 | Q44: 22 | R44: 484 | S44: 10648 | T44: 234256 | U44: 5153632 | V44: 113379904 | W44: =$J$8053 -> 1047.517834 | Y44: 1045.723483
B45: 1 | C45: 22 | D45: 1 | E45: -5.099999905 | G45: 14.57793089 | H45: 5.422069115 | I45: 5.422069115 | L45: 12.29829604 | M45: 7.701703963 | N45: 7.701703963 | Q45: 23 | R45: 529 | S45: 12167 | T45: 279841 | U45: 6436343 | V45: 148035889 | W45: =$J$8418 -> 1076.053904 | Y45: 1073.977648
B46: 1 | C46: 23 | D46: 1 | E46: 1.600000024 | G46: 16.0252561 | H46: 3.974743903 | I46: 3.974743903 | L46: 14.35412935 | M46: 5.645870648 | N46: 5.645870648 | Q46: 24 | R46: 576 | S46: 13824 | T46: 331776 | U46: 7962624 | V46: 191102976 | W46: =$J$8783 -> 1096.338059 | Y46: 1098.139843
B47: 1 | C47: 24 | D47: 1 | E47: 3 | G47: 16.32768226 | H47: 3.672317741 | I47: 3.672317741 | L47: 14.78370646 | M47: 5.216293541 | N47: 5.216293541
B48: 1 | C48: 25 | D48: 1 | E48: 2.700000048 | G48: 16.26287666 | H48: 3.737123338 | I48: 3.737123338 | L48: 14.69165424 | M48: 5.308345765 | N48: 5.308345765 | W48: =SUM(W23:W46) -> 23374.41043 | Y48: =SUM(Y23:Y46) -> 23374.41043
B49: 1 | C49: 26 | D49: 1 | E49: 0.6000000238 | G49: 15.80923741 | H49: 4.190762593 | I49: 4.190762593 | L49: 14.04728856 | M49: 5.952711445 | N49: 5.952711445
B50: 1 | C50: 27 | D50: 1 | E50: -3.799999952 | G50: 14.85875517 | H50: 5.141244827 | I50: 5.141244827 | L50: 12.69718906 | M50: 7.302810942 | N50: 7.302810942
B51: 1 | C51: 28 | D51: 1 | E51: 3 | G51: 16.32768226 | H51: 3.672317741 | I51: 3.672317741 | L51: 14.78370646 | M51: 5.216293541 | N51: 5.216293541 | Q51: =LINEST(W23:W46,Q23:V46,TRUE,TRUE) -> 0.0001859021258 | R51: -0.01498670066 | S51: 0.4372872993 | T51: -5.372306814 | U51: 23.5904784 | V51: -25.54034026 | W51: 1115.343729 | Y51: =IF($N$4=0,0,IF($N$4=1,$Y$23,IF($N$4=2,SUM($Y$23:$Y$24),IF($N$4=3,SUM($Y$23:$Y$25),IF($N$4=4,SUM($Y$23:$Y$26),IF($N$4=5,SUM($Y$23:$Y$27),IF($N$4=6,SUM($Y$23:$Y$28)))))))) -> 0 | Z51: =IF($N$4=7,SUM($Y$23:$Y$29),IF($N$4=8,SUM($Y$23:$Y$30),IF($N$4=9,SUM($Y$23:$Y$31),IF($N$4=10,SUM($Y$23:$Y$32),IF($N$4=11,SUM($Y$23:$Y$33),IF($N$4=12,SUM($Y$23:$Y$34),IF($N$4=13,SUM($Y$23:$Y$35)))))))) -> FALSE | AA51: =IF($N$4=14,SUM($Y$23:$Y$36),IF($N$4=15,SUM($Y$23:$Y$37),IF($N$4=16,SUM($Y$23:$Y$38),IF($N$4=17,SUM($Y$23:$Y$39),IF($N$4=18,SUM($Y$23:$Y$40),IF($N$4=19,SUM($Y$23:$Y$41),IF($N$4=20,SUM($Y$23:$Y$42)))))))) -> FALSE | AB51: =IF($N$4=21,SUM($Y$23:$Y$43),IF($N$4=22,SUM($Y$23:$Y$44),IF($N$4=23,SUM($Y$23:$Y$45),IF($N$4=24,SUM($Y$23:$Y$46))))) -> FALSE | AC51: =SUM(Y51:AB51) -> 0
B52: 1 | C52: 29 | D52: 1 | E52: 3.099999905 | G52: 16.34928411 | H52: 3.650715892 | I52: 3.650715892 | L52: 14.81439051 | M52: 5.18560949 | N52: 5.18560949 | Q52: 1.568631481e-05 | R52: 0.00118002236 | S52: 0.03422475667 | T52: 0.4798056051 | U52: 3.326169419 | V52: 10.31411341 | W52: 10.44401532
B53: 1 | C53: 30 | D53: 1 | E53: 4.800000191 | G53: 16.71651594 | H53: 3.283484057 | I53: 3.283484057 | L53: 15.33601995 | M53: 4.663980048 | N53: 4.663980048 | Q53: 0.9992907606 | R53: 4.066053223 | Y53: =IF($N$6=0,0,IF($N$6=1,$Y$23,IF($N$6=2,SUM($Y$23:$Y$24),IF($N$6=3,SUM($Y$23:$Y$25),IF($N$6=4,SUM($Y$23:$Y$26),IF($N$6=5,SUM($Y$23:$Y$27),IF($N$6=6,SUM($Y$23:$Y$28)))))))) -> FALSE | Z53: =IF($N$6=7,SUM($Y$23:$Y$29),IF($N$6=8,SUM($Y$23:$Y$30),IF($N$6=9,SUM($Y$23:$Y$31),IF($N$6=10,SUM($Y$23:$Y$32),IF($N$6=11,SUM($Y$23:$Y$33),IF($N$6=12,SUM($Y$23:$Y$34),IF($N$6=13,SUM($Y$23:$Y$35)))))))) -> FALSE | AA53: =IF($N$6=14,SUM($Y$23:$Y$36),IF($N$6=15,SUM($Y$23:$Y$37),IF($N$6=16,SUM($Y$23:$Y$38),IF($N$6=17,SUM($Y$23:$Y$39),IF($N$6=18,SUM($Y$23:$Y$40),IF($N$6=19,SUM($Y$23:$Y$41),IF($N$6=20,SUM($Y$23:$Y$42)))))))) -> FALSE | AB53: =IF($N$6=21,SUM($Y$23:$Y$43),IF($N$6=22,SUM($Y$23:$Y$44),IF($N$6=23,SUM($Y$23:$Y$45),IF($N$6=24,SUM($Y$23:$Y$46))))) -> 23374.41043 | AC53: =SUM(Y53:AB53) -> 23374.41043
B54: 1 | C54: 31 | D54: 1 | E54: 6.699999809 | G54: 17.12695137 | H54: 2.873048627 | I54: 2.873048627 | L54: 15.91901735 | M54: 4.080982652 | N54: 4.080982652 | Q54: 3992.056333 | R54: 17
B55: 2 | C55: 1 | D55: 1 | E55: -3.700000048 | G55: 14.88035702 | H55: 5.119642979 | I55: 5.119642979 | L55: 12.72787311 | M55: 7.272126892 | N55: 7.272126892 | Q55: 395998.9458 | R55: 281.0574099 | AC55: =AC53-AC51 -> 23374.41043
B56: 2 | C56: 2 | D56: 1 | E56: -2.400000095 | G56: 15.16118131 | H56: 4.838818691 | I56: 4.838818691 | L56: 13.12676613 | M56: 6.873233871 | N56: 6.873233871
B57: 2 | C57: 3 | D57: 1 | E57: -3 | G57: 15.03157012 | H57: 4.968429885 | I57: 4.968429885 | L57: 12.94266168 | M57: 7.05733832 | N57: 7.05733832
B58: 2 | C58: 4 | D58: 1 | E58: -4.599999905 | G58: 14.68594023 | H58: 5.314059769 | I58: 5.314059769 | L58: 12.45171644 | M58: 7.548283565 | N58: 7.548283565 | Q58: =Q51/7 -> 2.655744655e-05 | R58: =R51/6 -> -0.002497783444 | S58: =S51/5 -> 0.08745745986 | T58: =T51/4 -> -1.343076704 | U58: =U51/3 -> 7.8634928 | V58: =V51/2 -> -12.77017013 | W58: =W51 -> 1115.343729
B59: 2 | C59: 5 | D59: 1 | E59: -3 | G59: 15.03157012 | H59: 4.968429885 | I59: 4.968429885 | L59: 12.94266168 | M59: 7.05733832 | N59: 7.05733832
B60: 2 | C60: 6 | D60: 1 | E60: -10.39999962 | G60: 13.43303189 | H60: 6.566968114 | I60: 6.566968114 | L60: 10.6720399 | M60: 9.327960097 | N60: 9.327960097
B61: 2 | C61: 7 | D61: 1 | E61: 0.1000000015 | G61: 15.70122806 | H61: 4.298771944 | I61: 4.298771944 | L61: 13.89386815 | M61: 6.10613185 | N61: 6.10613185 | Q61: =((Q58*N6^7)+(R58*N6^6)+(S58*N6^5)+(T58*N6^4)+(U58*N6^3)+(V58*N6^2)+(W58*N6))-((Q58*N4^7)+(R58*N4^6)+(S58*N4^5)+(T58*N4^4)+(U58*N4^3)+(V58*N4^2)+(W58*N4)) -> 23378.92858 | S61: Integrering
B62: 2 | C62: 8 | D62: 1 | E62: -3.200000048 | G62: 14.98836637 | H62: 5.011633633 | I62: 5.011633633 | L62: 12.88129351 | M62: 7.118706494 | N62: 7.118706494
B63: 2 | C63: 9 | D63: 1 | E63: -1.899999976 | G63: 15.26919068 | H63: 4.73080932 | I63: 4.73080932 | L63: 13.28018656 | M63: 6.719813436 | N63: 6.719813436
B64: 2 | C64: 10 | D64: 1 | E64: 0 | G64: 15.67962619 | H64: 4.320373813 | I64: 4.320373813 | L64: 13.86318407 | M64: 6.13681593 | N64: 6.13681593
B65: 2 | C65: 11 | D65: 1 | E65: 1.799999952 | G65: 16.06845982 | H65: 3.93154018 | I65: 3.93154018 | L65: 14.41549749 | M65: 5.584502511 | N65: 5.584502511
B66: 2 | C66: 12 | D66: 1 | E66: 0.6999999881 | G66: 15.83083927 | H66: 4.169160732 | I66: 4.169160732 | L66: 14.07797262 | M66: 5.922027376 | N66: 5.922027376 | Q66: Opvarmning | R66: efter
B67: 2 | C67: 13 | D67: 1 | E67: 0.8000000119 | G67: 15.85244114 | H67: 4.147558858 | I67: 4.147558858 | L67: 14.10865671 | M67: 5.891343289 | N67: 5.891343289
B68: 2 | C68: 14 | D68: 1 | E68: -1.299999952 | G68: 15.3988019 | H68: 4.6011981 | I68: 4.6011981 | L68: 13.46429105 | M68: 6.535708951 | N68: 6.535708951 | Q68: X | R68: X^2 | S68: X^3 | T68: X^4 | U68: X^5 | V68: X^6 | W68: Gradtimer | Y68: Beregnet
B69: 2 | C69: 15 | D69: 1 | E69: -5.400000095 | G69: 14.51312524 | H69: 5.486874763 | I69: 5.486874763 | L69: 12.20624374 | M69: 7.79375626 | N69: 7.79375626 | Q69: 1 | R69: =Q69^2 -> 1 | S69: =Q69^3 -> 1 | T69: =Q69^4 -> 1 | U69: =Q69^5 -> 1 | V69: =Q69^6 -> 1 | W69: =$O$388 -> 1575.351335 | Y69: =($Q$97*Q69^6)+($R$97*Q69^5)+($S$97*Q69^4)+($T$97*Q69^3)+($U$97*Q69^2)+($V$97*Q69)+$W$97 -> 1574.474196
B70: 2 | C70: 16 | D70: 1 | E70: -8.899999619 | G70: 13.75705992 | H70: 6.242940077 | I70: 6.242940077 | L70: 11.1323011 | M70: 8.867698902 | N70: 8.867698902 | Q70: 2 | R70: =Q70^2 -> 4 | S70: =Q70^3 -> 8 | T70: =Q70^4 -> 16 | U70: =Q70^5 -> 32 | V70: =Q70^6 -> 64 | W70: =$O$753 -> 1596.400612 | Y70: =($Q$97*Q70^6)+($R$97*Q70^5)+($S$97*Q70^4)+($T$97*Q70^3)+($U$97*Q70^2)+($V$97*Q70)+$W$97 -> 1593.978748
B71: 2 | C71: 17 | D71: 1 | E71: -11.10000038 | G71: 13.28181864 | H71: 6.718181361 | I71: 6.718181361 | L71: 10.45725111 | M71: 9.542748888 | N71: 9.542748888 | Q71: 3 | R71: 9 | S71: 27 | T71: 81 | U71: 243 | V71: 729 | W71: =$O$1118 -> 1610.730076 | Y71: 1616.312734
B72: 2 | C72: 18 | D72: 1 | E72: -1.200000048 | G72: 15.42040375 | H72: 4.579596252 | I72: 4.579596252 | L72: 13.4949751 | M72: 6.505024901 | N72: 6.505024901 | Q72: 4 | R72: 16 | S72: 64 | T72: 256 | U72: 1024 | V72: 4096 | W72: =$O$1483 -> 1621.684294 | Y72: 1625.210706
B73: 2 | C73: 19 | D73: 1 | E73: -2.200000048 | G73: 15.20438506 | H73: 4.795614943 | I73: 4.795614943 | L73: 13.1881343 | M73: 6.811865697 | N73: 6.811865697 | Q73: 5 | R73: 25 | S73: 125 | T73: 625 | U73: 3125 | V73: 15625 | W73: =$O$1848 -> 1610.300499 | Y73: 1612.538242
B74: 2 | C74: 20 | D74: 1 | E74: -5.099999905 | G74: 14.57793089 | H74: 5.422069115 | I74: 5.422069115 | L74: 12.29829604 | M74: 7.701703963 | N74: 7.701703963 | Q74: 6 | R74: 36 | S74: 216 | T74: 1296 | U74: 7776 | V74: 46656 | W74: =$O$2213 -> 1586.796492 | Y74: 1576.402859
B75: 2 | C75: 21 | D75: 1 | E75: -3.299999952 | G75: 14.96676452 | H75: 5.033235482 | I75: 5.033235482 | L75: 12.85060946 | M75: 7.149390544 | N75: 7.149390544 | Q75: 7 | R75: 49 | S75: 343 | T75: 2401 | U75: 16807 | V75: 117649 | W75: =$O$2578 -> 1526.410226 | Y75: 1519.455059
B76: 2 | C76: 22 | D76: 1 | E76: -0.8999999762 | G76: 15.48520937 | H76: 4.514790629 | I76: 4.514790629 | L76: 13.58702736 | M76: 6.41297264 | N76: 6.41297264 | Q76: 8 | R76: 64 | S76: 512 | T76: 4096 | U76: 32768 | V76: 262144 | W76: =$O$2943 -> 1449.423872 | Y76: 1447.379499
B77: 2 | C77: 23 | D77: 1 | E77: 0 | G77: 15.67962619 | H77: 4.320373813 | I77: 4.320373813 | L77: 13.86318407 | M77: 6.13681593 | N77: 6.13681593 | Q77: 9 | R77: 81 | S77: 729 | T77: 6561 | U77: 59049 | V77: 531441 | W77: =$O$3308 -> 1362.004927 | Y77: 1367.576277
B78: 2 | C78: 24 | D78: 1 | E78: 1 | G78: 15.89564488 | H78: 4.104355122 | I78: 4.104355122 | L78: 14.17002487 | M78: 5.829975134 | N78: 5.829975134 | Q78: 10 | R78: 100 | S78: 1000 | T78: 10000 | U78: 100000 | V78: 1000000 | W78: =$O$3673 -> 1278.298759 | Y78: 1288.032354
B79: 2 | C79: 25 | D79: 1 | E79: 1.200000048 | G79: 15.93884863 | H79: 4.061151374 | I79: 4.061151374 | L79: 14.23139304 | M79: 5.768606959 | N79: 5.768606959 | Q79: 11 | R79: 121 | S79: 1331 | T79: 14641 | U79: 161051 | V79: 1771561 | W79: =$O$4038 -> 1209.68916 | Y79: 1216.383095
B80: 2 | C80: 26 | D80: 1 | E80: 4.400000095 | G80: 16.63010845 | H80: 3.369891554 | I80: 3.369891554 | L80: 15.2132836 | M80: 4.786716396 | N80: 4.786716396 | Q80: 12 | R80: 144 | S80: 1728 | T80: 20736 | U80: 248832 | V80: 2985984 | W80: =$O$4403 -> 1158.109218 | Y80: 1159.163933
B81: 2 | C81: 27 | D81: 1 | E81: 3.200000048 | G81: 16.37088601 | H81: 3.629113992 | I81: 3.629113992 | L81: 14.84507463 | M81: 5.154925366 | N81: 5.154925366 | Q81: 13 | R81: 169 | S81: 2197 | T81: 28561 | U81: 371293 | V81: 4826809 | W81: =$O$4768 -> 1128.560451 | Y81: 1121.252163
B82: 2 | C82: 28 | D82: 1 | E82: 3.799999952 | G82: 16.5004972 | H82: 3.499502799 | I82: 3.499502799 | L82: 15.02917908 | M82: 4.970820918 | N82: 4.970820918 | Q82: 14 | R82: 196 | S82: 2744 | T82: 38416 | U82: 537824 | V82: 7529536 | W82: =$O$5134 -> 1113.586618 | Y82: 1105.498857
B83: 3 | C83: 1 | D83: 1 | E83: 3.400000095 | G83: 16.41408976 | H83: 3.585910244 | I83: 3.585910244 | L83: 14.90644281 | M83: 5.093557193 | N83: 5.093557193 | Q83: 15 | R83: 225 | S83: 3375 | T83: 50625 | U83: 759375 | V83: 11390625 | W83: =$O$5498 -> 1115.581085 | Y83: 1112.550905
B84: 3 | C84: 2 | D84: 1 | E84: -1.100000024 | G84: 15.44200562 | H84: 4.557994378 | I84: 4.557994378 | L84: 13.52565919 | M84: 6.474340814 | N84: 6.474340814 | Q84: 16 | R84: 256 | S84: 4096 | T84: 65536 | U84: 1048576 | V84: 16777216 | W84: =$O$5863 -> 1139.361245 | Y84: 1140.863178
B85: 3 | C85: 3 | D85: 1 | E85: 2 | G85: 16.11166357 | H85: 3.888336432 | I85: 3.888336432 | L85: 14.47686566 | M85: 5.523134337 | N85: 5.523134337 | Q85: 17 | R85: 289 | S85: 4913 | T85: 83521 | U85: 1419857 | V85: 24137569 | W85: =$O$6228 -> 1184.374789 | Y85: 1186.900824
B86: 3 | C86: 4 | D86: 1 | E86: 0.6999999881 | G86: 15.83083927 | H86: 4.169160732 | I86: 4.169160732 | L86: 14.07797262 | M86: 5.922027376 | N86: 5.922027376 | Q86: 18 | R86: 324 | S86: 5832 | T86: 104976 | U86: 1889568 | V86: 34012224 | W86: =$O$6593 -> 1244.423537 | Y86: 1245.531676
B87: 3 | C87: 5 | D87: 1 | E87: 3 | G87: 16.32768226 | H87: 3.672317741 | I87: 3.672317741 | L87: 14.78370646 | M87: 5.216293541 | N87: 5.216293541 | Q87: 19 | R87: 361 | S87: 6859 | T87: 130321 | U87: 2476099 | V87: 47045881 | W87: =$O$6959 -> 1308.154368 | Y87: 1310.608796
B88: 3 | C88: 6 | D88: 1 | E88: -0.1000000015 | G88: 15.65802432 | H88: 4.341975682 | I88: 4.341975682 | L88: 13.83249999 | M88: 6.16750001 | N88: 6.16750001 | Q88: 20 | R88: 400 | S88: 8000 | T88: 160000 | U88: 3200000 | V88: 64000000 | W88: =$O$7323 -> 1372.284093 | Y88: 1375.743139
B89: 3 | C89: 7 | D89: 1 | E89: 4.900000095 | G89: =E89+($C$6-E89)*$C$8/100 -> 16.73811779 | H89: =IF($C$4-G89>0,$C$4-G89,0) -> 3.261882208 | I89: =H89 -> 3.261882208 | L89: =E89+($C$15-E89)*$C$17/100 -> 15.366704 | M89: =IF($C$13-L89>0,$C$13-L89,0) -> 4.633295998 | N89: =M89 -> 4.633295998 | Q89: 21 | R89: 441 | S89: 9261 | T89: 194481 | U89: 4084101 | V89: 85766121 | W89: =$O$7688 -> 1436.659293 | Y89: 1435.266339
B90: 3 | C90: 8 | D90: 1 | E90: 2.099999905 | G90: 16.13326542 | H90: 3.866734583 | I90: 3.866734583 | L90: 14.50754971 | M90: 5.492450287 | N90: 5.492450287 | Q90: 22 | R90: 484 | S90: 10648 | T90: 234256 | U90: 5153632 | V90: 113379904 | W90: =$O$8053 -> 1487.932389 | Y90: 1485.383628
B91: 3 | C91: 9 | D91: 1 | E91: -3.299999952 | G91: 14.96676452 | H91: 5.033235482 | I91: 5.033235482 | L91: 12.85060946 | M91: 7.149390544 | N91: 7.149390544 | Q91: 23 | R91: 529 | S91: 12167 | T91: 279841 | U91: 6436343 | V91: 148035889 | W91: =$O$8418 -> 1528.46606 | Y91: 1525.516871
B92: 3 | C92: 10 | D92: 1 | E92: -1.799999952 | G92: 15.29079255 | H92: 4.709207446 | I92: 4.709207446 | L92: 13.31087065 | M92: 6.689129349 | N92: 6.689129349 | Q92: 24 | R92: 576 | S92: 13824 | T92: 331776 | U92: 7962624 | V92: 191102976 | W92: =$O$8783 -> 1557.278411 | Y92: 1559.83773
B93: 3 | C93: 11 | D93: 1 | E93: -1 | G93: 15.4636075 | H93: 4.536392504 | I93: 4.536392504 | L93: 13.55634327 | M93: 6.443656727 | N93: 6.443656727
B94: 3 | C94: 12 | D94: 1 | E94: -0.3000000119 | G94: 15.61482058 | H94: 4.385179423 | I94: 4.385179423 | L94: 13.77113183 | M94: 6.228868173 | N94: 6.228868173 | W94: =SUM(W69:W92) -> 33201.86181 | Y94: =SUM(Y69:Y92) -> 33201.86181
B95: 3 | C95: 13 | D95: 1 | E95: -0.3000000119 | G95: 15.61482058 | H95: 4.385179423 | I95: 4.385179423 | L95: 13.77113183 | M95: 6.228868173 | N95: 6.228868173
B96: 3 | C96: 14 | D96: 1 | E96: 0.1000000015 | G96: 15.70122806 | H96: 4.298771944 | I96: 4.298771944 | L96: 13.89386815 | M96: 6.10613185 | N96: 6.10613185
B97: 3 | C97: 15 | D97: 1 | E97: 0.6000000238 | G97: 15.80923741 | H97: 4.190762593 | I97: 4.190762593 | L97: 14.04728856 | M97: 5.952711445 | N97: 5.952711445 | Q97: =LINEST(W69:W92,Q69:V92,TRUE,TRUE) -> 0.0002640621336 | R97: -0.02128765411 | S97: 0.6211387673 | T97: -7.631019784 | U97: 33.5087726 | V97: -36.27842722 | W97: 1584.274755 | Y97: =IF($N$13=0,0,IF($N$13=1,$Y$69,IF($N$13=2,SUM($Y$69:$Y$70),IF($N$13=3,SUM($Y$69:$Y$71),IF($N$13=4,SUM($Y$69:$Y$72),IF($N$13=5,SUM($Y$69:$Y$73),IF($N$13=6,SUM($Y$69:$Y$74)))))))) -> 0 | Z97: =IF($N$13=7,SUM($Y$69:$Y$75),IF($N$13=8,SUM($Y$69:$Y$76),IF($N$13=9,SUM($Y$69:$Y$77),IF($N$13=10,SUM($Y$69:$Y$78),IF($N$13=11,SUM($Y$69:$Y$79),IF($N$13=12,SUM($Y$69:$Y$80),IF($N$13=13,SUM($Y$69:$Y$81)))))))) -> FALSE | AA97: =IF($N$13=14,SUM($Y$69:$Y$82),IF($N$13=15,SUM($Y$69:$Y$83),IF($N$13=16,SUM($Y$69:$Y$84),IF($N$13=17,SUM($Y$69:$Y$85),IF($N$13=18,SUM($Y$69:$Y$86),IF($N$13=19,SUM($Y$69:$Y$87),IF($N$13=20,SUM($Y$69:$Y$88)))))))) -> FALSE | AB97: =IF($N$13=21,SUM($Y$69:$Y$89),IF($N$13=22,SUM($Y$69:$Y$90),IF($N$13=23,SUM($Y$69:$Y$91),IF($N$13=24,SUM($Y$69:$Y$92))))) -> FALSE | AC97: =SUM(Y97:AB97) -> 0
B98: 3 | C98: 16 | D98: 1 | E98: 1.100000024 | G98: 15.91724675 | H98: 4.082753248 | I98: 4.082753248 | L98: 14.20070895 | M98: 5.799291047 | N98: 5.799291047 | Q98: 2.228141146e-05 | R98: 0.001676146633 | S98: 0.04861408782 | T98: 0.6815333136 | U98: 4.724611888 | V98: 14.65054142 | W98: 14.8350588
B99: 3 | C99: 17 | D99: 1 | E99: -1 | G99: 15.4636075 | H99: 4.536392504 | I99: 4.536392504 | L99: 13.55634327 | M99: 6.443656727 | N99: 6.443656727 | Q99: 0.9992907606 | R99: 5.775569725 | Y99: =IF($N$15=0,0,IF($N$15=1,$Y$69,IF($N$15=2,SUM($Y$69:$Y$70),IF($N$15=3,SUM($Y$69:$Y$71),IF($N$15=4,SUM($Y$69:$Y$72),IF($N$15=5,SUM($Y$69:$Y$73),IF($N$15=6,SUM($Y$69:$Y$74)))))))) -> FALSE | Z99: =IF($N$15=7,SUM($Y$69:$Y$75),IF($N$15=8,SUM($Y$69:$Y$76),IF($N$15=9,SUM($Y$69:$Y$77),IF($N$15=10,SUM($Y$69:$Y$78),IF($N$15=11,SUM($Y$69:$Y$79),IF($N$15=12,SUM($Y$69:$Y$80),IF($N$15=13,SUM($Y$69:$Y$81)))))))) -> FALSE | AA99: =IF($N$15=14,SUM($Y$69:$Y$82),IF($N$15=15,SUM($Y$69:$Y$83),IF($N$15=16,SUM($Y$69:$Y$84),IF($N$15=17,SUM($Y$69:$Y$85),IF($N$15=18,SUM($Y$69:$Y$86),IF($N$15=19,SUM($Y$69:$Y$87),IF($N$15=20,SUM($Y$69:$Y$88)))))))) -> FALSE | AB99: =IF($N$15=21,SUM($Y$69:$Y$89),IF($N$15=22,SUM($Y$69:$Y$90),IF($N$15=23,SUM($Y$69:$Y$91),IF($N$15=24,SUM($Y$69:$Y$92))))) -> 33201.86181 | AC99: =SUM(Y99:AB99) -> 33201.86181
B100: 3 | C100: 18 | D100: 1 | E100: -8.199999809 | G100: 13.90827297 | H100: 6.091727035 | I100: 6.091727035 | L100: 11.3470896 | M100: 8.652910403 | N100: 8.652910403 | Q100: 3992.056333 | R100: 17
B101: 3 | C101: 19 | D101: 1 | E101: -7.699999809 | G101: 14.01628231 | H101: 5.98371769 | I101: 5.98371769 | L101: 11.50051 | M101: 8.499490004 | N101: 8.499490004 | Q101: 798983.0644 | R101: 567.072496 | AC101: =AC99-AC97 -> 33201.86181
B102: 3 | C102: 20 | D102: 1 | E102: -4.800000191 | G102: 14.64273643 | H102: 5.357263569 | I102: 5.357263569 | L102: 12.39034819 | M102: 7.609651812 | N102: 7.609651812
B103: 3 | C103: 21 | D103: 1 | E103: -6.400000095 | G103: 14.29710655 | H103: 5.702893454 | I103: 5.702893454 | L103: 11.89940294 | M103: 8.100597057 | N103: 8.100597057
B104: 3 | C104: 22 | D104: 1 | E104: -2.099999905 | G104: 15.22598696 | H104: 4.774013043 | I104: 4.774013043 | L104: 13.21881843 | M104: 6.781181574 | N104: 6.781181574
B105: 3 | C105: 23 | D105: 1 | E105: -5.300000191 | G105: 14.53472709 | H105: 5.465272915 | I105: 5.465272915 | L105: 12.23692779 | M105: 7.76307221 | N105: 7.76307221
B106: 3 | C106: 24 | D106: 1 | E106: -1.700000048 | G106: 15.3123944 | H106: 4.687605597 | I106: 4.687605597 | L106: 13.3415547 | M106: 6.658445299 | N106: 6.658445299
B107: 3 | C107: 25 | D107: 1 | E107: 1 | G107: 15.89564488 | H107: 4.104355122 | I107: 4.104355122 | L107: 14.17002487 | M107: 5.829975134 | N107: 5.829975134
B108: 3 | C108: 26 | D108: 1 | E108: 2.200000048 | G108: 16.15486732 | H108: 3.845132683 | I108: 3.845132683 | L108: 14.53823384 | M108: 5.461766163 | N108: 5.461766163
B109: 3 | C109: 27 | D109: 1 | E109: 2.400000095 | G109: 16.19807107 | H109: 3.801928935 | I109: 3.801928935 | L109: 14.59960201 | M109: 5.400397989 | N109: 5.400397989
B110: 3 | C110: 28 | D110: 1 | E110: 4 | G110: 16.54370095 | H110: 3.45629905 | I110: 3.45629905 | L110: 15.09054726 | M110: 4.909452744 | N110: 4.909452744
B111: 3 | C111: 29 | D111: 1 | E111: 4.800000191 | G111: 16.71651594 | H111: 3.283484057 | I111: 3.283484057 | L111: 15.33601995 | M111: 4.663980048 | N111: 4.663980048
B112: 3 | C112: 30 | D112: 1 | E112: 5.400000095 | G112: 16.84612714 | H112: 3.153872863 | I112: 3.153872863 | L112: 15.5201244 | M112: 4.4798756 | N112: 4.4798756
B113: 3 | C113: 31 | D113: 1 | E113: 1 | G113: 15.89564488 | H113: 4.104355122 | I113: 4.104355122 | L113: 14.17002487 | M113: 5.829975134 | N113: 5.829975134
B114: 4 | C114: 1 | D114: 1 | E114: -1.899999976 | G114: 15.26919068 | H114: 4.73080932 | I114: 4.73080932 | L114: 13.28018656 | M114: 6.719813436 | N114: 6.719813436
B115: 4 | C115: 2 | D115: 1 | E115: 0.1000000015 | G115: 15.70122806 | H115: 4.298771944 | I115: 4.298771944 | L115: 13.89386815 | M115: 6.10613185 | N115: 6.10613185
B116: 4 | C116: 3 | D116: 1 | E116: 1.399999976 | G116: 15.98205235 | H116: 4.017947651 | I116: 4.017947651 | L116: 14.29276118 | M116: 5.707238822 | N116: 5.707238822
B117: 4 | C117: 4 | D117: 1 | E117: 1.399999976 | G117: 15.98205235 | H117: 4.017947651 | I117: 4.017947651 | L117: 14.29276118 | M117: 5.707238822 | N117: 5.707238822
B118: 4 | C118: 5 | D118: 1 | E118: 2.700000048 | G118: 16.26287666 | H118: 3.737123338 | I118: 3.737123338 | L118: 14.69165424 | M118: 5.308345765 | N118: 5.308345765
B119: 4 | C119: 6 | D119: 1 | E119: -0.3000000119 | G119: 15.61482058 | H119: 4.385179423 | I119: 4.385179423 | L119: 13.77113183 | M119: 6.228868173 | N119: 6.228868173
B120: 4 | C120: 7 | D120: 1 | E120: 2.599999905 | G120: 16.24127476 | H120: 3.758725238 | I120: 3.758725238 | L120: 14.66097011 | M120: 5.339029888 | N120: 5.339029888
B121: 4 | C121: 8 | D121: 1 | E121: 2.099999905 | G121: 16.13326542 | H121: 3.866734583 | I121: 3.866734583 | L121: 14.50754971 | M121: 5.492450287 | N121: 5.492450287
B122: 4 | C122: 9 | D122: 1 | E122: 1.299999952 | G122: 15.96045047 | H122: 4.039549525 | I122: 4.039549525 | L122: 14.26207709 | M122: 5.737922909 | N122: 5.737922909
B123: 4 | C123: 10 | D123: 1 | E123: 0.5 | G123: 15.78763553 | H123: 4.212364468 | I123: 4.212364468 | L123: 14.01660447 | M123: 5.983395532 | N123: 5.983395532
B124: 4 | C124: 11 | D124: 1 | E124: 2.099999905 | G124: 16.13326542 | H124: 3.866734583 | I124: 3.866734583 | L124: 14.50754971 | M124: 5.492450287 | N124: 5.492450287
B125: 4 | C125: 12 | D125: 1 | E125: 3 | G125: 16.32768226 | H125: 3.672317741 | I125: 3.672317741 | L125: 14.78370646 | M125: 5.216293541 | N125: 5.216293541
B126: 4 | C126: 13 | D126: 1 | E126: 4.400000095 | G126: 16.63010845 | H126: 3.369891554 | I126: 3.369891554 | L126: 15.2132836 | M126: 4.786716396 | N126: 4.786716396
B127: 4 | C127: 14 | D127: 1 | E127: -0.1000000015 | G127: 15.65802432 | H127: 4.341975682 | I127: 4.341975682 | L127: 13.83249999 | M127: 6.16750001 | N127: 6.16750001
B128: 4 | C128: 15 | D128: 1 | E128: 6.599999905 | G128: 17.10534952 | H128: 2.894650475 | I128: 2.894650475 | L128: 15.8883333 | M128: 4.111666702 | N128: 4.111666702
B129: 4 | C129: 16 | D129: 1 | E129: 4.400000095 | G129: 16.63010845 | H129: 3.369891554 | I129: 3.369891554 | L129: 15.2132836 | M129: 4.786716396 | N129: 4.786716396
B130: 4 | C130: 17 | D130: 1 | E130: 4.300000191 | G130: 16.6085066 | H130: 3.391493402 | I130: 3.391493402 | L130: 15.18259955 | M130: 4.817400446 | N130: 4.817400446
B131: 4 | C131: 18 | D131: 1 | E131: 3.700000048 | G131: 16.47889535 | H131: 3.521104647 | I131: 3.521104647 | L131: 14.99849503 | M131: 5.001504968 | N131: 5.001504968
B132: 4 | C132: 19 | D132: 1 | E132: -1 | G132: 15.4636075 | H132: 4.536392504 | I132: 4.536392504 | L132: 13.55634327 | M132: 6.443656727 | N132: 6.443656727
B133: 4 | C133: 20 | D133: 1 | E133: 6.400000095 | G133: 17.06214583 | H133: 2.937854172 | I133: 2.937854172 | L133: 15.8269652 | M133: 4.173034803 | N133: 4.173034803
B134: 4 | C134: 21 | D134: 1 | E134: 5.199999809 | G134: 16.80292334 | H134: 3.197076663 | I134: 3.197076663 | L134: 15.45875615 | M134: 4.541243847 | N134: 4.541243847
B135: 4 | C135: 22 | D135: 1 | E135: 2.599999905 | G135: 16.24127476 | H135: 3.758725238 | I135: 3.758725238 | L135: 14.66097011 | M135: 5.339029888 | N135: 5.339029888
B136: 4 | C136: 23 | D136: 1 | E136: 6 | G136: 16.97573833 | H136: 3.024261669 | I136: 3.024261669 | L136: 15.70422885 | M136: 4.295771151 | N136: 4.295771151
B137: 4 | C137: 24 | D137: 1 | E137: 5 | G137: 16.75971964 | H137: 3.24028036 | I137: 3.24028036 | L137: 15.39738805 | M137: 4.602611948 | N137: 4.602611948
B138: 4 | C138: 25 | D138: 1 | E138: 6 | G138: 16.97573833 | H138: 3.024261669 | I138: 3.024261669 | L138: 15.70422885 | M138: 4.295771151 | N138: 4.295771151
B139: 4 | C139: 26 | D139: 1 | E139: 6.400000095 | G139: 17.06214583 | H139: 2.937854172 | I139: 2.937854172 | L139: 15.8269652 | M139: 4.173034803 | N139: 4.173034803
B140: 4 | C140: 27 | D140: 1 | E140: 2.099999905 | G140: 16.13326542 | H140: 3.866734583 | I140: 3.866734583 | L140: 14.50754971 | M140: 5.492450287 | N140: 5.492450287
B141: 4 | C141: 28 | D141: 1 | E141: 7.699999809 | G141: 17.34297006 | H141: 2.657029936 | I141: 2.657029936 | L141: 16.22585814 | M141: 3.774141856 | N141: 3.774141856
B142: 4 | C142: 29 | D142: 1 | E142: 5.699999809 | G142: 16.91093268 | H142: 3.089067318 | I142: 3.089067318 | L142: 15.61217655 | M142: 4.387823449 | N142: 4.387823449
B143: 4 | C143: 30 | D143: 1 | E143: 7.699999809 | G143: 17.34297006 | H143: 2.657029936 | I143: 2.657029936 | L143: 16.22585814 | M143: 3.774141856 | N143: 3.774141856
B144: 5 | C144: 1 | D144: 1 | E144: 1.799999952 | G144: 16.06845982 | H144: 3.93154018 | I144: 3.93154018 | L144: 14.41549749 | M144: 5.584502511 | N144: 5.584502511
B145: 5 | C145: 2 | D145: 1 | E145: 4.699999809 | G145: 16.69491399 | H145: 3.305086008 | I145: 3.305086008 | L145: 15.30533575 | M145: 4.694664245 | N145: 4.694664245
B146: 5 | C146: 3 | D146: 1 | E146: 7.400000095 | G146: 17.27816452 | H146: 2.721835482 | I146: 2.721835482 | L146: 16.13380599 | M146: 3.866194007 | N146: 3.866194007
B147: 5 | C147: 4 | D147: 1 | E147: 9.600000381 | G147: 17.7534057 | H147: 2.2465943 | I147: 2.2465943 | L147: 16.80885583 | M147: 3.191144167 | N147: 3.191144167
B148: 5 | C148: 5 | D148: 1 | E148: 9.800000191 | G148: 17.7966094 | H148: 2.203390603 | I148: 2.203390603 | L148: 16.87022393 | M148: 3.129776066 | N148: 3.129776066
B149: 5 | C149: 6 | D149: 1 | E149: 9 | G149: 17.6237944 | H149: 2.376205597 | I149: 2.376205597 | L149: 16.62475124 | M149: 3.375248762 | N149: 3.375248762
B150: 5 | C150: 7 | D150: 1 | E150: 10.89999962 | G150: 18.03422983 | H150: 1.965770167 | I150: 1.965770167 | L150: 17.20774864 | M150: 2.792251365 | N150: 2.792251365
B151: 5 | C151: 8 | D151: 1 | E151: 9.399999619 | G151: 17.7102018 | H151: 2.289798203 | I151: 2.289798203 | L151: 16.74748744 | M151: 3.25251256 | N151: 3.25251256
B152: 5 | C152: 9 | D152: 1 | E152: 5.900000095 | G152: 16.95413648 | H152: 3.045863518 | I152: 3.045863518 | L152: 15.6735448 | M152: 4.326455202 | N152: 4.326455202
B153: 5 | C153: 10 | D153: 1 | E153: 3.599999905 | G153: =E153+($C$6-E153)*$C$8/100 -> 16.45729345 | H153: =IF($C$4-G153>0,$C$4-G153,0) -> 3.542706547 | I153: =H153 -> 3.542706547 | L153: =E153+($C$15-E153)*$C$17/100 -> 14.96781091 | M153: =IF($C$13-L153>0,$C$13-L153,0) -> 5.032189092 | N153: =M153 -> 5.032189092
B154: 5 | C154: 11 | D154: 1 | E154: 12 | G154: 18.27185047 | H154: 1.728149525 | I154: 1.728149525 | L154: 17.54527363 | M154: 2.454726372 | N154: 2.454726372
B155: 5 | C155: 12 | D155: 1 | E155: 8 | G155: 17.40777571 | H155: 2.592224288 | I155: 2.592224288 | L155: 16.31791044 | M155: 3.682089558 | N155: 3.682089558
B156: 5 | C156: 13 | D156: 1 | E156: 10.69999981 | G156: 17.99102614 | H156: 2.008973864 | I156: 2.008973864 | L156: 17.14638053 | M156: 2.853619466 | N156: 2.853619466
B157: 5 | C157: 14 | D157: 1 | E157: 5 | G157: 16.75971964 | H157: 3.24028036 | I157: 3.24028036 | L157: 15.39738805 | M157: 4.602611948 | N157: 4.602611948
B158: 5 | C158: 15 | D158: 1 | E158: 6.300000191 | G158: 17.04054398 | H158: 2.959456021 | I158: 2.959456021 | L158: 15.79628115 | M158: 4.203718853 | N158: 4.203718853
B159: 5 | C159: 16 | D159: 1 | E159: 4.599999905 | G159: 16.67331214 | H159: 3.326687856 | I159: 3.326687856 | L159: 15.2746517 | M159: 4.725348295 | N159: 4.725348295
B160: 5 | C160: 17 | D160: 1 | E160: 5.800000191 | G160: 16.93253463 | H160: 3.067465366 | I160: 3.067465366 | L160: 15.64286075 | M160: 4.357139252 | N160: 4.357139252
B161: 5 | C161: 18 | D161: 1 | E161: 5.400000095 | G161: 16.84612714 | H161: 3.153872863 | I161: 3.153872863 | L161: 15.5201244 | M161: 4.4798756 | N161: 4.4798756
B162: 5 | C162: 19 | D162: 1 | E162: 10.5 | G162: 17.94782244 | H162: 2.052177561 | I162: 2.052177561 | L162: 17.08501243 | M162: 2.914987567 | N162: 2.914987567
B163: 5 | C163: 20 | D163: 1 | E163: 5.699999809 | G163: 16.91093268 | H163: 3.089067318 | I163: 3.089067318 | L163: 15.61217655 | M163: 4.387823449 | N163: 4.387823449
B164: 5 | C164: 21 | D164: 1 | E164: 9.399999619 | G164: 17.7102018 | H164: 2.289798203 | I164: 2.289798203 | L164: 16.74748744 | M164: 3.25251256 | N164: 3.25251256
B165: 5 | C165: 22 | D165: 1 | E165: 10.30000019 | G165: 17.90461874 | H165: 2.095381258 | I165: 2.095381258 | L165: 17.02364433 | M165: 2.976355668 | N165: 2.976355668
B166: 5 | C166: 23 | D166: 1 | E166: 4 | G166: 16.54370095 | H166: 3.45629905 | I166: 3.45629905 | L166: 15.09054726 | M166: 4.909452744 | N166: 4.909452744
B167: 5 | C167: 24 | D167: 1 | E167: 8.899999619 | G167: 17.60219245 | H167: 2.397807548 | I167: 2.397807548 | L167: 16.59406704 | M167: 3.405932958 | N167: 3.405932958
B168: 5 | C168: 25 | D168: 1 | E168: 7.699999809 | G168: 17.34297006 | H168: 2.657029936 | I168: 2.657029936 | L168: 16.22585814 | M168: 3.774141856 | N168: 3.774141856
B169: 5 | C169: 26 | D169: 1 | E169: 11.39999962 | G169: 18.14223918 | H169: 1.857760822 | I169: 1.857760822 | L169: 17.36116903 | M169: 2.638830967 | N169: 2.638830967
B170: 5 | C170: 27 | D170: 1 | E170: 8.699999809 | G170: 17.55898875 | H170: 2.441011246 | I170: 2.441011246 | L170: 16.53269894 | M170: 3.467301059 | N170: 3.467301059
B171: 5 | C171: 28 | D171: 1 | E171: 12.30000019 | G171: 18.33665612 | H171: 1.663343877 | I171: 1.663343877 | L171: 17.63732593 | M171: 2.362674075 | N171: 2.362674075
B172: 5 | C172: 29 | D172: 1 | E172: 3 | G172: 16.32768226 | H172: 3.672317741 | I172: 3.672317741 | L172: 14.78370646 | M172: 5.216293541 | N172: 5.216293541
B173: 5 | C173: 30 | D173: 1 | E173: 4 | G173: 16.54370095 | H173: 3.45629905 | I173: 3.45629905 | L173: 15.09054726 | M173: 4.909452744 | N173: 4.909452744
B174: 5 | C174: 31 | D174: 1 | E174: 3.700000048 | G174: 16.47889535 | H174: 3.521104647 | I174: 3.521104647 | L174: 14.99849503 | M174: 5.001504968 | N174: 5.001504968
B175: 6 | C175: 1 | D175: 1 | E175: 6.599999905 | G175: 17.10534952 | H175: 2.894650475 | I175: 2.894650475 | L175: 15.8883333 | M175: 4.111666702 | N175: 4.111666702
B176: 6 | C176: 2 | D176: 1 | E176: 8.199999809 | G176: 17.45097941 | H176: 2.549020591 | I176: 2.549020591 | L176: 16.37927854 | M176: 3.620721457 | N176: 3.620721457
B177: 6 | C177: 3 | D177: 1 | E177: 11 | G177: 18.05583178 | H177: 1.944168216 | I177: 1.944168216 | L177: 17.23843283 | M177: 2.761567169 | N177: 2.761567169
B178: 6 | C178: 4 | D178: 1 | E178: 12.10000038 | G178: 18.29345243 | H178: 1.706547574 | I178: 1.706547574 | L178: 17.57595782 | M178: 2.424042176 | N178: 2.424042176
B179: 6 | C179: 5 | D179: 1 | E179: 12 | G179: 18.27185047 | H179: 1.728149525 | I179: 1.728149525 | L179: 17.54527363 | M179: 2.454726372 | N179: 2.454726372
B180: 6 | C180: 6 | D180: 1 | E180: 16.20000076 | G180: 19.17912914 | H180: 0.8208708603 | I180: 0.8208708603 | L180: 18.83400521 | M180: 1.165994794 | N180: 1.165994794
B181: 6 | C181: 7 | D181: 1 | E181: 14.89999962 | G181: 18.8983046 | H181: 1.101695404 | I181: 1.101695404 | L181: 18.43511182 | M181: 1.564888179 | N181: 1.564888179
B182: 6 | C182: 8 | D182: 1 | E182: 13.69999981 | G182: 18.63908221 | H182: 1.360917792 | I182: 1.360917792 | L182: 18.06690292 | M182: 1.933097076 | N182: 1.933097076
B183: 6 | C183: 9 | D183: 1 | E183: 16.79999924 | G183: 19.30874003 | H183: 0.6912599742 | I183: 0.6912599742 | L183: 19.01810922 | M183: 0.981890782 | N183: 0.981890782
B184: 6 | C184: 10 | D184: 1 | E184: 16.5 | G184: 19.24393458 | H184: 0.7560654173 | I184: 0.7560654173 | L184: 18.92605721 | M184: 1.073942788 | N184: 1.073942788
B185: 6 | C185: 11 | D185: 1 | E185: 16.5 | G185: 19.24393458 | H185: 0.7560654173 | I185: 0.7560654173 | L185: 18.92605721 | M185: 1.073942788 | N185: 1.073942788
B186: 6 | C186: 12 | D186: 1 | E186: 14.80000019 | G186: 18.87670285 | H186: 1.12329715 | I186: 1.12329715 | L186: 18.40442792 | M186: 1.595572084 | N186: 1.595572084
B187: 6 | C187: 13 | D187: 1 | E187: 9.600000381 | G187: 17.7534057 | H187: 2.2465943 | I187: 2.2465943 | L187: 16.80885583 | M187: 3.191144167 | N187: 3.191144167
B188: 6 | C188: 14 | D188: 1 | E188: 12.60000038 | G188: 18.40146177 | H188: 1.598538229 | I188: 1.598538229 | L188: 17.72937822 | M188: 2.270621778 | N188: 2.270621778
B189: 6 | C189: 15 | D189: 1 | E189: 16.39999962 | G189: 19.22233263 | H189: 0.7776673684 | I189: 0.7776673684 | L189: 18.89537302 | M189: 1.104626984 | N189: 1.104626984
B190: 6 | C190: 16 | D190: 1 | E190: 13.5 | G190: 18.59587851 | H190: 1.404121489 | I190: 1.404121489 | L190: 18.00553482 | M190: 1.994465177 | N190: 1.994465177
B191: 6 | C191: 17 | D191: 1 | E191: 11 | G191: 18.05583178 | H191: 1.944168216 | I191: 1.944168216 | L191: 17.23843283 | M191: 2.761567169 | N191: 2.761567169
B192: 6 | C192: 18 | D192: 1 | E192: 13.39999962 | G192: 18.57427656 | H192: 1.42572344 | I192: 1.42572344 | L192: 17.97485063 | M192: 2.025149374 | N192: 2.025149374
B193: 6 | C193: 19 | D193: 1 | E193: 13.80000019 | G193: 18.66068416 | H193: 1.339315841 | I193: 1.339315841 | L193: 18.09758712 | M193: 1.90241288 | N193: 1.90241288
B194: 6 | C194: 20 | D194: 1 | E194: 14 | G194: 18.70388786 | H194: 1.296112144 | I194: 1.296112144 | L194: 18.15895522 | M194: 1.841044779 | N194: 1.841044779
B195: 6 | C195: 21 | D195: 1 | E195: 10 | G195: 17.83981309 | H195: 2.160186906 | I195: 2.160186906 | L195: 16.93159203 | M195: 3.068407965 | N195: 3.068407965
B196: 6 | C196: 22 | D196: 1 | E196: 10.89999962 | G196: 18.03422983 | H196: 1.965770167 | I196: 1.965770167 | L196: 17.20774864 | M196: 2.792251365 | N196: 2.792251365
B197: 6 | C197: 23 | D197: 1 | E197: 11 | G197: 18.05583178 | H197: 1.944168216 | I197: 1.944168216 | L197: 17.23843283 | M197: 2.761567169 | N197: 2.761567169
B198: 6 | C198: 24 | D198: 1 | E198: 8.199999809 | G198: 17.45097941 | H198: 2.549020591 | I198: 2.549020591 | L198: 16.37927854 | M198: 3.620721457 | N198: 3.620721457
B199: 6 | C199: 25 | D199: 1 | E199: 12 | G199: 18.27185047 | H199: 1.728149525 | I199: 1.728149525 | L199: 17.54527363 | M199: 2.454726372 | N199: 2.454726372
B200: 6 | C200: 26 | D200: 1 | E200: 9.899999619 | G200: 17.81821114 | H200: 2.181788858 | I200: 2.181788858 | L200: 16.90090784 | M200: 3.099092162 | N200: 3.099092162
B201: 6 | C201: 27 | D201: 1 | E201: 9.699999809 | G201: 17.77500745 | H201: 2.224992555 | I201: 2.224992555 | L201: 16.83953974 | M201: 3.160460263 | N201: 3.160460263
B202: 6 | C202: 28 | D202: 1 | E202: 8.100000381 | G202: 17.42937766 | H202: 2.570622336 | I202: 2.570622336 | L202: 16.34859464 | M202: 3.651405361 | N202: 3.651405361
B203: 6 | C203: 29 | D203: 1 | E203: 10 | G203: 17.83981309 | H203: 2.160186906 | I203: 2.160186906 | L203: 16.93159203 | M203: 3.068407965 | N203: 3.068407965
B204: 6 | C204: 30 | D204: 1 | E204: 11 | G204: 18.05583178 | H204: 1.944168216 | I204: 1.944168216 | L204: 17.23843283 | M204: 2.761567169 | N204: 2.761567169
B205: 7 | C205: 1 | D205: 1 | E205: 10.30000019 | G205: 17.90461874 | H205: 2.095381258 | I205: 2.095381258 | L205: 17.02364433 | M205: 2.976355668 | N205: 2.976355668
B206: 7 | C206: 2 | D206: 1 | E206: 11.30000019 | G206: 18.12063743 | H206: 1.879362568 | I206: 1.879362568 | L206: 17.33048513 | M206: 2.669514871 | N206: 2.669514871
B207: 7 | C207: 3 | D207: 1 | E207: 12 | G207: 18.27185047 | H207: 1.728149525 | I207: 1.728149525 | L207: 17.54527363 | M207: 2.454726372 | N207: 2.454726372
B208: 7 | C208: 4 | D208: 1 | E208: 14 | G208: 18.70388786 | H208: 1.296112144 | I208: 1.296112144 | L208: 18.15895522 | M208: 1.841044779 | N208: 1.841044779
B209: 7 | C209: 5 | D209: 1 | E209: 14.60000038 | G209: 18.83349915 | H209: 1.166500847 | I209: 1.166500847 | L209: 18.34305982 | M209: 1.656940185 | N209: 1.656940185
B210: 7 | C210: 6 | D210: 1 | E210: 16 | G210: 19.13592524 | H210: 0.8640747626 | I210: 0.8640747626 | L210: 18.77263681 | M210: 1.227363186 | N210: 1.227363186
B211: 7 | C211: 7 | D211: 1 | E211: 14.5 | G211: 18.8118972 | H211: 1.188102799 | I211: 1.188102799 | L211: 18.31237562 | M211: 1.687624381 | N211: 1.687624381
B212: 7 | C212: 8 | D212: 1 | E212: 15.60000038 | G212: 19.04951784 | H212: 0.9504821568 | I212: 0.9504821568 | L212: 18.64990061 | M212: 1.350099388 | N212: 1.350099388
... 4288 more rows

Sheet Varme_3 (hidden)
B2: Før
B4: Indblæs | C4: =Varme_og_Køl_3!D13 -> 20 | D4: ° C | E4: Luft ind | F4: =Varme_og_Køl_3!D7 -> 35000 | G4: m3/h | H4: Varmeforbrug | I4: =AC55*(((1.21*1.005)/3.6)/1000)*F4*(N8/7) -> 250495.3622 | J4: kWh | M4: Start | N4: =Varme_og_Køl_3!D25 -> 0
B6: Udsug | C6: =Varme_og_Køl_3!D15 -> 20 | D6: ° C | E6: Luft ud | F6: =Varme_og_Køl_3!D9 -> 35000 | G6: m3/h | H6: Køleforbrug | I6: =Køl!AP43 -> 2130.216682 | J6: kWh | M6: Stop | N6: =Varme_og_Køl_3!D27 -> 24
B8: Virk | C8: =Varme_og_Køl_3!D21 -> 80.41906717 | D8: % | M8: Antal dage | N8: =Varme_og_Køl_3!D29 -> 7
B11: Efter
B13: Indblæs | C13: =Varme_og_Køl_1!J13 -> 20 | D13: ° C | E13: Luft ind | F13: =Varme_og_Køl_1!J7 -> 1000 | G13: m3/h | H13: Varmeforbrug | I13: =AC101*(((1.21*1.005)/3.6)/1000)*F13*(N17/7) -> 11215.31224 | J13: kWh | M13: Start | N13: =Varme_og_Køl_1!J25 -> 0
B15: Udsug | C15: =Varme_og_Køl_1!J15 -> 20 | D15: ° C | E15: Luft ud | F15: =Varme_og_Køl_1!J9 -> 1000 | G15: m3/h | H15: Køleforbrug | I15: =Køl!AP52 -> 0 | J15: kWh | M15: Stop | N15: =Varme_og_Køl_1!J27 -> 24
B17: Virk | C17: =Varme_og_Køl_1!J21 -> 69.31592035 | D17: % | M17: Antal dage | N17: =Varme_og_Køl_1!J29 -> 7
G20: Før | L20: Efter | Q20: Opvarmning | R20: før
B22: Maaned | C22: Dag | D22: Time | E22: Lufttemp | G22: Temp | H22: Temp. Stigning | I22: Gradtimeforbrug | J22: Sum | L22: Temp | M22: Temp. Stigning | N22: Gradtimeforbrug | O22: Sum | Q22: X | R22: X^2 | S22: X^3 | T22: X^4 | U22: X^5 | V22: X^6 | W22: Gradtimer | Y22: Beregnet
B23: {1..12} | C23: {1..31} | D23: {1..24} | E23: [grd. C] | G23: efter VGV | H23: varmeflade | I23: med VGV | J23: timebasis | L23: efter VGV | M23: varmeflade | N23: med VGV | O23: timebasis | Q23: 1 | R23: =Q23^2 -> 1 | S23: =Q23^3 -> 1 | T23: =Q23^4 -> 1 | U23: =Q23^5 -> 1 | V23: =Q23^6 -> 1 | W23: =$J$388 -> 1005.304673 | Y23: =($Q$51*Q23^6)+($R$51*Q23^5)+($S$51*Q23^4)+($T$51*Q23^3)+($U$51*Q23^2)+($V$51*Q23)+$W$51 -> 1004.74493
B24: 1 | C24: 1 | D24: 1 | E24: 2.799999952 | G24: =E24+($C$6-E24)*$C$8/100 -> 16.63207954 | H24: =IF($C$4-G24>0,$C$4-G24,0) -> 3.367920457 | I24: =H24 -> 3.367920457 | L24: =E24+($C$15-E24)*$C$17/100 -> 14.72233829 | M24: =IF($C$13-L24>0,$C$13-L24,0) -> 5.277661715 | N24: =M24 -> 5.277661715 | Q24: 2 | R24: =Q24^2 -> 4 | S24: =Q24^3 -> 8 | T24: =Q24^4 -> 16 | U24: =Q24^5 -> 32 | V24: =Q24^6 -> 64 | W24: =$J$753 -> 1018.737192 | Y24: =($Q$51*Q24^6)+($R$51*Q24^5)+($S$51*Q24^4)+($T$51*Q24^3)+($U$51*Q24^2)+($V$51*Q24)+$W$51 -> 1017.191689
B25: 1 | C25: 2 | D25: 1 | E25: 4.599999905 | G25: =E25+($C$6-E25)*$C$8/100 -> 16.98453633 | H25: =IF($C$4-G25>0,$C$4-G25,0) -> 3.015463675 | I25: =H25 -> 3.015463675 | L25: =E25+($C$15-E25)*$C$17/100 -> 15.2746517 | M25: =IF($C$13-L25>0,$C$13-L25,0) -> 4.725348295 | N25: =M25 -> 4.725348295 | Q25: 3 | R25: 9 | S25: 27 | T25: 81 | U25: 243 | V25: 729 | W25: =$J$1118 -> 1027.881487 | Y25: 1031.44404
B26: 1 | C26: 3 | D26: 1 | E26: 1.600000024 | G26: 16.39710836 | H26: 3.602891637 | I26: 3.602891637 | L26: 14.35412935 | M26: 5.645870648 | N26: 5.645870648 | Q26: 4 | R26: 16 | S26: 64 | T26: 256 | U26: 1024 | V26: 4096 | W26: =$J$1483 -> 1034.871881 | Y26: 1037.122249
B27: 1 | C27: 4 | D27: 1 | E27: 1.700000048 | G27: 16.4166893 | H27: 3.583310699 | I27: 3.583310699 | L27: 14.38481344 | M27: 5.615186561 | N27: 5.615186561 | Q27: 5 | R27: 25 | S27: 125 | T27: 625 | U27: 3125 | V27: 15625 | W27: =$J$1848 -> 1027.607354 | Y27: 1029.035362
B28: 1 | C28: 5 | D28: 1 | E28: -0.400000006 | G28: 16.0054897 | H28: 3.994510299 | I28: 3.994510299 | L28: 13.74044775 | M28: 6.25955225 | N28: 6.25955225 | Q28: 6 | R28: 36 | S28: 216 | T28: 1296 | U28: 7776 | V28: 46656 | W28: =$J$2213 -> 1012.608359 | Y28: 1005.9757
B29: 1 | C29: 6 | D29: 1 | E29: -8.199999809 | G29: 14.47817698 | H29: 5.521823022 | I29: 5.521823022 | L29: 11.3470896 | M29: 8.652910403 | N29: 8.652910403 | Q29: 7 | R29: 49 | S29: 343 | T29: 2401 | U29: 16807 | V29: 117649 | W29: =$J$2578 -> 974.0730842 | Y29: 969.6346705
B30: 1 | C30: 7 | D30: 1 | E30: -13.10000038 | G30: 13.51871116 | H30: 6.481288842 | I30: 6.481288842 | L30: 9.843569519 | M30: 10.15643048 | N30: 10.15643048 | Q30: 8 | R30: 64 | S30: 512 | T30: 4096 | U30: 32768 | V30: 262144 | W30: =$J$2943 -> 924.9445252 | Y30: 923.6399161
B31: 1 | C31: 8 | D31: 1 | E31: -19.60000038 | G31: 12.24595052 | H31: 7.754049476 | I31: 7.754049476 | L31: 7.849104342 | M31: 12.15089566 | N31: 12.15089566 | Q31: 9 | R31: 81 | S31: 729 | T31: 6561 | U31: 59049 | V31: 531441 | W31: =$J$3308 -> 869.1584463 | Y31: 872.7137828
B32: 1 | C32: 9 | D32: 1 | E32: 0.8000000119 | G32: 16.2404609 | H32: 3.759539102 | I32: 3.759539102 | L32: 14.10865671 | M32: 5.891343289 | N32: 5.891343289 | Q32: 10 | R32: 100 | S32: 1000 | T32: 10000 | U32: 100000 | V32: 1000000 | W32: =$J$3673 -> 815.7416623 | Y32: 821.9531204
B33: 1 | C33: 10 | D33: 1 | E33: 2.400000095 | G33: 16.55375584 | H33: 3.44624416 | I33: 3.44624416 | L33: 14.59960201 | M33: 5.400397989 | N33: 5.400397989 | Q33: 11 | R33: 121 | S33: 1331 | T33: 14641 | U33: 161051 | V33: 1771561 | W33: =$J$4038 -> 771.9586985 | Y33: 776.2304084
B34: 1 | C34: 11 | D34: 1 | E34: 1.600000024 | G34: 16.39710836 | H34: 3.602891637 | I34: 3.602891637 | L34: 14.35412935 | M34: 5.645870648 | N34: 5.645870648 | Q34: 12 | R34: 144 | S34: 1728 | T34: 20736 | U34: 248832 | V34: 2985984 | W34: =$J$4403 -> 739.0431481 | Y34: 739.7162101
B35: 1 | C35: 12 | D35: 1 | E35: 1.200000048 | G35: 16.31878464 | H35: 3.681215363 | I35: 3.681215363 | L35: 14.23139304 | M35: 5.768606959 | N35: 5.768606959 | Q35: 13 | R35: 169 | S35: 2197 | T35: 28561 | U35: 371293 | V35: 4826809 | W35: =$J$4768 -> 720.1867105 | Y35: 715.5229532
B36: 1 | C36: 13 | D36: 1 | E36: -0.400000006 | G36: 16.0054897 | H36: 3.994510299 | I36: 3.994510299 | L36: 13.74044775 | M36: 6.25955225 | N36: 6.25955225 | Q36: 14 | R36: 196 | S36: 2744 | T36: 38416 | U36: 537824 | V36: 7529536 | W36: =$J$5134 -> 710.6312142 | Y36: 705.4700389
B37: 1 | C37: 14 | D37: 1 | E37: -5 | G37: 15.10476679 | H37: 4.895233208 | I37: 4.895233208 | L37: 12.32898009 | M37: 7.671019913 | N37: 7.671019913 | Q37: 15 | R37: 225 | S37: 3375 | T37: 50625 | U37: 759375 | V37: 11390625 | W37: =$J$5498 -> 711.9039756 | Y37: 709.9702772
B38: 1 | C38: 15 | D38: 1 | E38: 2.700000048 | G38: 16.61249863 | H38: 3.387501371 | I38: 3.387501371 | L38: 14.69165424 | M38: 5.308345765 | N38: 5.308345765 | Q38: 16 | R38: 256 | S38: 4096 | T38: 65536 | U38: 1048576 | V38: 16777216 | W38: =$J$5863 -> 727.0791974 | Y38: 728.0376508
B39: 1 | C39: 16 | D39: 1 | E39: 0.200000003 | G39: 16.1229753 | H39: 3.8770247 | I39: 3.8770247 | L39: 13.92455223 | M39: 6.07544777 | N39: 6.07544777 | Q39: 17 | R39: 289 | S39: 4913 | T39: 83521 | U39: 1419857 | V39: 24137569 | W39: =$J$6228 -> 755.8044257 | Y39: 757.4164055
B40: 1 | C40: 17 | D40: 1 | E40: -1.299999952 | G40: 15.82926132 | H40: 4.170738684 | I40: 4.170738684 | L40: 13.46429105 | M40: 6.535708951 | N40: 6.535708951 | Q40: 18 | R40: 324 | S40: 5832 | T40: 104976 | U40: 1889568 | V40: 34012224 | W40: =$J$6593 -> 794.1243135 | Y40: 794.8314685
B41: 1 | C41: 18 | D41: 1 | E41: -3.700000048 | G41: 15.35931891 | H41: 4.640681091 | I41: 4.640681091 | L41: 12.72787311 | M41: 7.272126892 | N41: 7.272126892 | Q41: 19 | R41: 361 | S41: 6859 | T41: 130321 | U41: 2476099 | V41: 47045881 | W41: =$J$6959 -> 834.7939094 | Y41: 836.3601939
B42: 1 | C42: 19 | D42: 1 | E42: -5.800000191 | G42: 14.94811929 | H42: 5.051880708 | I42: 5.051880708 | L42: 12.08350739 | M42: 7.916492608 | N42: 7.916492608 | Q42: 20 | R42: 400 | S42: 8000 | T42: 160000 | U42: 3200000 | V42: 64000000 | W42: =$J$7323 -> 875.7180584 | Y42: 877.9254356
B43: 1 | C43: 20 | D43: 1 | E43: -2.099999905 | G43: 15.67261386 | H43: 4.327386138 | I43: 4.327386138 | L43: 13.21881843 | M43: 6.781181574 | N43: 6.781181574 | Q43: 21 | R43: 441 | S43: 9261 | T43: 194481 | U43: 4084101 | V43: 85766121 | W43: =$J$7688 -> 916.798856 | Y43: 915.9099475
B44: 1 | C44: 21 | D44: 1 | E44: -9.699999809 | G44: 14.18446299 | H44: 5.815537014 | I44: 5.815537014 | L44: 10.8868284 | M44: 9.113171597 | N44: 9.113171597 | Q44: 22 | R44: 484 | S44: 10648 | T44: 234256 | U44: 5153632 | V44: 113379904 | W44: =$J$8053 -> 949.5185943 | Y44: 947.8921118
B45: 1 | C45: 22 | D45: 1 | E45: -5.099999905 | G45: 15.08518588 | H45: 4.914814123 | I45: 4.914814123 | L45: 12.29829604 | M45: 7.701703963 | N45: 7.701703963 | Q45: 23 | R45: 529 | S45: 12167 | T45: 279841 | U45: 6436343 | V45: 148035889 | W45: =$J$8418 -> 975.3850073 | Y45: 973.5029935
B46: 1 | C46: 23 | D46: 1 | E46: 1.600000024 | G46: 16.39710836 | H46: 3.602891637 | I46: 3.602891637 | L46: 14.35412935 | M46: 5.645870648 | N46: 5.645870648 | Q46: 24 | R46: 576 | S46: 13824 | T46: 331776 | U46: 7962624 | V46: 191102976 | W46: =$J$8783 -> 993.7715033 | Y46: 995.4047233
B47: 1 | C47: 24 | D47: 1 | E47: 3 | G47: 16.67124142 | H47: 3.328758582 | I47: 3.328758582 | L47: 14.78370646 | M47: 5.216293541 | N47: 5.216293541
B48: 1 | C48: 25 | D48: 1 | E48: 2.700000048 | G48: 16.61249863 | H48: 3.387501371 | I48: 3.387501371 | L48: 14.69165424 | M48: 5.308345765 | N48: 5.308345765 | W48: =SUM(W23:W46) -> 21187.64628 | Y48: =SUM(Y23:Y46) -> 21187.64628
B49: 1 | C49: 26 | D49: 1 | E49: 0.6000000238 | G49: 16.20129904 | H49: 3.798700965 | I49: 3.798700965 | L49: 14.04728856 | M49: 5.952711445 | N49: 5.952711445
B50: 1 | C50: 27 | D50: 1 | E50: -3.799999952 | G50: 15.339738 | H50: 4.660262005 | I50: 4.660262005 | L50: 12.69718906 | M50: 7.302810942 | N50: 7.302810942
B51: 1 | C51: 28 | D51: 1 | E51: 3 | G51: 16.67124142 | H51: 3.328758582 | I51: 3.328758582 | L51: 14.78370646 | M51: 5.216293541 | N51: 5.216293541 | Q51: =LINEST(W23:W46,Q23:V46,TRUE,TRUE) -> 0.0001685102816 | R51: -0.01358463836 | S51: 0.3963774251 | T51: -4.869707273 | U51: 21.38350027 | V51: -23.15094521 | W51: 1010.999121 | Y51: =IF($N$4=0,0,IF($N$4=1,$Y$23,IF($N$4=2,SUM($Y$23:$Y$24),IF($N$4=3,SUM($Y$23:$Y$25),IF($N$4=4,SUM($Y$23:$Y$26),IF($N$4=5,SUM($Y$23:$Y$27),IF($N$4=6,SUM($Y$23:$Y$28)))))))) -> 0 | Z51: =IF($N$4=7,SUM($Y$23:$Y$29),IF($N$4=8,SUM($Y$23:$Y$30),IF($N$4=9,SUM($Y$23:$Y$31),IF($N$4=10,SUM($Y$23:$Y$32),IF($N$4=11,SUM($Y$23:$Y$33),IF($N$4=12,SUM($Y$23:$Y$34),IF($N$4=13,SUM($Y$23:$Y$35)))))))) -> FALSE | AA51: =IF($N$4=14,SUM($Y$23:$Y$36),IF($N$4=15,SUM($Y$23:$Y$37),IF($N$4=16,SUM($Y$23:$Y$38),IF($N$4=17,SUM($Y$23:$Y$39),IF($N$4=18,SUM($Y$23:$Y$40),IF($N$4=19,SUM($Y$23:$Y$41),IF($N$4=20,SUM($Y$23:$Y$42)))))))) -> FALSE | AB51: =IF($N$4=21,SUM($Y$23:$Y$43),IF($N$4=22,SUM($Y$23:$Y$44),IF($N$4=23,SUM($Y$23:$Y$45),IF($N$4=24,SUM($Y$23:$Y$46))))) -> FALSE | AC51: =SUM(Y51:AB51) -> 0
B52: 1 | C52: 29 | D52: 1 | E52: 3.099999905 | G52: 16.69082233 | H52: 3.309177667 | I52: 3.309177667 | L52: 14.81439051 | M52: 5.18560949 | N52: 5.18560949 | Q52: 1.421880096e-05 | R52: 0.001069626823 | S52: 0.03102290175 | T52: 0.4349179832 | U52: 3.014993739 | V52: 9.349189245 | W52: 9.466938338
B53: 1 | C53: 30 | D53: 1 | E53: 4.800000191 | G53: 17.02369825 | H53: 2.976301753 | I53: 2.976301753 | L53: 15.33601995 | M53: 4.663980048 | N53: 4.663980048 | Q53: 0.9992907606 | R53: 3.685658626 | Y53: =IF($N$6=0,0,IF($N$6=1,$Y$23,IF($N$6=2,SUM($Y$23:$Y$24),IF($N$6=3,SUM($Y$23:$Y$25),IF($N$6=4,SUM($Y$23:$Y$26),IF($N$6=5,SUM($Y$23:$Y$27),IF($N$6=6,SUM($Y$23:$Y$28)))))))) -> FALSE | Z53: =IF($N$6=7,SUM($Y$23:$Y$29),IF($N$6=8,SUM($Y$23:$Y$30),IF($N$6=9,SUM($Y$23:$Y$31),IF($N$6=10,SUM($Y$23:$Y$32),IF($N$6=11,SUM($Y$23:$Y$33),IF($N$6=12,SUM($Y$23:$Y$34),IF($N$6=13,SUM($Y$23:$Y$35)))))))) -> FALSE | AA53: =IF($N$6=14,SUM($Y$23:$Y$36),IF($N$6=15,SUM($Y$23:$Y$37),IF($N$6=16,SUM($Y$23:$Y$38),IF($N$6=17,SUM($Y$23:$Y$39),IF($N$6=18,SUM($Y$23:$Y$40),IF($N$6=19,SUM($Y$23:$Y$41),IF($N$6=20,SUM($Y$23:$Y$42)))))))) -> FALSE | AB53: =IF($N$6=21,SUM($Y$23:$Y$43),IF($N$6=22,SUM($Y$23:$Y$44),IF($N$6=23,SUM($Y$23:$Y$45),IF($N$6=24,SUM($Y$23:$Y$46))))) -> 21187.64628 | AC53: =SUM(Y53:AB53) -> 21187.64628
B54: 1 | C54: 31 | D54: 1 | E54: 6.699999809 | G54: 17.3957359 | H54: 2.604264104 | I54: 2.604264104 | L54: 15.91901735 | M54: 4.080982652 | N54: 4.080982652 | Q54: 3992.056333 | R54: 17
B55: 2 | C55: 1 | D55: 1 | E55: -3.700000048 | G55: 15.35931891 | H55: 4.640681091 | I55: 4.640681091 | L55: 12.72787311 | M55: 7.272126892 | N55: 7.272126892 | Q55: 325370.4638 | R55: 230.9293517 | AC55: =AC53-AC51 -> 21187.64628
B56: 2 | C56: 2 | D56: 1 | E56: -2.400000095 | G56: 15.61387103 | H56: 4.386128973 | I56: 4.386128973 | L56: 13.12676613 | M56: 6.873233871 | N56: 6.873233871
B57: 2 | C57: 3 | D57: 1 | E57: -3 | G57: 15.49638545 | H57: 4.503614552 | I57: 4.503614552 | L57: 12.94266168 | M57: 7.05733832 | N57: 7.05733832
B58: 2 | C58: 4 | D58: 1 | E58: -4.599999905 | G58: 15.18309054 | H58: 4.816909458 | I58: 4.816909458 | L58: 12.45171644 | M58: 7.548283565 | N58: 7.548283565 | Q58: =Q51/7 -> 2.407289737e-05 | R58: =R51/6 -> -0.002264106393 | S58: =S51/5 -> 0.07927548501 | T58: =T51/4 -> -1.217426818 | U58: =U51/3 -> 7.127833425 | V58: =V51/2 -> -11.5754726 | W58: =W51 -> 1010.999121
B59: 2 | C59: 5 | D59: 1 | E59: -3 | G59: 15.49638545 | H59: 4.503614552 | I59: 4.503614552 | L59: 12.94266168 | M59: 7.05733832 | N59: 7.05733832
B60: 2 | C60: 6 | D60: 1 | E60: -10.39999962 | G60: 14.04739649 | H60: 5.952603507 | I60: 5.952603507 | L60: 10.6720399 | M60: 9.327960097 | N60: 9.327960097
B61: 2 | C61: 7 | D61: 1 | E61: 0.1000000015 | G61: 16.10339437 | H61: 3.896605633 | I61: 3.896605633 | L61: 13.89386815 | M61: 6.10613185 | N61: 6.10613185 | Q61: =((Q58*N6^7)+(R58*N6^6)+(S58*N6^5)+(T58*N6^4)+(U58*N6^3)+(V58*N6^2)+(W58*N6))-((Q58*N4^7)+(R58*N4^6)+(S58*N4^5)+(T58*N4^4)+(U58*N4^3)+(V58*N4^2)+(W58*N4)) -> 21191.74174 | S61: Integrering
B62: 2 | C62: 8 | D62: 1 | E62: -3.200000048 | G62: 15.45722357 | H62: 4.542776427 | I62: 4.542776427 | L62: 12.88129351 | M62: 7.118706494 | N62: 7.118706494
B63: 2 | C63: 9 | D63: 1 | E63: -1.899999976 | G63: 15.71177571 | H63: 4.288224286 | I63: 4.288224286 | L63: 13.28018656 | M63: 6.719813436 | N63: 6.719813436
B64: 2 | C64: 10 | D64: 1 | E64: 0 | G64: 16.08381343 | H64: 3.916186567 | I64: 3.916186567 | L64: 13.86318407 | M64: 6.13681593 | N64: 6.13681593
B65: 2 | C65: 11 | D65: 1 | E65: 1.799999952 | G65: 16.43627021 | H65: 3.563729785 | I65: 3.563729785 | L65: 14.41549749 | M65: 5.584502511 | N65: 5.584502511
B66: 2 | C66: 12 | D66: 1 | E66: 0.6999999881 | G66: 16.22087996 | H66: 3.779120039 | I66: 3.779120039 | L66: 14.07797262 | M66: 5.922027376 | N66: 5.922027376 | Q66: Opvarmning | R66: efter
B67: 2 | C67: 13 | D67: 1 | E67: 0.8000000119 | G67: 16.2404609 | H67: 3.759539102 | I67: 3.759539102 | L67: 14.10865671 | M67: 5.891343289 | N67: 5.891343289
B68: 2 | C68: 14 | D68: 1 | E68: -1.299999952 | G68: 15.82926132 | H68: 4.170738684 | I68: 4.170738684 | L68: 13.46429105 | M68: 6.535708951 | N68: 6.535708951 | Q68: X | R68: X^2 | S68: X^3 | T68: X^4 | U68: X^5 | V68: X^6 | W68: Gradtimer | Y68: Beregnet
B69: 2 | C69: 15 | D69: 1 | E69: -5.400000095 | G69: 15.02644304 | H69: 4.973556958 | I69: 4.973556958 | L69: 12.20624374 | M69: 7.79375626 | N69: 7.79375626 | Q69: 1 | R69: =Q69^2 -> 1 | S69: =Q69^3 -> 1 | T69: =Q69^4 -> 1 | U69: =Q69^5 -> 1 | V69: =Q69^6 -> 1 | W69: =$O$388 -> 1575.351335 | Y69: =($Q$97*Q69^6)+($R$97*Q69^5)+($S$97*Q69^4)+($T$97*Q69^3)+($U$97*Q69^2)+($V$97*Q69)+$W$97 -> 1574.474196
B70: 2 | C70: 16 | D70: 1 | E70: -8.899999619 | G70: 14.34111049 | H70: 5.658889514 | I70: 5.658889514 | L70: 11.1323011 | M70: 8.867698902 | N70: 8.867698902 | Q70: 2 | R70: =Q70^2 -> 4 | S70: =Q70^3 -> 8 | T70: =Q70^4 -> 16 | U70: =Q70^5 -> 32 | V70: =Q70^6 -> 64 | W70: =$O$753 -> 1596.400612 | Y70: =($Q$97*Q70^6)+($R$97*Q70^5)+($S$97*Q70^4)+($T$97*Q70^3)+($U$97*Q70^2)+($V$97*Q70)+$W$97 -> 1593.978748
B71: 2 | C71: 17 | D71: 1 | E71: -11.10000038 | G71: 13.91032981 | H71: 6.089670185 | I71: 6.089670185 | L71: 10.45725111 | M71: 9.542748888 | N71: 9.542748888 | Q71: 3 | R71: 9 | S71: 27 | T71: 81 | U71: 243 | V71: 729 | W71: =$O$1118 -> 1610.730076 | Y71: 1616.312734
B72: 2 | C72: 18 | D72: 1 | E72: -1.200000048 | G72: 15.84884223 | H72: 4.15115777 | I72: 4.15115777 | L72: 13.4949751 | M72: 6.505024901 | N72: 6.505024901 | Q72: 4 | R72: 16 | S72: 64 | T72: 256 | U72: 1024 | V72: 4096 | W72: =$O$1483 -> 1621.684294 | Y72: 1625.210706
B73: 2 | C73: 19 | D73: 1 | E73: -2.200000048 | G73: 15.6530329 | H73: 4.346967098 | I73: 4.346967098 | L73: 13.1881343 | M73: 6.811865697 | N73: 6.811865697 | Q73: 5 | R73: 25 | S73: 125 | T73: 625 | U73: 3125 | V73: 15625 | W73: =$O$1848 -> 1610.300499 | Y73: 1612.538242
B74: 2 | C74: 20 | D74: 1 | E74: -5.099999905 | G74: 15.08518588 | H74: 4.914814123 | I74: 4.914814123 | L74: 12.29829604 | M74: 7.701703963 | N74: 7.701703963 | Q74: 6 | R74: 36 | S74: 216 | T74: 1296 | U74: 7776 | V74: 46656 | W74: =$O$2213 -> 1586.796492 | Y74: 1576.402859
B75: 2 | C75: 21 | D75: 1 | E75: -3.299999952 | G75: 15.43764266 | H75: 4.562357341 | I75: 4.562357341 | L75: 12.85060946 | M75: 7.149390544 | N75: 7.149390544 | Q75: 7 | R75: 49 | S75: 343 | T75: 2401 | U75: 16807 | V75: 117649 | W75: =$O$2578 -> 1526.410226 | Y75: 1519.455059
B76: 2 | C76: 22 | D76: 1 | E76: -0.8999999762 | G76: 15.90758504 | H76: 4.092414957 | I76: 4.092414957 | L76: 13.58702736 | M76: 6.41297264 | N76: 6.41297264 | Q76: 8 | R76: 64 | S76: 512 | T76: 4096 | U76: 32768 | V76: 262144 | W76: =$O$2943 -> 1449.423872 | Y76: 1447.379499
B77: 2 | C77: 23 | D77: 1 | E77: 0 | G77: 16.08381343 | H77: 3.916186567 | I77: 3.916186567 | L77: 13.86318407 | M77: 6.13681593 | N77: 6.13681593 | Q77: 9 | R77: 81 | S77: 729 | T77: 6561 | U77: 59049 | V77: 531441 | W77: =$O$3308 -> 1362.004927 | Y77: 1367.576277
B78: 2 | C78: 24 | D78: 1 | E78: 1 | G78: 16.27962276 | H78: 3.720377238 | I78: 3.720377238 | L78: 14.17002487 | M78: 5.829975134 | N78: 5.829975134 | Q78: 10 | R78: 100 | S78: 1000 | T78: 10000 | U78: 100000 | V78: 1000000 | W78: =$O$3673 -> 1278.298759 | Y78: 1288.032354
B79: 2 | C79: 25 | D79: 1 | E79: 1.200000048 | G79: 16.31878464 | H79: 3.681215363 | I79: 3.681215363 | L79: 14.23139304 | M79: 5.768606959 | N79: 5.768606959 | Q79: 11 | R79: 121 | S79: 1331 | T79: 14641 | U79: 161051 | V79: 1771561 | W79: =$O$4038 -> 1209.68916 | Y79: 1216.383095
B80: 2 | C80: 26 | D80: 1 | E80: 4.400000095 | G80: 16.9453745 | H80: 3.054625503 | I80: 3.054625503 | L80: 15.2132836 | M80: 4.786716396 | N80: 4.786716396 | Q80: 12 | R80: 144 | S80: 1728 | T80: 20736 | U80: 248832 | V80: 2985984 | W80: =$O$4403 -> 1158.109218 | Y80: 1159.163933
B81: 2 | C81: 27 | D81: 1 | E81: 3.200000048 | G81: 16.71040329 | H81: 3.289596707 | I81: 3.289596707 | L81: 14.84507463 | M81: 5.154925366 | N81: 5.154925366 | Q81: 13 | R81: 169 | S81: 2197 | T81: 28561 | U81: 371293 | V81: 4826809 | W81: =$O$4768 -> 1128.560451 | Y81: 1121.252163
B82: 2 | C82: 28 | D82: 1 | E82: 3.799999952 | G82: 16.82788887 | H82: 3.172111128 | I82: 3.172111128 | L82: 15.02917908 | M82: 4.970820918 | N82: 4.970820918 | Q82: 14 | R82: 196 | S82: 2744 | T82: 38416 | U82: 537824 | V82: 7529536 | W82: =$O$5134 -> 1113.586618 | Y82: 1105.498857
B83: 3 | C83: 1 | D83: 1 | E83: 3.400000095 | G83: 16.74956517 | H83: 3.250434832 | I83: 3.250434832 | L83: 14.90644281 | M83: 5.093557193 | N83: 5.093557193 | Q83: 15 | R83: 225 | S83: 3375 | T83: 50625 | U83: 759375 | V83: 11390625 | W83: =$O$5498 -> 1115.581085 | Y83: 1112.550905
B84: 3 | C84: 2 | D84: 1 | E84: -1.100000024 | G84: 15.86842317 | H84: 4.131576832 | I84: 4.131576832 | L84: 13.52565919 | M84: 6.474340814 | N84: 6.474340814 | Q84: 16 | R84: 256 | S84: 4096 | T84: 65536 | U84: 1048576 | V84: 16777216 | W84: =$O$5863 -> 1139.361245 | Y84: 1140.863178
B85: 3 | C85: 3 | D85: 1 | E85: 2 | G85: 16.47543209 | H85: 3.52456791 | I85: 3.52456791 | L85: 14.47686566 | M85: 5.523134337 | N85: 5.523134337 | Q85: 17 | R85: 289 | S85: 4913 | T85: 83521 | U85: 1419857 | V85: 24137569 | W85: =$O$6228 -> 1184.374789 | Y85: 1186.900824
B86: 3 | C86: 4 | D86: 1 | E86: 0.6999999881 | G86: 16.22087996 | H86: 3.779120039 | I86: 3.779120039 | L86: 14.07797262 | M86: 5.922027376 | N86: 5.922027376 | Q86: 18 | R86: 324 | S86: 5832 | T86: 104976 | U86: 1889568 | V86: 34012224 | W86: =$O$6593 -> 1244.423537 | Y86: 1245.531676
B87: 3 | C87: 5 | D87: 1 | E87: 3 | G87: 16.67124142 | H87: 3.328758582 | I87: 3.328758582 | L87: 14.78370646 | M87: 5.216293541 | N87: 5.216293541 | Q87: 19 | R87: 361 | S87: 6859 | T87: 130321 | U87: 2476099 | V87: 47045881 | W87: =$O$6959 -> 1308.154368 | Y87: 1310.608796
B88: 3 | C88: 6 | D88: 1 | E88: -0.1000000015 | G88: 16.0642325 | H88: 3.9357675 | I88: 3.9357675 | L88: 13.83249999 | M88: 6.16750001 | N88: 6.16750001 | Q88: 20 | R88: 400 | S88: 8000 | T88: 160000 | U88: 3200000 | V88: 64000000 | W88: =$O$7323 -> 1372.284093 | Y88: 1375.743139
B89: 3 | C89: 7 | D89: 1 | E89: 4.900000095 | G89: =E89+($C$6-E89)*$C$8/100 -> 17.04327916 | H89: =IF($C$4-G89>0,$C$4-G89,0) -> 2.956720839 | I89: =H89 -> 2.956720839 | L89: =E89+($C$15-E89)*$C$17/100 -> 15.366704 | M89: =IF($C$13-L89>0,$C$13-L89,0) -> 4.633295998 | N89: =M89 -> 4.633295998 | Q89: 21 | R89: 441 | S89: 9261 | T89: 194481 | U89: 4084101 | V89: 85766121 | W89: =$O$7688 -> 1436.659293 | Y89: 1435.266339
B90: 3 | C90: 8 | D90: 1 | E90: 2.099999905 | G90: 16.495013 | H90: 3.504986996 | I90: 3.504986996 | L90: 14.50754971 | M90: 5.492450287 | N90: 5.492450287 | Q90: 22 | R90: 484 | S90: 10648 | T90: 234256 | U90: 5153632 | V90: 113379904 | W90: =$O$8053 -> 1487.932389 | Y90: 1485.383628
B91: 3 | C91: 9 | D91: 1 | E91: -3.299999952 | G91: 15.43764266 | H91: 4.562357341 | I91: 4.562357341 | L91: 12.85060946 | M91: 7.149390544 | N91: 7.149390544 | Q91: 23 | R91: 529 | S91: 12167 | T91: 279841 | U91: 6436343 | V91: 148035889 | W91: =$O$8418 -> 1528.46606 | Y91: 1525.516871
B92: 3 | C92: 10 | D92: 1 | E92: -1.799999952 | G92: 15.73135665 | H92: 4.268643348 | I92: 4.268643348 | L92: 13.31087065 | M92: 6.689129349 | N92: 6.689129349 | Q92: 24 | R92: 576 | S92: 13824 | T92: 331776 | U92: 7962624 | V92: 191102976 | W92: =$O$8783 -> 1557.278411 | Y92: 1559.83773
B93: 3 | C93: 11 | D93: 1 | E93: -1 | G93: 15.88800411 | H93: 4.111995895 | I93: 4.111995895 | L93: 13.55634327 | M93: 6.443656727 | N93: 6.443656727
B94: 3 | C94: 12 | D94: 1 | E94: -0.3000000119 | G94: 16.02507063 | H94: 3.974929367 | I94: 3.974929367 | L94: 13.77113183 | M94: 6.228868173 | N94: 6.228868173 | W94: =SUM(W69:W92) -> 33201.86181 | Y94: =SUM(Y69:Y92) -> 33201.86181
B95: 3 | C95: 13 | D95: 1 | E95: -0.3000000119 | G95: 16.02507063 | H95: 3.974929367 | I95: 3.974929367 | L95: 13.77113183 | M95: 6.228868173 | N95: 6.228868173
B96: 3 | C96: 14 | D96: 1 | E96: 0.1000000015 | G96: 16.10339437 | H96: 3.896605633 | I96: 3.896605633 | L96: 13.89386815 | M96: 6.10613185 | N96: 6.10613185
B97: 3 | C97: 15 | D97: 1 | E97: 0.6000000238 | G97: 16.20129904 | H97: 3.798700965 | I97: 3.798700965 | L97: 14.04728856 | M97: 5.952711445 | N97: 5.952711445 | Q97: =LINEST(W69:W92,Q69:V92,TRUE,TRUE) -> 0.0002640621336 | R97: -0.02128765411 | S97: 0.6211387673 | T97: -7.631019784 | U97: 33.5087726 | V97: -36.27842722 | W97: 1584.274755 | Y97: =IF($N$13=0,0,IF($N$13=1,$Y$69,IF($N$13=2,SUM($Y$69:$Y$70),IF($N$13=3,SUM($Y$69:$Y$71),IF($N$13=4,SUM($Y$69:$Y$72),IF($N$13=5,SUM($Y$69:$Y$73),IF($N$13=6,SUM($Y$69:$Y$74)))))))) -> 0 | Z97: =IF($N$13=7,SUM($Y$69:$Y$75),IF($N$13=8,SUM($Y$69:$Y$76),IF($N$13=9,SUM($Y$69:$Y$77),IF($N$13=10,SUM($Y$69:$Y$78),IF($N$13=11,SUM($Y$69:$Y$79),IF($N$13=12,SUM($Y$69:$Y$80),IF($N$13=13,SUM($Y$69:$Y$81)))))))) -> FALSE | AA97: =IF($N$13=14,SUM($Y$69:$Y$82),IF($N$13=15,SUM($Y$69:$Y$83),IF($N$13=16,SUM($Y$69:$Y$84),IF($N$13=17,SUM($Y$69:$Y$85),IF($N$13=18,SUM($Y$69:$Y$86),IF($N$13=19,SUM($Y$69:$Y$87),IF($N$13=20,SUM($Y$69:$Y$88)))))))) -> FALSE | AB97: =IF($N$13=21,SUM($Y$69:$Y$89),IF($N$13=22,SUM($Y$69:$Y$90),IF($N$13=23,SUM($Y$69:$Y$91),IF($N$13=24,SUM($Y$69:$Y$92))))) -> FALSE | AC97: =SUM(Y97:AB97) -> 0
B98: 3 | C98: 16 | D98: 1 | E98: 1.100000024 | G98: 16.2992037 | H98: 3.700796301 | I98: 3.700796301 | L98: 14.20070895 | M98: 5.799291047 | N98: 5.799291047 | Q98: 2.228141146e-05 | R98: 0.001676146633 | S98: 0.04861408782 | T98: 0.6815333136 | U98: 4.724611888 | V98: 14.65054142 | W98: 14.8350588
B99: 3 | C99: 17 | D99: 1 | E99: -1 | G99: 15.88800411 | H99: 4.111995895 | I99: 4.111995895 | L99: 13.55634327 | M99: 6.443656727 | N99: 6.443656727 | Q99: 0.9992907606 | R99: 5.775569725 | Y99: =IF($N$15=0,0,IF($N$15=1,$Y$69,IF($N$15=2,SUM($Y$69:$Y$70),IF($N$15=3,SUM($Y$69:$Y$71),IF($N$15=4,SUM($Y$69:$Y$72),IF($N$15=5,SUM($Y$69:$Y$73),IF($N$15=6,SUM($Y$69:$Y$74)))))))) -> FALSE | Z99: =IF($N$15=7,SUM($Y$69:$Y$75),IF($N$15=8,SUM($Y$69:$Y$76),IF($N$15=9,SUM($Y$69:$Y$77),IF($N$15=10,SUM($Y$69:$Y$78),IF($N$15=11,SUM($Y$69:$Y$79),IF($N$15=12,SUM($Y$69:$Y$80),IF($N$15=13,SUM($Y$69:$Y$81)))))))) -> FALSE | AA99: =IF($N$15=14,SUM($Y$69:$Y$82),IF($N$15=15,SUM($Y$69:$Y$83),IF($N$15=16,SUM($Y$69:$Y$84),IF($N$15=17,SUM($Y$69:$Y$85),IF($N$15=18,SUM($Y$69:$Y$86),IF($N$15=19,SUM($Y$69:$Y$87),IF($N$15=20,SUM($Y$69:$Y$88)))))))) -> FALSE | AB99: =IF($N$15=21,SUM($Y$69:$Y$89),IF($N$15=22,SUM($Y$69:$Y$90),IF($N$15=23,SUM($Y$69:$Y$91),IF($N$15=24,SUM($Y$69:$Y$92))))) -> 33201.86181 | AC99: =SUM(Y99:AB99) -> 33201.86181
B100: 3 | C100: 18 | D100: 1 | E100: -8.199999809 | G100: 14.47817698 | H100: 5.521823022 | I100: 5.521823022 | L100: 11.3470896 | M100: 8.652910403 | N100: 8.652910403 | Q100: 3992.056333 | R100: 17
B101: 3 | C101: 19 | D101: 1 | E101: -7.699999809 | G101: 14.57608164 | H101: 5.423918357 | I101: 5.423918357 | L101: 11.50051 | M101: 8.499490004 | N101: 8.499490004 | Q101: 798983.0644 | R101: 567.072496 | AC101: =AC99-AC97 -> 33201.86181
B102: 3 | C102: 20 | D102: 1 | E102: -4.800000191 | G102: 15.14392862 | H102: 4.85607138 | I102: 4.85607138 | L102: 12.39034819 | M102: 7.609651812 | N102: 7.609651812
B103: 3 | C103: 21 | D103: 1 | E103: -6.400000095 | G103: 14.83063371 | H103: 5.169366287 | I103: 5.169366287 | L103: 11.89940294 | M103: 8.100597057 | N103: 8.100597057
B104: 3 | C104: 22 | D104: 1 | E104: -2.099999905 | G104: 15.67261386 | H104: 4.327386138 | I104: 4.327386138 | L104: 13.21881843 | M104: 6.781181574 | N104: 6.781181574
B105: 3 | C105: 23 | D105: 1 | E105: -5.300000191 | G105: 15.04602396 | H105: 4.953976044 | I105: 4.953976044 | L105: 12.23692779 | M105: 7.76307221 | N105: 7.76307221
B106: 3 | C106: 24 | D106: 1 | E106: -1.700000048 | G106: 15.75093757 | H106: 4.249062434 | I106: 4.249062434 | L106: 13.3415547 | M106: 6.658445299 | N106: 6.658445299
B107: 3 | C107: 25 | D107: 1 | E107: 1 | G107: 16.27962276 | H107: 3.720377238 | I107: 3.720377238 | L107: 14.17002487 | M107: 5.829975134 | N107: 5.829975134
B108: 3 | C108: 26 | D108: 1 | E108: 2.200000048 | G108: 16.51459397 | H108: 3.485406035 | I108: 3.485406035 | L108: 14.53823384 | M108: 5.461766163 | N108: 5.461766163
B109: 3 | C109: 27 | D109: 1 | E109: 2.400000095 | G109: 16.55375584 | H109: 3.44624416 | I109: 3.44624416 | L109: 14.59960201 | M109: 5.400397989 | N109: 5.400397989
B110: 3 | C110: 28 | D110: 1 | E110: 4 | G110: 16.86705075 | H110: 3.132949253 | I110: 3.132949253 | L110: 15.09054726 | M110: 4.909452744 | N110: 4.909452744
B111: 3 | C111: 29 | D111: 1 | E111: 4.800000191 | G111: 17.02369825 | H111: 2.976301753 | I111: 2.976301753 | L111: 15.33601995 | M111: 4.663980048 | N111: 4.663980048
B112: 3 | C112: 30 | D112: 1 | E112: 5.400000095 | G112: 17.14118382 | H112: 2.858816175 | I112: 2.858816175 | L112: 15.5201244 | M112: 4.4798756 | N112: 4.4798756
B113: 3 | C113: 31 | D113: 1 | E113: 1 | G113: 16.27962276 | H113: 3.720377238 | I113: 3.720377238 | L113: 14.17002487 | M113: 5.829975134 | N113: 5.829975134
B114: 4 | C114: 1 | D114: 1 | E114: -1.899999976 | G114: 15.71177571 | H114: 4.288224286 | I114: 4.288224286 | L114: 13.28018656 | M114: 6.719813436 | N114: 6.719813436
B115: 4 | C115: 2 | D115: 1 | E115: 0.1000000015 | G115: 16.10339437 | H115: 3.896605633 | I115: 3.896605633 | L115: 13.89386815 | M115: 6.10613185 | N115: 6.10613185
B116: 4 | C116: 3 | D116: 1 | E116: 1.399999976 | G116: 16.35794649 | H116: 3.642053512 | I116: 3.642053512 | L116: 14.29276118 | M116: 5.707238822 | N116: 5.707238822
B117: 4 | C117: 4 | D117: 1 | E117: 1.399999976 | G117: 16.35794649 | H117: 3.642053512 | I117: 3.642053512 | L117: 14.29276118 | M117: 5.707238822 | N117: 5.707238822
B118: 4 | C118: 5 | D118: 1 | E118: 2.700000048 | G118: 16.61249863 | H118: 3.387501371 | I118: 3.387501371 | L118: 14.69165424 | M118: 5.308345765 | N118: 5.308345765
B119: 4 | C119: 6 | D119: 1 | E119: -0.3000000119 | G119: 16.02507063 | H119: 3.974929367 | I119: 3.974929367 | L119: 13.77113183 | M119: 6.228868173 | N119: 6.228868173
B120: 4 | C120: 7 | D120: 1 | E120: 2.599999905 | G120: 16.59291767 | H120: 3.407082332 | I120: 3.407082332 | L120: 14.66097011 | M120: 5.339029888 | N120: 5.339029888
B121: 4 | C121: 8 | D121: 1 | E121: 2.099999905 | G121: 16.495013 | H121: 3.504986996 | I121: 3.504986996 | L121: 14.50754971 | M121: 5.492450287 | N121: 5.492450287
B122: 4 | C122: 9 | D122: 1 | E122: 1.299999952 | G122: 16.33836555 | H122: 3.661634449 | I122: 3.661634449 | L122: 14.26207709 | M122: 5.737922909 | N122: 5.737922909
B123: 4 | C123: 10 | D123: 1 | E123: 0.5 | G123: 16.1817181 | H123: 3.818281902 | I123: 3.818281902 | L123: 14.01660447 | M123: 5.983395532 | N123: 5.983395532
B124: 4 | C124: 11 | D124: 1 | E124: 2.099999905 | G124: 16.495013 | H124: 3.504986996 | I124: 3.504986996 | L124: 14.50754971 | M124: 5.492450287 | N124: 5.492450287
B125: 4 | C125: 12 | D125: 1 | E125: 3 | G125: 16.67124142 | H125: 3.328758582 | I125: 3.328758582 | L125: 14.78370646 | M125: 5.216293541 | N125: 5.216293541
B126: 4 | C126: 13 | D126: 1 | E126: 4.400000095 | G126: 16.9453745 | H126: 3.054625503 | I126: 3.054625503 | L126: 15.2132836 | M126: 4.786716396 | N126: 4.786716396
B127: 4 | C127: 14 | D127: 1 | E127: -0.1000000015 | G127: 16.0642325 | H127: 3.9357675 | I127: 3.9357675 | L127: 13.83249999 | M127: 6.16750001 | N127: 6.16750001
B128: 4 | C128: 15 | D128: 1 | E128: 6.599999905 | G128: 17.37615498 | H128: 2.623845018 | I128: 2.623845018 | L128: 15.8883333 | M128: 4.111666702 | N128: 4.111666702
B129: 4 | C129: 16 | D129: 1 | E129: 4.400000095 | G129: 16.9453745 | H129: 3.054625503 | I129: 3.054625503 | L129: 15.2132836 | M129: 4.786716396 | N129: 4.786716396
B130: 4 | C130: 17 | D130: 1 | E130: 4.300000191 | G130: 16.92579358 | H130: 3.074206417 | I130: 3.074206417 | L130: 15.18259955 | M130: 4.817400446 | N130: 4.817400446
B131: 4 | C131: 18 | D131: 1 | E131: 3.700000048 | G131: 16.80830796 | H131: 3.191692042 | I131: 3.191692042 | L131: 14.99849503 | M131: 5.001504968 | N131: 5.001504968
B132: 4 | C132: 19 | D132: 1 | E132: -1 | G132: 15.88800411 | H132: 4.111995895 | I132: 4.111995895 | L132: 13.55634327 | M132: 6.443656727 | N132: 6.443656727
B133: 4 | C133: 20 | D133: 1 | E133: 6.400000095 | G133: 17.33699315 | H133: 2.663006847 | I133: 2.663006847 | L133: 15.8269652 | M133: 4.173034803 | N133: 4.173034803
B134: 4 | C134: 21 | D134: 1 | E134: 5.199999809 | G134: 17.1020219 | H134: 2.897978097 | I134: 2.897978097 | L134: 15.45875615 | M134: 4.541243847 | N134: 4.541243847
B135: 4 | C135: 22 | D135: 1 | E135: 2.599999905 | G135: 16.59291767 | H135: 3.407082332 | I135: 3.407082332 | L135: 14.66097011 | M135: 5.339029888 | N135: 5.339029888
B136: 4 | C136: 23 | D136: 1 | E136: 6 | G136: 17.2586694 | H136: 2.741330597 | I136: 2.741330597 | L136: 15.70422885 | M136: 4.295771151 | N136: 4.295771151
B137: 4 | C137: 24 | D137: 1 | E137: 5 | G137: 17.06286008 | H137: 2.937139925 | I137: 2.937139925 | L137: 15.39738805 | M137: 4.602611948 | N137: 4.602611948
B138: 4 | C138: 25 | D138: 1 | E138: 6 | G138: 17.2586694 | H138: 2.741330597 | I138: 2.741330597 | L138: 15.70422885 | M138: 4.295771151 | N138: 4.295771151
B139: 4 | C139: 26 | D139: 1 | E139: 6.400000095 | G139: 17.33699315 | H139: 2.663006847 | I139: 2.663006847 | L139: 15.8269652 | M139: 4.173034803 | N139: 4.173034803
B140: 4 | C140: 27 | D140: 1 | E140: 2.099999905 | G140: 16.495013 | H140: 3.504986996 | I140: 3.504986996 | L140: 14.50754971 | M140: 5.492450287 | N140: 5.492450287
B141: 4 | C141: 28 | D141: 1 | E141: 7.699999809 | G141: 17.59154522 | H141: 2.408454776 | I141: 2.408454776 | L141: 16.22585814 | M141: 3.774141856 | N141: 3.774141856
B142: 4 | C142: 29 | D142: 1 | E142: 5.699999809 | G142: 17.19992657 | H142: 2.800073433 | I142: 2.800073433 | L142: 15.61217655 | M142: 4.387823449 | N142: 4.387823449
B143: 4 | C143: 30 | D143: 1 | E143: 7.699999809 | G143: 17.59154522 | H143: 2.408454776 | I143: 2.408454776 | L143: 16.22585814 | M143: 3.774141856 | N143: 3.774141856
B144: 5 | C144: 1 | D144: 1 | E144: 1.799999952 | G144: 16.43627021 | H144: 3.563729785 | I144: 3.563729785 | L144: 14.41549749 | M144: 5.584502511 | N144: 5.584502511
B145: 5 | C145: 2 | D145: 1 | E145: 4.699999809 | G145: 17.00411724 | H145: 2.995882761 | I145: 2.995882761 | L145: 15.30533575 | M145: 4.694664245 | N145: 4.694664245
B146: 5 | C146: 3 | D146: 1 | E146: 7.400000095 | G146: 17.53280248 | H146: 2.467197518 | I146: 2.467197518 | L146: 16.13380599 | M146: 3.866194007 | N146: 3.866194007
B147: 5 | C147: 4 | D147: 1 | E147: 9.600000381 | G147: 17.96358306 | H147: 2.03641694 | I147: 2.03641694 | L147: 16.80885583 | M147: 3.191144167 | N147: 3.191144167
B148: 5 | C148: 5 | D148: 1 | E148: 9.800000191 | G148: 18.00274489 | H148: 1.997255112 | I148: 1.997255112 | L148: 16.87022393 | M148: 3.129776066 | N148: 3.129776066
B149: 5 | C149: 6 | D149: 1 | E149: 9 | G149: 17.84609739 | H149: 2.153902612 | I149: 2.153902612 | L149: 16.62475124 | M149: 3.375248762 | N149: 3.375248762
B150: 5 | C150: 7 | D150: 1 | E150: 10.89999962 | G150: 18.21813504 | H150: 1.781864962 | I150: 1.781864962 | L150: 17.20774864 | M150: 2.792251365 | N150: 2.792251365
B151: 5 | C151: 8 | D151: 1 | E151: 9.399999619 | G151: 17.92442105 | H151: 2.075578955 | I151: 2.075578955 | L151: 16.74748744 | M151: 3.25251256 | N151: 3.25251256
B152: 5 | C152: 9 | D152: 1 | E152: 5.900000095 | G152: 17.23908849 | H152: 2.760911511 | I152: 2.760911511 | L152: 15.6735448 | M152: 4.326455202 | N152: 4.326455202
B153: 5 | C153: 10 | D153: 1 | E153: 3.599999905 | G153: =E153+($C$6-E153)*$C$8/100 -> 16.788727 | H153: =IF($C$4-G153>0,$C$4-G153,0) -> 3.211273003 | I153: =H153 -> 3.211273003 | L153: =E153+($C$15-E153)*$C$17/100 -> 14.96781091 | M153: =IF($C$13-L153>0,$C$13-L153,0) -> 5.032189092 | N153: =M153 -> 5.032189092
B154: 5 | C154: 11 | D154: 1 | E154: 12 | G154: 18.43352537 | H154: 1.566474627 | I154: 1.566474627 | L154: 17.54527363 | M154: 2.454726372 | N154: 2.454726372
B155: 5 | C155: 12 | D155: 1 | E155: 8 | G155: 17.65028806 | H155: 2.34971194 | I155: 2.34971194 | L155: 16.31791044 | M155: 3.682089558 | N155: 3.682089558
B156: 5 | C156: 13 | D156: 1 | E156: 10.69999981 | G156: 18.17897321 | H156: 1.821026791 | I156: 1.821026791 | L156: 17.14638053 | M156: 2.853619466 | N156: 2.853619466
B157: 5 | C157: 14 | D157: 1 | E157: 5 | G157: 17.06286008 | H157: 2.937139925 | I157: 2.937139925 | L157: 15.39738805 | M157: 4.602611948 | N157: 4.602611948
B158: 5 | C158: 15 | D158: 1 | E158: 6.300000191 | G158: 17.31741224 | H158: 2.682587761 | I158: 2.682587761 | L158: 15.79628115 | M158: 4.203718853 | N158: 4.203718853
B159: 5 | C159: 16 | D159: 1 | E159: 4.599999905 | G159: 16.98453633 | H159: 3.015463675 | I159: 3.015463675 | L159: 15.2746517 | M159: 4.725348295 | N159: 4.725348295
B160: 5 | C160: 17 | D160: 1 | E160: 5.800000191 | G160: 17.21950758 | H160: 2.780492425 | I160: 2.780492425 | L160: 15.64286075 | M160: 4.357139252 | N160: 4.357139252
B161: 5 | C161: 18 | D161: 1 | E161: 5.400000095 | G161: 17.14118382 | H161: 2.858816175 | I161: 2.858816175 | L161: 15.5201244 | M161: 4.4798756 | N161: 4.4798756
B162: 5 | C162: 19 | D162: 1 | E162: 10.5 | G162: 18.13981138 | H162: 1.860188619 | I162: 1.860188619 | L162: 17.08501243 | M162: 2.914987567 | N162: 2.914987567
B163: 5 | C163: 20 | D163: 1 | E163: 5.699999809 | G163: 17.19992657 | H163: 2.800073433 | I163: 2.800073433 | L163: 15.61217655 | M163: 4.387823449 | N163: 4.387823449
B164: 5 | C164: 21 | D164: 1 | E164: 9.399999619 | G164: 17.92442105 | H164: 2.075578955 | I164: 2.075578955 | L164: 16.74748744 | M164: 3.25251256 | N164: 3.25251256
B165: 5 | C165: 22 | D165: 1 | E165: 10.30000019 | G165: 18.10064955 | H165: 1.899350448 | I165: 1.899350448 | L165: 17.02364433 | M165: 2.976355668 | N165: 2.976355668
B166: 5 | C166: 23 | D166: 1 | E166: 4 | G166: 16.86705075 | H166: 3.132949253 | I166: 3.132949253 | L166: 15.09054726 | M166: 4.909452744 | N166: 4.909452744
B167: 5 | C167: 24 | D167: 1 | E167: 8.899999619 | G167: 17.82651638 | H167: 2.173483619 | I167: 2.173483619 | L167: 16.59406704 | M167: 3.405932958 | N167: 3.405932958
B168: 5 | C168: 25 | D168: 1 | E168: 7.699999809 | G168: 17.59154522 | H168: 2.408454776 | I168: 2.408454776 | L168: 16.22585814 | M168: 3.774141856 | N168: 3.774141856
B169: 5 | C169: 26 | D169: 1 | E169: 11.39999962 | G169: 18.3160397 | H169: 1.683960298 | I169: 1.683960298 | L169: 17.36116903 | M169: 2.638830967 | N169: 2.638830967
B170: 5 | C170: 27 | D170: 1 | E170: 8.699999809 | G170: 17.78735455 | H170: 2.212645448 | I170: 2.212645448 | L170: 16.53269894 | M170: 3.467301059 | N170: 3.467301059
B171: 5 | C171: 28 | D171: 1 | E171: 12.30000019 | G171: 18.49226821 | H171: 1.507731791 | I171: 1.507731791 | L171: 17.63732593 | M171: 2.362674075 | N171: 2.362674075
B172: 5 | C172: 29 | D172: 1 | E172: 3 | G172: 16.67124142 | H172: 3.328758582 | I172: 3.328758582 | L172: 14.78370646 | M172: 5.216293541 | N172: 5.216293541
B173: 5 | C173: 30 | D173: 1 | E173: 4 | G173: 16.86705075 | H173: 3.132949253 | I173: 3.132949253 | L173: 15.09054726 | M173: 4.909452744 | N173: 4.909452744
B174: 5 | C174: 31 | D174: 1 | E174: 3.700000048 | G174: 16.80830796 | H174: 3.191692042 | I174: 3.191692042 | L174: 14.99849503 | M174: 5.001504968 | N174: 5.001504968
B175: 6 | C175: 1 | D175: 1 | E175: 6.599999905 | G175: 17.37615498 | H175: 2.623845018 | I175: 2.623845018 | L175: 15.8883333 | M175: 4.111666702 | N175: 4.111666702
B176: 6 | C176: 2 | D176: 1 | E176: 8.199999809 | G176: 17.68944989 | H176: 2.310550112 | I176: 2.310550112 | L176: 16.37927854 | M176: 3.620721457 | N176: 3.620721457
B177: 6 | C177: 3 | D177: 1 | E177: 11 | G177: 18.23771605 | H177: 1.762283955 | I177: 1.762283955 | L177: 17.23843283 | M177: 2.761567169 | N177: 2.761567169
B178: 6 | C178: 4 | D178: 1 | E178: 12.10000038 | G178: 18.45310638 | H178: 1.546893619 | I178: 1.546893619 | L178: 17.57595782 | M178: 2.424042176 | N178: 2.424042176
B179: 6 | C179: 5 | D179: 1 | E179: 12 | G179: 18.43352537 | H179: 1.566474627 | I179: 1.566474627 | L179: 17.54527363 | M179: 2.454726372 | N179: 2.454726372
B180: 6 | C180: 6 | D180: 1 | E180: 16.20000076 | G180: 19.2559247 | H180: 0.7440752988 | I180: 0.7440752988 | L180: 18.83400521 | M180: 1.165994794 | N180: 1.165994794
B181: 6 | C181: 7 | D181: 1 | E181: 14.89999962 | G181: 19.00137235 | H181: 0.9986276489 | I181: 0.9986276489 | L181: 18.43511182 | M181: 1.564888179 | N181: 1.564888179
B182: 6 | C182: 8 | D182: 1 | E182: 13.69999981 | G182: 18.76640119 | H182: 1.233598806 | I182: 1.233598806 | L182: 18.06690292 | M182: 1.933097076 | N182: 1.933097076
B183: 6 | C183: 9 | D183: 1 | E183: 16.79999924 | G183: 19.37341 | H183: 0.6265899995 | I183: 0.6265899995 | L183: 19.01810922 | M183: 0.981890782 | N183: 0.981890782
B184: 6 | C184: 10 | D184: 1 | E184: 16.5 | G184: 19.31466735 | H184: 0.6853326492 | I184: 0.6853326492 | L184: 18.92605721 | M184: 1.073942788 | N184: 1.073942788
B185: 6 | C185: 11 | D185: 1 | E185: 16.5 | G185: 19.31466735 | H185: 0.6853326492 | I185: 0.6853326492 | L185: 18.92605721 | M185: 1.073942788 | N185: 1.073942788
B186: 6 | C186: 12 | D186: 1 | E186: 14.80000019 | G186: 18.98179153 | H186: 1.01820847 | I186: 1.01820847 | L186: 18.40442792 | M186: 1.595572084 | N186: 1.595572084
B187: 6 | C187: 13 | D187: 1 | E187: 9.600000381 | G187: 17.96358306 | H187: 2.03641694 | I187: 2.03641694 | L187: 16.80885583 | M187: 3.191144167 | N187: 3.191144167
B188: 6 | C188: 14 | D188: 1 | E188: 12.60000038 | G188: 18.55101104 | H188: 1.448988955 | I188: 1.448988955 | L188: 17.72937822 | M188: 2.270621778 | N188: 2.270621778
B189: 6 | C189: 15 | D189: 1 | E189: 16.39999962 | G189: 19.29508634 | H189: 0.7049136564 | I189: 0.7049136564 | L189: 18.89537302 | M189: 1.104626984 | N189: 1.104626984
B190: 6 | C190: 16 | D190: 1 | E190: 13.5 | G190: 18.72723937 | H190: 1.272760634 | I190: 1.272760634 | L190: 18.00553482 | M190: 1.994465177 | N190: 1.994465177
B191: 6 | C191: 17 | D191: 1 | E191: 11 | G191: 18.23771605 | H191: 1.762283955 | I191: 1.762283955 | L191: 17.23843283 | M191: 2.761567169 | N191: 2.761567169
B192: 6 | C192: 18 | D192: 1 | E192: 13.39999962 | G192: 18.70765836 | H192: 1.292341641 | I192: 1.292341641 | L192: 17.97485063 | M192: 2.025149374 | N192: 2.025149374
B193: 6 | C193: 19 | D193: 1 | E193: 13.80000019 | G193: 18.7859822 | H193: 1.214017798 | I193: 1.214017798 | L193: 18.09758712 | M193: 1.90241288 | N193: 1.90241288
B194: 6 | C194: 20 | D194: 1 | E194: 14 | G194: 18.82514403 | H194: 1.17485597 | I194: 1.17485597 | L194: 18.15895522 | M194: 1.841044779 | N194: 1.841044779
B195: 6 | C195: 21 | D195: 1 | E195: 10 | G195: 18.04190672 | H195: 1.958093283 | I195: 1.958093283 | L195: 16.93159203 | M195: 3.068407965 | N195: 3.068407965
B196: 6 | C196: 22 | D196: 1 | E196: 10.89999962 | G196: 18.21813504 | H196: 1.781864962 | I196: 1.781864962 | L196: 17.20774864 | M196: 2.792251365 | N196: 2.792251365
B197: 6 | C197: 23 | D197: 1 | E197: 11 | G197: 18.23771605 | H197: 1.762283955 | I197: 1.762283955 | L197: 17.23843283 | M197: 2.761567169 | N197: 2.761567169
B198: 6 | C198: 24 | D198: 1 | E198: 8.199999809 | G198: 17.68944989 | H198: 2.310550112 | I198: 2.310550112 | L198: 16.37927854 | M198: 3.620721457 | N198: 3.620721457
B199: 6 | C199: 25 | D199: 1 | E199: 12 | G199: 18.43352537 | H199: 1.566474627 | I199: 1.566474627 | L199: 17.54527363 | M199: 2.454726372 | N199: 2.454726372
B200: 6 | C200: 26 | D200: 1 | E200: 9.899999619 | G200: 18.02232571 | H200: 1.977674291 | I200: 1.977674291 | L200: 16.90090784 | M200: 3.099092162 | N200: 3.099092162
B201: 6 | C201: 27 | D201: 1 | E201: 9.699999809 | G201: 17.98316388 | H201: 2.016836119 | I201: 2.016836119 | L201: 16.83953974 | M201: 3.160460263 | N201: 3.160460263
B202: 6 | C202: 28 | D202: 1 | E202: 8.100000381 | G202: 17.66986907 | H202: 2.330130933 | I202: 2.330130933 | L202: 16.34859464 | M202: 3.651405361 | N202: 3.651405361
B203: 6 | C203: 29 | D203: 1 | E203: 10 | G203: 18.04190672 | H203: 1.958093283 | I203: 1.958093283 | L203: 16.93159203 | M203: 3.068407965 | N203: 3.068407965
B204: 6 | C204: 30 | D204: 1 | E204: 11 | G204: 18.23771605 | H204: 1.762283955 | I204: 1.762283955 | L204: 17.23843283 | M204: 2.761567169 | N204: 2.761567169
B205: 7 | C205: 1 | D205: 1 | E205: 10.30000019 | G205: 18.10064955 | H205: 1.899350448 | I205: 1.899350448 | L205: 17.02364433 | M205: 2.976355668 | N205: 2.976355668
B206: 7 | C206: 2 | D206: 1 | E206: 11.30000019 | G206: 18.29645888 | H206: 1.703541119 | I206: 1.703541119 | L206: 17.33048513 | M206: 2.669514871 | N206: 2.669514871
B207: 7 | C207: 3 | D207: 1 | E207: 12 | G207: 18.43352537 | H207: 1.566474627 | I207: 1.566474627 | L207: 17.54527363 | M207: 2.454726372 | N207: 2.454726372
B208: 7 | C208: 4 | D208: 1 | E208: 14 | G208: 18.82514403 | H208: 1.17485597 | I208: 1.17485597 | L208: 18.15895522 | M208: 1.841044779 | N208: 1.841044779
B209: 7 | C209: 5 | D209: 1 | E209: 14.60000038 | G209: 18.9426297 | H209: 1.057370299 | I209: 1.057370299 | L209: 18.34305982 | M209: 1.656940185 | N209: 1.656940185
B210: 7 | C210: 6 | D210: 1 | E210: 16 | G210: 19.21676269 | H210: 0.7832373133 | I210: 0.7832373133 | L210: 18.77263681 | M210: 1.227363186 | N210: 1.227363186
B211: 7 | C211: 7 | D211: 1 | E211: 14.5 | G211: 18.92304869 | H211: 1.076951306 | I211: 1.076951306 | L211: 18.31237562 | M211: 1.687624381 | N211: 1.687624381
B212: 7 | C212: 8 | D212: 1 | E212: 15.60000038 | G212: 19.13843903 | H212: 0.8615609702 | I212: 0.8615609702 | L212: 18.64990061 | M212: 1.350099388 | N212: 1.350099388
... 4288 more rows

Sheet Veksler (hidden)
C2: Før | E2: Efter
P3: Krydsveksler
B4: Ind | C4: =Varme_og_Køl_1!D7 -> 35000 | E4: =Varme_og_Køl_1!J7 -> 1000 | P4: Modstrømsveksler
P5: Roterende veksler
B6: Ud | C6: =Varme_og_Køl_1!D9 -> 35000 | E6: =Varme_og_Køl_1!J9 -> 1000 | P6: Væskekoblede vekslere
B8: Eta | C8: =Varme_og_Køl_1!D21/100 -> 0.7022220203 | E8: =IF(OR(P8=2,P8=3,P8=4),H23,I59) -> 0.6931592035 | P8: 2
P10: =INDEX(P2:P6,P8) -> Krydsveksler
B11: Function eps(n, NTU, Z, Zm)
B13: Reference | G13: Drift
B15: n =20 | C15: 20 | G15: n =20 | H15: 20
B17: NTU | C17: 1.117829076 | G17: NTU | H17: =H26/((E4/3600)*1.2*1.005*1000) -> 3.247848892
B19: Z | C19: =C4/C6 -> 1 | G19: Z | H19: =E4/E6 -> 1
B21: Zm | C21: 1 | G21: Zm | H21: 1
B23: EPS | C23: =IF(P8=2,epscrex(C15,C17,C19),IF(P8=3,epscount(C17,C19),IF(P8=4,epsrot(C17,C19,C21),IF(P8=5,epsvaeske(C17,C19))))) -> 0.4999999999 | D23: =C8 -> 0.7022220203 | E23: =D23-C23 -> 0.2022220204 | G23: EPS | H23: =IF(P8=2,epscrex(H15,H17,H19),IF(P8=3,epscount(H17,H19),IF(P8=4,epsrot(H17,H19,H21),IF(P8=5,epsvaeske(H17,H19))))) -> 0.6931592035
B26: UA | C26: =(((C4/3600)*1.2*1.005)*1000)*C17 -> 13106.54591 | D26: W/K | G26: UA | H26: =1/((1/H28)+(1/H30)) -> 1088.029379 | I26: W/K
B28: UA1 | C28: =C26*(1+(C4/C6)^0.7) -> 26213.09183 | D28: W/K | G28: UA1 | H28: =C28*(E4/C4)^0.7 -> 2176.058757 | I28: W/K
B30: UA2 | C30: =C28*(C6/C4)^0.7 -> 26213.09183 | D30: W/K | G30: UA2 | H30: =C30*(E6/C6)^0.7 -> 2176.058757 | I30: W/K
B34: Reference | H34: Drift
C36: Veks 1 | E36: Veks 2 | I36: Veks 1 | K36: Veks 2
B38: Z1 tot | C38: =C4/C6 -> 1 | H38: Z1 tot | I38: =E4/E6 -> 1
B40: C1 | C40: =+C4/3600*352/(283)*1004 -> 12141.02866 | H40: C1 | I40: =+E4/3600*352/(283)*1004 -> 346.8865332
B42: Cm | C42: =+AVERAGE(C40,C44) -> 12141.02866 | H42: Cm | I42: =+AVERAGE(I40,I44) -> 346.8865332
B44: C2 | C44: =C40/C38 -> 12141.02866 | H44: C2 | I44: =I40/I38 -> 346.8865332
B46: Zm | C46: =C40/C42 -> 1 | E46: =C44/C42 -> 1 | H46: Zm | I46: =I40/I42 -> 1 | K46: =I44/I42 -> 1
B48: NTUm | C48: 2.000000711 | E48: =E53/C44 -> 2.000000711 | H48: NTUm | I48: =I53/I40 -> 5.810995823 | K48: =K53/I44 -> 5.810995823
B50: EPS1 | C50: =+epsvaeske(C48,C46) -> 0.6666667456 | E50: =+epsvaeske(E48,E46) -> 0.6666667456 | H50: EPS1 | I50: =+epsvaeske(I48,I46) -> 0.8531785915 | K50: =+epsvaeske(K48,K46) -> 0.8531785915
B53: UA | C53: =C40*C48 -> 24282.06595 | D53: W/K | E53: =1/(1/E55+1/E57) -> 24282.06595 | F53: W/K | H53: UA | I53: =1/(1/I55+1/I57) -> 2015.756195 | J53: W/K | K53: =1/(1/K55+1/K57) -> 2015.756195 | L53: W/K
B55: U1 | C55: =+C53*(1+(C40/C42)^0.7) -> 48564.1319 | D55: W/K | E55: =+C55*(C44/C40)^0.7 -> 48564.1319 | F55: W/K | H55: U1 | I55: =+C55*(I40/C40)^0.7 -> 4031.512391 | J55: W/K | K55: =+E55*(I44/C44)^0.7 -> 4031.512391 | L55: W/K
B57: Um1 | C57: =+C55*(C42/C40)^0.7 -> 48564.1319 | D57: W/K | E57: =+C55*(C42/C40)^0.7 -> 48564.1319 | F57: W/K | H57: Um1 | I57: =+C57*(I42/C42)^0.7 -> 4031.512391 | J57: W/K | K57: =+E57*(I42/C42)^0.7 -> 4031.512391 | L57: W/K
B59: EPS1tot,ref | C59: =1/(1/C50+1/E50*C40/C44-C40/C42) -> 0.5000000888 | H59: EPS1tot,ref | I59: =1/(1/I50+1/K50*I40/I44-I40/I42) -> 0.7439507017
B61: EPSref | C61: =C8 -> 0.7022220203
B63: Diff | C63: =C59-C61 -> -0.2022219315

Sheet Køl (hidden)
B2: Temp. ind køl | C2: =Varme_og_Køl_1!D49 -> 16 | D2: ° C | F2: Temp overflade | H2: =Varme_og_Køl_1!D51 -> 6 | J2: Start | K2: =Varme_og_Køl_1!D55 -> 0 | M2: Stop | N2: =Varme_og_Køl_1!D57 -> 24 | P2: Antal dage | Q2: =Varme_og_Køl_1!D59 -> 7
B4: Temp. ind køl | C4: =Varme_og_Køl_1!J49 -> 16 | D4: ° C | F4: Temp overflade | H4: =Varme_og_Køl_1!J51 -> 6 | J4: Start | K4: =Varme_og_Køl_1!J55 -> 0 | M4: Stop | N4: =Varme_og_Køl_1!J57 -> 24 | P4: Antal dage | Q4: =Varme_og_Køl_1!J59 -> 7
B7: Maaned | C7: Dag | D7: Time | E7: Lufttemp | F7: Dugpunkt | G7: Relativluft | H7: pm1 | I7: x1 | J7: h1 | K7: pmk1 | L7: xk | M7: hk | N7: a | O7: b | P7: x2 | Q7: h2 | R7: pmk1 | S7: xk | T7: hk | U7: a | V7: b | W7: x2 | X7: h2 | Y7: Tør køling | Z7: Energi tør | AA7: Våd køling | AB7: Energi våd | AC7: Sum | AE7: Tør køling | AF7: Energi tør | AG7: Våd køling | AH7: Energi våd | AI7: Sum | AL7: Før | AO7: Efter
B8: {1..12} | C8: {1..31} | D8: {1..24} | E8: [grd. C] | F8: [grd. C] | G8: [%]
B11: 1 | C11: 1 | D11: 1 | E11: 2.799999952 | F11: -0.200000003 | G11: 80 | H11: =(('pm1'!$B$41*Køl!E11^3)+('pm1'!$C$41*Køl!E11^2)+('pm1'!$D$41*Køl!E11)+'pm1'!$E$41)/1000 -> 0.00713567971 | I11: =0.622*((G11/100)*H11)/((1.013-((G11/100)*H11))) -> 0.003525011755 | J11: =(1.006*E11)+(I11*((1.86*E11)+2501)) -> 11.65121261 | K11: =(('pm1'!$B$41*Køl!$H$2^3)+('pm1'!$C$41*Køl!$H$2^2)+('pm1'!$D$41*Køl!$H$2)+'pm1'!$E$41)/1000 -> 0.008964720962 | L11: =0.622*((100/100)*K11)/((1.013-((100/100)*K11))) -> 0.005553645927 | M11: =(1.006*$H$2)+(L11*((1.86*$H$2)+2501)) -> 19.98764715 | N11: =IF(I11-L11=0,0,(E11-$H$2)/(I11-L11)) -> 1577.416023 | O11: =E11-(N11*I11) -> -2.760410069 | P11: =IF(N11=0,L11,($C$2-O11)/N11) -> 0.01189312762 | Q11: =(1.006*$C$2)+(P11*((1.86*$C$2)+2501)) -> 46.19465166 | R11: =(('pm1'!$B$41*Køl!$H$4^3)+('pm1'!$C$41*Køl!$H$4^2)+('pm1'!$D$41*Køl!$H$4)+'pm1'!$E$41)/1000 -> 0.008964720962 | S11: =0.622*((100/100)*R11)/((1.013-((100/100)*R11))) -> 0.005553645927 | T11: =(1.006*$H$4)+(S11*((1.86*$H$4)+2501)) -> 19.98764715 | U11: =IF(I11-S11=0,0,(E11-$H$4)/(I11-S11)) -> 1577.416023 | V11: =E11-(U11*I11) -> -2.760410069 | W11: =IF(U11=0,S11,($C$4-V11)/U11) -> 0.01189312762 | X11: =(1.006*$C$4)+(W11*((1.86*$C$4)+2501)) -> 46.19465166 | Y11: =IF(E11<$C$2,0,IF($H$2>F11,E11-$C$2)) -> 0 | Z11: =1.2*(Varme_og_Køl_1!$D$43/3600)*Y11 -> 0 | AA11: =IF($H$2<=F11,IF(Q11>J11,0,Q11-J11),0) -> 0 | AB11: =-1*1.2*(Varme_og_Køl_1!$D$43/3600)*AA11 -> 0 | AC11: =Z11+AB11 -> 0 | AE11: =IF(E11<$C$4,0,IF($H$4>F11,E11-$C$4)) -> 0 | AF11: =1.2*(Varme_og_Køl_1!$J$43/3600)*AE11 -> 0 | AG11: =IF($H$4<=F11,IF(X11>J11,0,X11-J11),0) -> 0 | AH11: =-1*1.2*(Varme_og_Køl_1!$J$43/3600)*AG11 -> 0 | AI11: =AF11+AH11 -> 0 | AL11: 1 | AM11: =AD375 -> 11.21608954 | AO11: 1 | AP11: =AJ375 -> 11.21608954
B12: 1 | C12: 2 | D12: 1 | E12: 4.599999905 | F12: -1.399999976 | G12: 63 | H12: =(('pm1'!$B$41*Køl!E12^3)+('pm1'!$C$41*Køl!E12^2)+('pm1'!$D$41*Køl!E12)+'pm1'!$E$41)/1000 -> 0.008109291268 | I12: =0.622*((G12/100)*H12)/((1.013-((G12/100)*H12))) -> 0.003152827453 | J12: =(1.006*E12)+(I12*((1.86*E12)+2501)) -> 12.53979696 | K12: =(('pm1'!$B$41*Køl!$H$2^3)+('pm1'!$C$41*Køl!$H$2^2)+('pm1'!$D$41*Køl!$H$2)+'pm1'!$E$41)/1000 -> 0.008964720962 | L12: =0.622*((100/100)*K12)/((1.013-((100/100)*K12))) -> 0.005553645927 | M12: =(1.006*$H$2)+(L12*((1.86*$H$2)+2501)) -> 19.98764715 | N12: =IF(I12-L12=0,0,(E12-$H$2)/(I12-L12)) -> 583.134506 | O12: =E12-(N12*I12) -> 2.761477426 | P12: =IF(N12=0,L12,($C$2-O12)/N12) -> 0.02270234815 | Q12: =(1.006*$C$2)+(P12*((1.86*$C$2)+2501)) -> 73.55019461 | R12: =(('pm1'!$B$41*Køl!$H$4^3)+('pm1'!$C$41*Køl!$H$4^2)+('pm1'!$D$41*Køl!$H$4)+'pm1'!$E$41)/1000 -> 0.008964720962 | S12: =0.622*((100/100)*R12)/((1.013-((100/100)*R12))) -> 0.005553645927 | T12: =(1.006*$H$4)+(S12*((1.86*$H$4)+2501)) -> 19.98764715 | U12: =IF(I12-S12=0,0,(E12-$H$4)/(I12-S12)) -> 583.134506 | V12: =E12-(U12*I12) -> 2.761477426 | W12: =IF(U12=0,S12,($C$4-V12)/U12) -> 0.02270234815 | X12: =(1.006*$C$4)+(W12*((1.86*$C$4)+2501)) -> 73.55019461 | Y12: =IF(E12<$C$2,0,IF($H$2>F12,E12-$C$2)) -> 0 | Z12: =1.2*(Varme_og_Køl_1!$D$43/3600)*Y12 -> 0 | AA12: =IF($H$2<=F12,IF(Q12>J12,0,Q12-J12),0) -> 0 | AB12: =-1*1.2*(Varme_og_Køl_1!$D$43/3600)*AA12 -> 0 | AC12: =Z12+AB12 -> 0 | AE12: =IF(E12<$C$4,0,IF($H$4>F12,E12-$C$4)) -> 0 | AF12: =1.2*(Varme_og_Køl_1!$J$43/3600)*AE12 -> 0 | AG12: =IF($H$4<=F12,IF(X12>J12,0,X12-J12),0) -> 0 | AH12: =-1*1.2*(Varme_og_Køl_1!$J$43/3600)*AG12 -> 0 | AI12: =AF12+AH12 -> 0 | AL12: 2 | AM12: =AD740 -> 7.781760868 | AO12: 2 | AP12: =AJ740 -> 7.781760868
B13: 1 | C13: 3 | D13: 1 | E13: 1.600000024 | F13: 0.6000000238 | G13: 93 | H13: =(('pm1'!$B$41*Køl!E13^3)+('pm1'!$C$41*Køl!E13^2)+('pm1'!$D$41*Køl!E13)+'pm1'!$E$41)/1000 -> 0.006559704398 | I13: 0.003768525757 | J13: 11.04589808 | K13: =(('pm1'!$B$41*Køl!$H$2^3)+('pm1'!$C$41*Køl!$H$2^2)+('pm1'!$D$41*Køl!$H$2)+'pm1'!$E$41)/1000 -> 0.008964720962 | L13: 0.005553645927 | M13: 19.98764715 | N13: 2464.820044 | O13: -7.688737798 | P13: 0.009610737245 | Q13: 40.41846939 | R13: =(('pm1'!$B$41*Køl!$H$4^3)+('pm1'!$C$41*Køl!$H$4^2)+('pm1'!$D$41*Køl!$H$4)+'pm1'!$E$41)/1000 -> 0.008964720962 | S13: 0.005553645927 | T13: 19.98764715 | U13: 2464.820044 | V13: -7.688737798 | W13: 0.009610737245 | X13: 40.41846939 | Y13: 0 | Z13: =1.2*(Varme_og_Køl_1!$D$43/3600)*Y13 -> 0 | AA13: 0 | AB13: =-1*1.2*(Varme_og_Køl_1!$D$43/3600)*AA13 -> 0 | AC13: 0 | AE13: 0 | AF13: =1.2*(Varme_og_Køl_1!$J$43/3600)*AE13 -> 0 | AG13: 0 | AH13: =-1*1.2*(Varme_og_Køl_1!$J$43/3600)*AG13 -> 0 | AI13: 0 | AL13: 3 | AM13: =AD1105 -> 8.445822496 | AO13: 3 | AP13: =AJ1105 -> 8.445822496
B14: 1 | C14: 4 | D14: 1 | E14: 1.700000048 | F14: -0.3000000119 | G14: 86 | H14: =(('pm1'!$B$41*Køl!E14^3)+('pm1'!$C$41*Køl!E14^2)+('pm1'!$D$41*Køl!E14)+'pm1'!$E$41)/1000 -> 0.006605585428 | I14: 0.003507785585 | J14: 10.49426341 | K14: =(('pm1'!$B$41*Køl!$H$2^3)+('pm1'!$C$41*Køl!$H$2^2)+('pm1'!$D$41*Køl!$H$2)+'pm1'!$E$41)/1000 -> 0.008964720962 | L14: 0.005553645927 | M14: 19.98764715 | N14: 2101.805222 | O14: -5.672682014 | P14: 0.01031146073 | Q14: 42.19183236 | R14: =(('pm1'!$B$41*Køl!$H$4^3)+('pm1'!$C$41*Køl!$H$4^2)+('pm1'!$D$41*Køl!$H$4)+'pm1'!$E$41)/1000 -> 0.008964720962 | S14: 0.005553645927 | T14: 19.98764715 | U14: 2101.805222 | V14: -5.672682014 | W14: 0.01031146073 | X14: 42.19183236 | Y14: 0 | Z14: =1.2*(Varme_og_Køl_1!$D$43/3600)*Y14 -> 0 | AA14: 0 | AB14: =-1*1.2*(Varme_og_Køl_1!$D$43/3600)*AA14 -> 0 | AC14: 0 | AE14: 0 | AF14: =1.2*(Varme_og_Køl_1!$J$43/3600)*AE14 -> 0 | AG14: 0 | AH14: =-1*1.2*(Varme_og_Køl_1!$J$43/3600)*AG14 -> 0 | AI14: 0 | AL14: 4 | AM14: =AD1470 -> 7.134189299 | AO14: 4 | AP14: =AJ1470 -> 7.134189299
B15: 1 | C15: 5 | D15: 1 | E15: -0.400000006 | F15: -1.399999976 | G15: 91 | H15: =(('pm1'!$B$41*Køl!E15^3)+('pm1'!$C$41*Køl!E15^2)+('pm1'!$D$41*Køl!E15)+'pm1'!$E$41)/1000 -> 0.00571799726 | I15: 0.00321146225 | J15: 7.627077754 | K15: =(('pm1'!$B$41*Køl!$H$2^3)+('pm1'!$C$41*Køl!$H$2^2)+('pm1'!$D$41*Køl!$H$2)+'pm1'!$E$41)/1000 -> 0.008964720962 | L15: 0.005553645927 | M15: 19.98764715 | N15: 2732.492788 | O15: -9.175297444 | P15: 0.009213307919 | Q15: 39.41267115 | R15: =(('pm1'!$B$41*Køl!$H$4^3)+('pm1'!$C$41*Køl!$H$4^2)+('pm1'!$D$41*Køl!$H$4)+'pm1'!$E$41)/1000 -> 0.008964720962 | S15: 0.005553645927 | T15: 19.98764715 | U15: 2732.492788 | V15: -9.175297444 | W15: 0.009213307919 | X15: 39.41267115 | Y15: 0 | Z15: =1.2*(Varme_og_Køl_1!$D$43/3600)*Y15 -> 0 | AA15: 0 | AB15: =-1*1.2*(Varme_og_Køl_1!$D$43/3600)*AA15 -> 0 | AC15: 0 | AE15: 0 | AF15: =1.2*(Varme_og_Køl_1!$J$43/3600)*AE15 -> 0 | AG15: 0 | AH15: =-1*1.2*(Varme_og_Køl_1!$J$43/3600)*AG15 -> 0 | AI15: 0 | AL15: 5 | AM15: =AD1835 -> 5.453053739 | AO15: 5 | AP15: =AJ1835 -> 5.453053739
B16: 1 | C16: 6 | D16: 1 | E16: -8.199999809 | F16: -8.199999809 | G16: 100 | H16: =(('pm1'!$B$41*Køl!E16^3)+('pm1'!$C$41*Køl!E16^2)+('pm1'!$D$41*Køl!E16)+'pm1'!$E$41)/1000 -> 0.003540222655 | I16: 0.002181383093 | J16: -2.826831147 | K16: =(('pm1'!$B$41*Køl!$H$2^3)+('pm1'!$C$41*Køl!$H$2^2)+('pm1'!$D$41*Køl!$H$2)+'pm1'!$E$41)/1000 -> 0.008964720962 | L16: 0.005553645927 | M16: 19.98764715 | N16: 4210.822378 | O16: -17.38541655 | P16: 0.007928478941 | Q16: 36.16107737 | R16: =(('pm1'!$B$41*Køl!$H$4^3)+('pm1'!$C$41*Køl!$H$4^2)+('pm1'!$D$41*Køl!$H$4)+'pm1'!$E$41)/1000 -> 0.008964720962 | S16: 0.005553645927 | T16: 19.98764715 | U16: 4210.822378 | V16: -17.38541655 | W16: 0.007928478941 | X16: 36.16107737 | Y16: 0 | Z16: =1.2*(Varme_og_Køl_1!$D$43/3600)*Y16 -> 0 | AA16: 0 | AB16: =-1*1.2*(Varme_og_Køl_1!$D$43/3600)*AA16 -> 0 | AC16: 0 | AE16: 0 | AF16: =1.2*(Varme_og_Køl_1!$J$43/3600)*AE16 -> 0 | AG16: 0 | AH16: =-1*1.2*(Varme_og_Køl_1!$J$43/3600)*AG16 -> 0 | AI16: 0 | AL16: 6 | AM16: =AD2200 -> 14.94434654 | AO16: 6 | AP16: =AJ2200 -> 14.94434654
B17: 1 | C17: 7 | D17: 1 | E17: -13.10000038 | F17: -13.10000038 | G17: 100 | H17: =(('pm1'!$B$41*Køl!E17^3)+('pm1'!$C$41*Køl!E17^2)+('pm1'!$D$41*Køl!E17)+'pm1'!$E$41)/1000 -> 0.002737095464 | I17: 0.001685178552 | J17: -9.005029886 | K17: =(('pm1'!$B$41*Køl!$H$2^3)+('pm1'!$C$41*Køl!$H$2^2)+('pm1'!$D$41*Køl!$H$2)+'pm1'!$E$41)/1000 -> 0.008964720962 | L17: 0.005553645927 | M17: 19.98764715 | N17: 4937.355941 | O17: -21.42032672 | P17: 0.007579021476 | Q17: 35.27668439 | R17: =(('pm1'!$B$41*Køl!$H$4^3)+('pm1'!$C$41*Køl!$H$4^2)+('pm1'!$D$41*Køl!$H$4)+'pm1'!$E$41)/1000 -> 0.008964720962 | S17: 0.005553645927 | T17: 19.98764715 | U17: 4937.355941 | V17: -21.42032672 | W17: 0.007579021476 | X17: 35.27668439 | Y17: 0 | Z17: =1.2*(Varme_og_Køl_1!$D$43/3600)*Y17 -> 0 | AA17: 0 | AB17: =-1*1.2*(Varme_og_Køl_1!$D$43/3600)*AA17 -> 0 | AC17: 0 | AE17: 0 | AF17: =1.2*(Varme_og_Køl_1!$J$43/3600)*AE17 -> 0 | AG17: 0 | AH17: =-1*1.2*(Varme_og_Køl_1!$J$43/3600)*AG17 -> 0 | AI17: 0 | AL17: 7 | AM17: =AD2565 -> 25.38263344 | AO17: 7 | AP17: =AJ2565 -> 25.38263344
B18: 1 | C18: 8 | D18: 1 | E18: -19.60000038 | F18: -19.60000038 | G18: 100 | H18: =(('pm1'!$B$41*Køl!E18^3)+('pm1'!$C$41*Køl!E18^2)+('pm1'!$D$41*Køl!E18)+'pm1'!$E$41)/1000 -> 0.001824173794 | I18: 0.001122095753 | J18: -16.95214603 | K18: =(('pm1'!$B$41*Køl!$H$2^3)+('pm1'!$C$41*Køl!$H$2^2)+('pm1'!$D$41*Køl!$H$2)+'pm1'!$E$41)/1000 -> 0.008964720962 | L18: 0.005553645927 | M18: 19.98764715 | N18: 5776.759683 | O18: -26.08207789 | P18: 0.007284720189 | Q18: 34.53187846 | R18: =(('pm1'!$B$41*Køl!$H$4^3)+('pm1'!$C$41*Køl!$H$4^2)+('pm1'!$D$41*Køl!$H$4)+'pm1'!$E$41)/1000 -> 0.008964720962 | S18: 0.005553645927 | T18: 19.98764715 | U18: 5776.759683 | V18: -26.08207789 | W18: 0.007284720189 | X18: 34.53187846 | Y18: 0 | Z18: =1.2*(Varme_og_Køl_1!$D$43/3600)*Y18 -> 0 | AA18: 0 | AB18: =-1*1.2*(Varme_og_Køl_1!$D$43/3600)*AA18 -> 0 | AC18: 0 | AE18: 0 | AF18: =1.2*(Varme_og_Køl_1!$J$43/3600)*AE18 -> 0 | AG18: 0 | AH18: =-1*1.2*(Varme_og_Køl_1!$J$43/3600)*AG18 -> 0 | AI18: 0 | AL18: 8 | AM18: =AD2930 -> 47.10998918 | AO18: 8 | AP18: =AJ2930 -> 47.10998918
B19: 1 | C19: 9 | D19: 1 | E19: 0.8000000119 | F19: 0.6000000238 | G19: 99 | H19: =(('pm1'!$B$41*Køl!E19^3)+('pm1'!$C$41*Køl!E19^2)+('pm1'!$D$41*Køl!E19)+'pm1'!$E$41)/1000 -> 0.006205985899 | I19: 0.00379549977 | J19: 10.30299264 | K19: =(('pm1'!$B$41*Køl!$H$2^3)+('pm1'!$C$41*Køl!$H$2^2)+('pm1'!$D$41*Køl!$H$2)+'pm1'!$E$41)/1000 -> 0.008964720962 | L19: 0.005553645927 | M19: 19.98764715 | N19: 2957.660809 | O19: -10.42580091 | P19: 0.008934696239 | Q19: 38.70757185 | R19: =(('pm1'!$B$41*Køl!$H$4^3)+('pm1'!$C$41*Køl!$H$4^2)+('pm1'!$D$41*Køl!$H$4)+'pm1'!$E$41)/1000 -> 0.008964720962 | S19: 0.005553645927 | T19: 19.98764715 | U19: 2957.660809 | V19: -10.42580091 | W19: 0.008934696239 | X19: 38.70757185 | Y19: 0 | Z19: =1.2*(Varme_og_Køl_1!$D$43/3600)*Y19 -> 0 | AA19: 0 | AB19: =-1*1.2*(Varme_og_Køl_1!$D$43/3600)*AA19 -> 0 | AC19: 0 | AE19: 0 | AF19: =1.2*(Varme_og_Køl_1!$J$43/3600)*AE19 -> 0 | AG19: 0 | AH19: =-1*1.2*(Varme_og_Køl_1!$J$43/3600)*AG19 -> 0 | AI19: 0 | AL19: 9 | AM19: =AD3295 -> 76.12371208 | AO19: 9 | AP19: =AJ3295 -> 76.12371208
B20: 1 | C20: 10 | D20: 1 | E20: 2.400000095 | F20: 2.400000095 | G20: 100 | H20: =(('pm1'!$B$41*Køl!E20^3)+('pm1'!$C$41*Køl!E20^2)+('pm1'!$D$41*Køl!E20)+'pm1'!$E$41)/1000 -> 0.00693744775 | I20: 0.004289089671 | J20: 13.16055986 | K20: =(('pm1'!$B$41*Køl!$H$2^3)+('pm1'!$C$41*Køl!$H$2^2)+('pm1'!$D$41*Køl!$H$2)+'pm1'!$E$41)/1000 -> 0.008964720962 | L20: 0.005553645927 | M20: 19.98764715 | N20: 2846.848359 | O20: -9.810387797 | P20: 0.009066302289 | Q20: 39.04063518 | R20: =(('pm1'!$B$41*Køl!$H$4^3)+('pm1'!$C$41*Køl!$H$4^2)+('pm1'!$D$41*Køl!$H$4)+'pm1'!$E$41)/1000 -> 0.008964720962 | S20: 0.005553645927 | T20: 19.98764715 | U20: 2846.848359 | V20: -9.810387797 | W20: 0.009066302289 | X20: 39.04063518 | Y20: 0 | Z20: =1.2*(Varme_og_Køl_1!$D$43/3600)*Y20 -> 0 | AA20: 0 | AB20: =-1*1.2*(Varme_og_Køl_1!$D$43/3600)*AA20 -> 0 | AC20: 0 | AE20: 0 | AF20: =1.2*(Varme_og_Køl_1!$J$43/3600)*AE20 -> 0 | AG20: 0 | AH20: =-1*1.2*(Varme_og_Køl_1!$J$43/3600)*AG20 -> 0 | AI20: 0 | AL20: 10 | AM20: =AD3660 -> 111.736824 | AO20: 10 | AP20: =AJ3660 -> 111.736824
B21: 1 | C21: 11 | D21: 1 | E21: 1.600000024 | F21: -3.400000095 | G21: 65 | H21: =(('pm1'!$B$41*Køl!E21^3)+('pm1'!$C$41*Køl!E21^2)+('pm1'!$D$41*Køl!E21)+'pm1'!$E$41)/1000 -> 0.006559704398 | I21: 0.002629119991 | J21: 8.192853382 | K21: =(('pm1'!$B$41*Køl!$H$2^3)+('pm1'!$C$41*Køl!$H$2^2)+('pm1'!$D$41*Køl!$H$2)+'pm1'!$E$41)/1000 -> 0.008964720962 | L21: 0.005553645927 | M21: 19.98764715 | N21: 1504.517338 | O21: -2.355556585 | P21: 0.01220029582 | Q21: 46.97202065 | R21: =(('pm1'!$B$41*Køl!$H$4^3)+('pm1'!$C$41*Køl!$H$4^2)+('pm1'!$D$41*Køl!$H$4)+'pm1'!$E$41)/1000 -> 0.008964720962 | S21: 0.005553645927 | T21: 19.98764715 | U21: 1504.517338 | V21: -2.355556585 | W21: 0.01220029582 | X21: 46.97202065 | Y21: 0 | Z21: =1.2*(Varme_og_Køl_1!$D$43/3600)*Y21 -> 0 | AA21: 0 | AB21: =-1*1.2*(Varme_og_Køl_1!$D$43/3600)*AA21 -> 0 | AC21: 0 | AE21: 0 | AF21: =1.2*(Varme_og_Køl_1!$J$43/3600)*AE21 -> 0 | AG21: 0 | AH21: =-1*1.2*(Varme_og_Køl_1!$J$43/3600)*AG21 -> 0 | AI21: 0 | AL21: 11 | AM21: =AD4025 -> 149.0563498 | AO21: 11 | AP21: =AJ4025 -> 149.0563498
B22: 1 | C22: 12 | D22: 1 | E22: 1.200000048 | F22: 0 | G22: 92 | H22: =(('pm1'!$B$41*Køl!E22^3)+('pm1'!$C$41*Køl!E22^2)+('pm1'!$D$41*Køl!E22)+'pm1'!$E$41)/1000 -> 0.006379912271 | I22: 0.003624993055 | J22: 10.28139866 | K22: =(('pm1'!$B$41*Køl!$H$2^3)+('pm1'!$C$41*Køl!$H$2^2)+('pm1'!$D$41*Køl!$H$2)+'pm1'!$E$41)/1000 -> 0.008964720962 | L22: 0.005553645927 | M22: 19.98764715 | N22: 2488.783762 | O22: -7.821823806 | P22: 0.009571672785 | Q22: 40.31960662 | R22: =(('pm1'!$B$41*Køl!$H$4^3)+('pm1'!$C$41*Køl!$H$4^2)+('pm1'!$D$41*Køl!$H$4)+'pm1'!$E$41)/1000 -> 0.008964720962 | S22: 0.005553645927 | T22: 19.98764715 | U22: 2488.783762 | V22: -7.821823806 | W22: 0.009571672785 | X22: 40.31960662 | Y22: 0 | Z22: =1.2*(Varme_og_Køl_1!$D$43/3600)*Y22 -> 0 | AA22: 0 | AB22: =-1*1.2*(Varme_og_Køl_1!$D$43/3600)*AA22 -> 0 | AC22: 0 | AE22: 0 | AF22: =1.2*(Varme_og_Køl_1!$J$43/3600)*AE22 -> 0 | AG22: 0 | AH22: =-1*1.2*(Varme_og_Køl_1!$J$43/3600)*AG22 -> 0 | AI22: 0 | AL22: 12 | AM22: =AD4390 -> 180.3320262 | AO22: 12 | AP22: =AJ4390 -> 180.3320262
B23: 1 | C23: 13 | D23: 1 | E23: -0.400000006 | F23: -0.400000006 | G23: 100 | H23: =(('pm1'!$B$41*Køl!E23^3)+('pm1'!$C$41*Køl!E23^2)+('pm1'!$D$41*Køl!E23)+'pm1'!$E$41)/1000 -> 0.00571799726 | I23: 0.0035308824 | J23: 8.425709901 | K23: =(('pm1'!$B$41*Køl!$H$2^3)+('pm1'!$C$41*Køl!$H$2^2)+('pm1'!$D$41*Køl!$H$2)+'pm1'!$E$41)/1000 -> 0.008964720962 | L23: 0.005553645927 | M23: 19.98764715 | N23: 3163.988237 | O23: -11.57167039 | P23: 0.008714213935 | Q23: 38.14958406 | R23: =(('pm1'!$B$41*Køl!$H$4^3)+('pm1'!$C$41*Køl!$H$4^2)+('pm1'!$D$41*Køl!$H$4)+'pm1'!$E$41)/1000 -> 0.008964720962 | S23: 0.005553645927 | T23: 19.98764715 | U23: 3163.988237 | V23: -11.57167039 | W23: 0.008714213935 | X23: 38.14958406 | Y23: 0 | Z23: =1.2*(Varme_og_Køl_1!$D$43/3600)*Y23 -> 0 | AA23: 0 | AB23: =-1*1.2*(Varme_og_Køl_1!$D$43/3600)*AA23 -> 0 | AC23: 0 | AE23: 0 | AF23: =1.2*(Varme_og_Køl_1!$J$43/3600)*AE23 -> 0 | AG23: 0 | AH23: =-1*1.2*(Varme_og_Køl_1!$J$43/3600)*AG23 -> 0 | AI23: 0 | AL23: 13 | AM23: =AD4755 -> 197.9781842 | AO23: 13 | AP23: =AJ4755 -> 197.9781842
B24: 1 | C24: 14 | D24: 1 | E24: -5 | F24: -7 | G24: 82 | H24: =(('pm1'!$B$41*Køl!E24^3)+('pm1'!$C$41*Køl!E24^2)+('pm1'!$D$41*Køl!E24)+'pm1'!$E$41)/1000 -> 0.00425642951 | I24: 0.002150498651 | J24: 0.328397488 | K24: =(('pm1'!$B$41*Køl!$H$2^3)+('pm1'!$C$41*Køl!$H$2^2)+('pm1'!$D$41*Køl!$H$2)+'pm1'!$E$41)/1000 -> 0.008964720962 | L24: 0.005553645927 | M24: 19.98764715 | N24: 3232.302074 | O24: -11.95106125 | P24: 0.008647416179 | Q24: 37.98053497 | R24: =(('pm1'!$B$41*Køl!$H$4^3)+('pm1'!$C$41*Køl!$H$4^2)+('pm1'!$D$41*Køl!$H$4)+'pm1'!$E$41)/1000 -> 0.008964720962 | S24: 0.005553645927 | T24: 19.98764715 | U24: 3232.302074 | V24: -11.95106125 | W24: 0.008647416179 | X24: 37.98053497 | Y24: 0 | Z24: =1.2*(Varme_og_Køl_1!$D$43/3600)*Y24 -> 0 | AA24: 0 | AB24: =-1*1.2*(Varme_og_Køl_1!$D$43/3600)*AA24 -> 0 | AC24: 0 | AE24: 0 | AF24: =1.2*(Varme_og_Køl_1!$J$43/3600)*AE24 -> 0 | AG24: 0 | AH24: =-1*1.2*(Varme_og_Køl_1!$J$43/3600)*AG24 -> 0 | AI24: 0 | AL24: 14 | AM24: =AD5121 -> 211.3546633 | AO24: 14 | AP24: =AJ5121 -> 211.3546633
B25: 1 | C25: 15 | D25: 1 | E25: 2.700000048 | F25: 2.700000048 | G25: 100 | H25: =(('pm1'!$B$41*Køl!E25^3)+('pm1'!$C$41*Køl!E25^2)+('pm1'!$D$41*Køl!E25)+'pm1'!$E$41)/1000 -> 0.007085524659 | I25: 0.004381283346 | J25: 13.6957925 | K25: =(('pm1'!$B$41*Køl!$H$2^3)+('pm1'!$C$41*Køl!$H$2^2)+('pm1'!$D$41*Køl!$H$2)+'pm1'!$E$41)/1000 -> 0.008964720962 | L25: 0.005553645927 | M25: 19.98764715 | N25: 2814.828794 | O25: -9.63256247 | P25: 0.009106259863 | Q25: 39.14175821 | R25: =(('pm1'!$B$41*Køl!$H$4^3)+('pm1'!$C$41*Køl!$H$4^2)+('pm1'!$D$41*Køl!$H$4)+'pm1'!$E$41)/1000 -> 0.008964720962 | S25: 0.005553645927 | T25: 19.98764715 | U25: 2814.828794 | V25: -9.63256247 | W25: 0.009106259863 | X25: 39.14175821 | Y25: 0 | Z25: =1.2*(Varme_og_Køl_1!$D$43/3600)*Y25 -> 0 | AA25: 0 | AB25: =-1*1.2*(Varme_og_Køl_1!$D$43/3600)*AA25 -> 0 | AC25: 0 | AE25: 0 | AF25: =1.2*(Varme_og_Køl_1!$J$43/3600)*AE25 -> 0 | AG25: 0 | AH25: =-1*1.2*(Varme_og_Køl_1!$J$43/3600)*AG25 -> 0 | AI25: 0 | AL25: 15 | AM25: =AD5485 -> 223.2434388 | AO25: 15 | AP25: =AJ5485 -> 223.2434388
B26: 1 | C26: 16 | D26: 1 | E26: 0.200000003 | F26: -3.599999905 | G26: 70 | H26: =(('pm1'!$B$41*Køl!E26^3)+('pm1'!$C$41*Køl!E26^2)+('pm1'!$D$41*Køl!E26)+'pm1'!$E$41)/1000 -> 0.005955787521 | I26: 0.002570450371 | J26: 6.630852588 | K26: =(('pm1'!$B$41*Køl!$H$2^3)+('pm1'!$C$41*Køl!$H$2^2)+('pm1'!$D$41*Køl!$H$2)+'pm1'!$E$41)/1000 -> 0.008964720962 | L26: 0.005553645927 | M26: 19.98764715 | N26: 1944.223866 | O26: -4.797530954 | P26: 0.01069708654 | Q26: 43.16775874 | R26: =(('pm1'!$B$41*Køl!$H$4^3)+('pm1'!$C$41*Køl!$H$4^2)+('pm1'!$D$41*Køl!$H$4)+'pm1'!$E$41)/1000 -> 0.008964720962 | S26: 0.005553645927 | T26: 19.98764715 | U26: 1944.223866 | V26: -4.797530954 | W26: 0.01069708654 | X26: 43.16775874 | Y26: 0 | Z26: =1.2*(Varme_og_Køl_1!$D$43/3600)*Y26 -> 0 | AA26: 0 | AB26: =-1*1.2*(Varme_og_Køl_1!$D$43/3600)*AA26 -> 0 | AC26: 0 | AE26: 0 | AF26: =1.2*(Varme_og_Køl_1!$J$43/3600)*AE26 -> 0 | AG26: 0 | AH26: =-1*1.2*(Varme_og_Køl_1!$J$43/3600)*AG26 -> 0 | AI26: 0 | AL26: 16 | AM26: =AD5850 -> 205.0112543 | AO26: 16 | AP26: =AJ5850 -> 205.0112543
B27: 1 | C27: 17 | D27: 1 | E27: -1.299999952 | F27: -3.299999952 | G27: 83 | H27: =(('pm1'!$B$41*Køl!E27^3)+('pm1'!$C$41*Køl!E27^2)+('pm1'!$D$41*Køl!E27)+'pm1'!$E$41)/1000 -> 0.005383540383 | I27: 0.002755795048 | J27: 5.57777995 | K27: =(('pm1'!$B$41*Køl!$H$2^3)+('pm1'!$C$41*Køl!$H$2^2)+('pm1'!$D$41*Køl!$H$2)+'pm1'!$E$41)/1000 -> 0.008964720962 | L27: 0.005553645927 | M27: 19.98764715 | N27: 2609.145471 | O27: -8.49027012 | P27: 0.009386318391 | Q27: 39.85051913 | R27: =(('pm1'!$B$41*Køl!$H$4^3)+('pm1'!$C$41*Køl!$H$4^2)+('pm1'!$D$41*Køl!$H$4)+'pm1'!$E$41)/1000 -> 0.008964720962 | S27: 0.005553645927 | T27: 19.98764715 | U27: 2609.145471 | V27: -8.49027012 | W27: 0.009386318391 | X27: 39.85051913 | Y27: 0 | Z27: =1.2*(Varme_og_Køl_1!$D$43/3600)*Y27 -> 0 | AA27: 0 | AB27: =-1*1.2*(Varme_og_Køl_1!$D$43/3600)*AA27 -> 0 | AC27: 0 | AE27: 0 | AF27: =1.2*(Varme_og_Køl_1!$J$43/3600)*AE27 -> 0 | AG27: 0 | AH27: =-1*1.2*(Varme_og_Køl_1!$J$43/3600)*AG27 -> 0 | AI27: 0 | AL27: 17 | AM27: =AD6215 -> 180.9964496 | AO27: 17 | AP27: =AJ6215 -> 180.9964496
B28: 1 | C28: 18 | D28: 1 | E28: -3.700000048 | F28: -5.699999809 | G28: 83 | H28: =(('pm1'!$B$41*Køl!E28^3)+('pm1'!$C$41*Køl!E28^2)+('pm1'!$D$41*Køl!E28)+'pm1'!$E$41)/1000 -> 0.004610767004 | I28: 0.002358717905 | J28: 2.160720735 | K28: =(('pm1'!$B$41*Køl!$H$2^3)+('pm1'!$C$41*Køl!$H$2^2)+('pm1'!$D$41*Køl!$H$2)+'pm1'!$E$41)/1000 -> 0.008964720962 | L28: 0.005553645927 | M28: 19.98764715 | N28: 3036.062152 | O28: -10.86121421 | P28: 0.008847386141 | Q28: 38.48661095 | R28: =(('pm1'!$B$41*Køl!$H$4^3)+('pm1'!$C$41*Køl!$H$4^2)+('pm1'!$D$41*Køl!$H$4)+'pm1'!$E$41)/1000 -> 0.008964720962 | S28: 0.005553645927 | T28: 19.98764715 | U28: 3036.062152 | V28: -10.86121421 | W28: 0.008847386141 | X28: 38.48661095 | Y28: 0 | Z28: =1.2*(Varme_og_Køl_1!$D$43/3600)*Y28 -> 0 | AA28: 0 | AB28: =-1*1.2*(Varme_og_Køl_1!$D$43/3600)*AA28 -> 0 | AC28: 0 | AE28: 0 | AF28: =1.2*(Varme_og_Køl_1!$J$43/3600)*AE28 -> 0 | AG28: 0 | AH28: =-1*1.2*(Varme_og_Køl_1!$J$43/3600)*AG28 -> 0 | AI28: 0 | AL28: 18 | AM28: =AD6580 -> 149.5654443 | AO28: 18 | AP28: =AJ6580 -> 149.5654443
B29: 1 | C29: 19 | D29: 1 | E29: -5.800000191 | F29: -6.800000191 | G29: 91 | H29: =(('pm1'!$B$41*Køl!E29^3)+('pm1'!$C$41*Køl!E29^2)+('pm1'!$D$41*Køl!E29)+'pm1'!$E$41)/1000 -> 0.004058051068 | I29: 0.002275757198 | J29: -0.1676823083 | K29: =(('pm1'!$B$41*Køl!$H$2^3)+('pm1'!$C$41*Køl!$H$2^2)+('pm1'!$D$41*Køl!$H$2)+'pm1'!$E$41)/1000 -> 0.008964720962 | L29: 0.005553645927 | M29: 19.98764715 | N29: 3599.878204 | O29: -13.99244893 | P29: 0.008331517687 | Q29: 37.1810717 | R29: =(('pm1'!$B$41*Køl!$H$4^3)+('pm1'!$C$41*Køl!$H$4^2)+('pm1'!$D$41*Køl!$H$4)+'pm1'!$E$41)/1000 -> 0.008964720962 | S29: 0.005553645927 | T29: 19.98764715 | U29: 3599.878204 | V29: -13.99244893 | W29: 0.008331517687 | X29: 37.1810717 | Y29: 0 | Z29: =1.2*(Varme_og_Køl_1!$D$43/3600)*Y29 -> 0 | AA29: 0 | AB29: =-1*1.2*(Varme_og_Køl_1!$D$43/3600)*AA29 -> 0 | AC29: 0 | AE29: 0 | AF29: =1.2*(Varme_og_Køl_1!$J$43/3600)*AE29 -> 0 | AG29: 0 | AH29: =-1*1.2*(Varme_og_Køl_1!$J$43/3600)*AG29 -> 0 | AI29: 0 | AL29: 19 | AM29: =AD6946 -> 116.4692454 | AO29: 19 | AP29: =AJ6946 -> 116.4692454
B30: 1 | C30: 20 | D30: 1 | E30: -2.099999905 | F30: -4.099999905 | G30: 83 | H30: =(('pm1'!$B$41*Køl!E30^3)+('pm1'!$C$41*Køl!E30^2)+('pm1'!$D$41*Køl!E30)+'pm1'!$E$41)/1000 -> 0.005107494645 | I30: 0.002613895424 | J30: 4.414542677 | K30: =(('pm1'!$B$41*Køl!$H$2^3)+('pm1'!$C$41*Køl!$H$2^2)+('pm1'!$D$41*Køl!$H$2)+'pm1'!$E$41)/1000 -> 0.008964720962 | L30: 0.005553645927 | M30: 19.98764715 | N30: 2755.335834 | O30: -9.302159634 | P30: 0.009182967579 | Q30: 39.33588703 | R30: =(('pm1'!$B$41*Køl!$H$4^3)+('pm1'!$C$41*Køl!$H$4^2)+('pm1'!$D$41*Køl!$H$4)+'pm1'!$E$41)/1000 -> 0.008964720962 | S30: 0.005553645927 | T30: 19.98764715 | U30: 2755.335834 | V30: -9.302159634 | W30: 0.009182967579 | X30: 39.33588703 | Y30: 0 | Z30: =1.2*(Varme_og_Køl_1!$D$43/3600)*Y30 -> 0 | AA30: 0 | AB30: =-1*1.2*(Varme_og_Køl_1!$D$43/3600)*AA30 -> 0 | AC30: 0 | AE30: 0 | AF30: =1.2*(Varme_og_Køl_1!$J$43/3600)*AE30 -> 0 | AG30: 0 | AH30: =-1*1.2*(Varme_og_Køl_1!$J$43/3600)*AG30 -> 0 | AI30: 0 | AL30: 20 | AM30: =AD7310 -> 84.94103636 | AO30: 20 | AP30: =AJ7310 -> 84.94103636
B31: 1 | C31: 21 | D31: 1 | E31: -9.699999809 | F31: -11.69999981 | G31: 82 | H31: =(('pm1'!$B$41*Køl!E31^3)+('pm1'!$C$41*Køl!E31^2)+('pm1'!$D$41*Køl!E31)+'pm1'!$E$41)/1000 -> 0.003265411157 | I31: 0.001648474158 | J31: -5.665107709 | K31: =(('pm1'!$B$41*Køl!$H$2^3)+('pm1'!$C$41*Køl!$H$2^2)+('pm1'!$D$41*Køl!$H$2)+'pm1'!$E$41)/1000 -> 0.008964720962 | L31: 0.005553645927 | M31: 19.98764715 | N31: 4020.309665 | O31: -16.3273764 | P31: 0.008041016511 | Q31: 36.44588295 | R31: =(('pm1'!$B$41*Køl!$H$4^3)+('pm1'!$C$41*Køl!$H$4^2)+('pm1'!$D$41*Køl!$H$4)+'pm1'!$E$41)/1000 -> 0.008964720962 | S31: 0.005553645927 | T31: 19.98764715 | U31: 4020.309665 | V31: -16.3273764 | W31: 0.008041016511 | X31: 36.44588295 | Y31: 0 | Z31: =1.2*(Varme_og_Køl_1!$D$43/3600)*Y31 -> 0 | AA31: 0 | AB31: =-1*1.2*(Varme_og_Køl_1!$D$43/3600)*AA31 -> 0 | AC31: 0 | AE31: 0 | AF31: =1.2*(Varme_og_Køl_1!$J$43/3600)*AE31 -> 0 | AG31: 0 | AH31: =-1*1.2*(Varme_og_Køl_1!$J$43/3600)*AG31 -> 0 | AI31: 0 | AL31: 21 | AM31: =AD7675 -> 51.86433994 | AO31: 21 | AP31: =AJ7675 -> 51.86433994
B32: 1 | C32: 22 | D32: 1 | E32: -5.099999905 | F32: -5.099999905 | G32: 100 | H32: =(('pm1'!$B$41*Køl!E32^3)+('pm1'!$C$41*Køl!E32^2)+('pm1'!$D$41*Køl!E32)+'pm1'!$E$41)/1000 -> 0.004230848262 | I32: 0.002608711433 | J32: 1.369041152 | K32: =(('pm1'!$B$41*Køl!$H$2^3)+('pm1'!$C$41*Køl!$H$2^2)+('pm1'!$D$41*Køl!$H$2)+'pm1'!$E$41)/1000 -> 0.008964720962 | L32: 0.005553645927 | M32: 19.98764715 | N32: 3769.183975 | O32: -14.93271323 | P32: 0.008206740089 | Q32: 36.86528955 | R32: =(('pm1'!$B$41*Køl!$H$4^3)+('pm1'!$C$41*Køl!$H$4^2)+('pm1'!$D$41*Køl!$H$4)+'pm1'!$E$41)/1000 -> 0.008964720962 | S32: 0.005553645927 | T32: 19.98764715 | U32: 3769.183975 | V32: -14.93271323 | W32: 0.008206740089 | X32: 36.86528955 | Y32: 0 | Z32: =1.2*(Varme_og_Køl_1!$D$43/3600)*Y32 -> 0 | AA32: 0 | AB32: =-1*1.2*(Varme_og_Køl_1!$D$43/3600)*AA32 -> 0 | AC32: 0 | AE32: 0 | AF32: =1.2*(Varme_og_Køl_1!$J$43/3600)*AE32 -> 0 | AG32: 0 | AH32: =-1*1.2*(Varme_og_Køl_1!$J$43/3600)*AG32 -> 0 | AI32: 0 | AL32: 22 | AM32: =AD8040 -> 32.07051928 | AO32: 22 | AP32: =AJ8040 -> 32.07051928
B33: 1 | C33: 23 | D33: 1 | E33: 1.600000024 | F33: 1.600000024 | G33: 100 | H33: =(('pm1'!$B$41*Køl!E33^3)+('pm1'!$C$41*Køl!E33^2)+('pm1'!$D$41*Køl!E33)+'pm1'!$E$41)/1000 -> 0.006559704398 | I33: 0.004054027003 | J33: 11.76078634 | K33: =(('pm1'!$B$41*Køl!$H$2^3)+('pm1'!$C$41*Køl!$H$2^2)+('pm1'!$D$41*Køl!$H$2)+'pm1'!$E$41)/1000 -> 0.008964720962 | L33: 0.005553645927 | M33: 19.98764715 | N33: 2934.078722 | O33: -10.29483434 | P33: 0.008961870773 | Q33: 38.77634408 | R33: =(('pm1'!$B$41*Køl!$H$4^3)+('pm1'!$C$41*Køl!$H$4^2)+('pm1'!$D$41*Køl!$H$4)+'pm1'!$E$41)/1000 -> 0.008964720962 | S33: 0.005553645927 | T33: 19.98764715 | U33: 2934.078722 | V33: -10.29483434 | W33: 0.008961870773 | X33: 38.77634408 | Y33: 0 | Z33: =1.2*(Varme_og_Køl_1!$D$43/3600)*Y33 -> 0 | AA33: 0 | AB33: =-1*1.2*(Varme_og_Køl_1!$D$43/3600)*AA33 -> 0 | AC33: 0 | AE33: 0 | AF33: =1.2*(Varme_og_Køl_1!$J$43/3600)*AE33 -> 0 | AG33: 0 | AH33: =-1*1.2*(Varme_og_Køl_1!$J$43/3600)*AG33 -> 0 | AI33: 0 | AL33: 23 | AM33: =AD8405 -> 19.24643189 | AO33: 23 | AP33: =AJ8405 -> 19.24643189
B34: 1 | C34: 24 | D34: 1 | E34: 3 | F34: 3 | G34: 100 | H34: =(('pm1'!$B$41*Køl!E34^3)+('pm1'!$C$41*Køl!E34^2)+('pm1'!$D$41*Køl!E34)+'pm1'!$E$41)/1000 -> 0.007237197277 | I34: 0.004475743877 | J34: 14.23681009 | K34: =(('pm1'!$B$41*Køl!$H$2^3)+('pm1'!$C$41*Køl!$H$2^2)+('pm1'!$D$41*Køl!$H$2)+'pm1'!$E$41)/1000 -> 0.008964720962 | L34: 0.005553645927 | M34: 19.98764715 | N34: 2783.184242 | O34: -9.456819831 | P34: 0.009146652761 | Q34: 39.24398294 | R34: =(('pm1'!$B$41*Køl!$H$4^3)+('pm1'!$C$41*Køl!$H$4^2)+('pm1'!$D$41*Køl!$H$4)+'pm1'!$E$41)/1000 -> 0.008964720962 | S34: 0.005553645927 | T34: 19.98764715 | U34: 2783.184242 | V34: -9.456819831 | W34: 0.009146652761 | X34: 39.24398294 | Y34: 0 | Z34: =1.2*(Varme_og_Køl_1!$D$43/3600)*Y34 -> 0 | AA34: 0 | AB34: =-1*1.2*(Varme_og_Køl_1!$D$43/3600)*AA34 -> 0 | AC34: 0 | AE34: 0 | AF34: =1.2*(Varme_og_Køl_1!$J$43/3600)*AE34 -> 0 | AG34: 0 | AH34: =-1*1.2*(Varme_og_Køl_1!$J$43/3600)*AG34 -> 0 | AI34: 0 | AL34: 24 | AM34: =AD8770 -> 12.7588777 | AO34: 24 | AP34: =AJ8770 -> 12.7588777
B35: 1 | C35: 25 | D35: 1 | E35: 2.700000048 | F35: 2.700000048 | G35: 100 | H35: =(('pm1'!$B$41*Køl!E35^3)+('pm1'!$C$41*Køl!E35^2)+('pm1'!$D$41*Køl!E35)+'pm1'!$E$41)/1000 -> 0.007085524659 | I35: 0.004381283346 | J35: 13.6957925 | K35: =(('pm1'!$B$41*Køl!$H$2^3)+('pm1'!$C$41*Køl!$H$2^2)+('pm1'!$D$41*Køl!$H$2)+'pm1'!$E$41)/1000 -> 0.008964720962 | L35: 0.005553645927 | M35: 19.98764715 | N35: 2814.828794 | O35: -9.63256247 | P35: 0.009106259863 | Q35: 39.14175821 | R35: =(('pm1'!$B$41*Køl!$H$4^3)+('pm1'!$C$41*Køl!$H$4^2)+('pm1'!$D$41*Køl!$H$4)+'pm1'!$E$41)/1000 -> 0.008964720962 | S35: 0.005553645927 | T35: 19.98764715 | U35: 2814.828794 | V35: -9.63256247 | W35: 0.009106259863 | X35: 39.14175821 | Y35: 0 | Z35: =1.2*(Varme_og_Køl_1!$D$43/3600)*Y35 -> 0 | AA35: 0 | AB35: =-1*1.2*(Varme_og_Køl_1!$D$43/3600)*AA35 -> 0 | AC35: 0 | AE35: 0 | AF35: =1.2*(Varme_og_Køl_1!$J$43/3600)*AE35 -> 0 | AG35: 0 | AH35: =-1*1.2*(Varme_og_Køl_1!$J$43/3600)*AG35 -> 0 | AI35: 0
B36: 1 | C36: 26 | D36: 1 | E36: 0.6000000238 | F36: -6.400000095 | G36: 52 | H36: =(('pm1'!$B$41*Køl!E36^3)+('pm1'!$C$41*Køl!E36^2)+('pm1'!$D$41*Køl!E36)+'pm1'!$E$41)/1000 -> 0.006121178511 | I36: 0.001960586921 | J36: 5.509215928 | K36: =(('pm1'!$B$41*Køl!$H$2^3)+('pm1'!$C$41*Køl!$H$2^2)+('pm1'!$D$41*Køl!$H$2)+'pm1'!$E$41)/1000 -> 0.008964720962 | L36: 0.005553645927 | M36: 19.98764715 | N36: 1502.897661 | O36: -2.346561473 | P36: 0.01220745893 | Q36: 46.99014877 | R36: =(('pm1'!$B$41*Køl!$H$4^3)+('pm1'!$C$41*Køl!$H$4^2)+('pm1'!$D$41*Køl!$H$4)+'pm1'!$E$41)/1000 -> 0.008964720962 | S36: 0.005553645927 | T36: 19.98764715 | U36: 1502.897661 | V36: -2.346561473 | W36: 0.01220745893 | X36: 46.99014877 | Y36: 0 | Z36: =1.2*(Varme_og_Køl_1!$D$43/3600)*Y36 -> 0 | AA36: 0 | AB36: =-1*1.2*(Varme_og_Køl_1!$D$43/3600)*AA36 -> 0 | AC36: 0 | AE36: 0 | AF36: =1.2*(Varme_og_Køl_1!$J$43/3600)*AE36 -> 0 | AG36: 0 | AH36: =-1*1.2*(Varme_og_Køl_1!$J$43/3600)*AG36 -> 0 | AI36: 0 | AM36: =SUM(AM11:AM35) -> 2130.216682 | AP36: =SUM(AP11:AP35) -> 2130.216682
B37: 1 | C37: 27 | D37: 1 | E37: -3.799999952 | F37: -5.800000191 | G37: 83 | H37: =(('pm1'!$B$41*Køl!E37^3)+('pm1'!$C$41*Køl!E37^2)+('pm1'!$D$41*Køl!E37)+'pm1'!$E$41)/1000 -> 0.004582017145 | I37: 0.002343954991 | J37: 2.022864408 | K37: =(('pm1'!$B$41*Køl!$H$2^3)+('pm1'!$C$41*Køl!$H$2^2)+('pm1'!$D$41*Køl!$H$2)+'pm1'!$E$41)/1000 -> 0.008964720962 | L37: 0.005553645927 | M37: 19.98764715 | N37: 3053.253459 | O37: -10.95668864 | P37: 0.008828840776 | Q37: 38.43967708 | R37: =(('pm1'!$B$41*Køl!$H$4^3)+('pm1'!$C$41*Køl!$H$4^2)+('pm1'!$D$41*Køl!$H$4)+'pm1'!$E$41)/1000 -> 0.008964720962 | S37: 0.005553645927 | T37: 19.98764715 | U37: 3053.253459 | V37: -10.95668864 | W37: 0.008828840776 | X37: 38.43967708 | Y37: 0 | Z37: =1.2*(Varme_og_Køl_1!$D$43/3600)*Y37 -> 0 | AA37: 0 | AB37: =-1*1.2*(Varme_og_Køl_1!$D$43/3600)*AA37 -> 0 | AC37: 0 | AE37: 0 | AF37: =1.2*(Varme_og_Køl_1!$J$43/3600)*AE37 -> 0 | AG37: 0 | AH37: =-1*1.2*(Varme_og_Køl_1!$J$43/3600)*AG37 -> 0 | AI37: 0
B38: 1 | C38: 28 | D38: 1 | E38: 3 | F38: 2 | G38: 93 | H38: =(('pm1'!$B$41*Køl!E38^3)+('pm1'!$C$41*Køl!E38^2)+('pm1'!$D$41*Køl!E38)+'pm1'!$E$41)/1000 -> 0.007237197277 | I38: 0.004160346235 | J38: 13.44624067 | K38: =(('pm1'!$B$41*Køl!$H$2^3)+('pm1'!$C$41*Køl!$H$2^2)+('pm1'!$D$41*Køl!$H$2)+'pm1'!$E$41)/1000 -> 0.008964720962 | L38: 0.005553645927 | M38: 19.98764715 | N38: 2153.162034 | O38: -5.957899564 | P38: 0.01019797823 | Q38: 41.9046354 | R38: =(('pm1'!$B$41*Køl!$H$4^3)+('pm1'!$C$41*Køl!$H$4^2)+('pm1'!$D$41*Køl!$H$4)+'pm1'!$E$41)/1000 -> 0.008964720962 | S38: 0.005553645927 | T38: 19.98764715 | U38: 2153.162034 | V38: -5.957899564 | W38: 0.01019797823 | X38: 41.9046354 | Y38: 0 | Z38: =1.2*(Varme_og_Køl_1!$D$43/3600)*Y38 -> 0 | AA38: 0 | AB38: =-1*1.2*(Varme_og_Køl_1!$D$43/3600)*AA38 -> 0 | AC38: 0 | AE38: 0 | AF38: =1.2*(Varme_og_Køl_1!$J$43/3600)*AE38 -> 0 | AG38: 0 | AH38: =-1*1.2*(Varme_og_Køl_1!$J$43/3600)*AG38 -> 0 | AI38: 0
B39: 1 | C39: 29 | D39: 1 | E39: 3.099999905 | F39: 3.099999905 | G39: 100 | H39: =(('pm1'!$B$41*Køl!E39^3)+('pm1'!$C$41*Køl!E39^2)+('pm1'!$D$41*Køl!E39)+'pm1'!$E$41)/1000 -> 0.007288564062 | I39: 0.004507741171 | J39: 14.41845221 | K39: =(('pm1'!$B$41*Køl!$H$2^3)+('pm1'!$C$41*Køl!$H$2^2)+('pm1'!$D$41*Køl!$H$2)+'pm1'!$E$41)/1000 -> 0.008964720962 | L39: 0.005553645927 | M39: 19.98764715 | N39: 2772.719101 | O39: -9.398700144 | P39: 0.009160213933 | Q39: 39.27830301 | R39: =(('pm1'!$B$41*Køl!$H$4^3)+('pm1'!$C$41*Køl!$H$4^2)+('pm1'!$D$41*Køl!$H$4)+'pm1'!$E$41)/1000 -> 0.008964720962 | S39: 0.005553645927 | T39: 19.98764715 | U39: 2772.719101 | V39: -9.398700144 | W39: 0.009160213933 | X39: 39.27830301 | Y39: 0 | Z39: =1.2*(Varme_og_Køl_1!$D$43/3600)*Y39 -> 0 | AA39: 0 | AB39: =-1*1.2*(Varme_og_Køl_1!$D$43/3600)*AA39 -> 0 | AC39: 0 | AE39: 0 | AF39: =1.2*(Varme_og_Køl_1!$J$43/3600)*AE39 -> 0 | AG39: 0 | AH39: =-1*1.2*(Varme_og_Køl_1!$J$43/3600)*AG39 -> 0 | AI39: 0 | AL39: =IF($K$2=0,0,IF($K$2=1,$AM$11,IF($K$2=2,SUM($AM$11:$AM$12),IF($K$2=3,SUM($AM$11:$AM$13),IF($K$2=4,SUM($AM$11:$AM$14),IF($K$2=5,SUM($AM$11:$AM$15),IF($K$2=6,SUM($AM$11:$AM$16)))))))) -> 0 | AM39: =IF($K$2=7,SUM($AM$11:$AM$17),IF($K$2=8,SUM($AM$11:$AM$18),IF($K$2=9,SUM($AM$11:$AM$19),IF($K$2=10,SUM($AM$11:$AM$20),IF($K$2=11,SUM($AM$11:$AM$21),IF($K$2=12,SUM($AM$11:$AM$22),IF($K$2=13,SUM($AM$11:$AM$23)))))))) -> FALSE | AN39: =IF($K$2=14,SUM($AM$11:$AM$24),IF($K$2=15,SUM($AM$11:$AM$25),IF($K$2=16,SUM($AM$11:$AM$26),IF($K$2=17,SUM($AM$11:$AM$27),IF($K$2=18,SUM($AM$11:$AM$28),IF($K$2=19,SUM($AM$11:$AM$29),IF($K$2=20,SUM($AM$11:$AM$30)))))))) -> FALSE | AO39: =IF($K$2=21,SUM($AM$11:$AM$31),IF($K$2=22,SUM($AM$11:$AM$32),IF($K$2=23,SUM($AM$11:$AM$33),IF($K$2=24,SUM($AM$11:$AM$34))))) -> FALSE | AP39: =SUM(AL39:AO39) -> 0
B40: 1 | C40: 30 | D40: 1 | E40: 4.800000191 | F40: 3.799999952 | G40: 93 | H40: =(('pm1'!$B$41*Køl!E40^3)+('pm1'!$C$41*Køl!E40^2)+('pm1'!$D$41*Køl!E40)+'pm1'!$E$41)/1000 -> 0.008226060701 | I40: 0.004733125968 | J40: 16.70860559 | K40: =(('pm1'!$B$41*Køl!$H$2^3)+('pm1'!$C$41*Køl!$H$2^2)+('pm1'!$D$41*Køl!$H$2)+'pm1'!$E$41)/1000 -> 0.008964720962 | L40: 0.005553645927 | M40: 19.98764715 | N40: 1462.487043 | O40: -2.12213521 | P40: 0.01239131334 | Q40: 47.45544016 | R40: =(('pm1'!$B$41*Køl!$H$4^3)+('pm1'!$C$41*Køl!$H$4^2)+('pm1'!$D$41*Køl!$H$4)+'pm1'!$E$41)/1000 -> 0.008964720962 | S40: 0.005553645927 | T40: 19.98764715 | U40: 1462.487043 | V40: -2.12213521 | W40: 0.01239131334 | X40: 47.45544016 | Y40: 0 | Z40: =1.2*(Varme_og_Køl_1!$D$43/3600)*Y40 -> 0 | AA40: 0 | AB40: =-1*1.2*(Varme_og_Køl_1!$D$43/3600)*AA40 -> 0 | AC40: 0 | AE40: 0 | AF40: =1.2*(Varme_og_Køl_1!$J$43/3600)*AE40 -> 0 | AG40: 0 | AH40: =-1*1.2*(Varme_og_Køl_1!$J$43/3600)*AG40 -> 0 | AI40: 0
B41: 1 | C41: 31 | D41: 1 | E41: 6.699999809 | F41: 6.699999809 | G41: 100 | H41: =(('pm1'!$B$41*Køl!E41^3)+('pm1'!$C$41*Køl!E41^2)+('pm1'!$D$41*Køl!E41)+'pm1'!$E$41)/1000 -> 0.009426746211 | I41: 0.005842559196 | J41: 21.42525033 | K41: =(('pm1'!$B$41*Køl!$H$2^3)+('pm1'!$C$41*Køl!$H$2^2)+('pm1'!$D$41*Køl!$H$2)+'pm1'!$E$41)/1000 -> 0.008964720962 | L41: 0.005553645927 | M41: 19.98764715 | N41: 2422.871789 | O41: -7.455772046 | P41: 0.009680979467 | Q41: 40.5962356 | R41: =(('pm1'!$B$41*Køl!$H$4^3)+('pm1'!$C$41*Køl!$H$4^2)+('pm1'!$D$41*Køl!$H$4)+'pm1'!$E$41)/1000 -> 0.008964720962 | S41: 0.005553645927 | T41: 19.98764715 | U41: 2422.871789 | V41: -7.455772046 | W41: 0.009680979467 | X41: 40.5962356 | Y41: 0 | Z41: =1.2*(Varme_og_Køl_1!$D$43/3600)*Y41 -> 0 | AA41: 0 | AB41: =-1*1.2*(Varme_og_Køl_1!$D$43/3600)*AA41 -> 0 | AC41: 0 | AE41: 0 | AF41: =1.2*(Varme_og_Køl_1!$J$43/3600)*AE41 -> 0 | AG41: 0 | AH41: =-1*1.2*(Varme_og_Køl_1!$J$43/3600)*AG41 -> 0 | AI41: 0 | AL41: =IF($N$2=0,0,IF($N$2=1,$AM$11,IF($N$2=2,SUM($AM$11:$AM$12),IF($N$2=3,SUM($AM$11:$AM$13),IF($N$2=4,SUM($AM$11:$AM$14),IF($N$2=5,SUM($AM$11:$AM$15),IF($N$2=6,SUM($AM$11:$AM$16)))))))) -> FALSE | AM41: =IF($N$2=7,SUM($AM$11:$AM$17),IF($N$2=8,SUM($AM$11:$AM$18),IF($N$2=9,SUM($AM$11:$AM$19),IF($N$2=10,SUM($AM$11:$AM$20),IF($N$2=11,SUM($AM$11:$AM$21),IF($N$2=12,SUM($AM$11:$AM$22),IF($N$2=13,SUM($AM$11:$AM$23)))))))) -> FALSE | AN41: =IF($N$2=14,SUM($AM$11:$AM$24),IF($N$2=15,SUM($AM$11:$AM$25),IF($N$2=16,SUM($AM$11:$AM$26),IF($N$2=17,SUM($AM$11:$AM$27),IF($N$2=18,SUM($AM$11:$AM$28),IF($N$2=19,SUM($AM$11:$AM$29),IF($N$2=20,SUM($AM$11:$AM$30)))))))) -> FALSE | AO41: =IF($N$2=21,SUM($AM$11:$AM$31),IF($N$2=22,SUM($AM$11:$AM$32),IF($N$2=23,SUM($AM$11:$AM$33),IF($N$2=24,SUM($AM$11:$AM$34))))) -> 2130.216682 | AP41: =SUM(AL41:AO41) -> 2130.216682
B42: 2 | C42: 1 | D42: 1 | E42: -3.700000048 | F42: -4.800000191 | G42: 90 | H42: =(('pm1'!$B$41*Køl!E42^3)+('pm1'!$C$41*Køl!E42^2)+('pm1'!$D$41*Køl!E42)+'pm1'!$E$41)/1000 -> 0.004610767004 | I42: 0.002558464169 | J42: 2.658911487 | K42: =(('pm1'!$B$41*Køl!$H$2^3)+('pm1'!$C$41*Køl!$H$2^2)+('pm1'!$D$41*Køl!$H$2)+'pm1'!$E$41)/1000 -> 0.008964720962 | L42: 0.005553645927 | M42: 19.98764715 | N42: 3238.534697 | O42: -11.98567503 | P42: 0.008641462158 | Q42: 37.96546677 | R42: =(('pm1'!$B$41*Køl!$H$4^3)+('pm1'!$C$41*Køl!$H$4^2)+('pm1'!$D$41*Køl!$H$4)+'pm1'!$E$41)/1000 -> 0.008964720962 | S42: 0.005553645927 | T42: 19.98764715 | U42: 3238.534697 | V42: -11.98567503 | W42: 0.008641462158 | X42: 37.96546677 | Y42: 0 | Z42: =1.2*(Varme_og_Køl_1!$D$43/3600)*Y42 -> 0 | AA42: 0 | AB42: =-1*1.2*(Varme_og_Køl_1!$D$43/3600)*AA42 -> 0 | AC42: 0 | AE42: 0 | AF42: =1.2*(Varme_og_Køl_1!$J$43/3600)*AE42 -> 0 | AG42: 0 | AH42: =-1*1.2*(Varme_og_Køl_1!$J$43/3600)*AG42 -> 0 | AI42: 0
B43: 2 | C43: 2 | D43: 1 | E43: -2.400000095 | F43: -4.300000191 | G43: 84 | H43: =(('pm1'!$B$41*Køl!E43^3)+('pm1'!$C$41*Køl!E43^2)+('pm1'!$D$41*Køl!E43)+'pm1'!$E$41)/1000 -> 0.005008892143 | I43: 0.002594236067 | J43: 4.062203637 | K43: =(('pm1'!$B$41*Køl!$H$2^3)+('pm1'!$C$41*Køl!$H$2^2)+('pm1'!$D$41*Køl!$H$2)+'pm1'!$E$41)/1000 -> 0.008964720962 | L43: 0.005553645927 | M43: 19.98764715 | N43: 2838.403766 | O43: -9.763489518 | P43: 0.009076752865 | Q43: 39.06708308 | R43: =(('pm1'!$B$41*Køl!$H$4^3)+('pm1'!$C$41*Køl!$H$4^2)+('pm1'!$D$41*Køl!$H$4)+'pm1'!$E$41)/1000 -> 0.008964720962 | S43: 0.005553645927 | T43: 19.98764715 | U43: 2838.403766 | V43: -9.763489518 | W43: 0.009076752865 | X43: 39.06708308 | Y43: 0 | Z43: =1.2*(Varme_og_Køl_1!$D$43/3600)*Y43 -> 0 | AA43: 0 | AB43: =-1*1.2*(Varme_og_Køl_1!$D$43/3600)*AA43 -> 0 | AC43: 0 | AE43: 0 | AF43: =1.2*(Varme_og_Køl_1!$J$43/3600)*AE43 -> 0 | AG43: 0 | AH43: =-1*1.2*(Varme_og_Køl_1!$J$43/3600)*AG43 -> 0 | AI43: 0 | AP43: =(AP41-AP39)*(Q2/7) -> 2130.216682
B44: 2 | C44: 3 | D44: 1 | E44: -3 | F44: -4.900000095 | G44: 83 | H44: =(('pm1'!$B$41*Køl!E44^3)+('pm1'!$C$41*Køl!E44^2)+('pm1'!$D$41*Køl!E44)+'pm1'!$E$41)/1000 -> 0.004819393854 | I44: 0.002465867701 | J44: 3.135375577 | K44: =(('pm1'!$B$41*Køl!$H$2^3)+('pm1'!$C$41*Køl!$H$2^2)+('pm1'!$D$41*Køl!$H$2)+'pm1'!$E$41)/1000 -> 0.008964720962 | L44: 0.005553645927 | M44: 19.98764715 | N44: 2914.7171 | O44: -10.18730675 | P44: 0.008984510624 | Q44: 38.83364011 | R44: =(('pm1'!$B$41*Køl!$H$4^3)+('pm1'!$C$41*Køl!$H$4^2)+('pm1'!$D$41*Køl!$H$4)+'pm1'!$E$41)/1000 -> 0.008964720962 | S44: 0.005553645927 | T44: 19.98764715 | U44: 2914.7171 | V44: -10.18730675 | W44: 0.008984510624 | X44: 38.83364011 | Y44: 0 | Z44: =1.2*(Varme_og_Køl_1!$D$43/3600)*Y44 -> 0 | AA44: 0 | AB44: =-1*1.2*(Varme_og_Køl_1!$D$43/3600)*AA44 -> 0 | AC44: 0 | AE44: 0 | AF44: =1.2*(Varme_og_Køl_1!$J$43/3600)*AE44 -> 0 | AG44: 0 | AH44: =-1*1.2*(Varme_og_Køl_1!$J$43/3600)*AG44 -> 0 | AI44: 0
B45: 2 | C45: 4 | D45: 1 | E45: -4.599999905 | F45: -5.599999905 | G45: 91 | H45: =(('pm1'!$B$41*Køl!E45^3)+('pm1'!$C$41*Køl!E45^2)+('pm1'!$D$41*Køl!E45)+'pm1'!$E$41)/1000 -> 0.004361082314 | I45: 0.002446365668 | J45: 1.469829527 | K45: =(('pm1'!$B$41*Køl!$H$2^3)+('pm1'!$C$41*Køl!$H$2^2)+('pm1'!$D$41*Køl!$H$2)+'pm1'!$E$41)/1000 -> 0.008964720962 | L45: 0.005553645927 | M45: 19.98764715 | N45: 3411.343368 | O45: -12.9453932 | P45: 0.008485042425 | Q45: 37.56960597 | R45: =(('pm1'!$B$41*Køl!$H$4^3)+('pm1'!$C$41*Køl!$H$4^2)+('pm1'!$D$41*Køl!$H$4)+'pm1'!$E$41)/1000 -> 0.008964720962 | S45: 0.005553645927 | T45: 19.98764715 | U45: 3411.343368 | V45: -12.9453932 | W45: 0.008485042425 | X45: 37.56960597 | Y45: 0 | Z45: =1.2*(Varme_og_Køl_1!$D$43/3600)*Y45 -> 0 | AA45: 0 | AB45: =-1*1.2*(Varme_og_Køl_1!$D$43/3600)*AA45 -> 0 | AC45: 0 | AE45: 0 | AF45: =1.2*(Varme_og_Køl_1!$J$43/3600)*AE45 -> 0 | AG45: 0 | AH45: =-1*1.2*(Varme_og_Køl_1!$J$43/3600)*AG45 -> 0 | AI45: 0
B46: 2 | C46: 5 | D46: 1 | E46: -3 | F46: -5 | G46: 83 | H46: =(('pm1'!$B$41*Køl!E46^3)+('pm1'!$C$41*Køl!E46^2)+('pm1'!$D$41*Køl!E46)+'pm1'!$E$41)/1000 -> 0.004819393854 | I46: 0.002465867701 | J46: 3.135375577 | K46: =(('pm1'!$B$41*Køl!$H$2^3)+('pm1'!$C$41*Køl!$H$2^2)+('pm1'!$D$41*Køl!$H$2)+'pm1'!$E$41)/1000 -> 0.008964720962 | L46: 0.005553645927 | M46: 19.98764715 | N46: 2914.7171 | O46: -10.18730675 | P46: 0.008984510624 | Q46: 38.83364011 | R46: =(('pm1'!$B$41*Køl!$H$4^3)+('pm1'!$C$41*Køl!$H$4^2)+('pm1'!$D$41*Køl!$H$4)+'pm1'!$E$41)/1000 -> 0.008964720962 | S46: 0.005553645927 | T46: 19.98764715 | U46: 2914.7171 | V46: -10.18730675 | W46: 0.008984510624 | X46: 38.83364011 | Y46: 0 | Z46: =1.2*(Varme_og_Køl_1!$D$43/3600)*Y46 -> 0 | AA46: 0 | AB46: =-1*1.2*(Varme_og_Køl_1!$D$43/3600)*AA46 -> 0 | AC46: 0 | AE46: 0 | AF46: =1.2*(Varme_og_Køl_1!$J$43/3600)*AE46 -> 0 | AG46: 0 | AH46: =-1*1.2*(Varme_og_Køl_1!$J$43/3600)*AG46 -> 0 | AI46: 0 | AL46: =IF($K$4=0,0,IF($K$4=1,$AP$11,IF($K$4=2,SUM($AP$11:$AP$12),IF($K$4=3,SUM($AP$11:$AP$13),IF($K$4=4,SUM($AP$11:$AP$14),IF($K$4=5,SUM($AP$11:$AP$15),IF($K$4=6,SUM($AP$11:$AP$16)))))))) -> 0 | AM46: =IF($K$4=7,SUM($AP$11:$AP$17),IF($K$4=8,SUM($AP$11:$AP$18),IF($K$4=9,SUM($AP$11:$AP$19),IF($K$4=10,SUM($AP$11:$AP$20),IF($K$4=11,SUM($AP$11:$AP$21),IF($K$4=12,SUM($AP$11:$AP$22),IF($K$4=13,SUM($AP$11:$AP$23)))))))) -> FALSE | AN46: =IF($K$4=14,SUM($AP$11:$AP$24),IF($K$4=15,SUM($AP$11:$AP$25),IF($K$4=16,SUM($AP$11:$AP$26),IF($K$4=17,SUM($AP$11:$AP$27),IF($K$4=18,SUM($AP$11:$AP$28),IF($K$4=19,SUM($AP$11:$AP$29),IF($K$4=20,SUM($AP$11:$AP$30)))))))) -> FALSE | AO46: =IF($K$4=21,SUM($AP$11:$AP$31),IF($K$4=22,SUM($AP$11:$AP$32),IF($K$4=23,SUM($AP$11:$AP$33),IF($K$4=24,SUM($AP$11:$AP$34))))) -> FALSE | AP46: =SUM(AL46:AO46) -> 0
B47: 2 | C47: 6 | D47: 1 | E47: -10.39999962 | F47: -11.19999981 | G47: 92 | H47: =(('pm1'!$B$41*Køl!E47^3)+('pm1'!$C$41*Køl!E47^2)+('pm1'!$D$41*Køl!E47)+'pm1'!$E$41)/1000 -> 0.003147430015 | I47: 0.001783068577 | J47: -6.037436783 | K47: =(('pm1'!$B$41*Køl!$H$2^3)+('pm1'!$C$41*Køl!$H$2^2)+('pm1'!$D$41*Køl!$H$2)+'pm1'!$E$41)/1000 -> 0.008964720962 | L47: 0.005553645927 | M47: 19.98764715 | N47: 4349.466434 | O47: -18.15539655 | P47: 0.007852778511 | Q47: 35.96949774 | R47: =(('pm1'!$B$41*Køl!$H$4^3)+('pm1'!$C$41*Køl!$H$4^2)+('pm1'!$D$41*Køl!$H$4)+'pm1'!$E$41)/1000 -> 0.008964720962 | S47: 0.005553645927 | T47: 19.98764715 | U47: 4349.466434 | V47: -18.15539655 | W47: 0.007852778511 | X47: 35.96949774 | Y47: 0 | Z47: =1.2*(Varme_og_Køl_1!$D$43/3600)*Y47 -> 0 | AA47: 0 | AB47: =-1*1.2*(Varme_og_Køl_1!$D$43/3600)*AA47 -> 0 | AC47: 0 | AE47: 0 | AF47: =1.2*(Varme_og_Køl_1!$J$43/3600)*AE47 -> 0 | AG47: 0 | AH47: =-1*1.2*(Varme_og_Køl_1!$J$43/3600)*AG47 -> 0 | AI47: 0
B48: 2 | C48: 7 | D48: 1 | E48: 0.1000000015 | F48: -4.699999809 | G48: 64 | H48: =(('pm1'!$B$41*Køl!E48^3)+('pm1'!$C$41*Køl!E48^2)+('pm1'!$D$41*Køl!E48)+'pm1'!$E$41)/1000 -> 0.005915306935 | I48: 0.002333266195 | J48: 5.936532742 | K48: =(('pm1'!$B$41*Køl!$H$2^3)+('pm1'!$C$41*Køl!$H$2^2)+('pm1'!$D$41*Køl!$H$2)+'pm1'!$E$41)/1000 -> 0.008964720962 | L48: 0.005553645927 | M48: 19.98764715 | N48: 1832.08208 | O48: -4.174735182 | P48: 0.01101191666 | Q48: 43.96451821 | R48: =(('pm1'!$B$41*Køl!$H$4^3)+('pm1'!$C$41*Køl!$H$4^2)+('pm1'!$D$41*Køl!$H$4)+'pm1'!$E$41)/1000 -> 0.008964720962 | S48: 0.005553645927 | T48: 19.98764715 | U48: 1832.08208 | V48: -4.174735182 | W48: 0.01101191666 | X48: 43.96451821 | Y48: 0 | Z48: =1.2*(Varme_og_Køl_1!$D$43/3600)*Y48 -> 0 | AA48: 0 | AB48: =-1*1.2*(Varme_og_Køl_1!$D$43/3600)*AA48 -> 0 | AC48: 0 | AE48: 0 | AF48: =1.2*(Varme_og_Køl_1!$J$43/3600)*AE48 -> 0 | AG48: 0 | AH48: =-1*1.2*(Varme_og_Køl_1!$J$43/3600)*AG48 -> 0 | AI48: 0 | AL48: =IF($N$4=0,0,IF($N$4=1,$AP$11,IF($N$4=2,SUM($AP$11:$AP$12),IF($N$4=3,SUM($AP$11:$AP$13),IF($N$4=4,SUM($AP$11:$AP$14),IF($N$4=5,SUM($AP$11:$AP$15),IF($N$4=6,SUM($AP$11:$AP$16)))))))) -> FALSE | AM48: =IF($N$4=7,SUM($AP$11:$AP$17),IF($N$4=8,SUM($AP$11:$AP$18),IF($N$4=9,SUM($AP$11:$AP$19),IF($N$4=10,SUM($AP$11:$AP$20),IF($N$4=11,SUM($AP$11:$AP$21),IF($N$4=12,SUM($AP$11:$AP$22),IF($N$4=13,SUM($AP$11:$AP$23)))))))) -> FALSE | AN48: =IF($N$4=14,SUM($AP$11:$AP$24),IF($N$4=15,SUM($AP$11:$AP$25),IF($N$4=16,SUM($AP$11:$AP$26),IF($N$4=17,SUM($AP$11:$AP$27),IF($N$4=18,SUM($AP$11:$AP$28),IF($N$4=19,SUM($AP$11:$AP$29),IF($N$4=20,SUM($AP$11:$AP$30)))))))) -> FALSE | AO48: =IF($N$4=21,SUM($AP$11:$AP$31),IF($N$4=22,SUM($AP$11:$AP$32),IF($N$4=23,SUM($AP$11:$AP$33),IF($N$4=24,SUM($AP$11:$AP$34))))) -> 2130.216682 | AP48: =SUM(AL48:AO48) -> 2130.216682
B49: 2 | C49: 8 | D49: 1 | E49: -3.200000048 | F49: -7 | G49: 69 | H49: =(('pm1'!$B$41*Køl!E49^3)+('pm1'!$C$41*Køl!E49^2)+('pm1'!$D$41*Køl!E49)+'pm1'!$E$41)/1000 -> 0.004758446797 | I49: 0.002022577475 | J49: 1.827227835 | K49: =(('pm1'!$B$41*Køl!$H$2^3)+('pm1'!$C$41*Køl!$H$2^2)+('pm1'!$D$41*Køl!$H$2)+'pm1'!$E$41)/1000 -> 0.008964720962 | L49: 0.005553645927 | M49: 19.98764715 | N49: 2605.443698 | O49: -8.469711784 | P49: 0.009391763791 | Q49: 39.86430013 | R49: =(('pm1'!$B$41*Køl!$H$4^3)+('pm1'!$C$41*Køl!$H$4^2)+('pm1'!$D$41*Køl!$H$4)+'pm1'!$E$41)/1000 -> 0.008964720962 | S49: 0.005553645927 | T49: 19.98764715 | U49: 2605.443698 | V49: -8.469711784 | W49: 0.009391763791 | X49: 39.86430013 | Y49: 0 | Z49: =1.2*(Varme_og_Køl_1!$D$43/3600)*Y49 -> 0 | AA49: 0 | AB49: =-1*1.2*(Varme_og_Køl_1!$D$43/3600)*AA49 -> 0 | AC49: 0 | AE49: 0 | AF49: =1.2*(Varme_og_Køl_1!$J$43/3600)*AE49 -> 0 | AG49: 0 | AH49: =-1*1.2*(Varme_og_Køl_1!$J$43/3600)*AG49 -> 0 | AI49: 0
B50: 2 | C50: 9 | D50: 1 | E50: -1.899999976 | F50: -3.299999952 | G50: 88 | H50: =(('pm1'!$B$41*Køl!E50^3)+('pm1'!$C$41*Køl!E50^2)+('pm1'!$D$41*Køl!E50)+'pm1'!$E$41)/1000 -> 0.005174696949 | I50: 0.0028086991 | J50: 5.103230531 | K50: =(('pm1'!$B$41*Køl!$H$2^3)+('pm1'!$C$41*Køl!$H$2^2)+('pm1'!$D$41*Køl!$H$2)+'pm1'!$E$41)/1000 -> 0.008964720962 | L50: 0.005553645927 | M50: 19.98764715 | N50: 2878.015668 | O50: -9.983479992 | P50: 0.009028262175 | Q50: 38.94436478 | R50: =(('pm1'!$B$41*Køl!$H$4^3)+('pm1'!$C$41*Køl!$H$4^2)+('pm1'!$D$41*Køl!$H$4)+'pm1'!$E$41)/1000 -> 0.008964720962 | S50: 0.005553645927 | T50: 19.98764715 | U50: 2878.015668 | V50: -9.983479992 | W50: 0.009028262175 | X50: 38.94436478 | Y50: 0 | Z50: =1.2*(Varme_og_Køl_1!$D$43/3600)*Y50 -> 0 | AA50: 0 | AB50: =-1*1.2*(Varme_og_Køl_1!$D$43/3600)*AA50 -> 0 | AC50: 0 | AE50: 0 | AF50: =1.2*(Varme_og_Køl_1!$J$43/3600)*AE50 -> 0 | AG50: 0 | AH50: =-1*1.2*(Varme_og_Køl_1!$J$43/3600)*AG50 -> 0 | AI50: 0 | AP50: =(AP48-AP46)*(Q4/7) -> 2130.216682
B51: 2 | C51: 10 | D51: 1 | E51: 0 | F51: -0.6000000238 | G51: 95 | H51: =(('pm1'!$B$41*Køl!E51^3)+('pm1'!$C$41*Køl!E51^2)+('pm1'!$D$41*Køl!E51)+'pm1'!$E$41)/1000 -> 0.005875168825 | I51: 0.003446072263 | J51: 8.618626729 | K51: =(('pm1'!$B$41*Køl!$H$2^3)+('pm1'!$C$41*Køl!$H$2^2)+('pm1'!$D$41*Køl!$H$2)+'pm1'!$E$41)/1000 -> 0.008964720962 | L51: 0.005553645927 | M51: 19.98764715 | N51: 2846.87558 | O51: -9.810538973 | P51: 0.009066268702 | Q51: 39.04055018 | R51: =(('pm1'!$B$41*Køl!$H$4^3)+('pm1'!$C$41*Køl!$H$4^2)+('pm1'!$D$41*Køl!$H$4)+'pm1'!$E$41)/1000 -> 0.008964720962 | S51: 0.005553645927 | T51: 19.98764715 | U51: 2846.87558 | V51: -9.810538973 | W51: 0.009066268702 | X51: 39.04055018 | Y51: 0 | Z51: =1.2*(Varme_og_Køl_1!$D$43/3600)*Y51 -> 0 | AA51: 0 | AB51: =-1*1.2*(Varme_og_Køl_1!$D$43/3600)*AA51 -> 0 | AC51: 0 | AE51: 0 | AF51: =1.2*(Varme_og_Køl_1!$J$43/3600)*AE51 -> 0 | AG51: 0 | AH51: =-1*1.2*(Varme_og_Køl_1!$J$43/3600)*AG51 -> 0 | AI51: 0
B52: 2 | C52: 11 | D52: 1 | E52: 1.799999952 | F52: 1.399999976 | G52: 97 | H52: =(('pm1'!$B$41*Køl!E52^3)+('pm1'!$C$41*Køl!E52^2)+('pm1'!$D$41*Køl!E52)+'pm1'!$E$41)/1000 -> 0.006651843984 | I52: 0.003987216407 | J52: 11.79617739 | K52: =(('pm1'!$B$41*Køl!$H$2^3)+('pm1'!$C$41*Køl!$H$2^2)+('pm1'!$D$41*Køl!$H$2)+'pm1'!$E$41)/1000 -> 0.008964720962 | L52: 0.005553645927 | M52: 19.98764715 | N52: 2681.256957 | O52: -8.890751778 | P52: 0.00928323998 | Q52: 39.58965241 | R52: =(('pm1'!$B$41*Køl!$H$4^3)+('pm1'!$C$41*Køl!$H$4^2)+('pm1'!$D$41*Køl!$H$4)+'pm1'!$E$41)/1000 -> 0.008964720962 | S52: 0.005553645927 | T52: 19.98764715 | U52: 2681.256957 | V52: -8.890751778 | W52: 0.00928323998 | X52: 39.58965241 | Y52: 0 | Z52: =1.2*(Varme_og_Køl_1!$D$43/3600)*Y52 -> 0 | AA52: 0 | AB52: =-1*1.2*(Varme_og_Køl_1!$D$43/3600)*AA52 -> 0 | AC52: 0 | AE52: 0 | AF52: =1.2*(Varme_og_Køl_1!$J$43/3600)*AE52 -> 0 | AG52: 0 | AH52: =-1*1.2*(Varme_og_Køl_1!$J$43/3600)*AG52 -> 0 | AI52: 0
B53: 2 | C53: 12 | D53: 1 | E53: 0.6999999881 | F53: 0 | G53: 95 | H53: =(('pm1'!$B$41*Køl!E53^3)+('pm1'!$C$41*Køl!E53^2)+('pm1'!$D$41*Køl!E53)+'pm1'!$E$41)/1000 -> 0.006163404372 | I53: 0.003616119318 | J53: 9.752822588 | K53: =(('pm1'!$B$41*Køl!$H$2^3)+('pm1'!$C$41*Køl!$H$2^2)+('pm1'!$D$41*Køl!$H$2)+'pm1'!$E$41)/1000 -> 0.008964720962 | L53: 0.005553645927 | M53: 19.98764715 | N53: 2735.446308 | O53: -9.191700249 | P53: 0.009209356504 | Q53: 39.40267107 | R53: =(('pm1'!$B$41*Køl!$H$4^3)+('pm1'!$C$41*Køl!$H$4^2)+('pm1'!$D$41*Køl!$H$4)+'pm1'!$E$41)/1000 -> 0.008964720962 | S53: 0.005553645927 | T53: 19.98764715 | U53: 2735.446308 | V53: -9.191700249 | W53: 0.009209356504 | X53: 39.40267107 | Y53: 0 | Z53: =1.2*(Varme_og_Køl_1!$D$43/3600)*Y53 -> 0 | AA53: 0 | AB53: =-1*1.2*(Varme_og_Køl_1!$D$43/3600)*AA53 -> 0 | AC53: 0 | AE53: 0 | AF53: =1.2*(Varme_og_Køl_1!$J$43/3600)*AE53 -> 0 | AG53: 0 | AH53: =-1*1.2*(Varme_og_Køl_1!$J$43/3600)*AG53 -> 0 | AI53: 0
B54: 2 | C54: 13 | D54: 1 | E54: 0.8000000119 | F54: 0.200000003 | G54: 96 | H54: =(('pm1'!$B$41*Køl!E54^3)+('pm1'!$C$41*Køl!E54^2)+('pm1'!$D$41*Køl!E54)+'pm1'!$E$41)/1000 -> 0.006205985899 | I54: 0.003679804186 | J54: 10.01346583 | K54: =(('pm1'!$B$41*Køl!$H$2^3)+('pm1'!$C$41*Køl!$H$2^2)+('pm1'!$D$41*Køl!$H$2)+'pm1'!$E$41)/1000 -> 0.008964720962 | L54: 0.005553645927 | M54: 19.98764715 | N54: 2775.047579 | O54: -9.411631685 | P54: 0.009157187746 | Q54: 39.27064446 | R54: =(('pm1'!$B$41*Køl!$H$4^3)+('pm1'!$C$41*Køl!$H$4^2)+('pm1'!$D$41*Køl!$H$4)+'pm1'!$E$41)/1000 -> 0.008964720962 | S54: 0.005553645927 | T54: 19.98764715 | U54: 2775.047579 | V54: -9.411631685 | W54: 0.009157187746 | X54: 39.27064446 | Y54: 0 | Z54: =1.2*(Varme_og_Køl_1!$D$43/3600)*Y54 -> 0 | AA54: 0 | AB54: =-1*1.2*(Varme_og_Køl_1!$D$43/3600)*AA54 -> 0 | AC54: 0 | AE54: 0 | AF54: =1.2*(Varme_og_Køl_1!$J$43/3600)*AE54 -> 0 | AG54: 0 | AH54: =-1*1.2*(Varme_og_Køl_1!$J$43/3600)*AG54 -> 0 | AI54: 0
B55: 2 | C55: 14 | D55: 1 | E55: -1.299999952 | F55: -3.5 | G55: 81 | H55: =(('pm1'!$B$41*Køl!E55^3)+('pm1'!$C$41*Køl!E55^2)+('pm1'!$D$41*Køl!E55)+'pm1'!$E$41)/1000 -> 0.005383540383 | I55: 0.002689103259 | J55: 5.411145048 | K55: =(('pm1'!$B$41*Køl!$H$2^3)+('pm1'!$C$41*Køl!$H$2^2)+('pm1'!$D$41*Køl!$H$2)+'pm1'!$E$41)/1000 -> 0.008964720962 | L55: 0.005553645927 | M55: 19.98764715 | N55: 2548.399796 | O55: -8.152910149 | P55: 0.009477677006 | Q55: 40.08172586 | R55: =(('pm1'!$B$41*Køl!$H$4^3)+('pm1'!$C$41*Køl!$H$4^2)+('pm1'!$D$41*Køl!$H$4)+'pm1'!$E$41)/1000 -> 0.008964720962 | S55: 0.005553645927 | T55: 19.98764715 | U55: 2548.399796 | V55: -8.152910149 | W55: 0.009477677006 | X55: 40.08172586 | Y55: 0 | Z55: =1.2*(Varme_og_Køl_1!$D$43/3600)*Y55 -> 0 | AA55: 0 | AB55: =-1*1.2*(Varme_og_Køl_1!$D$43/3600)*AA55 -> 0 | AC55: 0 | AE55: 0 | AF55: =1.2*(Varme_og_Køl_1!$J$43/3600)*AE55 -> 0 | AG55: 0 | AH55: =-1*1.2*(Varme_og_Køl_1!$J$43/3600)*AG55 -> 0 | AI55: 0
B56: 2 | C56: 15 | D56: 1 | E56: -5.400000095 | F56: -9.199999809 | G56: 69 | H56: =(('pm1'!$B$41*Køl!E56^3)+('pm1'!$C$41*Køl!E56^2)+('pm1'!$D$41*Køl!E56)+'pm1'!$E$41)/1000 -> 0.004155465903 | I56: 0.001765552987 | J56: -1.034485289 | K56: =(('pm1'!$B$41*Køl!$H$2^3)+('pm1'!$C$41*Køl!$H$2^2)+('pm1'!$D$41*Køl!$H$2)+'pm1'!$E$41)/1000 -> 0.008964720962 | L56: 0.005553645927 | M56: 19.98764715 | N56: 3009.429883 | O56: -10.71330802 | P56: 0.008876534444 | Q56: 38.56037831 | R56: =(('pm1'!$B$41*Køl!$H$4^3)+('pm1'!$C$41*Køl!$H$4^2)+('pm1'!$D$41*Køl!$H$4)+'pm1'!$E$41)/1000 -> 0.008964720962 | S56: 0.005553645927 | T56: 19.98764715 | U56: 3009.429883 | V56: -10.71330802 | W56: 0.008876534444 | X56: 38.56037831 | Y56: 0 | Z56: =1.2*(Varme_og_Køl_1!$D$43/3600)*Y56 -> 0 | AA56: 0 | AB56: =-1*1.2*(Varme_og_Køl_1!$D$43/3600)*AA56 -> 0 | AC56: 0 | AE56: 0 | AF56: =1.2*(Varme_og_Køl_1!$J$43/3600)*AE56 -> 0 | AG56: 0 | AH56: =-1*1.2*(Varme_og_Køl_1!$J$43/3600)*AG56 -> 0 | AI56: 0
B57: 2 | C57: 16 | D57: 1 | E57: -8.899999619 | F57: -11.19999981 | G57: 79 | H57: =(('pm1'!$B$41*Køl!E57^3)+('pm1'!$C$41*Køl!E57^2)+('pm1'!$D$41*Køl!E57)+'pm1'!$E$41)/1000 -> 0.00340793771 | I57: 0.001657507296 | J57: -4.835412245 | K57: =(('pm1'!$B$41*Køl!$H$2^3)+('pm1'!$C$41*Køl!$H$2^2)+('pm1'!$D$41*Køl!$H$2)+'pm1'!$E$41)/1000 -> 0.008964720962 | L57: 0.005553645927 | M57: 19.98764715 | N57: 3824.29914 | O57: -15.23880335 | P57: 0.008168504136 | Q57: 36.76852353 | R57: =(('pm1'!$B$41*Køl!$H$4^3)+('pm1'!$C$41*Køl!$H$4^2)+('pm1'!$D$41*Køl!$H$4)+'pm1'!$E$41)/1000 -> 0.008964720962 | S57: 0.005553645927 | T57: 19.98764715 | U57: 3824.29914 | V57: -15.23880335 | W57: 0.008168504136 | X57: 36.76852353 | Y57: 0 | Z57: =1.2*(Varme_og_Køl_1!$D$43/3600)*Y57 -> 0 | AA57: 0 | AB57: =-1*1.2*(Varme_og_Køl_1!$D$43/3600)*AA57 -> 0 | AC57: 0 | AE57: 0 | AF57: =1.2*(Varme_og_Køl_1!$J$43/3600)*AE57 -> 0 | AG57: 0 | AH57: =-1*1.2*(Varme_og_Køl_1!$J$43/3600)*AG57 -> 0 | AI57: 0
B58: 2 | C58: 17 | D58: 1 | E58: -11.10000038 | F58: -11.80000019 | G58: 93 | H58: =(('pm1'!$B$41*Køl!E58^3)+('pm1'!$C$41*Køl!E58^2)+('pm1'!$D$41*Køl!E58)+'pm1'!$E$41)/1000 -> 0.003034941191 | I58: 0.00173790455 | J58: -6.855981882 | K58: =(('pm1'!$B$41*Køl!$H$2^3)+('pm1'!$C$41*Køl!$H$2^2)+('pm1'!$D$41*Køl!$H$2)+'pm1'!$E$41)/1000 -> 0.008964720962 | L58: 0.005553645927 | M58: 19.98764715 | N58: 4481.435896 | O58: -18.88830821 | P58: 0.007785073584 | Q58: 35.79815282 | R58: =(('pm1'!$B$41*Køl!$H$4^3)+('pm1'!$C$41*Køl!$H$4^2)+('pm1'!$D$41*Køl!$H$4)+'pm1'!$E$41)/1000 -> 0.008964720962 | S58: 0.005553645927 | T58: 19.98764715 | U58: 4481.435896 | V58: -18.88830821 | W58: 0.007785073584 | X58: 35.79815282 | Y58: 0 | Z58: =1.2*(Varme_og_Køl_1!$D$43/3600)*Y58 -> 0 | AA58: 0 | AB58: =-1*1.2*(Varme_og_Køl_1!$D$43/3600)*AA58 -> 0 | AC58: 0 | AE58: 0 | AF58: =1.2*(Varme_og_Køl_1!$J$43/3600)*AE58 -> 0 | AG58: 0 | AH58: =-1*1.2*(Varme_og_Køl_1!$J$43/3600)*AG58 -> 0 | AI58: 0
B59: 2 | C59: 18 | D59: 1 | E59: -1.200000048 | F59: -2.599999905 | G59: 88 | H59: =(('pm1'!$B$41*Køl!E59^3)+('pm1'!$C$41*Køl!E59^2)+('pm1'!$D$41*Køl!E59)+'pm1'!$E$41)/1000 -> 0.005419425939 | I59: 0.002942160339 | J59: 6.144576058 | K59: =(('pm1'!$B$41*Køl!$H$2^3)+('pm1'!$C$41*Køl!$H$2^2)+('pm1'!$D$41*Køl!$H$2)+'pm1'!$E$41)/1000 -> 0.008964720962 | L59: 0.005553645927 | M59: 19.98764715 | N59: 2757.05142 | O59: -9.311687389 | P59: 0.00918070922 | Q59: 39.33017167 | R59: =(('pm1'!$B$41*Køl!$H$4^3)+('pm1'!$C$41*Køl!$H$4^2)+('pm1'!$D$41*Køl!$H$4)+'pm1'!$E$41)/1000 -> 0.008964720962 | S59: 0.005553645927 | T59: 19.98764715 | U59: 2757.05142 | V59: -9.311687389 | W59: 0.00918070922 | X59: 39.33017167 | Y59: 0 | Z59: =1.2*(Varme_og_Køl_1!$D$43/3600)*Y59 -> 0 | AA59: 0 | AB59: =-1*1.2*(Varme_og_Køl_1!$D$43/3600)*AA59 -> 0 | AC59: 0 | AE59: 0 | AF59: =1.2*(Varme_og_Køl_1!$J$43/3600)*AE59 -> 0 | AG59: 0 | AH59: =-1*1.2*(Varme_og_Køl_1!$J$43/3600)*AG59 -> 0 | AI59: 0
B60: 2 | C60: 19 | D60: 1 | E60: -2.200000048 | F60: -3.599999905 | G60: 88 | H60: =(('pm1'!$B$41*Køl!E60^3)+('pm1'!$C$41*Køl!E60^2)+('pm1'!$D$41*Køl!E60)+'pm1'!$E$41)/1000 -> 0.005074335839 | I60: 0.002753984353 | J60: 4.663245513 | K60: =(('pm1'!$B$41*Køl!$H$2^3)+('pm1'!$C$41*Køl!$H$2^2)+('pm1'!$D$41*Køl!$H$2)+'pm1'!$E$41)/1000 -> 0.008964720962 | L60: 0.005553645927 | M60: 19.98764715 | N60: 2928.925454 | O60: -10.26621492 | P60: 0.00896786734 | Q60: 38.79151995 | R60: =(('pm1'!$B$41*Køl!$H$4^3)+('pm1'!$C$41*Køl!$H$4^2)+('pm1'!$D$41*Køl!$H$4)+'pm1'!$E$41)/1000 -> 0.008964720962 | S60: 0.005553645927 | T60: 19.98764715 | U60: 2928.925454 | V60: -10.26621492 | W60: 0.00896786734 | X60: 38.79151995 | Y60: 0 | Z60: =1.2*(Varme_og_Køl_1!$D$43/3600)*Y60 -> 0 | AA60: 0 | AB60: =-1*1.2*(Varme_og_Køl_1!$D$43/3600)*AA60 -> 0 | AC60: 0 | AE60: 0 | AF60: =1.2*(Varme_og_Køl_1!$J$43/3600)*AE60 -> 0 | AG60: 0 | AH60: =-1*1.2*(Varme_og_Køl_1!$J$43/3600)*AG60 -> 0 | AI60: 0
B61: 2 | C61: 20 | D61: 1 | E61: -5.099999905 | F61: -5.199999809 | G61: 99 | H61: =(('pm1'!$B$41*Køl!E61^3)+('pm1'!$C$41*Køl!E61^2)+('pm1'!$D$41*Køl!E61)+'pm1'!$E$41)/1000 -> 0.004230848262 | I61: 0.002582516006 | J61: 1.30377488 | K61: =(('pm1'!$B$41*Køl!$H$2^3)+('pm1'!$C$41*Køl!$H$2^2)+('pm1'!$D$41*Køl!$H$2)+'pm1'!$E$41)/1000 -> 0.008964720962 | L61: 0.005553645927 | M61: 19.98764715 | N61: 3735.952381 | O61: -14.74815673 | P61: 0.008230339573 | Q61: 36.92501418 | R61: =(('pm1'!$B$41*Køl!$H$4^3)+('pm1'!$C$41*Køl!$H$4^2)+('pm1'!$D$41*Køl!$H$4)+'pm1'!$E$41)/1000 -> 0.008964720962 | S61: 0.005553645927 | T61: 19.98764715 | U61: 3735.952381 | V61: -14.74815673 | W61: 0.008230339573 | X61: 36.92501418 | Y61: 0 | Z61: =1.2*(Varme_og_Køl_1!$D$43/3600)*Y61 -> 0 | AA61: 0 | AB61: =-1*1.2*(Varme_og_Køl_1!$D$43/3600)*AA61 -> 0 | AC61: 0 | AE61: 0 | AF61: =1.2*(Varme_og_Køl_1!$J$43/3600)*AE61 -> 0 | AG61: 0 | AH61: =-1*1.2*(Varme_og_Køl_1!$J$43/3600)*AG61 -> 0 | AI61: 0
B62: 2 | C62: 21 | D62: 1 | E62: -3.299999952 | F62: -3.299999952 | G62: 100 | H62: =(('pm1'!$B$41*Køl!E62^3)+('pm1'!$C$41*Køl!E62^2)+('pm1'!$D$41*Køl!E62)+'pm1'!$E$41)/1000 -> 0.004728379505 | I62: 0.002916924361 | J62: 3.957523793 | K62: =(('pm1'!$B$41*Køl!$H$2^3)+('pm1'!$C$41*Køl!$H$2^2)+('pm1'!$D$41*Køl!$H$2)+'pm1'!$E$41)/1000 -> 0.008964720962 | L62: 0.005553645927 | M62: 19.98764715 | N62: 3527.107325 | O62: -13.58830523 | P62: 0.008388830422 | Q62: 37.32611648 | R62: =(('pm1'!$B$41*Køl!$H$4^3)+('pm1'!$C$41*Køl!$H$4^2)+('pm1'!$D$41*Køl!$H$4)+'pm1'!$E$41)/1000 -> 0.008964720962 | S62: 0.005553645927 | T62: 19.98764715 | U62: 3527.107325 | V62: -13.58830523 | W62: 0.008388830422 | X62: 37.32611648 | Y62: 0 | Z62: =1.2*(Varme_og_Køl_1!$D$43/3600)*Y62 -> 0 | AA62: 0 | AB62: =-1*1.2*(Varme_og_Køl_1!$D$43/3600)*AA62 -> 0 | AC62: 0 | AE62: 0 | AF62: =1.2*(Varme_og_Køl_1!$J$43/3600)*AE62 -> 0 | AG62: 0 | AH62: =-1*1.2*(Varme_og_Køl_1!$J$43/3600)*AG62 -> 0 | AI62: 0
B63: 2 | C63: 22 | D63: 1 | E63: -0.8999999762 | F63: -1.299999952 | G63: 96 | H63: =(('pm1'!$B$41*Køl!E63^3)+('pm1'!$C$41*Køl!E63^2)+('pm1'!$D$41*Køl!E63)+'pm1'!$E$41)/1000 -> 0.005528975226 | I63: 0.003276260092 | J63: 7.283042056 | K63: =(('pm1'!$B$41*Køl!$H$2^3)+('pm1'!$C$41*Køl!$H$2^2)+('pm1'!$D$41*Køl!$H$2)+'pm1'!$E$41)/1000 -> 0.008964720962 | L63: 0.005553645927 | M63: 19.98764715 | N63: 3029.789626 | O63: -10.82637881 | P63: 0.00885420512 | Q63: 38.50386815 | R63: =(('pm1'!$B$41*Køl!$H$4^3)+('pm1'!$C$41*Køl!$H$4^2)+('pm1'!$D$41*Køl!$H$4)+'pm1'!$E$41)/1000 -> 0.008964720962 | S63: 0.005553645927 | T63: 19.98764715 | U63: 3029.789626 | V63: -10.82637881 | W63: 0.00885420512 | X63: 38.50386815 | Y63: 0 | Z63: =1.2*(Varme_og_Køl_1!$D$43/3600)*Y63 -> 0 | AA63: 0 | AB63: =-1*1.2*(Varme_og_Køl_1!$D$43/3600)*AA63 -> 0 | AC63: 0 | AE63: 0 | AF63: =1.2*(Varme_og_Køl_1!$J$43/3600)*AE63 -> 0 | AG63: 0 | AH63: =-1*1.2*(Varme_og_Køl_1!$J$43/3600)*AG63 -> 0 | AI63: 0
B64: 2 | C64: 23 | D64: 1 | E64: 0 | F64: -2.400000095 | G64: 80 | H64: =(('pm1'!$B$41*Køl!E64^3)+('pm1'!$C$41*Køl!E64^2)+('pm1'!$D$41*Køl!E64)+'pm1'!$E$41)/1000 -> 0.005875168825 | I64: 0.002899419219 | J64: 7.251447467 | K64: =(('pm1'!$B$41*Køl!$H$2^3)+('pm1'!$C$41*Køl!$H$2^2)+('pm1'!$D$41*Køl!$H$2)+'pm1'!$E$41)/1000 -> 0.008964720962 | L64: 0.005553645927 | M64: 19.98764715 | N64: 2260.545409 | O64: -6.554268805 | P64: 0.009977357108 | Q64: 41.34629627 | R64: =(('pm1'!$B$41*Køl!$H$4^3)+('pm1'!$C$41*Køl!$H$4^2)+('pm1'!$D$41*Køl!$H$4)+'pm1'!$E$41)/1000 -> 0.008964720962 | S64: 0.005553645927 | T64: 19.98764715 | U64: 2260.545409 | V64: -6.554268805 | W64: 0.009977357108 | X64: 41.34629627 | Y64: 0 | Z64: =1.2*(Varme_og_Køl_1!$D$43/3600)*Y64 -> 0 | AA64: 0 | AB64: =-1*1.2*(Varme_og_Køl_1!$D$43/3600)*AA64 -> 0 | AC64: 0 | AE64: 0 | AF64: =1.2*(Varme_og_Køl_1!$J$43/3600)*AE64 -> 0 | AG64: 0 | AH64: =-1*1.2*(Varme_og_Køl_1!$J$43/3600)*AG64 -> 0 | AI64: 0
B65: 2 | C65: 24 | D65: 1 | E65: 1 | F65: -0.1000000015 | G65: 92 | H65: =(('pm1'!$B$41*Køl!E65^3)+('pm1'!$C$41*Køl!E65^2)+('pm1'!$D$41*Køl!E65)+'pm1'!$E$41)/1000 -> 0.006292224626 | I65: 0.003574883586 | J65: 9.953433132 | K65: =(('pm1'!$B$41*Køl!$H$2^3)+('pm1'!$C$41*Køl!$H$2^2)+('pm1'!$D$41*Køl!$H$2)+'pm1'!$E$41)/1000 -> 0.008964720962 | L65: 0.005553645927 | M65: 19.98764715 | N65: 2526.831998 | O65: -8.033130234 | P65: 0.00951117061 | Q65: 40.16649013 | R65: =(('pm1'!$B$41*Køl!$H$4^3)+('pm1'!$C$41*Køl!$H$4^2)+('pm1'!$D$41*Køl!$H$4)+'pm1'!$E$41)/1000 -> 0.008964720962 | S65: 0.005553645927 | T65: 19.98764715 | U65: 2526.831998 | V65: -8.033130234 | W65: 0.00951117061 | X65: 40.16649013 | Y65: 0 | Z65: =1.2*(Varme_og_Køl_1!$D$43/3600)*Y65 -> 0 | AA65: 0 | AB65: =-1*1.2*(Varme_og_Køl_1!$D$43/3600)*AA65 -> 0 | AC65: 0 | AE65: 0 | AF65: =1.2*(Varme_og_Køl_1!$J$43/3600)*AE65 -> 0 | AG65: 0 | AH65: =-1*1.2*(Varme_og_Køl_1!$J$43/3600)*AG65 -> 0 | AI65: 0
B66: 2 | C66: 25 | D66: 1 | E66: 1.200000048 | F66: 1.100000024 | G66: 99 | H66: =(('pm1'!$B$41*Køl!E66^3)+('pm1'!$C$41*Køl!E66^2)+('pm1'!$D$41*Køl!E66)+'pm1'!$E$41)/1000 -> 0.006379912271 | I66: 0.003902538254 | J66: 10.97615869 | K66: =(('pm1'!$B$41*Køl!$H$2^3)+('pm1'!$C$41*Køl!$H$2^2)+('pm1'!$D$41*Køl!$H$2)+'pm1'!$E$41)/1000 -> 0.008964720962 | L66: 0.005553645927 | M66: 19.98764715 | N66: 2907.139268 | O66: -10.14522215 | P66: 0.008993453614 | Q66: 38.85627267 | R66: =(('pm1'!$B$41*Køl!$H$4^3)+('pm1'!$C$41*Køl!$H$4^2)+('pm1'!$D$41*Køl!$H$4)+'pm1'!$E$41)/1000 -> 0.008964720962 | S66: 0.005553645927 | T66: 19.98764715 | U66: 2907.139268 | V66: -10.14522215 | W66: 0.008993453614 | X66: 38.85627267 | Y66: 0 | Z66: =1.2*(Varme_og_Køl_1!$D$43/3600)*Y66 -> 0 | AA66: 0 | AB66: =-1*1.2*(Varme_og_Køl_1!$D$43/3600)*AA66 -> 0 | AC66: 0 | AE66: 0 | AF66: =1.2*(Varme_og_Køl_1!$J$43/3600)*AE66 -> 0 | AG66: 0 | AH66: =-1*1.2*(Varme_og_Køl_1!$J$43/3600)*AG66 -> 0 | AI66: 0
B67: 2 | C67: 26 | D67: 1 | E67: 4.400000095 | F67: 2.099999905 | G67: 85 | H67: =(('pm1'!$B$41*Køl!E67^3)+('pm1'!$C$41*Køl!E67^2)+('pm1'!$D$41*Køl!E67)+'pm1'!$E$41)/1000 -> 0.007994286961 | I67: 0.00420051592 | J67: 14.96626743 | K67: =(('pm1'!$B$41*Køl!$H$2^3)+('pm1'!$C$41*Køl!$H$2^2)+('pm1'!$D$41*Køl!$H$2)+'pm1'!$E$41)/1000 -> 0.008964720962 | L67: 0.005553645927 | M67: 19.98764715 | N67: 1182.443591 | O67: -0.5668730311 | P67: 0.01401070898 | Q67: 51.55374185 | R67: =(('pm1'!$B$41*Køl!$H$4^3)+('pm1'!$C$41*Køl!$H$4^2)+('pm1'!$D$41*Køl!$H$4)+'pm1'!$E$41)/1000 -> 0.008964720962 | S67: 0.005553645927 | T67: 19.98764715 | U67: 1182.443591 | V67: -0.5668730311 | W67: 0.01401070898 | X67: 51.55374185 | Y67: 0 | Z67: =1.2*(Varme_og_Køl_1!$D$43/3600)*Y67 -> 0 | AA67: 0 | AB67: =-1*1.2*(Varme_og_Køl_1!$D$43/3600)*AA67 -> 0 | AC67: 0 | AE67: 0 | AF67: =1.2*(Varme_og_Køl_1!$J$43/3600)*AE67 -> 0 | AG67: 0 | AH67: =-1*1.2*(Varme_og_Køl_1!$J$43/3600)*AG67 -> 0 | AI67: 0
B68: 2 | C68: 27 | D68: 1 | E68: 3.200000048 | F68: 2 | G68: 92 | H68: =(('pm1'!$B$41*Køl!E68^3)+('pm1'!$C$41*Køl!E68^2)+('pm1'!$D$41*Køl!E68)+'pm1'!$E$41)/1000 -> 0.007340339269 | I68: 0.004174358991 | J68: 13.68411767 | K68: =(('pm1'!$B$41*Køl!$H$2^3)+('pm1'!$C$41*Køl!$H$2^2)+('pm1'!$D$41*Køl!$H$2)+'pm1'!$E$41)/1000 -> 0.008964720962 | L68: 0.005553645927 | M68: 19.98764715 | N68: 2030.034417 | O68: -5.274092371 | P68: 0.01047967079 | Q68: 42.61753164 | R68: =(('pm1'!$B$41*Køl!$H$4^3)+('pm1'!$C$41*Køl!$H$4^2)+('pm1'!$D$41*Køl!$H$4)+'pm1'!$E$41)/1000 -> 0.008964720962 | S68: 0.005553645927 | T68: 19.98764715 | U68: 2030.034417 | V68: -5.274092371 | W68: 0.01047967079 | X68: 42.61753164 | Y68: 0 | Z68: =1.2*(Varme_og_Køl_1!$D$43/3600)*Y68 -> 0 | AA68: 0 | AB68: =-1*1.2*(Varme_og_Køl_1!$D$43/3600)*AA68 -> 0 | AC68: 0 | AE68: 0 | AF68: =1.2*(Varme_og_Køl_1!$J$43/3600)*AE68 -> 0 | AG68: 0 | AH68: =-1*1.2*(Varme_og_Køl_1!$J$43/3600)*AG68 -> 0 | AI68: 0
B69: 2 | C69: 28 | D69: 1 | E69: 3.799999952 | F69: 3.400000095 | G69: 97 | H69: =(('pm1'!$B$41*Køl!E69^3)+('pm1'!$C$41*Køl!E69^2)+('pm1'!$D$41*Køl!E69)+'pm1'!$E$41)/1000 -> 0.007659687189 | I69: 0.004595796606 | J69: 15.34937035 | K69: =(('pm1'!$B$41*Køl!$H$2^3)+('pm1'!$C$41*Køl!$H$2^2)+('pm1'!$D$41*Køl!$H$2)+'pm1'!$E$41)/1000 -> 0.008964720962 | L69: 0.005553645927 | M69: 19.98764715 | N69: 2296.812243 | O69: -6.755681956 | P69: 0.009907506384 | Q69: 41.16952086 | R69: =(('pm1'!$B$41*Køl!$H$4^3)+('pm1'!$C$41*Køl!$H$4^2)+('pm1'!$D$41*Køl!$H$4)+'pm1'!$E$41)/1000 -> 0.008964720962 | S69: 0.005553645927 | T69: 19.98764715 | U69: 2296.812243 | V69: -6.755681956 | W69: 0.009907506384 | X69: 41.16952086 | Y69: 0 | Z69: =1.2*(Varme_og_Køl_1!$D$43/3600)*Y69 -> 0 | AA69: 0 | AB69: =-1*1.2*(Varme_og_Køl_1!$D$43/3600)*AA69 -> 0 | AC69: 0 | AE69: 0 | AF69: =1.2*(Varme_og_Køl_1!$J$43/3600)*AE69 -> 0 | AG69: 0 | AH69: =-1*1.2*(Varme_og_Køl_1!$J$43/3600)*AG69 -> 0 | AI69: 0
B70: 3 | C70: 1 | D70: 1 | E70: 3.400000095 | F70: 3.200000048 | G70: 99 | H70: =(('pm1'!$B$41*Køl!E70^3)+('pm1'!$C$41*Køl!E70^2)+('pm1'!$D$41*Køl!E70)+'pm1'!$E$41)/1000 -> 0.007445123237 | I70: 0.004558894475 | J70: 14.85102563 | K70: =(('pm1'!$B$41*Køl!$H$2^3)+('pm1'!$C$41*Køl!$H$2^2)+('pm1'!$D$41*Køl!$H$2)+'pm1'!$E$41)/1000 -> 0.008964720962 | L70: 0.005553645927 | M70: 19.98764715 | N70: 2613.718128 | O70: -8.515665038 | P70: 0.009379613193 | Q70: 39.83354988 | R70: =(('pm1'!$B$41*Køl!$H$4^3)+('pm1'!$C$41*Køl!$H$4^2)+('pm1'!$D$41*Køl!$H$4)+'pm1'!$E$41)/1000 -> 0.008964720962 | S70: 0.005553645927 | T70: 19.98764715 | U70: 2613.718128 | V70: -8.515665038 | W70: 0.009379613193 | X70: 39.83354988 | Y70: 0 | Z70: =1.2*(Varme_og_Køl_1!$D$43/3600)*Y70 -> 0 | AA70: 0 | AB70: =-1*1.2*(Varme_og_Køl_1!$D$43/3600)*AA70 -> 0 | AC70: 0 | AE70: 0 | AF70: =1.2*(Varme_og_Køl_1!$J$43/3600)*AE70 -> 0 | AG70: 0 | AH70: =-1*1.2*(Varme_og_Køl_1!$J$43/3600)*AG70 -> 0 | AI70: 0
B71: 3 | C71: 2 | D71: 1 | E71: -1.100000024 | F71: -4.099999905 | G71: 75 | H71: =(('pm1'!$B$41*Køl!E71^3)+('pm1'!$C$41*Køl!E71^2)+('pm1'!$D$41*Køl!E71)+'pm1'!$E$41)/1000 -> 0.005455625491 | I71: 0.002522577463 | J71: 5.197205017 | K71: =(('pm1'!$B$41*Køl!$H$2^3)+('pm1'!$C$41*Køl!$H$2^2)+('pm1'!$D$41*Køl!$H$2)+'pm1'!$E$41)/1000 -> 0.008964720962 | L71: 0.005553645927 | M71: 19.98764715 | N71: 2342.408331 | O71: -7.008906489 | P71: 0.009822756426 | Q71: 40.95503905 | R71: =(('pm1'!$B$41*Køl!$H$4^3)+('pm1'!$C$41*Køl!$H$4^2)+('pm1'!$D$41*Køl!$H$4)+'pm1'!$E$41)/1000 -> 0.008964720962 | S71: 0.005553645927 | T71: 19.98764715 | U71: 2342.408331 | V71: -7.008906489 | W71: 0.009822756426 | X71: 40.95503905 | Y71: 0 | Z71: =1.2*(Varme_og_Køl_1!$D$43/3600)*Y71 -> 0 | AA71: 0 | AB71: =-1*1.2*(Varme_og_Køl_1!$D$43/3600)*AA71 -> 0 | AC71: 0 | AE71: 0 | AF71: =1.2*(Varme_og_Køl_1!$J$43/3600)*AE71 -> 0 | AG71: 0 | AH71: =-1*1.2*(Varme_og_Køl_1!$J$43/3600)*AG71 -> 0 | AI71: 0
B72: 3 | C72: 3 | D72: 1 | E72: 2 | F72: 1.600000024 | G72: 97 | H72: =(('pm1'!$B$41*Køl!E72^3)+('pm1'!$C$41*Køl!E72^2)+('pm1'!$D$41*Køl!E72)+'pm1'!$E$41)/1000 -> 0.00674550273 | I72: 0.004043721862 | J72: 12.14039102 | K72: =(('pm1'!$B$41*Køl!$H$2^3)+('pm1'!$C$41*Køl!$H$2^2)+('pm1'!$D$41*Køl!$H$2)+'pm1'!$E$41)/1000 -> 0.008964720962 | L72: 0.005553645927 | M72: 19.98764715 | N72: 2649.139842 | O72: -8.712384693 | P72: 0.009328456091 | Q72: 39.70408354 | R72: =(('pm1'!$B$41*Køl!$H$4^3)+('pm1'!$C$41*Køl!$H$4^2)+('pm1'!$D$41*Køl!$H$4)+'pm1'!$E$41)/1000 -> 0.008964720962 | S72: 0.005553645927 | T72: 19.98764715 | U72: 2649.139842 | V72: -8.712384693 | W72: 0.009328456091 | X72: 39.70408354 | Y72: 0 | Z72: =1.2*(Varme_og_Køl_1!$D$43/3600)*Y72 -> 0 | AA72: 0 | AB72: =-1*1.2*(Varme_og_Køl_1!$D$43/3600)*AA72 -> 0 | AC72: 0 | AE72: 0 | AF72: =1.2*(Varme_og_Køl_1!$J$43/3600)*AE72 -> 0 | AG72: 0 | AH72: =-1*1.2*(Varme_og_Køl_1!$J$43/3600)*AG72 -> 0 | AI72: 0
B73: 3 | C73: 4 | D73: 1 | E73: 0.6999999881 | F73: 0.1000000015 | G73: 96 | H73: =(('pm1'!$B$41*Køl!E73^3)+('pm1'!$C$41*Køl!E73^2)+('pm1'!$D$41*Køl!E73)+'pm1'!$E$41)/1000 -> 0.006163404372 | I73: 0.003654407369 | J73: 9.848630857 | K73: =(('pm1'!$B$41*Køl!$H$2^3)+('pm1'!$C$41*Køl!$H$2^2)+('pm1'!$D$41*Køl!$H$2)+'pm1'!$E$41)/1000 -> 0.008964720962 | L73: 0.005553645927 | M73: 19.98764715 | N73: 2790.592045 | O73: -9.497960147 | P73: 0.009137114897 | Q73: 39.2198449 | R73: =(('pm1'!$B$41*Køl!$H$4^3)+('pm1'!$C$41*Køl!$H$4^2)+('pm1'!$D$41*Køl!$H$4)+'pm1'!$E$41)/1000 -> 0.008964720962 | S73: 0.005553645927 | T73: 19.98764715 | U73: 2790.592045 | V73: -9.497960147 | W73: 0.009137114897 | X73: 39.2198449 | Y73: 0 | Z73: =1.2*(Varme_og_Køl_1!$D$43/3600)*Y73 -> 0 | AA73: 0 | AB73: =-1*1.2*(Varme_og_Køl_1!$D$43/3600)*AA73 -> 0 | AC73: 0 | AE73: 0 | AF73: =1.2*(Varme_og_Køl_1!$J$43/3600)*AE73 -> 0 | AG73: 0 | AH73: =-1*1.2*(Varme_og_Køl_1!$J$43/3600)*AG73 -> 0 | AI73: 0
B74: 3 | C74: 5 | D74: 1 | E74: 3 | F74: 1.899999976 | G74: 92 | H74: =(('pm1'!$B$41*Køl!E74^3)+('pm1'!$C$41*Køl!E74^2)+('pm1'!$D$41*Køl!E74)+'pm1'!$E$41)/1000 -> 0.007237197277 | I74: 0.004115315351 | J74: 13.33336715 | K74: =(('pm1'!$B$41*Køl!$H$2^3)+('pm1'!$C$41*Køl!$H$2^2)+('pm1'!$D$41*Køl!$H$2)+'pm1'!$E$41)/1000 -> 0.008964720962 | L74: 0.005553645927 | M74: 19.98764715 | N74: 2085.751391 | O74: -5.58352472 | P74: 0.01034808118 | Q74: 42.28450993 | R74: =(('pm1'!$B$41*Køl!$H$4^3)+('pm1'!$C$41*Køl!$H$4^2)+('pm1'!$D$41*Køl!$H$4)+'pm1'!$E$41)/1000 -> 0.008964720962 | S74: 0.005553645927 | T74: 19.98764715 | U74: 2085.751391 | V74: -5.58352472 | W74: 0.01034808118 | X74: 42.28450993 | Y74: 0 | Z74: =1.2*(Varme_og_Køl_1!$D$43/3600)*Y74 -> 0 | AA74: 0 | AB74: =-1*1.2*(Varme_og_Køl_1!$D$43/3600)*AA74 -> 0 | AC74: 0 | AE74: 0 | AF74: =1.2*(Varme_og_Køl_1!$J$43/3600)*AE74 -> 0 | AG74: 0 | AH74: =-1*1.2*(Varme_og_Køl_1!$J$43/3600)*AG74 -> 0 | AI74: 0
B75: 3 | C75: 6 | D75: 1 | E75: -0.1000000015 | F75: -0.200000003 | G75: 99 | H75: =(('pm1'!$B$41*Køl!E75^3)+('pm1'!$C$41*Køl!E75^2)+('pm1'!$D$41*Køl!E75)+'pm1'!$E$41)/1000 -> 0.005835370996 | I75: 0.003567536498 | J75: 8.821145217 | K75: =(('pm1'!$B$41*Køl!$H$2^3)+('pm1'!$C$41*Køl!$H$2^2)+('pm1'!$D$41*Køl!$H$2)+'pm1'!$E$41)/1000 -> 0.008964720962 | L75: 0.005553645927 | M75: 19.98764715 | N75: 3071.331272 | O75: -11.05708641 | P75: 0.008809563024 | Q75: 38.39088972 | R75: =(('pm1'!$B$41*Køl!$H$4^3)+('pm1'!$C$41*Køl!$H$4^2)+('pm1'!$D$41*Køl!$H$4)+'pm1'!$E$41)/1000 -> 0.008964720962 | S75: 0.005553645927 | T75: 19.98764715 | U75: 3071.331272 | V75: -11.05708641 | W75: 0.008809563024 | X75: 38.39088972 | Y75: 0 | Z75: =1.2*(Varme_og_Køl_1!$D$43/3600)*Y75 -> 0 | AA75: 0 | AB75: =-1*1.2*(Varme_og_Køl_1!$D$43/3600)*AA75 -> 0 | AC75: 0 | AE75: 0 | AF75: =1.2*(Varme_og_Køl_1!$J$43/3600)*AE75 -> 0 | AG75: 0 | AH75: =-1*1.2*(Varme_og_Køl_1!$J$43/3600)*AG75 -> 0 | AI75: 0
B76: 3 | C76: 7 | D76: 1 | E76: 4.900000095 | F76: 4 | G76: 94 | H76: =(('pm1'!$B$41*Køl!E76^3)+('pm1'!$C$41*Køl!E76^2)+('pm1'!$D$41*Køl!E76)+'pm1'!$E$41)/1000 -> 0.00828511258 | I76: =0.622*((G76/100)*H76)/((1.013-((G76/100)*H76))) -> 0.004819022904 | J76: =(1.006*E76)+(I76*((1.86*E76)+2501)) -> 17.02569695 | K76: =(('pm1'!$B$41*Køl!$H$2^3)+('pm1'!$C$41*Køl!$H$2^2)+('pm1'!$D$41*Køl!$H$2)+'pm1'!$E$41)/1000 -> 0.008964720962 | L76: =0.622*((100/100)*K76)/((1.013-((100/100)*K76))) -> 0.005553645927 | M76: =(1.006*$H$2)+(L76*((1.86*$H$2)+2501)) -> 19.98764715 | N76: =IF(I76-L76=0,0,(E76-$H$2)/(I76-L76)) -> 1497.3665 | O76: =E76-(N76*I76) -> -2.315843363 | P76: =IF(N76=0,L76,($C$2-O76)/N76) -> 0.01223203762 | Q76: =(1.006*$C$2)+(P76*((1.86*$C$2)+2501)) -> 47.05235154 | R76: =(('pm1'!$B$41*Køl!$H$4^3)+('pm1'!$C$41*Køl!$H$4^2)+('pm1'!$D$41*Køl!$H$4)+'pm1'!$E$41)/1000 -> 0.008964720962 | S76: =0.622*((100/100)*R76)/((1.013-((100/100)*R76))) -> 0.005553645927 | T76: =(1.006*$H$4)+(S76*((1.86*$H$4)+2501)) -> 19.98764715 | U76: =IF(I76-S76=0,0,(E76-$H$4)/(I76-S76)) -> 1497.3665 | V76: =E76-(U76*I76) -> -2.315843363 | W76: =IF(U76=0,S76,($C$4-V76)/U76) -> 0.01223203762 | X76: =(1.006*$C$4)+(W76*((1.86*$C$4)+2501)) -> 47.05235154 | Y76: =IF(E76<$C$2,0,IF($H$2>F76,E76-$C$2)) -> 0 | Z76: =1.2*(Varme_og_Køl_1!$D$43/3600)*Y76 -> 0 | AA76: =IF($H$2<=F76,IF(Q76>J76,0,Q76-J76),0) -> 0 | AB76: =-1*1.2*(Varme_og_Køl_1!$D$43/3600)*AA76 -> 0 | AC76: =Z76+AB76 -> 0 | AE76: =IF(E76<$C$4,0,IF($H$4>F76,E76-$C$4)) -> 0 | AF76: =1.2*(Varme_og_Køl_1!$J$43/3600)*AE76 -> 0 | AG76: =IF($H$4<=F76,IF(X76>J76,0,X76-J76),0) -> 0 | AH76: =-1*1.2*(Varme_og_Køl_1!$J$43/3600)*AG76 -> 0 | AI76: =AF76+AH76 -> 0
B77: 3 | C77: 8 | D77: 1 | E77: 2.099999905 | F77: -2 | G77: 71 | H77: =(('pm1'!$B$41*Køl!E77^3)+('pm1'!$C$41*Køl!E77^2)+('pm1'!$D$41*Køl!E77)+'pm1'!$E$41)/1000 -> 0.006792907197 | I77: 0.002975552477 | J77: 9.566079156 | K77: =(('pm1'!$B$41*Køl!$H$2^3)+('pm1'!$C$41*Køl!$H$2^2)+('pm1'!$D$41*Køl!$H$2)+'pm1'!$E$41)/1000 -> 0.008964720962 | L77: 0.005553645927 | M77: 19.98764715 | N77: 1512.745822 | O77: -2.401254671 | P77: 0.01216414179 | Q77: 46.88052349 | R77: =(('pm1'!$B$41*Køl!$H$4^3)+('pm1'!$C$41*Køl!$H$4^2)+('pm1'!$D$41*Køl!$H$4)+'pm1'!$E$41)/1000 -> 0.008964720962 | S77: 0.005553645927 | T77: 19.98764715 | U77: 1512.745822 | V77: -2.401254671 | W77: 0.01216414179 | X77: 46.88052349 | Y77: 0 | Z77: =1.2*(Varme_og_Køl_1!$D$43/3600)*Y77 -> 0 | AA77: 0 | AB77: =-1*1.2*(Varme_og_Køl_1!$D$43/3600)*AA77 -> 0 | AC77: 0 | AE77: 0 | AF77: =1.2*(Varme_og_Køl_1!$J$43/3600)*AE77 -> 0 | AG77: 0 | AH77: =-1*1.2*(Varme_og_Køl_1!$J$43/3600)*AG77 -> 0 | AI77: 0
B78: 3 | C78: 9 | D78: 1 | E78: -3.299999952 | F78: -4.599999905 | G78: 88 | H78: =(('pm1'!$B$41*Køl!E78^3)+('pm1'!$C$41*Køl!E78^2)+('pm1'!$D$41*Køl!E78)+'pm1'!$E$41)/1000 -> 0.004728379505 | I78: 0.002565449729 | J78: 3.08064309 | K78: =(('pm1'!$B$41*Køl!$H$2^3)+('pm1'!$C$41*Køl!$H$2^2)+('pm1'!$D$41*Køl!$H$2)+'pm1'!$E$41)/1000 -> 0.008964720962 | L78: 0.005553645927 | M78: 19.98764715 | N78: 3112.245426 | O78: -11.28430914 | P78: 0.008766760136 | Q78: 38.28256588 | R78: =(('pm1'!$B$41*Køl!$H$4^3)+('pm1'!$C$41*Køl!$H$4^2)+('pm1'!$D$41*Køl!$H$4)+'pm1'!$E$41)/1000 -> 0.008964720962 | S78: 0.005553645927 | T78: 19.98764715 | U78: 3112.245426 | V78: -11.28430914 | W78: 0.008766760136 | X78: 38.28256588 | Y78: 0 | Z78: =1.2*(Varme_og_Køl_1!$D$43/3600)*Y78 -> 0 | AA78: 0 | AB78: =-1*1.2*(Varme_og_Køl_1!$D$43/3600)*AA78 -> 0 | AC78: 0 | AE78: 0 | AF78: =1.2*(Varme_og_Køl_1!$J$43/3600)*AE78 -> 0 | AG78: 0 | AH78: =-1*1.2*(Varme_og_Køl_1!$J$43/3600)*AG78 -> 0 | AI78: 0
B79: 3 | C79: 10 | D79: 1 | E79: -1.799999952 | F79: -3.200000048 | G79: 88 | H79: =(('pm1'!$B$41*Køl!E79^3)+('pm1'!$C$41*Køl!E79^2)+('pm1'!$D$41*Køl!E79)+'pm1'!$E$41)/1000 -> 0.005208744913 | I79: 0.002827263505 | J79: 5.250720396 | K79: =(('pm1'!$B$41*Køl!$H$2^3)+('pm1'!$C$41*Køl!$H$2^2)+('pm1'!$D$41*Køl!$H$2)+'pm1'!$E$41)/1000 -> 0.008964720962 | L79: 0.005553645927 | M79: 19.98764715 | N79: 2860.93392 | O79: -9.888614015 | P79: 0.009049008029 | Q79: 38.99686756 | R79: =(('pm1'!$B$41*Køl!$H$4^3)+('pm1'!$C$41*Køl!$H$4^2)+('pm1'!$D$41*Køl!$H$4)+'pm1'!$E$41)/1000 -> 0.008964720962 | S79: 0.005553645927 | T79: 19.98764715 | U79: 2860.93392 | V79: -9.888614015 | W79: 0.009049008029 | X79: 38.99686756 | Y79: 0 | Z79: =1.2*(Varme_og_Køl_1!$D$43/3600)*Y79 -> 0 | AA79: 0 | AB79: =-1*1.2*(Varme_og_Køl_1!$D$43/3600)*AA79 -> 0 | AC79: 0 | AE79: 0 | AF79: =1.2*(Varme_og_Køl_1!$J$43/3600)*AE79 -> 0 | AG79: 0 | AH79: =-1*1.2*(Varme_og_Køl_1!$J$43/3600)*AG79 -> 0 | AI79: 0
B80: 3 | C80: 11 | D80: 1 | E80: -1 | F80: -1.5 | G80: 95 | H80: =(('pm1'!$B$41*Køl!E80^3)+('pm1'!$C$41*Køl!E80^2)+('pm1'!$D$41*Køl!E80)+'pm1'!$E$41)/1000 -> 0.005492141188 | I80: 0.003220244783 | J80: 7.041842547 | K80: =(('pm1'!$B$41*Køl!$H$2^3)+('pm1'!$C$41*Køl!$H$2^2)+('pm1'!$D$41*Køl!$H$2)+'pm1'!$E$41)/1000 -> 0.008964720962 | L80: 0.005553645927 | M80: 19.98764715 | N80: 2999.912817 | O80: -10.6604536 | P80: 0.008887076134 | Q80: 38.5870568 | R80: =(('pm1'!$B$41*Køl!$H$4^3)+('pm1'!$C$41*Køl!$H$4^2)+('pm1'!$D$41*Køl!$H$4)+'pm1'!$E$41)/1000 -> 0.008964720962 | S80: 0.005553645927 | T80: 19.98764715 | U80: 2999.912817 | V80: -10.6604536 | W80: 0.008887076134 | X80: 38.5870568 | Y80: 0 | Z80: =1.2*(Varme_og_Køl_1!$D$43/3600)*Y80 -> 0 | AA80: 0 | AB80: =-1*1.2*(Varme_og_Køl_1!$D$43/3600)*AA80 -> 0 | AC80: 0 | AE80: 0 | AF80: =1.2*(Varme_og_Køl_1!$J$43/3600)*AE80 -> 0 | AG80: 0 | AH80: =-1*1.2*(Varme_og_Køl_1!$J$43/3600)*AG80 -> 0 | AI80: 0
B81: 3 | C81: 12 | D81: 1 | E81: -0.3000000119 | F81: -2.200000048 | G81: 84 | H81: =(('pm1'!$B$41*Køl!E81^3)+('pm1'!$C$41*Køl!E81^2)+('pm1'!$D$41*Køl!E81)+'pm1'!$E$41)/1000 -> 0.005756787405 | I81: 0.002983448519 | J81: 7.15813997 | K81: =(('pm1'!$B$41*Køl!$H$2^3)+('pm1'!$C$41*Køl!$H$2^2)+('pm1'!$D$41*Køl!$H$2)+'pm1'!$E$41)/1000 -> 0.008964720962 | L81: 0.005553645927 | M81: 19.98764715 | N81: 2451.173591 | O81: -7.612950233 | P81: 0.009633324346 | Q81: 40.47563192 | R81: =(('pm1'!$B$41*Køl!$H$4^3)+('pm1'!$C$41*Køl!$H$4^2)+('pm1'!$D$41*Køl!$H$4)+'pm1'!$E$41)/1000 -> 0.008964720962 | S81: 0.005553645927 | T81: 19.98764715 | U81: 2451.173591 | V81: -7.612950233 | W81: 0.009633324346 | X81: 40.47563192 | Y81: 0 | Z81: =1.2*(Varme_og_Køl_1!$D$43/3600)*Y81 -> 0 | AA81: 0 | AB81: =-1*1.2*(Varme_og_Køl_1!$D$43/3600)*AA81 -> 0 | AC81: 0 | AE81: 0 | AF81: =1.2*(Varme_og_Køl_1!$J$43/3600)*AE81 -> 0 | AG81: 0 | AH81: =-1*1.2*(Varme_og_Køl_1!$J$43/3600)*AG81 -> 0 | AI81: 0
B82: 3 | C82: 13 | D82: 1 | E82: -0.3000000119 | F82: -1.399999976 | G82: 90 | H82: =(('pm1'!$B$41*Køl!E82^3)+('pm1'!$C$41*Køl!E82^2)+('pm1'!$D$41*Køl!E82)+'pm1'!$E$41)/1000 -> 0.005756787405 | I82: 0.003197647531 | J82: 7.693732175 | K82: =(('pm1'!$B$41*Køl!$H$2^3)+('pm1'!$C$41*Køl!$H$2^2)+('pm1'!$D$41*Køl!$H$2)+'pm1'!$E$41)/1000 -> 0.008964720962 | L82: 0.005553645927 | M82: 19.98764715 | N82: 2674.025594 | O82: -8.85059135 | P82: 0.009293325915 | Q82: 39.61517749 | R82: =(('pm1'!$B$41*Køl!$H$4^3)+('pm1'!$C$41*Køl!$H$4^2)+('pm1'!$D$41*Køl!$H$4)+'pm1'!$E$41)/1000 -> 0.008964720962 | S82: 0.005553645927 | T82: 19.98764715 | U82: 2674.025594 | V82: -8.85059135 | W82: 0.009293325915 | X82: 39.61517749 | Y82: 0 | Z82: =1.2*(Varme_og_Køl_1!$D$43/3600)*Y82 -> 0 | AA82: 0 | AB82: =-1*1.2*(Varme_og_Køl_1!$D$43/3600)*AA82 -> 0 | AC82: 0 | AE82: 0 | AF82: =1.2*(Varme_og_Køl_1!$J$43/3600)*AE82 -> 0 | AG82: 0 | AH82: =-1*1.2*(Varme_og_Køl_1!$J$43/3600)*AG82 -> 0 | AI82: 0
B83: 3 | C83: 14 | D83: 1 | E83: 0.1000000015 | F83: -2.299999952 | G83: 80 | H83: =(('pm1'!$B$41*Køl!E83^3)+('pm1'!$C$41*Køl!E83^2)+('pm1'!$D$41*Køl!E83)+'pm1'!$E$41)/1000 -> 0.005915306935 | I83: 0.002919320506 | J83: 7.40236358 | K83: =(('pm1'!$B$41*Køl!$H$2^3)+('pm1'!$C$41*Køl!$H$2^2)+('pm1'!$D$41*Køl!$H$2)+'pm1'!$E$41)/1000 -> 0.008964720962 | L83: 0.005553645927 | M83: 19.98764715 | N83: 2239.662553 | O83: -6.438292814 | P83: 0.01001860427 | Q83: 41.45068294 | R83: =(('pm1'!$B$41*Køl!$H$4^3)+('pm1'!$C$41*Køl!$H$4^2)+('pm1'!$D$41*Køl!$H$4)+'pm1'!$E$41)/1000 -> 0.008964720962 | S83: 0.005553645927 | T83: 19.98764715 | U83: 2239.662553 | V83: -6.438292814 | W83: 0.01001860427 | X83: 41.45068294 | Y83: 0 | Z83: =1.2*(Varme_og_Køl_1!$D$43/3600)*Y83 -> 0 | AA83: 0 | AB83: =-1*1.2*(Varme_og_Køl_1!$D$43/3600)*AA83 -> 0 | AC83: 0 | AE83: 0 | AF83: =1.2*(Varme_og_Køl_1!$J$43/3600)*AE83 -> 0 | AG83: 0 | AH83: =-1*1.2*(Varme_og_Køl_1!$J$43/3600)*AG83 -> 0 | AI83: 0
B84: 3 | C84: 15 | D84: 1 | E84: 0.6000000238 | F84: -0.3000000119 | G84: 93 | H84: =(('pm1'!$B$41*Køl!E84^3)+('pm1'!$C$41*Køl!E84^2)+('pm1'!$D$41*Køl!E84)+'pm1'!$E$41)/1000 -> 0.006121178511 | I84: 0.003515170502 | J84: 9.39896438 | K84: =(('pm1'!$B$41*Køl!$H$2^3)+('pm1'!$C$41*Køl!$H$2^2)+('pm1'!$D$41*Køl!$H$2)+'pm1'!$E$41)/1000 -> 0.008964720962 | L84: 0.005553645927 | M84: 19.98764715 | N84: 2649.038545 | O84: -8.71182213 | P84: 0.009328600436 | Q84: 39.70444884 | R84: =(('pm1'!$B$41*Køl!$H$4^3)+('pm1'!$C$41*Køl!$H$4^2)+('pm1'!$D$41*Køl!$H$4)+'pm1'!$E$41)/1000 -> 0.008964720962 | S84: 0.005553645927 | T84: 19.98764715 | U84: 2649.038545 | V84: -8.71182213 | W84: 0.009328600436 | X84: 39.70444884 | Y84: 0 | Z84: =1.2*(Varme_og_Køl_1!$D$43/3600)*Y84 -> 0 | AA84: 0 | AB84: =-1*1.2*(Varme_og_Køl_1!$D$43/3600)*AA84 -> 0 | AC84: 0 | AE84: 0 | AF84: =1.2*(Varme_og_Køl_1!$J$43/3600)*AE84 -> 0 | AG84: 0 | AH84: =-1*1.2*(Varme_og_Køl_1!$J$43/3600)*AG84 -> 0 | AI84: 0
B85: 3 | C85: 16 | D85: 1 | E85: 1.100000024 | F85: -1.600000024 | G85: 80 | H85: =(('pm1'!$B$41*Køl!E85^3)+('pm1'!$C$41*Køl!E85^2)+('pm1'!$D$41*Køl!E85)+'pm1'!$E$41)/1000 -> 0.00633588624 | I85: 0.003127928482 | J85: 8.935948899 | K85: =(('pm1'!$B$41*Køl!$H$2^3)+('pm1'!$C$41*Køl!$H$2^2)+('pm1'!$D$41*Køl!$H$2)+'pm1'!$E$41)/1000 -> 0.008964720962 | L85: 0.005553645927 | M85: 19.98764715 | N85: 2020.020916 | O85: -5.218480933 | P85: 0.01050408972 | Q85: 42.67933009 | R85: =(('pm1'!$B$41*Køl!$H$4^3)+('pm1'!$C$41*Køl!$H$4^2)+('pm1'!$D$41*Køl!$H$4)+'pm1'!$E$41)/1000 -> 0.008964720962 | S85: 0.005553645927 | T85: 19.98764715 | U85: 2020.020916 | V85: -5.218480933 | W85: 0.01050408972 | X85: 42.67933009 | Y85: 0 | Z85: =1.2*(Varme_og_Køl_1!$D$43/3600)*Y85 -> 0 | AA85: 0 | AB85: =-1*1.2*(Varme_og_Køl_1!$D$43/3600)*AA85 -> 0 | AC85: 0 | AE85: 0 | AF85: =1.2*(Varme_og_Køl_1!$J$43/3600)*AE85 -> 0 | AG85: 0 | AH85: =-1*1.2*(Varme_og_Køl_1!$J$43/3600)*AG85 -> 0 | AI85: 0
B86: 3 | C86: 17 | D86: 1 | E86: -1 | F86: -4.199999809 | G86: 74 | H86: =(('pm1'!$B$41*Køl!E86^3)+('pm1'!$C$41*Køl!E86^2)+('pm1'!$D$41*Køl!E86)+'pm1'!$E$41)/1000 -> 0.005492141188 | I86: 0.002505533759 | J86: 5.255679638 | K86: =(('pm1'!$B$41*Køl!$H$2^3)+('pm1'!$C$41*Køl!$H$2^2)+('pm1'!$D$41*Køl!$H$2)+'pm1'!$E$41)/1000 -> 0.008964720962 | L86: 0.005553645927 | M86: 19.98764715 | N86: 2296.503413 | O86: -6.753966829 | P86: 0.009908091883 | Q86: 41.17100261 | R86: =(('pm1'!$B$41*Køl!$H$4^3)+('pm1'!$C$41*Køl!$H$4^2)+('pm1'!$D$41*Køl!$H$4)+'pm1'!$E$41)/1000 -> 0.008964720962 | S86: 0.005553645927 | T86: 19.98764715 | U86: 2296.503413 | V86: -6.753966829 | W86: 0.009908091883 | X86: 41.17100261 | Y86: 0 | Z86: =1.2*(Varme_og_Køl_1!$D$43/3600)*Y86 -> 0 | AA86: 0 | AB86: =-1*1.2*(Varme_og_Køl_1!$D$43/3600)*AA86 -> 0 | AC86: 0 | AE86: 0 | AF86: =1.2*(Varme_og_Køl_1!$J$43/3600)*AE86 -> 0 | AG86: 0 | AH86: =-1*1.2*(Varme_og_Køl_1!$J$43/3600)*AG86 -> 0 | AI86: 0
B87: 3 | C87: 18 | D87: 1 | E87: -8.199999809 | F87: -8.699999809 | G87: 95 | H87: =(('pm1'!$B$41*Køl!E87^3)+('pm1'!$C$41*Køl!E87^2)+('pm1'!$D$41*Køl!E87)+'pm1'!$E$41)/1000 -> 0.003540222655 | I87: 0.002071950617 | J87: -3.098852705 | K87: =(('pm1'!$B$41*Køl!$H$2^3)+('pm1'!$C$41*Køl!$H$2^2)+('pm1'!$D$41*Køl!$H$2)+'pm1'!$E$41)/1000 -> 0.008964720962 | L87: 0.005553645927 | M87: 19.98764715 | N87: 4078.472854 | O87: -16.65039415 | P87: 0.008005544066 | Q87: 36.3561107 | R87: =(('pm1'!$B$41*Køl!$H$4^3)+('pm1'!$C$41*Køl!$H$4^2)+('pm1'!$D$41*Køl!$H$4)+'pm1'!$E$41)/1000 -> 0.008964720962 | S87: 0.005553645927 | T87: 19.98764715 | U87: 4078.472854 | V87: -16.65039415 | W87: 0.008005544066 | X87: 36.3561107 | Y87: 0 | Z87: =1.2*(Varme_og_Køl_1!$D$43/3600)*Y87 -> 0 | AA87: 0 | AB87: =-1*1.2*(Varme_og_Køl_1!$D$43/3600)*AA87 -> 0 | AC87: 0 | AE87: 0 | AF87: =1.2*(Varme_og_Køl_1!$J$43/3600)*AE87 -> 0 | AG87: 0 | AH87: =-1*1.2*(Varme_og_Køl_1!$J$43/3600)*AG87 -> 0 | AI87: 0
B88: 3 | C88: 19 | D88: 1 | E88: -7.699999809 | F88: -8.300000191 | G88: 94 | H88: =(('pm1'!$B$41*Køl!E88^3)+('pm1'!$C$41*Køl!E88^2)+('pm1'!$D$41*Køl!E88)+'pm1'!$E$41)/1000 -> 0.00363947891 | I88: 0.002107740713 | J88: -2.504927346 | K88: =(('pm1'!$B$41*Køl!$H$2^3)+('pm1'!$C$41*Køl!$H$2^2)+('pm1'!$D$41*Køl!$H$2)+'pm1'!$E$41)/1000 -> 0.008964720962 | L88: 0.005553645927 | M88: 19.98764715 | N88: 3975.733213 | O88: -16.07981457 | P88: 0.008068905243 | Q88: 36.51646263 | R88: =(('pm1'!$B$41*Køl!$H$4^3)+('pm1'!$C$41*Køl!$H$4^2)+('pm1'!$D$41*Køl!$H$4)+'pm1'!$E$41)/1000 -> 0.008964720962 | S88: 0.005553645927 | T88: 19.98764715 | U88: 3975.733213 | V88: -16.07981457 | W88: 0.008068905243 | X88: 36.51646263 | Y88: 0 | Z88: =1.2*(Varme_og_Køl_1!$D$43/3600)*Y88 -> 0 | AA88: 0 | AB88: =-1*1.2*(Varme_og_Køl_1!$D$43/3600)*AA88 -> 0 | AC88: 0 | AE88: 0 | AF88: =1.2*(Varme_og_Køl_1!$J$43/3600)*AE88 -> 0 | AG88: 0 | AH88: =-1*1.2*(Varme_og_Køl_1!$J$43/3600)*AG88 -> 0 | AI88: 0
B89: 3 | C89: 20 | D89: 1 | E89: -4.800000191 | F89: -6.699999809 | G89: 83 | H89: =(('pm1'!$B$41*Køl!E89^3)+('pm1'!$C$41*Køl!E89^2)+('pm1'!$D$41*Køl!E89)+'pm1'!$E$41)/1000 -> 0.004308285924 | I89: 0.002203430294 | J89: 0.6623067459 | K89: =(('pm1'!$B$41*Køl!$H$2^3)+('pm1'!$C$41*Køl!$H$2^2)+('pm1'!$D$41*Køl!$H$2)+'pm1'!$E$41)/1000 -> 0.008964720962 | L89: 0.005553645927 | M89: 19.98764715 | N89: 3223.673152 | O89: -11.90313927 | P89: 0.008655697385 | Q89: 38.00149271 | R89: =(('pm1'!$B$41*Køl!$H$4^3)+('pm1'!$C$41*Køl!$H$4^2)+('pm1'!$D$41*Køl!$H$4)+'pm1'!$E$41)/1000 -> 0.008964720962 | S89: 0.005553645927 | T89: 19.98764715 | U89: 3223.673152 | V89: -11.90313927 | W89: 0.008655697385 | X89: 38.00149271 | Y89: 0 | Z89: =1.2*(Varme_og_Køl_1!$D$43/3600)*Y89 -> 0 | AA89: 0 | AB89: =-1*1.2*(Varme_og_Køl_1!$D$43/3600)*AA89 -> 0 | AC89: 0 | AE89: 0 | AF89: =1.2*(Varme_og_Køl_1!$J$43/3600)*AE89 -> 0 | AG89: 0 | AH89: =-1*1.2*(Varme_og_Køl_1!$J$43/3600)*AG89 -> 0 | AI89: 0
B90: 3 | C90: 21 | D90: 1 | E90: -6.400000095 | F90: -7.800000191 | G90: 87 | H90: =(('pm1'!$B$41*Køl!E90^3)+('pm1'!$C$41*Køl!E90^2)+('pm1'!$D$41*Køl!E90)+'pm1'!$E$41)/1000 -> 0.003918275637 | I90: 0.002100192522 | J90: -1.210819291 | K90: =(('pm1'!$B$41*Køl!$H$2^3)+('pm1'!$C$41*Køl!$H$2^2)+('pm1'!$D$41*Køl!$H$2)+'pm1'!$E$41)/1000 -> 0.008964720962 | L90: 0.005553645927 | M90: 19.98764715 | N90: 3590.608773 | O90: -13.94096979 | P90: 0.008338688975 | Q90: 37.19922051 | R90: =(('pm1'!$B$41*Køl!$H$4^3)+('pm1'!$C$41*Køl!$H$4^2)+('pm1'!$D$41*Køl!$H$4)+'pm1'!$E$41)/1000 -> 0.008964720962 | S90: 0.005553645927 | T90: 19.98764715 | U90: 3590.608773 | V90: -13.94096979 | W90: 0.008338688975 | X90: 37.19922051 | Y90: 0 | Z90: =1.2*(Varme_og_Køl_1!$D$43/3600)*Y90 -> 0 | AA90: 0 | AB90: =-1*1.2*(Varme_og_Køl_1!$D$43/3600)*AA90 -> 0 | AC90: 0 | AE90: 0 | AF90: =1.2*(Varme_og_Køl_1!$J$43/3600)*AE90 -> 0 | AG90: 0 | AH90: =-1*1.2*(Varme_og_Køl_1!$J$43/3600)*AG90 -> 0 | AI90: 0
B91: 3 | C91: 22 | D91: 1 | E91: -2.099999905 | F91: -3.099999905 | G91: 91 | H91: =(('pm1'!$B$41*Køl!E91^3)+('pm1'!$C$41*Køl!E91^2)+('pm1'!$D$41*Køl!E91)+'pm1'!$E$41)/1000 -> 0.005107494645 | I91: 0.002866998433 | J91: 5.04656468 | K91: =(('pm1'!$B$41*Køl!$H$2^3)+('pm1'!$C$41*Køl!$H$2^2)+('pm1'!$D$41*Køl!$H$2)+'pm1'!$E$41)/1000 -> 0.008964720962 | L91: 0.005553645927 | M91: 19.98764715 | N91: 3014.909816 | O91: -10.74374162 | P91: 0.008870494725 | Q91: 38.54509323 | R91: =(('pm1'!$B$41*Køl!$H$4^3)+('pm1'!$C$41*Køl!$H$4^2)+('pm1'!$D$41*Køl!$H$4)+'pm1'!$E$41)/1000 -> 0.008964720962 | S91: 0.005553645927 | T91: 19.98764715 | U91: 3014.909816 | V91: -10.74374162 | W91: 0.008870494725 | X91: 38.54509323 | Y91: 0 | Z91: =1.2*(Varme_og_Køl_1!$D$43/3600)*Y91 -> 0 | AA91: 0 | AB91: =-1*1.2*(Varme_og_Køl_1!$D$43/3600)*AA91 -> 0 | AC91: 0 | AE91: 0 | AF91: =1.2*(Varme_og_Køl_1!$J$43/3600)*AE91 -> 0 | AG91: 0 | AH91: =-1*1.2*(Varme_og_Køl_1!$J$43/3600)*AG91 -> 0 | AI91: 0
B92: 3 | C92: 23 | D92: 1 | E92: -5.300000191 | F92: -6.5 | G92: 89 | H92: =(('pm1'!$B$41*Køl!E92^3)+('pm1'!$C$41*Køl!E92^2)+('pm1'!$D$41*Køl!E92)+'pm1'!$E$41)/1000 -> 0.004180368593 | I92: 0.002292891622 | J92: 0.380118428 | K92: =(('pm1'!$B$41*Køl!$H$2^3)+('pm1'!$C$41*Køl!$H$2^2)+('pm1'!$D$41*Køl!$H$2)+'pm1'!$E$41)/1000 -> 0.008964720962 | L92: 0.005553645927 | M92: 19.98764715 | N92: 3465.455883 | O92: -13.24591495 | P92: 0.008439269158 | Q92: 37.45376481 | R92: =(('pm1'!$B$41*Køl!$H$4^3)+('pm1'!$C$41*Køl!$H$4^2)+('pm1'!$D$41*Køl!$H$4)+'pm1'!$E$41)/1000 -> 0.008964720962 | S92: 0.005553645927 | T92: 19.98764715 | U92: 3465.455883 | V92: -13.24591495 | W92: 0.008439269158 | X92: 37.45376481 | Y92: 0 | Z92: =1.2*(Varme_og_Køl_1!$D$43/3600)*Y92 -> 0 | AA92: 0 | AB92: =-1*1.2*(Varme_og_Køl_1!$D$43/3600)*AA92 -> 0 | AC92: 0 | AE92: 0 | AF92: =1.2*(Varme_og_Køl_1!$J$43/3600)*AE92 -> 0 | AG92: 0 | AH92: =-1*1.2*(Varme_og_Køl_1!$J$43/3600)*AG92 -> 0 | AI92: 0
B93: 3 | C93: 24 | D93: 1 | E93: -1.700000048 | F93: -4.699999809 | G93: 75 | H93: =(('pm1'!$B$41*Køl!E93^3)+('pm1'!$C$41*Køl!E93^2)+('pm1'!$D$41*Køl!E93)+'pm1'!$E$41)/1000 -> 0.005243093623 | I93: 0.00242392381 | J93: 4.344368954 | K93: =(('pm1'!$B$41*Køl!$H$2^3)+('pm1'!$C$41*Køl!$H$2^2)+('pm1'!$D$41*Køl!$H$2)+'pm1'!$E$41)/1000 -> 0.008964720962 | L93: 0.005553645927 | M93: 19.98764715 | N93: 2460.282338 | O93: -7.663536987 | P93: 0.00961822008 | Q93: 40.43740665 | R93: =(('pm1'!$B$41*Køl!$H$4^3)+('pm1'!$C$41*Køl!$H$4^2)+('pm1'!$D$41*Køl!$H$4)+'pm1'!$E$41)/1000 -> 0.008964720962 | S93: 0.005553645927 | T93: 19.98764715 | U93: 2460.282338 | V93: -7.663536987 | W93: 0.00961822008 | X93: 40.43740665 | Y93: 0 | Z93: =1.2*(Varme_og_Køl_1!$D$43/3600)*Y93 -> 0 | AA93: 0 | AB93: =-1*1.2*(Varme_og_Køl_1!$D$43/3600)*AA93 -> 0 | AC93: 0 | AE93: 0 | AF93: =1.2*(Varme_og_Køl_1!$J$43/3600)*AE93 -> 0 | AG93: 0 | AH93: =-1*1.2*(Varme_og_Køl_1!$J$43/3600)*AG93 -> 0 | AI93: 0
B94: 3 | C94: 25 | D94: 1 | E94: 1 | F94: -1.700000048 | G94: 79 | H94: =(('pm1'!$B$41*Køl!E94^3)+('pm1'!$C$41*Køl!E94^2)+('pm1'!$D$41*Køl!E94)+'pm1'!$E$41)/1000 -> 0.006292224626 | I94: 0.003067245981 | J94: 8.682887277 | K94: =(('pm1'!$B$41*Køl!$H$2^3)+('pm1'!$C$41*Køl!$H$2^2)+('pm1'!$D$41*Køl!$H$2)+'pm1'!$E$41)/1000 -> 0.008964720962 | L94: 0.005553645927 | M94: 19.98764715 | N94: 2010.939555 | O94: -5.168046268 | P94: 0.01052644582 | Q94: 42.73590802 | R94: =(('pm1'!$B$41*Køl!$H$4^3)+('pm1'!$C$41*Køl!$H$4^2)+('pm1'!$D$41*Køl!$H$4)+'pm1'!$E$41)/1000 -> 0.008964720962 | S94: 0.005553645927 | T94: 19.98764715 | U94: 2010.939555 | V94: -5.168046268 | W94: 0.01052644582 | X94: 42.73590802 | Y94: 0 | Z94: =1.2*(Varme_og_Køl_1!$D$43/3600)*Y94 -> 0 | AA94: 0 | AB94: =-1*1.2*(Varme_og_Køl_1!$D$43/3600)*AA94 -> 0 | AC94: 0 | AE94: 0 | AF94: =1.2*(Varme_og_Køl_1!$J$43/3600)*AE94 -> 0 | AG94: 0 | AH94: =-1*1.2*(Varme_og_Køl_1!$J$43/3600)*AG94 -> 0 | AI94: 0
B95: 3 | C95: 26 | D95: 1 | E95: 2.200000048 | F95: -1.200000048 | G95: 76 | H95: =(('pm1'!$B$41*Køl!E95^3)+('pm1'!$C$41*Køl!E95^2)+('pm1'!$D$41*Køl!E95)+'pm1'!$E$41)/1000 -> 0.006840698135 | I95: 0.003208703504 | J95: 10.25129753 | K95: =(('pm1'!$B$41*Køl!$H$2^3)+('pm1'!$C$41*Køl!$H$2^2)+('pm1'!$D$41*Køl!$H$2)+'pm1'!$E$41)/1000 -> 0.008964720962 | L95: 0.005553645927 | M95: 19.98764715 | N95: 1620.508851 | O95: -2.999732378 | P95: 0.01172454712 | Q95: 45.76801487 | R95: =(('pm1'!$B$41*Køl!$H$4^3)+('pm1'!$C$41*Køl!$H$4^2)+('pm1'!$D$41*Køl!$H$4)+'pm1'!$E$41)/1000 -> 0.008964720962 | S95: 0.005553645927 | T95: 19.98764715 | U95: 1620.508851 | V95: -2.999732378 | W95: 0.01172454712 | X95: 45.76801487 | Y95: 0 | Z95: =1.2*(Varme_og_Køl_1!$D$43/3600)*Y95 -> 0 | AA95: 0 | AB95: =-1*1.2*(Varme_og_Køl_1!$D$43/3600)*AA95 -> 0 | AC95: 0 | AE95: 0 | AF95: =1.2*(Varme_og_Køl_1!$J$43/3600)*AE95 -> 0 | AG95: 0 | AH95: =-1*1.2*(Varme_og_Køl_1!$J$43/3600)*AG95 -> 0 | AI95: 0
B96: 3 | C96: 27 | D96: 1 | E96: 2.400000095 | F96: 0.6999999881 | G96: 89 | H96: =(('pm1'!$B$41*Køl!E96^3)+('pm1'!$C$41*Køl!E96^2)+('pm1'!$D$41*Køl!E96)+'pm1'!$E$41)/1000 -> 0.00693744775 | I96: 0.003814396508 | J96: 11.97123323 | K96: =(('pm1'!$B$41*Køl!$H$2^3)+('pm1'!$C$41*Køl!$H$2^2)+('pm1'!$D$41*Køl!$H$2)+'pm1'!$E$41)/1000 -> 0.008964720962 | L96: 0.005553645927 | M96: 19.98764715 | N96: 2069.858334 | O96: -5.495260306 | P96: 0.01038489444 | Q96: 42.37767546 | R96: =(('pm1'!$B$41*Køl!$H$4^3)+('pm1'!$C$41*Køl!$H$4^2)+('pm1'!$D$41*Køl!$H$4)+'pm1'!$E$41)/1000 -> 0.008964720962 | S96: 0.005553645927 | T96: 19.98764715 | U96: 2069.858334 | V96: -5.495260306 | W96: 0.01038489444 | X96: 42.37767546 | Y96: 0 | Z96: =1.2*(Varme_og_Køl_1!$D$43/3600)*Y96 -> 0 | AA96: 0 | AB96: =-1*1.2*(Varme_og_Køl_1!$D$43/3600)*AA96 -> 0 | AC96: 0 | AE96: 0 | AF96: =1.2*(Varme_og_Køl_1!$J$43/3600)*AE96 -> 0 | AG96: 0 | AH96: =-1*1.2*(Varme_og_Køl_1!$J$43/3600)*AG96 -> 0 | AI96: 0
B97: 3 | C97: 28 | D97: 1 | E97: 4 | F97: 3.900000095 | G97: 99 | H97: =(('pm1'!$B$41*Køl!E97^3)+('pm1'!$C$41*Køl!E97^2)+('pm1'!$D$41*Køl!E97)+'pm1'!$E$41)/1000 -> 0.007769502406 | I97: 0.004759042278 | J97: 15.96177201 | K97: =(('pm1'!$B$41*Køl!$H$2^3)+('pm1'!$C$41*Køl!$H$2^2)+('pm1'!$D$41*Køl!$H$2)+'pm1'!$E$41)/1000 -> 0.008964720962 | L97: 0.005553645927 | M97: 19.98764715 | N97: 2516.978121 | O97: -7.978405292 | P97: 0.009526664173 | Q97: 40.20570062 | R97: =(('pm1'!$B$41*Køl!$H$4^3)+('pm1'!$C$41*Køl!$H$4^2)+('pm1'!$D$41*Køl!$H$4)+'pm1'!$E$41)/1000 -> 0.008964720962 | S97: 0.005553645927 | T97: 19.98764715 | U97: 2516.978121 | V97: -7.978405292 | W97: 0.009526664173 | X97: 40.20570062 | Y97: 0 | Z97: =1.2*(Varme_og_Køl_1!$D$43/3600)*Y97 -> 0 | AA97: 0 | AB97: =-1*1.2*(Varme_og_Køl_1!$D$43/3600)*AA97 -> 0 | AC97: 0 | AE97: 0 | AF97: =1.2*(Varme_og_Køl_1!$J$43/3600)*AE97 -> 0 | AG97: 0 | AH97: =-1*1.2*(Varme_og_Køl_1!$J$43/3600)*AG97 -> 0 | AI97: 0
B98: 3 | C98: 29 | D98: 1 | E98: 4.800000191 | F98: 3.900000095 | G98: 94 | H98: =(('pm1'!$B$41*Køl!E98^3)+('pm1'!$C$41*Køl!E98^2)+('pm1'!$D$41*Køl!E98)+'pm1'!$E$41)/1000 -> 0.008226060701 | I98: 0.00478441127 | J98: 16.837328 | K98: =(('pm1'!$B$41*Køl!$H$2^3)+('pm1'!$C$41*Køl!$H$2^2)+('pm1'!$D$41*Køl!$H$2)+'pm1'!$E$41)/1000 -> 0.008964720962 | L98: 0.005553645927 | M98: 19.98764715 | N98: 1559.991866 | O98: -2.663642476 | P98: 0.01196393576 | Q98: 46.37385006 | R98: =(('pm1'!$B$41*Køl!$H$4^3)+('pm1'!$C$41*Køl!$H$4^2)+('pm1'!$D$41*Køl!$H$4)+'pm1'!$E$41)/1000 -> 0.008964720962 | S98: 0.005553645927 | T98: 19.98764715 | U98: 1559.991866 | V98: -2.663642476 | W98: 0.01196393576 | X98: 46.37385006 | Y98: 0 | Z98: =1.2*(Varme_og_Køl_1!$D$43/3600)*Y98 -> 0 | AA98: 0 | AB98: =-1*1.2*(Varme_og_Køl_1!$D$43/3600)*AA98 -> 0 | AC98: 0 | AE98: 0 | AF98: =1.2*(Varme_og_Køl_1!$J$43/3600)*AE98 -> 0 | AG98: 0 | AH98: =-1*1.2*(Varme_og_Køl_1!$J$43/3600)*AG98 -> 0 | AI98: 0
B99: 3 | C99: 30 | D99: 1 | E99: 5.400000095 | F99: 3 | G99: 84 | H99: =(('pm1'!$B$41*Køl!E99^3)+('pm1'!$C$41*Køl!E99^2)+('pm1'!$D$41*Køl!E99)+'pm1'!$E$41)/1000 -> 0.008587133061 | I99: 0.004460791536 | J99: 16.63364392 | K99: =(('pm1'!$B$41*Køl!$H$2^3)+('pm1'!$C$41*Køl!$H$2^2)+('pm1'!$D$41*Køl!$H$2)+'pm1'!$E$41)/1000 -> 0.008964720962 | L99: 0.005553645927 | M99: 19.98764715 | N99: 549.0209034 | O99: 2.950932296 | P99: 0.02376788866 | Q99: 76.2468219 | R99: =(('pm1'!$B$41*Køl!$H$4^3)+('pm1'!$C$41*Køl!$H$4^2)+('pm1'!$D$41*Køl!$H$4)+'pm1'!$E$41)/1000 -> 0.008964720962 | S99: 0.005553645927 | T99: 19.98764715 | U99: 549.0209034 | V99: 2.950932296 | W99: 0.02376788866 | X99: 76.2468219 | Y99: 0 | Z99: =1.2*(Varme_og_Køl_1!$D$43/3600)*Y99 -> 0 | AA99: 0 | AB99: =-1*1.2*(Varme_og_Køl_1!$D$43/3600)*AA99 -> 0 | AC99: 0 | AE99: 0 | AF99: =1.2*(Varme_og_Køl_1!$J$43/3600)*AE99 -> 0 | AG99: 0 | AH99: =-1*1.2*(Varme_og_Køl_1!$J$43/3600)*AG99 -> 0 | AI99: 0
B100: 3 | C100: 31 | D100: 1 | E100: 1 | F100: 0.1000000015 | G100: 94 | H100: =(('pm1'!$B$41*Køl!E100^3)+('pm1'!$C$41*Køl!E100^2)+('pm1'!$D$41*Køl!E100)+'pm1'!$E$41)/1000 -> 0.006292224626 | I100: 0.003653054872 | J100: 10.14908492 | K100: =(('pm1'!$B$41*Køl!$H$2^3)+('pm1'!$C$41*Køl!$H$2^2)+('pm1'!$D$41*Køl!$H$2)+'pm1'!$E$41)/1000 -> 0.008964720962 | L100: 0.005553645927 | M100: 19.98764715 | N100: 2630.760566 | O100: -8.610312703 | P100: 0.009354828038 | Q100: 39.77082461 | R100: =(('pm1'!$B$41*Køl!$H$4^3)+('pm1'!$C$41*Køl!$H$4^2)+('pm1'!$D$41*Køl!$H$4)+'pm1'!$E$41)/1000 -> 0.008964720962 | S100: 0.005553645927 | T100: 19.98764715 | U100: 2630.760566 | V100: -8.610312703 | W100: 0.009354828038 | X100: 39.77082461 | Y100: 0 | Z100: =1.2*(Varme_og_Køl_1!$D$43/3600)*Y100 -> 0 | AA100: 0 | AB100: =-1*1.2*(Varme_og_Køl_1!$D$43/3600)*AA100 -> 0 | AC100: 0 | AE100: 0 | AF100: =1.2*(Varme_og_Køl_1!$J$43/3600)*AE100 -> 0 | AG100: 0 | AH100: =-1*1.2*(Varme_og_Køl_1!$J$43/3600)*AG100 -> 0 | AI100: 0
B101: 4 | C101: 1 | D101: 1 | E101: -1.899999976 | F101: -1.899999976 | G101: 100 | H101: =(('pm1'!$B$41*Køl!E101^3)+('pm1'!$C$41*Køl!E101^2)+('pm1'!$D$41*Køl!E101)+'pm1'!$E$41)/1000 -> 0.005174696949 | I101: 0.003193670066 | J101: 6.064682429 | K101: =(('pm1'!$B$41*Køl!$H$2^3)+('pm1'!$C$41*Køl!$H$2^2)+('pm1'!$D$41*Køl!$H$2)+'pm1'!$E$41)/1000 -> 0.008964720962 | L101: 0.005553645927 | M101: 19.98764715 | N101: 3347.491856 | O101: -12.59078451 | P101: 0.008540957153 | Q101: 37.71111273 | R101: =(('pm1'!$B$41*Køl!$H$4^3)+('pm1'!$C$41*Køl!$H$4^2)+('pm1'!$D$41*Køl!$H$4)+'pm1'!$E$41)/1000 -> 0.008964720962 | S101: 0.005553645927 | T101: 19.98764715 | U101: 3347.491856 | V101: -12.59078451 | W101: 0.008540957153 | X101: 37.71111273 | Y101: 0 | Z101: =1.2*(Varme_og_Køl_1!$D$43/3600)*Y101 -> 0 | AA101: 0 | AB101: =-1*1.2*(Varme_og_Køl_1!$D$43/3600)*AA101 -> 0 | AC101: 0 | AE101: 0 | AF101: =1.2*(Varme_og_Køl_1!$J$43/3600)*AE101 -> 0 | AG101: 0 | AH101: =-1*1.2*(Varme_og_Køl_1!$J$43/3600)*AG101 -> 0 | AI101: 0
B102: 4 | C102: 2 | D102: 1 | E102: 0.1000000015 | F102: 0.1000000015 | G102: 100 | H102: =(('pm1'!$B$41*Køl!E102^3)+('pm1'!$C$41*Køl!E102^2)+('pm1'!$D$41*Køl!E102)+'pm1'!$E$41)/1000 -> 0.005915306935 | I102: 0.003653437431 | J102: 9.238526555 | K102: =(('pm1'!$B$41*Køl!$H$2^3)+('pm1'!$C$41*Køl!$H$2^2)+('pm1'!$D$41*Køl!$H$2)+'pm1'!$E$41)/1000 -> 0.008964720962 | L102: 0.005553645927 | M102: 19.98764715 | N102: 3104.922438 | O102: -11.24363985 | P102: 0.008774338296 | Q102: 38.30174439 | R102: =(('pm1'!$B$41*Køl!$H$4^3)+('pm1'!$C$41*Køl!$H$4^2)+('pm1'!$D$41*Køl!$H$4)+'pm1'!$E$41)/1000 -> 0.008964720962 | S102: 0.005553645927 | T102: 19.98764715 | U102: 3104.922438 | V102: -11.24363985 | W102: 0.008774338296 | X102: 38.30174439 | Y102: 0 | Z102: =1.2*(Varme_og_Køl_1!$D$43/3600)*Y102 -> 0 | AA102: 0 | AB102: =-1*1.2*(Varme_og_Køl_1!$D$43/3600)*AA102 -> 0 | AC102: 0 | AE102: 0 | AF102: =1.2*(Varme_og_Køl_1!$J$43/3600)*AE102 -> 0 | AG102: 0 | AH102: =-1*1.2*(Varme_og_Køl_1!$J$43/3600)*AG102 -> 0 | AI102: 0
B103: 4 | C103: 3 | D103: 1 | E103: 1.399999976 | F103: -1.100000024 | G103: 82 | H103: =(('pm1'!$B$41*Køl!E103^3)+('pm1'!$C$41*Køl!E103^2)+('pm1'!$D$41*Køl!E103)+'pm1'!$E$41)/1000 -> 0.006469066309 | I103: 0.003274285754 | J103: 9.605914886 | K103: =(('pm1'!$B$41*Køl!$H$2^3)+('pm1'!$C$41*Køl!$H$2^2)+('pm1'!$D$41*Køl!$H$2)+'pm1'!$E$41)/1000 -> 0.008964720962 | L103: 0.005553645927 | M103: 19.98764715 | N103: 2018.110204 | O103: -5.207869514 | P103: 0.01050877671 | Q103: 42.69119175 | R103: =(('pm1'!$B$41*Køl!$H$4^3)+('pm1'!$C$41*Køl!$H$4^2)+('pm1'!$D$41*Køl!$H$4)+'pm1'!$E$41)/1000 -> 0.008964720962 | S103: 0.005553645927 | T103: 19.98764715 | U103: 2018.110204 | V103: -5.207869514 | W103: 0.01050877671 | X103: 42.69119175 | Y103: 0 | Z103: =1.2*(Varme_og_Køl_1!$D$43/3600)*Y103 -> 0 | AA103: 0 | AB103: =-1*1.2*(Varme_og_Køl_1!$D$43/3600)*AA103 -> 0 | AC103: 0 | AE103: 0 | AF103: =1.2*(Varme_og_Køl_1!$J$43/3600)*AE103 -> 0 | AG103: 0 | AH103: =-1*1.2*(Varme_og_Køl_1!$J$43/3600)*AG103 -> 0 | AI103: 0
B104: 4 | C104: 4 | D104: 1 | E104: 1.399999976 | F104: 0.5 | G104: 94 | H104: =(('pm1'!$B$41*Køl!E104^3)+('pm1'!$C$41*Køl!E104^2)+('pm1'!$D$41*Køl!E104)+'pm1'!$E$41)/1000 -> 0.006469066309 | I104: 0.003756343259 | J104: 10.81279598 | K104: =(('pm1'!$B$41*Køl!$H$2^3)+('pm1'!$C$41*Køl!$H$2^2)+('pm1'!$D$41*Køl!$H$2)+'pm1'!$E$41)/1000 -> 0.008964720962 | L104: 0.005553645927 | M104: 19.98764715 | N104: 2559.39086 | O104: -8.213950628 | P104: 0.009460825622 | Q104: 40.03907905 | R104: =(('pm1'!$B$41*Køl!$H$4^3)+('pm1'!$C$41*Køl!$H$4^2)+('pm1'!$D$41*Køl!$H$4)+'pm1'!$E$41)/1000 -> 0.008964720962 | S104: 0.005553645927 | T104: 19.98764715 | U104: 2559.39086 | V104: -8.213950628 | W104: 0.009460825622 | X104: 40.03907905 | Y104: 0 | Z104: =1.2*(Varme_og_Køl_1!$D$43/3600)*Y104 -> 0 | AA104: 0 | AB104: =-1*1.2*(Varme_og_Køl_1!$D$43/3600)*AA104 -> 0 | AC104: 0 | AE104: 0 | AF104: =1.2*(Varme_og_Køl_1!$J$43/3600)*AE104 -> 0 | AG104: 0 | AH104: =-1*1.2*(Varme_og_Køl_1!$J$43/3600)*AG104 -> 0 | AI104: 0
B105: 4 | C105: 5 | D105: 1 | E105: 2.700000048 | F105: 1.700000048 | G105: 93 | H105: =(('pm1'!$B$41*Køl!E105^3)+('pm1'!$C$41*Køl!E105^2)+('pm1'!$D$41*Køl!E105)+'pm1'!$E$41)/1000 -> 0.007085524659 | I105: 0.00407258544 | J105: 12.92218876 | K105: =(('pm1'!$B$41*Køl!$H$2^3)+('pm1'!$C$41*Køl!$H$2^2)+('pm1'!$D$41*Køl!$H$2)+'pm1'!$E$41)/1000 -> 0.008964720962 | L105: 0.005553645927 | M105: 19.98764715 | N105: 2228.133138 | O105: -6.37426253 | P105: 0.01004170808 | Q105: 41.50915313 | R105: =(('pm1'!$B$41*Køl!$H$4^3)+('pm1'!$C$41*Køl!$H$4^2)+('pm1'!$D$41*Køl!$H$4)+'pm1'!$E$41)/1000 -> 0.008964720962 | S105: 0.005553645927 | T105: 19.98764715 | U105: 2228.133138 | V105: -6.37426253 | W105: 0.01004170808 | X105: 41.50915313 | Y105: 0 | Z105: =1.2*(Varme_og_Køl_1!$D$43/3600)*Y105 -> 0 | AA105: 0 | AB105: =-1*1.2*(Varme_og_Køl_1!$D$43/3600)*AA105 -> 0 | AC105: 0 | AE105: 0 | AF105: =1.2*(Varme_og_Køl_1!$J$43/3600)*AE105 -> 0 | AG105: 0 | AH105: =-1*1.2*(Varme_og_Køl_1!$J$43/3600)*AG105 -> 0 | AI105: 0
B106: 4 | C106: 6 | D106: 1 | E106: -0.3000000119 | F106: -0.3000000119 | G106: 100 | H106: =(('pm1'!$B$41*Køl!E106^3)+('pm1'!$C$41*Køl!E106^2)+('pm1'!$D$41*Køl!E106)+'pm1'!$E$41)/1000 -> 0.005756787405 | I106: 0.003554972346 | J106: 8.58720215 | K106: =(('pm1'!$B$41*Køl!$H$2^3)+('pm1'!$C$41*Køl!$H$2^2)+('pm1'!$D$41*Køl!$H$2)+'pm1'!$E$41)/1000 -> 0.008964720962 | L106: 0.005553645927 | M106: 19.98764715 | N106: 3152.090501 | O106: -11.50559457 | P106: 0.00872614367 | Q106: 38.17977535 | R106: =(('pm1'!$B$41*Køl!$H$4^3)+('pm1'!$C$41*Køl!$H$4^2)+('pm1'!$D$41*Køl!$H$4)+'pm1'!$E$41)/1000 -> 0.008964720962 | S106: 0.005553645927 | T106: 19.98764715 | U106: 3152.090501 | V106: -11.50559457 | W106: 0.00872614367 | X106: 38.17977535 | Y106: 0 | Z106: =1.2*(Varme_og_Køl_1!$D$43/3600)*Y106 -> 0 | AA106: 0 | AB106: =-1*1.2*(Varme_og_Køl_1!$D$43/3600)*AA106 -> 0 | AC106: 0 | AE106: 0 | AF106: =1.2*(Varme_og_Køl_1!$J$43/3600)*AE106 -> 0 | AG106: 0 | AH106: =-1*1.2*(Varme_og_Køl_1!$J$43/3600)*AG106 -> 0 | AI106: 0
B107: 4 | C107: 7 | D107: 1 | E107: 2.599999905 | F107: 2 | G107: 96 | H107: =(('pm1'!$B$41*Køl!E107^3)+('pm1'!$C$41*Køl!E107^2)+('pm1'!$D$41*Køl!E107)+'pm1'!$E$41)/1000 -> 0.007035769013 | I107: 0.004175121994 | J107: 13.0777709 | K107: =(('pm1'!$B$41*Køl!$H$2^3)+('pm1'!$C$41*Køl!$H$2^2)+('pm1'!$D$41*Køl!$H$2)+'pm1'!$E$41)/1000 -> 0.008964720962 | L107: 0.005553645927 | M107: 19.98764715 | N107: 2466.406285 | O107: -7.697547222 | P107: 0.009608127972 | Q107: 40.41186595 | R107: =(('pm1'!$B$41*Køl!$H$4^3)+('pm1'!$C$41*Køl!$H$4^2)+('pm1'!$D$41*Køl!$H$4)+'pm1'!$E$41)/1000 -> 0.008964720962 | S107: 0.005553645927 | T107: 19.98764715 | U107: 2466.406285 | V107: -7.697547222 | W107: 0.009608127972 | X107: 40.41186595 | Y107: 0 | Z107: =1.2*(Varme_og_Køl_1!$D$43/3600)*Y107 -> 0 | AA107: 0 | AB107: =-1*1.2*(Varme_og_Køl_1!$D$43/3600)*AA107 -> 0 | AC107: 0 | AE107: 0 | AF107: =1.2*(Varme_og_Køl_1!$J$43/3600)*AE107 -> 0 | AG107: 0 | AH107: =-1*1.2*(Varme_og_Køl_1!$J$43/3600)*AG107 -> 0 | AI107: 0
B108: 4 | C108: 8 | D108: 1 | E108: 2.099999905 | F108: 2.099999905 | G108: 100 | H108: =(('pm1'!$B$41*Køl!E108^3)+('pm1'!$C$41*Køl!E108^2)+('pm1'!$D$41*Køl!E108)+'pm1'!$E$41)/1000 -> 0.006792907197 | I108: 0.004199123924 | J108: 12.63101062 | K108: =(('pm1'!$B$41*Køl!$H$2^3)+('pm1'!$C$41*Køl!$H$2^2)+('pm1'!$D$41*Køl!$H$2)+'pm1'!$E$41)/1000 -> 0.008964720962 | L108: 0.005553645927 | M108: 19.98764715 | N108: 2879.24455 | O108: -9.990304769 | P108: 0.009026779184 | Q108: 38.94061169 | R108: =(('pm1'!$B$41*Køl!$H$4^3)+('pm1'!$C$41*Køl!$H$4^2)+('pm1'!$D$41*Køl!$H$4)+'pm1'!$E$41)/1000 -> 0.008964720962 | S108: 0.005553645927 | T108: 19.98764715 | U108: 2879.24455 | V108: -9.990304769 | W108: 0.009026779184 | X108: 38.94061169 | Y108: 0 | Z108: =1.2*(Varme_og_Køl_1!$D$43/3600)*Y108 -> 0 | AA108: 0 | AB108: =-1*1.2*(Varme_og_Køl_1!$D$43/3600)*AA108 -> 0 | AC108: 0 | AE108: 0 | AF108: =1.2*(Varme_og_Køl_1!$J$43/3600)*AE108 -> 0 | AG108: 0 | AH108: =-1*1.2*(Varme_og_Køl_1!$J$43/3600)*AG108 -> 0 | AI108: 0
B109: 4 | C109: 9 | D109: 1 | E109: 1.299999952 | F109: 0.8000000119 | G109: 96 | H109: =(('pm1'!$B$41*Køl!E109^3)+('pm1'!$C$41*Køl!E109^2)+('pm1'!$D$41*Køl!E109)+'pm1'!$E$41)/1000 -> 0.00642430486 | I109: 0.003810048127 | J109: 10.84594301 | K109: =(('pm1'!$B$41*Køl!$H$2^3)+('pm1'!$C$41*Køl!$H$2^2)+('pm1'!$D$41*Køl!$H$2)+'pm1'!$E$41)/1000 -> 0.008964720962 | L109: 0.005553645927 | M109: 19.98764715 | N109: 2695.575807 | O109: -8.970273602 | P109: 0.009263428444 | Q109: 39.53951417 | R109: =(('pm1'!$B$41*Køl!$H$4^3)+('pm1'!$C$41*Køl!$H$4^2)+('pm1'!$D$41*Køl!$H$4)+'pm1'!$E$41)/1000 -> 0.008964720962 | S109: 0.005553645927 | T109: 19.98764715 | U109: 2695.575807 | V109: -8.970273602 | W109: 0.009263428444 | X109: 39.53951417 | Y109: 0 | Z109: =1.2*(Varme_og_Køl_1!$D$43/3600)*Y109 -> 0 | AA109: 0 | AB109: =-1*1.2*(Varme_og_Køl_1!$D$43/3600)*AA109 -> 0 | AC109: 0 | AE109: 0 | AF109: =1.2*(Varme_og_Køl_1!$J$43/3600)*AE109 -> 0 | AG109: 0 | AH109: =-1*1.2*(Varme_og_Køl_1!$J$43/3600)*AG109 -> 0 | AI109: 0
B110: 4 | C110: 10 | D110: 1 | E110: 0.5 | F110: -0.6000000238 | G110: 91 | H110: =(('pm1'!$B$41*Køl!E110^3)+('pm1'!$C$41*Køl!E110^2)+('pm1'!$D$41*Køl!E110)+'pm1'!$E$41)/1000 -> 0.006079306071 | I110: 0.003415502426 | J110: 9.048347984 | K110: =(('pm1'!$B$41*Køl!$H$2^3)+('pm1'!$C$41*Køl!$H$2^2)+('pm1'!$D$41*Køl!$H$2)+'pm1'!$E$41)/1000 -> 0.008964720962 | L110: 0.005553645927 | M110: 19.98764715 | N110: 2572.325008 | O110: -8.285782305 | P110: 0.009441179567 | Q110: 39.9893596 | R110: =(('pm1'!$B$41*Køl!$H$4^3)+('pm1'!$C$41*Køl!$H$4^2)+('pm1'!$D$41*Køl!$H$4)+'pm1'!$E$41)/1000 -> 0.008964720962 | S110: 0.005553645927 | T110: 19.98764715 | U110: 2572.325008 | V110: -8.285782305 | W110: 0.009441179567 | X110: 39.9893596 | Y110: 0 | Z110: =1.2*(Varme_og_Køl_1!$D$43/3600)*Y110 -> 0 | AA110: 0 | AB110: =-1*1.2*(Varme_og_Køl_1!$D$43/3600)*AA110 -> 0 | AC110: 0 | AE110: 0 | AF110: =1.2*(Varme_og_Køl_1!$J$43/3600)*AE110 -> 0 | AG110: 0 | AH110: =-1*1.2*(Varme_og_Køl_1!$J$43/3600)*AG110 -> 0 | AI110: 0
B111: 4 | C111: 11 | D111: 1 | E111: 2.099999905 | F111: 2 | G111: 99 | H111: =(('pm1'!$B$41*Køl!E111^3)+('pm1'!$C$41*Køl!E111^2)+('pm1'!$D$41*Køl!E111)+'pm1'!$E$41)/1000 -> 0.006792907197 | I111: 0.004156852056 | J111: 12.52512356 | K111: =(('pm1'!$B$41*Køl!$H$2^3)+('pm1'!$C$41*Køl!$H$2^2)+('pm1'!$D$41*Køl!$H$2)+'pm1'!$E$41)/1000 -> 0.008964720962 | L111: 0.005553645927 | M111: 19.98764715 | N111: 2792.108538 | O111: -9.506382213 | P111: 0.009135168588 | Q111: 39.21491925 | R111: =(('pm1'!$B$41*Køl!$H$4^3)+('pm1'!$C$41*Køl!$H$4^2)+('pm1'!$D$41*Køl!$H$4)+'pm1'!$E$41)/1000 -> 0.008964720962 | S111: 0.005553645927 | T111: 19.98764715 | U111: 2792.108538 | V111: -9.506382213 | W111: 0.009135168588 | X111: 39.21491925 | Y111: 0 | Z111: =1.2*(Varme_og_Køl_1!$D$43/3600)*Y111 -> 0 | AA111: 0 | AB111: =-1*1.2*(Varme_og_Køl_1!$D$43/3600)*AA111 -> 0 | AC111: 0 | AE111: 0 | AF111: =1.2*(Varme_og_Køl_1!$J$43/3600)*AE111 -> 0 | AG111: 0 | AH111: =-1*1.2*(Varme_og_Køl_1!$J$43/3600)*AG111 -> 0 | AI111: 0
B112: 4 | C112: 12 | D112: 1 | E112: 3 | F112: 1.899999976 | G112: 92 | H112: =(('pm1'!$B$41*Køl!E112^3)+('pm1'!$C$41*Køl!E112^2)+('pm1'!$D$41*Køl!E112)+'pm1'!$E$41)/1000 -> 0.007237197277 | I112: 0.004115315351 | J112: 13.33336715 | K112: =(('pm1'!$B$41*Køl!$H$2^3)+('pm1'!$C$41*Køl!$H$2^2)+('pm1'!$D$41*Køl!$H$2)+'pm1'!$E$41)/1000 -> 0.008964720962 | L112: 0.005553645927 | M112: 19.98764715 | N112: 2085.751391 | O112: -5.58352472 | P112: 0.01034808118 | Q112: 42.28450993 | R112: =(('pm1'!$B$41*Køl!$H$4^3)+('pm1'!$C$41*Køl!$H$4^2)+('pm1'!$D$41*Køl!$H$4)+'pm1'!$E$41)/1000 -> 0.008964720962 | S112: 0.005553645927 | T112: 19.98764715 | U112: 2085.751391 | V112: -5.58352472 | W112: 0.01034808118 | X112: 42.28450993 | Y112: 0 | Z112: =1.2*(Varme_og_Køl_1!$D$43/3600)*Y112 -> 0 | AA112: 0 | AB112: =-1*1.2*(Varme_og_Køl_1!$D$43/3600)*AA112 -> 0 | AC112: 0 | AE112: 0 | AF112: =1.2*(Varme_og_Køl_1!$J$43/3600)*AE112 -> 0 | AG112: 0 | AH112: =-1*1.2*(Varme_og_Køl_1!$J$43/3600)*AG112 -> 0 | AI112: 0
B113: 4 | C113: 13 | D113: 1 | E113: 4.400000095 | F113: 3.299999952 | G113: 93 | H113: =(('pm1'!$B$41*Køl!E113^3)+('pm1'!$C$41*Køl!E113^2)+('pm1'!$D$41*Køl!E113)+'pm1'!$E$41)/1000 -> 0.007994286961 | I113: 0.004598781576 | J113: 15.96558925 | K113: =(('pm1'!$B$41*Køl!$H$2^3)+('pm1'!$C$41*Køl!$H$2^2)+('pm1'!$D$41*Køl!$H$2)+'pm1'!$E$41)/1000 -> 0.008964720962 | L113: 0.005553645927 | M113: 19.98764715 | N113: 1675.630578 | O113: -3.305858935 | P113: 0.01152154848 | Q113: 45.25427403 | R113: =(('pm1'!$B$41*Køl!$H$4^3)+('pm1'!$C$41*Køl!$H$4^2)+('pm1'!$D$41*Køl!$H$4)+'pm1'!$E$41)/1000 -> 0.008964720962 | S113: 0.005553645927 | T113: 19.98764715 | U113: 1675.630578 | V113: -3.305858935 | W113: 0.01152154848 | X113: 45.25427403 | Y113: 0 | Z113: =1.2*(Varme_og_Køl_1!$D$43/3600)*Y113 -> 0 | AA113: 0 | AB113: =-1*1.2*(Varme_og_Køl_1!$D$43/3600)*AA113 -> 0 | AC113: 0 | AE113: 0 | AF113: =1.2*(Varme_og_Køl_1!$J$43/3600)*AE113 -> 0 | AG113: 0 | AH113: =-1*1.2*(Varme_og_Køl_1!$J$43/3600)*AG113 -> 0 | AI113: 0
